Workbook

Sheet Cover
A1: RIIO price control model
B2: Gas Transmission
C3: =MID(CELL("filename"),SEARCH("[",CELL("filename"))+1,SEARCH("]",CELL("filename"))-SEARCH("[",CELL("filename"))-1) -> RIIO_GT1_FP_ FinancialModel_dec12.xlsm
C4: DISCLAIMER: This purpose of this model is used to calculate Base Revenue (PU) at Final Proposals and MOD terms in subsequent years for Licensees on the basis of Financial Handbook and Licence conditions of the relevant Network Operator
B5: RIIO GT1 Price Control Financial Model for the Annual Iteration Process that will take place by 30 November 2013-14
B6: Model key
E8: Sample | G8: Calculated value | I8: Sample | K8: Information and interface
E9: Sample | G9: Import | I9: Sample | K9: FP fixed input value
E10: Sample | G10: Export | I10: Sample | K10: Annual update input
E11: Sample | G11: Named range | I11: Sample | K11: Input linked from annual update
E12: Sample | G12: Formula change in cells to the right | I12: Sample | K12: Notes and instructions
I13: Sample | K13: Sheet or calculation included in FP Model
B15: Contents
E17: INTERFACE > | I17: COMPANY SPECIFIC INPUT SHEETS >
E18: Cover | G18: Model key and content directory
E19: UserInterface | G19: Model operation | I19: NGGT TO | K19: Inputs for NGGT TO
E20: TaxTrigger | G20: Tax trigger calculations | I20: NGGT SO | K20: Inputs for NGGT SO
E21: INPUT SELECTION >
E22: Input | G22: Inputs for selected licensee
E23: CALCULATION >
E24: Totex | G24: Totex allowance and actuals
E25: TIM | G25: Totex Incentive Mechanism and capitalisation
E26: DARTs | G26: Direct Allowance Revenue Terms
E27: Depn | G27: Gas transmission regulatory depreciation
E28: SystemOperator | G28: System operator calculations
E29: Return&RAV | G29: RAV and return calculations
E30: TaxPools | G30: Tax pools and capital allowances
E31: Finance&Tax | G31: Net debt, equity issuance, financing costs and tax
E32: NonCore | G32: Calculations for non-core regulatory assets (Revenue drivers)
E33: Revenue | G33: Revenue and MOD
E34: OUTPUT >
E35: ResultsLive | G35: Results for selected company
E36: ResultsLive(SO) | G36: Results for SO (for selected company)
E37: SavedResults | G37: Saved results for all companies
E38: FinancialStatements | G38: Financial statements for selected company
E39: FinancialRatios | G39: Financial ratios for selected company
E40: RoRE | G40: Return on Regulatory Equity calculations for selected company
E41: BillImpact | G41: Bill impact for all companies
B43: End of sheet

Sheet UserInterface
A1: User Interface
B2: =UserInterface!G39 -> NGGT TO
B3: Model operation
C5: View
E8: Select view
E10: Year t selected: | G10: =INDEX(E80:E81,E82) -> Best view
C13: Ratio switch
E16: Select view
E18: Year t selected: | G18: =INDEX(E84:E85,E86) -> Ratio switch fast/ slow
C27: PCFM year t
C28: Instruction: Use the following drop-down list to identify year t in the model. Year t is identified here by its end date.
E30: Year t selection:
E32: Year t selected: | G32: =EOMONTH(41364,G76*12) -> 2014-03-31
C34: Active company
C35: Instruction: Use the following drop-down list to select the active company in the model.
E37: Company selection:
E39: Selected company: | G39: =INDEX(E68:E68, E69) -> NGGT TO
C41: Model state
C42: Instruction: Use the following drop-down list to set the model state and run it as either the "Licence Model" or the "Tax Trigger Tool."
C43: Note: "Tax Trigger Tool" must be selected here for functionality on the "TaxTrigger" sheet to function.
C44: Selecting "Licence Model" ensures that the Tax Trigger Tool functionality is deactivated and does not affect the calculations in the model.
E46: Model status selection:
E48: Selected model status: | G48: =INDEX(E73:E74, E75) -> Licence Model
C50: Run model for all licensees
C51: Instruction: Click on the left button to save results for the selected company only. Click the right button to save results for all.
C52: Note: Annual iterations must have been completed for all prior years before running the model to generate MOD.
C53: The macros save results and values required for future years which cannot be recreated once inputs are revised.
C54: Running the macro saves the output from year t's iteration for use in future iterations.
C55: Results for the selected company can be found on the "LiveResults" sheet and also on the "SavedResults" sheet once saved by a macro.
B61: User selection lists
B62: Note: The lists below drive the drop-down lists above.
B63: Using the drop-down lists above returns an integer in the "cell link" positioned below their "source list."
B64: The number returned in the cell link corresponds to the position of the selected item in the source list.
B65: The company selection output is set as a "named range." This gives a stable anchor point for the "RunForAll" macro to change the company.
E67: ="Source for ''"&C34&"'' drop-down list" -> Source for ''Active company'' drop-down list | G67: ="Source for ''"&C27&"'' drop-down list" -> Source for ''PCFM year t'' drop-down list
E68: NGGT TO | G68: 2014-03-31
E69: 1 | G69: 2015-03-31
E70: Adjacent named range: m_identity | G70: 2016-03-31
E71: 3 | G71: 2017-03-31
E72: ="Source for ''"&C41&"'' drop-down list" -> Source for ''Model state'' drop-down list | G72: 2018-03-31
E73: Licence Model | G73: 2019-03-31
E74: Tax Trigger Tool | G74: 2020-03-31
E75: 1 | G75: 2021-03-31
E76: Adjacent named range: m_model_state | G76: 1
G77: Adjacent named range: m_PCFM_year_t
E79: ="Source for ''"&C5&"'' drop-down list" -> Source for ''View'' drop-down list
E80: Base view
E81: Best view
E82: 2
E83: ="Source for ''"&C13&"'' drop-down list" -> Source for ''Ratio switch'' drop-down list
E84: Ratio switch opex/ capex
E85: Ratio switch fast/ slow
E86: 2
B96: End of sheet

Sheet TaxTrigger
A1: Tax Trigger
B2: =UserInterface!G39 -> NGGT TO
E3: Parameter | G3: Units | I3: Constant | AH3: Annual values
E4: PCFM year ending | F4: =Cover!C3 -> RIIO_GT1_FP_ FinancialModel_dec12.xlsm | I4: =UserInterface!$G$32 -> 2014-03-31 | K4: 1991-03-31 | L4: 1992-03-31 | M4: 1993-03-31 | N4: 1994-03-31 | O4: 1995-03-31 | P4: 1996-03-31 | Q4: 1997-03-31 | R4: 1998-03-31 | S4: 1999-03-31 | T4: 2000-03-31 | U4: 2001-03-31 | V4: 2002-03-31 | W4: 2003-03-31 | X4: 2004-03-31 | Y4: 2005-03-31 | Z4: 2006-03-31 | AA4: 2007-03-31 | AB4: 2008-03-31 | AC4: 2009-03-31 | AD4: 2010-03-31 | AE4: 2011-03-31 | AF4: 2012-03-31 | AG4: 2013-03-31 | AH4: 2014-03-31 | AI4: 2015-03-31 | AJ4: 2016-03-31 | AK4: 2017-03-31 | AL4: 2018-03-31 | AM4: 2019-03-31 | AN4: 2020-03-31 | AO4: 2021-03-31
B6: Tax trigger calculation
C8: Test operation
C9: Instruction: To run the model as the Tax Trigger Tool, the "model state" must be set to "Tax Trigger Tool" on the "UserInterface" sheet. The model state selected is shown below.
C10: Clicking the macro button below runs the "TaxTrigger" macro, performing the Tax Trigger adjustment calculation for the licensee (TO and SO) for year t.
C11: The output generated by the macro can be replicated manually using the following steps:
C12: 1. Clear any values from previous tests in the "Test state output" section below (named range "m_saved_original_results")
C13: 2. Set testing state to "Licence Model"
C14: 3. Copy the cells marked as the "m_calculated_tax" named range and paste them at the named range "m_saved_original_test."
C15: 4. Set testing state to "Tax Trigger Calculation"
C16: Note: The Tax Trigger Tool is disabled if the "Model state" below reads "Licence Model."
E18: Model state
E19: =UserInterface!G48 -> Licence Model
E22: State selection
E25: State options
E26: Licence Model
E27: Tax Trigger Calculation
E28: 1
E29: Adjacent named range: m_tax_trigger_state
E31: State selected
E32: =IF(E19 = "Licence Model", "Licence Model", INDEX(E26:E27, E28)) -> Licence Model
E34: Run macro
C39: Transmission operator
D41: Tax calculation
I43: Instruction
E44: Tax allowance before tax trigger | G44: £m 09/10 prices | AH44: ='Finance&Tax'!AH219 * Input!$AD$46 / Input!AH$46 -> 11.67759678 | AI44: ='Finance&Tax'!AI219 * Input!$AD$46 / Input!AI$46 -> 13.55097671 | AJ44: ='Finance&Tax'!AJ219 * Input!$AD$46 / Input!AJ$46 -> 15.51440191 | AK44: ='Finance&Tax'!AK219 * Input!$AD$46 / Input!AK$46 -> 19.59307599 | AL44: ='Finance&Tax'!AL219 * Input!$AD$46 / Input!AL$46 -> 24.7993958 | AM44: ='Finance&Tax'!AM219 * Input!$AD$46 / Input!AM$46 -> 13.11280625 | AN44: ='Finance&Tax'!AN219 * Input!$AD$46 / Input!AN$46 -> 10.37108458 | AO44: ='Finance&Tax'!AO219 * Input!$AD$46 / Input!AO$46 -> 7.52629712
E45: B event value | G45: £m 09/10 prices | AH45: =AH152 -> 0 | AI45: =AI152 -> 0 | AJ45: 0 | AK45: 0 | AL45: 0 | AM45: 0 | AN45: 0 | AO45: 0
E46: Threshold value adjustment | G46: £m 09/10 prices | AH46: =AH97 -> 0 | AI46: =AI97 -> 0 | AJ46: 0 | AK46: 0 | AL46: 0 | AM46: 0 | AN46: 0 | AO46: 0
E47: Tax allowance | G47: £m 09/10 prices | I47: =IF(m_tax_trigger_state = 1, "Copy cells -->", "-") -> Copy cells --> | AH47: =SUM(AH44:AH46) -> 11.67759678 | AI47: 13.55097671 | AJ47: 15.51440191 | AK47: 19.59307599 | AL47: 24.7993958 | AM47: 13.11280625 | AN47: 10.37108458 | AO47: 7.52629712
AH48: Adjacent named range: m_calculated_tax
D49: Test state output
D50: Note: The formula determines whether the recalculated tax is above or below the threshold and sets the adjustment accordingly
I52: Instruction
E53: Value with original settings | G53: £m 09/10 prices | I53: =IF(m_tax_trigger_state = 1, "Paste cells -->","") -> Paste cells --> | AG53: m_tax_trigger_results
AH54: Adjacent named range: m_saved_original_test
E55: Value with new settings and threshold adjustment | G55: text | AH55: =AH47 -> 11.67759678 | AI55: =AI47 -> 13.55097671 | AJ55: 15.51440191 | AK55: 19.59307599 | AL55: 24.7993958 | AM55: 13.11280625 | AN55: 10.37108458 | AO55: 7.52629712
D57: Result and output
D58: Note: Once the test is complete, the "Tax Trigger adjustment" below can be taken from below and inputted to the PCFM set to run as the Licence Model, rather than the Tax Trigger Tool.
E60: TO tax trigger adjustment | G60: £m 09/10 prices | AH60: =IF(AND(m_tax_trigger_state=2,m_model_state=2),IF(ABS(AH55-AH53)> ABS(AH97), AH55 - AH53, 0),0) -> 0 | AI60: 0 | AJ60: 0 | AK60: 0 | AL60: 0 | AM60: 0 | AN60: 0 | AO60: 0
C62: System operator
D64: SO tax calculation
I66: Instruction
E67: Tax allowance before tax trigger | G67: £m 09/10 prices | AH67: =SystemOperator!AH353 * Input!$AD$46 / Input!AH$46 -> 2.518717341 | AI67: =SystemOperator!AI353 * Input!$AD$46 / Input!AI$46 -> 0 | AJ67: =SystemOperator!AJ353 * Input!$AD$46 / Input!AJ$46 -> 0 | AK67: =SystemOperator!AK353 * Input!$AD$46 / Input!AK$46 -> 0 | AL67: =SystemOperator!AL353 * Input!$AD$46 / Input!AL$46 -> 0 | AM67: =SystemOperator!AM353 * Input!$AD$46 / Input!AM$46 -> 0 | AN67: =SystemOperator!AN353 * Input!$AD$46 / Input!AN$46 -> 0 | AO67: =SystemOperator!AO353 * Input!$AD$46 / Input!AO$46 -> 0
E68: B event value | G68: £m 09/10 prices | AH68: =AH159 -> 0 | AI68: =AI159 -> 0 | AJ68: 0 | AK68: 0 | AL68: 0 | AM68: 0 | AN68: 0 | AO68: 0
E69: Threshold value adjustment | G69: £m 09/10 prices | AH69: =AH103 -> 0 | AI69: =AI103 -> 0 | AJ69: 0 | AK69: 0 | AL69: 0 | AM69: 0 | AN69: 0 | AO69: 0
E70: Tax allowance | G70: £m 09/10 prices | I70: =IF(m_tax_trigger_state = 1, "Copy cells -->", "-") -> Copy cells --> | AH70: =SUM(AH67:AH69) -> 2.518717341 | AI70: 0 | AJ70: 0 | AK70: 0 | AL70: 0 | AM70: 0 | AN70: 0 | AO70: 0
AH71: Adjacent named range: m_SO_calculated_tax
D72: Test state output
D73: Note: The formula determines whether the recalculated tax is above or below the threshold and sets the adjustment accordingly
I75: Instruction
E76: Value with original settings | G76: £m 09/10 prices | I76: =IF( m_tax_trigger_state = 1, "Paste cells -->","") -> Paste cells --> | AG76: m_tax_trigger_results
AH77: Adjacent named range: m_SO_saved_original_test
E78: Value with new settings and threshold adjustment | G78: text | AH78: =AH70 -> 2.518717341 | AI78: =AI70 -> 0 | AJ78: 0 | AK78: 0 | AL78: 0 | AM78: 0 | AN78: 0 | AO78: 0
D80: Result and output
D81: Note: Once the test is complete, the "Tax Trigger adjustment" below can be taken from below and inputted to the PCFM set to run as the Licence Model, rather than the Tax Trigger Tool.
E83: SO tax trigger adjustment | G83: £m 09/10 prices | AH83: =IF(AND(m_tax_trigger_state=2,m_model_state=2),IF(ABS(AH78-AH76)> ABS(AH103), AH78 - AH76, 0),0) -> 0 | AI83: 0 | AJ83: 0 | AK83: 0 | AL83: 0 | AM83: 0 | AN83: 0 | AO83: 0
B85: Tax trigger parameters
B86: Instruction: Enter values in the yellow cells below for use in the Tax Trigger test.
B87: Note: Flags are used throughout to indicate whether the original or Tax Trigger value is being used. The live values below are exported for use throughout the model.
C89: Active policy
E91: Tax trigger tax settings are used | G91: flag | AH91: =IF(AND(AH$4 <= $I4, m_tax_trigger_state = 2, m_model_state = 2), TRUE, FALSE) -> FALSE | AI91: FALSE | AJ91: FALSE | AK91: FALSE | AL91: FALSE | AM91: FALSE | AN91: FALSE | AO91: FALSE
C93: TO threshold
E95: Threshold value | G95: £m 09/10 prices
E97: Threshold value applied | G97: £m 09/10 prices | AH97: =IF(OR(AH44 = AH53, AH53 = ""), 0, IF(AH53 < AH44, -AH95, +AH95)) -> 0 | AI97: 0 | AJ97: 0 | AK97: 0 | AL97: 0 | AM97: 0 | AN97: 0 | AO97: 0
C99: SO threshold
E101: Threshold value | G101: £m 09/10 prices
E103: Threshold value applied | G103: £m 09/10 prices | AH103: =IF(OR(AH67 = AH76, AH76 = ""), 0, IF(AH76 < AH67, -AH101, +AH101)) -> 0 | AI103: =IF(OR(AI67 = AI76, AI76 = ""), 0, IF(AI76 < AI67, -AI101, +AI101)) -> 0 | AJ103: 0 | AK103: 0 | AL103: 0 | AM103: 0 | AN103: 0 | AO103: 0
C105: Corporation tax rate
E107: Active | G107: text | AH107: =AH$91 = FALSE() -> TRUE | AI107: TRUE | AJ107: TRUE | AK107: TRUE | AL107: TRUE | AM107: TRUE | AN107: TRUE | AO107: TRUE
E108: RIIO | G108: % | J108: > | Y108: =Input!Y267 -> 0.3 | Z108: =Input!Z267 -> 0.3 | AA108: =Input!AA267 -> 0.3 | AB108: =Input!AB267 -> 0.3 | AC108: =Input!AC267 -> 0.28 | AD108: =Input!AD267 -> 0.28 | AE108: =Input!AE267 -> 0.28 | AF108: =Input!AF267 -> 0.26 | AG108: =Input!AG267 -> 0.24 | AH108: =Input!AH267 -> 0.23 | AI108: =Input!AI267 -> 0.21 | AJ108: =Input!AJ267 -> 0.21 | AK108: =Input!AK267 -> 0.21 | AL108: =Input!AL267 -> 0.21 | AM108: =Input!AM267 -> 0.21 | AN108: =Input!AN267 -> 0.21 | AO108: =Input!AO267 -> 0.21
E110: Active | G110: text | AH110: =AH$91 -> FALSE | AI110: FALSE | AJ110: FALSE | AK110: FALSE | AL110: FALSE | AM110: FALSE | AN110: FALSE | AO110: FALSE
E111: Tax trigger | G111: % | AH111: =AH108 -> 0.23 | AI111: 0.21 | AJ111: 0.21 | AK111: 0.21 | AL111: 0.21 | AM111: 0.21 | AN111: 0.21 | AO111: 0.21
E113: Applied | G113: % | J113: > | Y113: =Y108 -> 0.3 | Z113: =Z108 -> 0.3 | AA113: =AA108 -> 0.3 | AB113: 0.3 | AC113: 0.28 | AD113: 0.28 | AE113: 0.28 | AF113: 0.26 | AG113: 0.24 | AH113: =(AH107 * AH108) + (AH110 * AH111) -> 0.23 | AI113: =(AI107 * AI108) + (AI110 * AI111) -> 0.21 | AJ113: 0.21 | AK113: 0.21 | AL113: 0.21 | AM113: 0.21 | AN113: 0.21 | AO113: 0.21
C115: Capital allowance rate
D117: General pool
E119: Active | G119: text | AH119: =AH$91 = FALSE() -> TRUE | AI119: TRUE | AJ119: TRUE | AK119: TRUE | AL119: TRUE | AM119: TRUE | AN119: TRUE | AO119: TRUE
E120: RIIO | G120: % | V120: =Input!V269 -> 0.25 | W120: =Input!W269 -> 0.25 | X120: =Input!X269 -> 0.25 | Y120: =Input!Y269 -> 0.25 | Z120: =Input!Z269 -> 0.25 | AA120: =Input!AA269 -> 0.25 | AB120: =Input!AB269 -> 0.25 | AC120: =Input!AC269 -> 0.2 | AD120: =Input!AD269 -> 0.2 | AE120: =Input!AE269 -> 0.2 | AF120: =Input!AF269 -> 0.2 | AG120: =Input!AG269 -> 0.18 | AH120: =Input!AH269 -> 0.18 | AI120: =Input!AI269 -> 0.18 | AJ120: =Input!AJ269 -> 0.18 | AK120: =Input!AK269 -> 0.18 | AL120: =Input!AL269 -> 0.18 | AM120: =Input!AM269 -> 0.18 | AN120: =Input!AN269 -> 0.18 | AO120: =Input!AO269 -> 0.18
E122: Active | G122: text | AH122: =AH$91 -> FALSE | AI122: FALSE | AJ122: FALSE | AK122: FALSE | AL122: FALSE | AM122: FALSE | AN122: FALSE | AO122: FALSE
E123: Tax trigger | G123: % | AH123: =AH120 -> 0.18 | AI123: =AI120 -> 0.18 | AJ123: 0.18 | AK123: 0.18 | AL123: 0.18 | AM123: 0.18 | AN123: 0.18 | AO123: 0.18
E125: Applied | G125: % | V125: =V120 -> 0.25 | W125: 0.25 | X125: 0.25 | Y125: 0.25 | Z125: 0.25 | AA125: 0.25 | AB125: 0.25 | AC125: 0.2 | AD125: 0.2 | AE125: 0.2 | AF125: 0.2 | AG125: =AG120 -> 0.18 | AH125: =(AH119 * AH120) + (AH122 * AH123) -> 0.18 | AI125: 0.18 | AJ125: 0.18 | AK125: 0.18 | AL125: 0.18 | AM125: 0.18 | AN125: 0.18 | AO125: 0.18
D127: Special Rate pool
E129: Active | G129: text | AH129: =AH$91 = FALSE() -> TRUE | AI129: TRUE | AJ129: TRUE | AK129: TRUE | AL129: TRUE | AM129: TRUE | AN129: TRUE | AO129: TRUE
E130: RIIO | G130: % | J130: > | V130: =Input!V270 -> 0.06 | W130: =Input!W270 -> 0.06 | X130: =Input!X270 -> 0.06 | Y130: =Input!Y270 -> 0.06 | Z130: =Input!Z270 -> 0.06 | AA130: =Input!AA270 -> 0.06 | AB130: =Input!AB270 -> 0.06 | AC130: =Input!AC270 -> 0.1 | AD130: =Input!AD270 -> 0.1 | AE130: =Input!AE270 -> 0.1 | AF130: =Input!AF270 -> 0.1 | AG130: =Input!AG270 -> 0.08 | AH130: =Input!AH270 -> 0.08 | AI130: =Input!AI270 -> 0.08 | AJ130: =Input!AJ270 -> 0.08 | AK130: =Input!AK270 -> 0.08 | AL130: =Input!AL270 -> 0.08 | AM130: =Input!AM270 -> 0.08 | AN130: =Input!AN270 -> 0.08 | AO130: =Input!AO270 -> 0.08
E132: Active | G132: text | AH132: =AH$91 -> FALSE | AI132: FALSE | AJ132: FALSE | AK132: FALSE | AL132: FALSE | AM132: FALSE | AN132: FALSE | AO132: FALSE
E133: Tax trigger | G133: % | AH133: =AH130 -> 0.08 | AI133: =AI130 -> 0.08 | AJ133: 0.08 | AK133: 0.08 | AL133: 0.08 | AM133: 0.08 | AN133: 0.08 | AO133: 0.08
E135: Applied | G135: % | J135: > | V135: =V130 -> 0.06 | W135: =W130 -> 0.06 | X135: =X130 -> 0.06 | Y135: =Y130 -> 0.06 | Z135: =Z130 -> 0.06 | AA135: =AA130 -> 0.06 | AB135: 0.06 | AC135: 0.1 | AD135: 0.1 | AE135: 0.1 | AF135: 0.1 | AG135: 0.08 | AH135: =(AH129 * AH130) + (AH132 * AH133) -> 0.08 | AI135: 0.08 | AJ135: 0.08 | AK135: 0.08 | AL135: 0.08 | AM135: 0.08 | AN135: 0.08 | AO135: 0.08
D137: Deferred revenue writing down allowance rate
E139: Active | G139: text | AH139: =AH$91 = FALSE() -> TRUE | AI139: TRUE | AJ139: TRUE | AK139: TRUE | AL139: TRUE | AM139: TRUE | AN139: TRUE | AO139: TRUE
E140: RIIO | G140: % | J140: > | V140: =Input!V271 -> 0 | W140: =Input!W271 -> 0 | X140: =Input!X271 -> 0 | Y140: =Input!Y271 -> 0 | Z140: =Input!Z271 -> 0 | AA140: =Input!AA271 -> 0 | AB140: =Input!AB271 -> 0 | AC140: =Input!AC271 -> 0 | AD140: =Input!AD271 -> 0 | AE140: =Input!AE271 -> 0 | AF140: =Input!AF271 -> 0 | AG140: =Input!AG271 -> 0 | AH140: =Input!AH271 -> 0.0222 | AI140: =Input!AI271 -> 0.0222 | AJ140: =Input!AJ271 -> 0.0222 | AK140: =Input!AK271 -> 0.0222 | AL140: =Input!AL271 -> 0.0222 | AM140: =Input!AM271 -> 0.0222 | AN140: =Input!AN271 -> 0.0222 | AO140: =Input!AO271 -> 0.0222
E142: Active | G142: text | AH142: =AH$91 -> FALSE | AI142: FALSE | AJ142: FALSE | AK142: FALSE | AL142: FALSE | AM142: FALSE | AN142: FALSE | AO142: FALSE
E143: Tax trigger | G143: % | AH143: =AH140 -> 0.0222 | AI143: =AI140 -> 0.0222 | AJ143: 0.0222 | AK143: 0.0222 | AL143: 0.0222 | AM143: 0.0222 | AN143: 0.0222 | AO143: 0.0222
E145: Applied | G145: % | J145: > | V145: =V140 -> 0 | W145: 0 | X145: 0 | Y145: 0 | Z145: 0 | AA145: 0 | AB145: 0 | AC145: 0 | AD145: 0 | AE145: 0 | AF145: 0 | AG145: =AG140 -> 0 | AH145: =(AH139 * AH140) + (AH142 * AH143) -> 0.0222 | AI145: 0.0222 | AJ145: 0.0222 | AK145: 0.0222 | AL145: 0.0222 | AM145: 0.0222 | AN145: 0.0222 | AO145: 0.0222
C147: TO B event value
E149: Active | G149: text | AH149: =AH$91 -> FALSE | AI149: FALSE | AJ149: FALSE | AK149: FALSE | AL149: FALSE | AM149: FALSE | AN149: FALSE | AO149: FALSE
E150: Tax trigger | G150: £m 09/10 prices | AH150: 0 | AI150: 0 | AJ150: 0 | AK150: 0 | AL150: 0 | AM150: 0 | AN150: 0 | AO150: 0
E152: Applied | G152: £m 09/10 prices | AH152: =AH149 * AH150 -> 0 | AI152: =AI149 * AI150 -> 0 | AJ152: 0 | AK152: 0 | AL152: 0 | AM152: 0 | AN152: 0 | AO152: 0
C154: SO B event value
E156: Active | G156: text | AH156: =AH$91 -> FALSE | AI156: FALSE | AJ156: FALSE | AK156: FALSE | AL156: FALSE | AM156: FALSE | AN156: FALSE | AO156: FALSE
E157: Tax trigger | G157: £m 09/10 prices | AH157: 0 | AI157: 0 | AJ157: 0 | AK157: 0 | AL157: 0 | AM157: 0 | AN157: 0 | AO157: 0
E159: Applied | G159: £m 09/10 prices | AH159: =AH156 * AH157 -> 0 | AI159: =AI156 * AI157 -> 0 | AJ159: 0 | AK159: 0 | AL159: 0 | AM159: 0 | AN159: 0 | AO159: 0
B161: End of sheet

Sheet MOD
A1: MOD
B2: =UserInterface!G39 -> NGGT TO
E3: Parameter | G3: Units | I3: Constant | AH3: Annual values
E4: PCFM year ending | F4: =Cover!C3 -> RIIO_GT1_FP_ FinancialModel_dec12.xlsm | I4: =UserInterface!$G$32 -> 2014-03-31 | K4: 1991-03-31 | L4: 1992-03-31 | M4: 1993-03-31 | N4: 1994-03-31 | O4: 1995-03-31 | P4: 1996-03-31 | Q4: 1997-03-31 | R4: 1998-03-31 | S4: 1999-03-31 | T4: 2000-03-31 | U4: 2001-03-31 | V4: 2002-03-31 | W4: 2003-03-31 | X4: 2004-03-31 | Y4: 2005-03-31 | Z4: 2006-03-31 | AA4: 2007-03-31 | AB4: 2008-03-31 | AC4: 2009-03-31 | AD4: 2010-03-31 | AE4: 2011-03-31 | AF4: 2012-03-31 | AG4: 2013-03-31 | AH4: 2014-03-31 | AI4: 2015-03-31 | AJ4: 2016-03-31 | AK4: 2017-03-31 | AL4: 2018-03-31 | AM4: 2019-03-31 | AN4: 2020-03-31 | AO4: 2021-03-31
E6: =UserInterface!E32 -> Year t selected: | G6: =UserInterface!G32 -> 2014-03-31
E8: =Revenue!E64 -> Final Proposals base revenue | F8: =Revenue!F64 -> 0 | H8: =Revenue!H64 -> 0 | J8: =Revenue!J64 -> 0 | K8: =Revenue!K64 -> 0 | L8: =Revenue!L64 -> 0 | M8: =Revenue!M64 -> 0 | N8: =Revenue!N64 -> 0 | O8: =Revenue!O64 -> 0 | P8: =Revenue!P64 -> 0 | Q8: =Revenue!Q64 -> 0 | R8: =Revenue!R64 -> 0 | S8: =Revenue!S64 -> 0 | T8: =Revenue!T64 -> 0 | U8: =Revenue!U64 -> 0 | V8: =Revenue!V64 -> 0 | W8: =Revenue!W64 -> 0 | X8: =Revenue!X64 -> 0 | Y8: =Revenue!Y64 -> 0 | Z8: =Revenue!Z64 -> 0 | AA8: =Revenue!AA64 -> 0 | AB8: =Revenue!AB64 -> 0 | AC8: =Revenue!AC64 -> 0 | AD8: =Revenue!AD64 -> 0 | AE8: =Revenue!AE64 -> 0 | AF8: =Revenue!AF64 -> 0 | AG8: =Revenue!AG64 -> 0 | AH8: =Revenue!AH64 -> 539.4744087 | AI8: =Revenue!AI64 -> 545.0119176 | AJ8: =Revenue!AJ64 -> 559.1748421 | AK8: =Revenue!AK64 -> 605.7339866 | AL8: =Revenue!AL64 -> 710.7240068 | AM8: =Revenue!AM64 -> 697.6400984 | AN8: =Revenue!AN64 -> 722.9539537 | AO8: =Revenue!AO64 -> 749.6034356
E9: =Revenue!E65 -> MOD | F9: =Revenue!F65 -> 0 | H9: =Revenue!H65 -> 0 | J9: =Revenue!J65 -> 0 | K9: =Revenue!K65 -> 0 | L9: =Revenue!L65 -> 0 | M9: =Revenue!M65 -> 0 | N9: =Revenue!N65 -> 0 | O9: =Revenue!O65 -> 0 | P9: =Revenue!P65 -> 0 | Q9: =Revenue!Q65 -> 0 | R9: =Revenue!R65 -> 0 | S9: =Revenue!S65 -> 0 | T9: =Revenue!T65 -> 0 | U9: =Revenue!U65 -> 0 | V9: =Revenue!V65 -> 0 | W9: =Revenue!W65 -> 0 | X9: =Revenue!X65 -> 0 | Y9: =Revenue!Y65 -> 0 | Z9: =Revenue!Z65 -> 0 | AA9: =Revenue!AA65 -> 0 | AB9: =Revenue!AB65 -> 0 | AC9: =Revenue!AC65 -> 0 | AD9: =Revenue!AD65 -> 0 | AE9: =Revenue!AE65 -> 0 | AF9: =Revenue!AF65 -> 0 | AG9: =Revenue!AG65 -> 0 | AH9: =Revenue!AH65 -> 0 | AI9: =Revenue!AI65 -> 0 | AJ9: =Revenue!AJ65 -> 0 | AK9: =Revenue!AK65 -> 0 | AL9: =Revenue!AL65 -> 0 | AM9: =Revenue!AM65 -> 0 | AN9: =Revenue!AN65 -> 0 | AO9: =Revenue!AO65 -> 0
E10: =Revenue!E66 -> Base revenue | F10: =Revenue!F66 -> 0 | H10: =Revenue!H66 -> 0 | J10: =Revenue!J66 -> 0 | K10: =Revenue!K66 -> 0 | L10: =Revenue!L66 -> 0 | M10: =Revenue!M66 -> 0 | N10: =Revenue!N66 -> 0 | O10: =Revenue!O66 -> 0 | P10: =Revenue!P66 -> 0 | Q10: =Revenue!Q66 -> 0 | R10: =Revenue!R66 -> 0 | S10: =Revenue!S66 -> 0 | T10: =Revenue!T66 -> 0 | U10: =Revenue!U66 -> 0 | V10: =Revenue!V66 -> 0 | W10: =Revenue!W66 -> 0 | X10: =Revenue!X66 -> 0 | Y10: =Revenue!Y66 -> 0 | Z10: =Revenue!Z66 -> 0 | AA10: =Revenue!AA66 -> 0 | AB10: =Revenue!AB66 -> 0 | AC10: =Revenue!AC66 -> 0 | AD10: =Revenue!AD66 -> 0 | AE10: =Revenue!AE66 -> 0 | AF10: =Revenue!AF66 -> 0 | AG10: =Revenue!AG66 -> 0 | AH10: =Revenue!AH66 -> 539.4744087 | AI10: =Revenue!AI66 -> 545.0119176 | AJ10: =Revenue!AJ66 -> 559.1748421 | AK10: =Revenue!AK66 -> 605.7339866 | AL10: =Revenue!AL66 -> 710.7240068 | AM10: =Revenue!AM66 -> 697.6400984 | AN10: =Revenue!AN66 -> 722.9539537 | AO10: =Revenue!AO66 -> 749.6034356

Sheet Input
A1: Input
B2: =UserInterface!G39 -> NGGT TO
E3: Parameter | F3: Licence condition | G3: Units | H3: Term | I3: Constant | AH3: Annual values
E4: PCFM year ending | F4: =Cover!C3 -> RIIO_GT1_FP_ FinancialModel_dec12.xlsm | I4: =UserInterface!$G$32 -> 2014-03-31 | K4: 1991-03-31 | L4: 1992-03-31 | M4: 1993-03-31 | N4: 1994-03-31 | O4: 1995-03-31 | P4: 1996-03-31 | Q4: 1997-03-31 | R4: 1998-03-31 | S4: 1999-03-31 | T4: 2000-03-31 | U4: 2001-03-31 | V4: 2002-03-31 | W4: 2003-03-31 | X4: 2004-03-31 | Y4: 2005-03-31 | Z4: 2006-03-31 | AA4: 2007-03-31 | AB4: 2008-03-31 | AC4: 2009-03-31 | AD4: 2010-03-31 | AE4: 2011-03-31 | AF4: 2012-03-31 | AG4: 2013-03-31 | AH4: 2014-03-31 | AI4: 2015-03-31 | AJ4: 2016-03-31 | AK4: 2017-03-31 | AL4: 2018-03-31 | AM4: 2019-03-31 | AN4: 2020-03-31 | AO4: 2021-03-31
B6: PCFM Variable Values Table
E8: Allowed percentage cost of debt | F8: 5C | G8: annual real % | H8: CDE | AH8: =IF(UserInterface!$E$82 = 1,'NGGT TO (Base)'!AH8,'NGGT TO (Best)'!AH8) -> 0.0292 | AI8: =IF(UserInterface!$E$82 = 1,'NGGT TO (Base)'!AI8,'NGGT TO (Best)'!AI8) -> 0.0292 | AJ8: =IF(UserInterface!$E$82 = 1,'NGGT TO (Base)'!AJ8,'NGGT TO (Best)'!AJ8) -> 0.0292 | AK8: =IF(UserInterface!$E$82 = 1,'NGGT TO (Base)'!AK8,'NGGT TO (Best)'!AK8) -> 0.0292 | AL8: =IF(UserInterface!$E$82 = 1,'NGGT TO (Base)'!AL8,'NGGT TO (Best)'!AL8) -> 0.0292 | AM8: =IF(UserInterface!$E$82 = 1,'NGGT TO (Base)'!AM8,'NGGT TO (Best)'!AM8) -> 0.0292 | AN8: =IF(UserInterface!$E$82 = 1,'NGGT TO (Base)'!AN8,'NGGT TO (Best)'!AN8) -> 0.0292 | AO8: =IF(UserInterface!$E$82 = 1,'NGGT TO (Base)'!AO8,'NGGT TO (Best)'!AO8) -> 0.0292
E9: Actual load related capex expenditure | F9: 5B | G9: £m 09/10 prices | H9: ALC | AH9: =IF(UserInterface!$E$82 = 1,'NGGT TO (Base)'!AH9,'NGGT TO (Best)'!AH9) -> 25.4593078 | AI9: =IF(UserInterface!$E$82 = 1,'NGGT TO (Base)'!AI9,'NGGT TO (Best)'!AI9) -> 14.41280752 | AJ9: =IF(UserInterface!$E$82 = 1,'NGGT TO (Base)'!AJ9,'NGGT TO (Best)'!AJ9) -> 9.617320208 | AK9: =IF(UserInterface!$E$82 = 1,'NGGT TO (Base)'!AK9,'NGGT TO (Best)'!AK9) -> 60.4467775 | AL9: =IF(UserInterface!$E$82 = 1,'NGGT TO (Base)'!AL9,'NGGT TO (Best)'!AL9) -> 84.88019853 | AM9: =IF(UserInterface!$E$82 = 1,'NGGT TO (Base)'!AM9,'NGGT TO (Best)'!AM9) -> 8.524933684 | AN9: =IF(UserInterface!$E$82 = 1,'NGGT TO (Base)'!AN9,'NGGT TO (Best)'!AN9) -> 0.2315287874 | AO9: =IF(UserInterface!$E$82 = 1,'NGGT TO (Base)'!AO9,'NGGT TO (Best)'!AO9) -> 0
E10: Actual asset replacement capex expenditure | F10: 5B | G10: £m 09/10 prices | H10: ARC | AH10: =IF(UserInterface!$E$82 = 1,'NGGT TO (Base)'!AH10,'NGGT TO (Best)'!AH10) -> 86.8202567 | AI10: =IF(UserInterface!$E$82 = 1,'NGGT TO (Base)'!AI10,'NGGT TO (Best)'!AI10) -> 100.2012626 | AJ10: =IF(UserInterface!$E$82 = 1,'NGGT TO (Base)'!AJ10,'NGGT TO (Best)'!AJ10) -> 107.8209037 | AK10: =IF(UserInterface!$E$82 = 1,'NGGT TO (Base)'!AK10,'NGGT TO (Best)'!AK10) -> 117.8361291 | AL10: =IF(UserInterface!$E$82 = 1,'NGGT TO (Base)'!AL10,'NGGT TO (Best)'!AL10) -> 132.705636 | AM10: =IF(UserInterface!$E$82 = 1,'NGGT TO (Base)'!AM10,'NGGT TO (Best)'!AM10) -> 113.3127258 | AN10: =IF(UserInterface!$E$82 = 1,'NGGT TO (Base)'!AN10,'NGGT TO (Best)'!AN10) -> 95.49069633 | AO10: =IF(UserInterface!$E$82 = 1,'NGGT TO (Base)'!AO10,'NGGT TO (Best)'!AO10) -> 85.29208013
E11: Actual other capex expenditure | F11: 5B | G11: £m 09/10 prices | H11: AOC | AH11: =IF(UserInterface!$E$82 = 1,'NGGT TO (Base)'!AH11,'NGGT TO (Best)'!AH11) -> 0 | AI11: =IF(UserInterface!$E$82 = 1,'NGGT TO (Base)'!AI11,'NGGT TO (Best)'!AI11) -> 0 | AJ11: =IF(UserInterface!$E$82 = 1,'NGGT TO (Base)'!AJ11,'NGGT TO (Best)'!AJ11) -> 0 | AK11: =IF(UserInterface!$E$82 = 1,'NGGT TO (Base)'!AK11,'NGGT TO (Best)'!AK11) -> 0 | AL11: =IF(UserInterface!$E$82 = 1,'NGGT TO (Base)'!AL11,'NGGT TO (Best)'!AL11) -> 0 | AM11: =IF(UserInterface!$E$82 = 1,'NGGT TO (Base)'!AM11,'NGGT TO (Best)'!AM11) -> 0 | AN11: =IF(UserInterface!$E$82 = 1,'NGGT TO (Base)'!AN11,'NGGT TO (Best)'!AN11) -> 0 | AO11: =IF(UserInterface!$E$82 = 1,'NGGT TO (Base)'!AO11,'NGGT TO (Best)'!AO11) -> 0
E12: Actual controllable opex | F12: 5B | G12: £m 09/10 prices | H12: ACO | AH12: =IF(UserInterface!$E$82 = 1,'NGGT TO (Base)'!AH12,'NGGT TO (Best)'!AH12) -> 64.48267201 | AI12: =IF(UserInterface!$E$82 = 1,'NGGT TO (Base)'!AI12,'NGGT TO (Best)'!AI12) -> 65.23787422 | AJ12: =IF(UserInterface!$E$82 = 1,'NGGT TO (Base)'!AJ12,'NGGT TO (Best)'!AJ12) -> 70.77289473 | AK12: =IF(UserInterface!$E$82 = 1,'NGGT TO (Base)'!AK12,'NGGT TO (Best)'!AK12) -> 79.36833827 | AL12: =IF(UserInterface!$E$82 = 1,'NGGT TO (Base)'!AL12,'NGGT TO (Best)'!AL12) -> 84.31747913 | AM12: =IF(UserInterface!$E$82 = 1,'NGGT TO (Base)'!AM12,'NGGT TO (Best)'!AM12) -> 84.64134636 | AN12: =IF(UserInterface!$E$82 = 1,'NGGT TO (Base)'!AN12,'NGGT TO (Best)'!AN12) -> 80.72801478 | AO12: =IF(UserInterface!$E$82 = 1,'NGGT TO (Base)'!AO12,'NGGT TO (Best)'!AO12) -> 77.49007012
E13: Actual non-operational capex | F13: 5B | G13: £m 09/10 prices | H13: ANC | AH13: =IF(UserInterface!$E$82 = 1,'NGGT TO (Base)'!AH13,'NGGT TO (Best)'!AH13) -> 10.31226162 | AI13: =IF(UserInterface!$E$82 = 1,'NGGT TO (Base)'!AI13,'NGGT TO (Best)'!AI13) -> 9.678449854 | AJ13: =IF(UserInterface!$E$82 = 1,'NGGT TO (Base)'!AJ13,'NGGT TO (Best)'!AJ13) -> 6.615822716 | AK13: =IF(UserInterface!$E$82 = 1,'NGGT TO (Base)'!AK13,'NGGT TO (Best)'!AK13) -> 6.133648068 | AL13: =IF(UserInterface!$E$82 = 1,'NGGT TO (Base)'!AL13,'NGGT TO (Best)'!AL13) -> 5.57274791 | AM13: =IF(UserInterface!$E$82 = 1,'NGGT TO (Base)'!AM13,'NGGT TO (Best)'!AM13) -> 4.190695059 | AN13: =IF(UserInterface!$E$82 = 1,'NGGT TO (Base)'!AN13,'NGGT TO (Best)'!AN13) -> 6.384863783 | AO13: =IF(UserInterface!$E$82 = 1,'NGGT TO (Base)'!AO13,'NGGT TO (Best)'!AO13) -> 5.865895674
E14: Actual load related capex (uncertain) | F14: 5B | G14: £m 09/10 prices | H14: ALU | AH14: =IF(UserInterface!$E$82 = 1,'NGGT TO (Base)'!AH14,'NGGT TO (Best)'!AH14) -> 6.525763736 | AI14: =IF(UserInterface!$E$82 = 1,'NGGT TO (Base)'!AI14,'NGGT TO (Best)'!AI14) -> 10.02638273 | AJ14: =IF(UserInterface!$E$82 = 1,'NGGT TO (Base)'!AJ14,'NGGT TO (Best)'!AJ14) -> 75.9405384 | AK14: =IF(UserInterface!$E$82 = 1,'NGGT TO (Base)'!AK14,'NGGT TO (Best)'!AK14) -> 159.2547361 | AL14: =IF(UserInterface!$E$82 = 1,'NGGT TO (Base)'!AL14,'NGGT TO (Best)'!AL14) -> 307.4852469 | AM14: =IF(UserInterface!$E$82 = 1,'NGGT TO (Base)'!AM14,'NGGT TO (Best)'!AM14) -> 348.1654213 | AN14: =IF(UserInterface!$E$82 = 1,'NGGT TO (Base)'!AN14,'NGGT TO (Best)'!AN14) -> 467.2531914 | AO14: =IF(UserInterface!$E$82 = 1,'NGGT TO (Base)'!AO14,'NGGT TO (Best)'!AO14) -> 525.3132436
E15: Actual asset replacement capex expenditure (uncertain) | F15: 5B | G15: £m 09/10 prices | H15: ARU | AH15: =IF(UserInterface!$E$82 = 1,'NGGT TO (Base)'!AH15,'NGGT TO (Best)'!AH15) -> 0 | AI15: =IF(UserInterface!$E$82 = 1,'NGGT TO (Base)'!AI15,'NGGT TO (Best)'!AI15) -> 0 | AJ15: =IF(UserInterface!$E$82 = 1,'NGGT TO (Base)'!AJ15,'NGGT TO (Best)'!AJ15) -> 2.330050148 | AK15: =IF(UserInterface!$E$82 = 1,'NGGT TO (Base)'!AK15,'NGGT TO (Best)'!AK15) -> 3.351665046 | AL15: =IF(UserInterface!$E$82 = 1,'NGGT TO (Base)'!AL15,'NGGT TO (Best)'!AL15) -> 18.27312291 | AM15: =IF(UserInterface!$E$82 = 1,'NGGT TO (Base)'!AM15,'NGGT TO (Best)'!AM15) -> 15.94288596 | AN15: =IF(UserInterface!$E$82 = 1,'NGGT TO (Base)'!AN15,'NGGT TO (Best)'!AN15) -> 16.08738062 | AO15: =IF(UserInterface!$E$82 = 1,'NGGT TO (Base)'!AO15,'NGGT TO (Best)'!AO15) -> 14.67728855
E16: Actual other capex expenditure (uncertain) | F16: 5B | G16: £m 09/10 prices | H16: ACU | AH16: =IF(UserInterface!$E$82 = 1,'NGGT TO (Base)'!AH16,'NGGT TO (Best)'!AH16) -> 4.956745898 | AI16: =IF(UserInterface!$E$82 = 1,'NGGT TO (Base)'!AI16,'NGGT TO (Best)'!AI16) -> 5.244208167 | AJ16: =IF(UserInterface!$E$82 = 1,'NGGT TO (Base)'!AJ16,'NGGT TO (Best)'!AJ16) -> 5.387688454 | AK16: =IF(UserInterface!$E$82 = 1,'NGGT TO (Base)'!AK16,'NGGT TO (Best)'!AK16) -> 5.62820732 | AL16: =IF(UserInterface!$E$82 = 1,'NGGT TO (Base)'!AL16,'NGGT TO (Best)'!AL16) -> 5.418277366 | AM16: =IF(UserInterface!$E$82 = 1,'NGGT TO (Base)'!AM16,'NGGT TO (Best)'!AM16) -> 5.473104223 | AN16: =IF(UserInterface!$E$82 = 1,'NGGT TO (Base)'!AN16,'NGGT TO (Best)'!AN16) -> 5.535490083 | AO16: =IF(UserInterface!$E$82 = 1,'NGGT TO (Base)'!AO16,'NGGT TO (Best)'!AO16) -> 5.598587055
E17: Actual controllable opex (uncertain) | F17: 5B | G17: £m 09/10 prices | H17: AOU | AH17: =IF(UserInterface!$E$82 = 1,'NGGT TO (Base)'!AH17,'NGGT TO (Best)'!AH17) -> 3.281966185 | AI17: =IF(UserInterface!$E$82 = 1,'NGGT TO (Base)'!AI17,'NGGT TO (Best)'!AI17) -> 2.6088895 | AJ17: =IF(UserInterface!$E$82 = 1,'NGGT TO (Base)'!AJ17,'NGGT TO (Best)'!AJ17) -> 2.542028641 | AK17: =IF(UserInterface!$E$82 = 1,'NGGT TO (Base)'!AK17,'NGGT TO (Best)'!AK17) -> 2.460319069 | AL17: =IF(UserInterface!$E$82 = 1,'NGGT TO (Base)'!AL17,'NGGT TO (Best)'!AL17) -> 2.39 | AM17: =IF(UserInterface!$E$82 = 1,'NGGT TO (Base)'!AM17,'NGGT TO (Best)'!AM17) -> 2.358167076 | AN17: =IF(UserInterface!$E$82 = 1,'NGGT TO (Base)'!AN17,'NGGT TO (Best)'!AN17) -> 2.30123017 | AO17: =IF(UserInterface!$E$82 = 1,'NGGT TO (Base)'!AO17,'NGGT TO (Best)'!AO17) -> 2.226242884
E18: Uncertain costs - Enhanced Physical Site Security | F18: 5E | G18: £m 09/10 prices | H18: IAEEPS | AH18: =IF(UserInterface!$E$82 = 1,'NGGT TO (Base)'!AH18,'NGGT TO (Best)'!AH18) -> 4.956745898 | AI18: =IF(UserInterface!$E$82 = 1,'NGGT TO (Base)'!AI18,'NGGT TO (Best)'!AI18) -> 5.244208167 | AJ18: =IF(UserInterface!$E$82 = 1,'NGGT TO (Base)'!AJ18,'NGGT TO (Best)'!AJ18) -> 5.387688454 | AK18: =IF(UserInterface!$E$82 = 1,'NGGT TO (Base)'!AK18,'NGGT TO (Best)'!AK18) -> 5.62820732 | AL18: =IF(UserInterface!$E$82 = 1,'NGGT TO (Base)'!AL18,'NGGT TO (Best)'!AL18) -> 5.418277366 | AM18: =IF(UserInterface!$E$82 = 1,'NGGT TO (Base)'!AM18,'NGGT TO (Best)'!AM18) -> 5.473104223 | AN18: =IF(UserInterface!$E$82 = 1,'NGGT TO (Base)'!AN18,'NGGT TO (Best)'!AN18) -> 5.535490083 | AO18: =IF(UserInterface!$E$82 = 1,'NGGT TO (Base)'!AO18,'NGGT TO (Best)'!AO18) -> 5.598587055
E19: Uncertain costs – Pipeline Diversion Costs | F19: 5E | G19: £m 09/10 prices | H19: IAEPD | AH19: =IF(UserInterface!$E$82 = 1,'NGGT TO (Base)'!AH19,'NGGT TO (Best)'!AH19) -> 0 | AI19: =IF(UserInterface!$E$82 = 1,'NGGT TO (Base)'!AI19,'NGGT TO (Best)'!AI19) -> 0 | AJ19: =IF(UserInterface!$E$82 = 1,'NGGT TO (Base)'!AJ19,'NGGT TO (Best)'!AJ19) -> 0 | AK19: =IF(UserInterface!$E$82 = 1,'NGGT TO (Base)'!AK19,'NGGT TO (Best)'!AK19) -> 0 | AL19: =IF(UserInterface!$E$82 = 1,'NGGT TO (Base)'!AL19,'NGGT TO (Best)'!AL19) -> 0 | AM19: =IF(UserInterface!$E$82 = 1,'NGGT TO (Base)'!AM19,'NGGT TO (Best)'!AM19) -> 0 | AN19: =IF(UserInterface!$E$82 = 1,'NGGT TO (Base)'!AN19,'NGGT TO (Best)'!AN19) -> 0 | AO19: =IF(UserInterface!$E$82 = 1,'NGGT TO (Base)'!AO19,'NGGT TO (Best)'!AO19) -> 0
E20: Uncertain costs (Quarry & Loss Costs), uncertainty rate | F20: 5E | G20: £m 09/10 prices | H20: IAEQL | AH20: =IF(UserInterface!$E$82 = 1,'NGGT TO (Base)'!AH20,'NGGT TO (Best)'!AH20) -> 3.281966185 | AI20: =IF(UserInterface!$E$82 = 1,'NGGT TO (Base)'!AI20,'NGGT TO (Best)'!AI20) -> 2.6088895 | AJ20: =IF(UserInterface!$E$82 = 1,'NGGT TO (Base)'!AJ20,'NGGT TO (Best)'!AJ20) -> 2.542028641 | AK20: =IF(UserInterface!$E$82 = 1,'NGGT TO (Base)'!AK20,'NGGT TO (Best)'!AK20) -> 2.460319069 | AL20: =IF(UserInterface!$E$82 = 1,'NGGT TO (Base)'!AL20,'NGGT TO (Best)'!AL20) -> 2.39 | AM20: =IF(UserInterface!$E$82 = 1,'NGGT TO (Base)'!AM20,'NGGT TO (Best)'!AM20) -> 2.358167076 | AN20: =IF(UserInterface!$E$82 = 1,'NGGT TO (Base)'!AN20,'NGGT TO (Best)'!AN20) -> 2.30123017 | AO20: =IF(UserInterface!$E$82 = 1,'NGGT TO (Base)'!AO20,'NGGT TO (Best)'!AO20) -> 2.226242884
E21: Innovation Roll out mechanism | F21: 5D | G21: £m 09/10 prices | H21: IRM | AH21: =IF(UserInterface!$E$82 = 1,'NGGT TO (Base)'!AH21,'NGGT TO (Best)'!AH21) -> 0 | AI21: =IF(UserInterface!$E$82 = 1,'NGGT TO (Base)'!AI21,'NGGT TO (Best)'!AI21) -> 0 | AJ21: =IF(UserInterface!$E$82 = 1,'NGGT TO (Base)'!AJ21,'NGGT TO (Best)'!AJ21) -> 0 | AK21: =IF(UserInterface!$E$82 = 1,'NGGT TO (Base)'!AK21,'NGGT TO (Best)'!AK21) -> 0 | AL21: =IF(UserInterface!$E$82 = 1,'NGGT TO (Base)'!AL21,'NGGT TO (Best)'!AL21) -> 0 | AM21: =IF(UserInterface!$E$82 = 1,'NGGT TO (Base)'!AM21,'NGGT TO (Best)'!AM21) -> 0 | AN21: =IF(UserInterface!$E$82 = 1,'NGGT TO (Base)'!AN21,'NGGT TO (Best)'!AN21) -> 0 | AO21: =IF(UserInterface!$E$82 = 1,'NGGT TO (Base)'!AO21,'NGGT TO (Best)'!AO21) -> 0
E22: Incremental Obligated entry capacity, uncertainty rate | F22: 5F | G22: £m 09/10 prices | H22: ENCI | AH22: =IF(UserInterface!$E$82 = 1,'NGGT TO (Base)'!AH22,'NGGT TO (Best)'!AH22) -> 0 | AI22: =IF(UserInterface!$E$82 = 1,'NGGT TO (Base)'!AI22,'NGGT TO (Best)'!AI22) -> 0 | AJ22: =IF(UserInterface!$E$82 = 1,'NGGT TO (Base)'!AJ22,'NGGT TO (Best)'!AJ22) -> 32.95817317 | AK22: =IF(UserInterface!$E$82 = 1,'NGGT TO (Base)'!AK22,'NGGT TO (Best)'!AK22) -> 90.03318503 | AL22: =IF(UserInterface!$E$82 = 1,'NGGT TO (Base)'!AL22,'NGGT TO (Best)'!AL22) -> 194.3189841 | AM22: =IF(UserInterface!$E$82 = 1,'NGGT TO (Base)'!AM22,'NGGT TO (Best)'!AM22) -> 174.1392629 | AN22: =IF(UserInterface!$E$82 = 1,'NGGT TO (Base)'!AN22,'NGGT TO (Best)'!AN22) -> 319.1916771 | AO22: =IF(UserInterface!$E$82 = 1,'NGGT TO (Base)'!AO22,'NGGT TO (Best)'!AO22) -> 456.8577881
E23: Incremental Obligated exit capacity, uncertainty rate | F23: 5G | G23: £m 09/10 prices | H23: EXCI | AH23: =IF(UserInterface!$E$82 = 1,'NGGT TO (Base)'!AH23,'NGGT TO (Best)'!AH23) -> 1.65686642 | AI23: =IF(UserInterface!$E$82 = 1,'NGGT TO (Base)'!AI23,'NGGT TO (Best)'!AI23) -> 8.834018375 | AJ23: =IF(UserInterface!$E$82 = 1,'NGGT TO (Base)'!AJ23,'NGGT TO (Best)'!AJ23) -> 21.85057132 | AK23: =IF(UserInterface!$E$82 = 1,'NGGT TO (Base)'!AK23,'NGGT TO (Best)'!AK23) -> 31.64595304 | AL23: =IF(UserInterface!$E$82 = 1,'NGGT TO (Base)'!AL23,'NGGT TO (Best)'!AL23) -> 72.77322035 | AM23: =IF(UserInterface!$E$82 = 1,'NGGT TO (Base)'!AM23,'NGGT TO (Best)'!AM23) -> 145.6478876 | AN23: =IF(UserInterface!$E$82 = 1,'NGGT TO (Base)'!AN23,'NGGT TO (Best)'!AN23) -> 125.8868195 | AO23: =IF(UserInterface!$E$82 = 1,'NGGT TO (Base)'!AO23,'NGGT TO (Best)'!AO23) -> 50.68379798
E24: Uncertain costs – Network Flexibility Costs | F24: 5E | G24: £m 09/10 prices | H24: IAENF | AH24: =IF(UserInterface!$E$82 = 1,'NGGT TO (Base)'!AH24,'NGGT TO (Best)'!AH24) -> 4.868897316 | AI24: =IF(UserInterface!$E$82 = 1,'NGGT TO (Base)'!AI24,'NGGT TO (Best)'!AI24) -> 1.192364351 | AJ24: =IF(UserInterface!$E$82 = 1,'NGGT TO (Base)'!AJ24,'NGGT TO (Best)'!AJ24) -> 21.1317939 | AK24: =IF(UserInterface!$E$82 = 1,'NGGT TO (Base)'!AK24,'NGGT TO (Best)'!AK24) -> 37.57559798 | AL24: =IF(UserInterface!$E$82 = 1,'NGGT TO (Base)'!AL24,'NGGT TO (Best)'!AL24) -> 40.39304245 | AM24: =IF(UserInterface!$E$82 = 1,'NGGT TO (Base)'!AM24,'NGGT TO (Best)'!AM24) -> 28.37827081 | AN24: =IF(UserInterface!$E$82 = 1,'NGGT TO (Base)'!AN24,'NGGT TO (Best)'!AN24) -> 22.1746948 | AO24: =IF(UserInterface!$E$82 = 1,'NGGT TO (Base)'!AO24,'NGGT TO (Best)'!AO24) -> 17.77165753
E25: Uncertain costs – Industrial Emissions | F25: 5E | G25: £m 09/10 prices | H25: IAEIE | AH25: =IF(UserInterface!$E$82 = 1,'NGGT TO (Base)'!AH25,'NGGT TO (Best)'!AH25) -> 0 | AI25: =IF(UserInterface!$E$82 = 1,'NGGT TO (Base)'!AI25,'NGGT TO (Best)'!AI25) -> 0 | AJ25: =IF(UserInterface!$E$82 = 1,'NGGT TO (Base)'!AJ25,'NGGT TO (Best)'!AJ25) -> 0 | AK25: =IF(UserInterface!$E$82 = 1,'NGGT TO (Base)'!AK25,'NGGT TO (Best)'!AK25) -> 0 | AL25: =IF(UserInterface!$E$82 = 1,'NGGT TO (Base)'!AL25,'NGGT TO (Best)'!AL25) -> 0 | AM25: =IF(UserInterface!$E$82 = 1,'NGGT TO (Base)'!AM25,'NGGT TO (Best)'!AM25) -> 0 | AN25: =IF(UserInterface!$E$82 = 1,'NGGT TO (Base)'!AN25,'NGGT TO (Best)'!AN25) -> 0 | AO25: =IF(UserInterface!$E$82 = 1,'NGGT TO (Base)'!AO25,'NGGT TO (Best)'!AO25) -> 0
E26: Uncertain costs – One Off Asset Health Costs | F26: 5E | G26: £m 09/10 prices | H26: IAEAH | AH26: =IF(UserInterface!$E$82 = 1,'NGGT TO (Base)'!AH26,'NGGT TO (Best)'!AH26) -> 0 | AI26: =IF(UserInterface!$E$82 = 1,'NGGT TO (Base)'!AI26,'NGGT TO (Best)'!AI26) -> 0 | AJ26: =IF(UserInterface!$E$82 = 1,'NGGT TO (Base)'!AJ26,'NGGT TO (Best)'!AJ26) -> 2.330050148 | AK26: =IF(UserInterface!$E$82 = 1,'NGGT TO (Base)'!AK26,'NGGT TO (Best)'!AK26) -> 3.351665046 | AL26: =IF(UserInterface!$E$82 = 1,'NGGT TO (Base)'!AL26,'NGGT TO (Best)'!AL26) -> 18.27312291 | AM26: =IF(UserInterface!$E$82 = 1,'NGGT TO (Base)'!AM26,'NGGT TO (Best)'!AM26) -> 15.94288596 | AN26: =IF(UserInterface!$E$82 = 1,'NGGT TO (Base)'!AN26,'NGGT TO (Best)'!AN26) -> 16.08738062 | AO26: =IF(UserInterface!$E$82 = 1,'NGGT TO (Base)'!AO26,'NGGT TO (Best)'!AO26) -> 14.67728855
E27: Tax liability – gearing/interest costs | F27: 5C | G27: £m nominal | H27: TGIE | AH27: =IF(UserInterface!$E$82 = 1,'NGGT TO (Base)'!AH27,'NGGT TO (Best)'!AH27) -> 0 | AI27: =IF(UserInterface!$E$82 = 1,'NGGT TO (Base)'!AI27,'NGGT TO (Best)'!AI27) -> 0 | AJ27: =IF(UserInterface!$E$82 = 1,'NGGT TO (Base)'!AJ27,'NGGT TO (Best)'!AJ27) -> 0 | AK27: =IF(UserInterface!$E$82 = 1,'NGGT TO (Base)'!AK27,'NGGT TO (Best)'!AK27) -> 0 | AL27: =IF(UserInterface!$E$82 = 1,'NGGT TO (Base)'!AL27,'NGGT TO (Best)'!AL27) -> 0 | AM27: =IF(UserInterface!$E$82 = 1,'NGGT TO (Base)'!AM27,'NGGT TO (Best)'!AM27) -> 0 | AN27: =IF(UserInterface!$E$82 = 1,'NGGT TO (Base)'!AN27,'NGGT TO (Best)'!AN27) -> 0 | AO27: =IF(UserInterface!$E$82 = 1,'NGGT TO (Base)'!AO27,'NGGT TO (Best)'!AO27) -> 0
E28: Tax liability – tax trigger events | F28: 5C | G28: £m 09/10 prices | H28: TTE | AH28: =IF(UserInterface!$E$82 = 1,'NGGT TO (Base)'!AH28,'NGGT TO (Best)'!AH28) -> 0 | AI28: =IF(UserInterface!$E$82 = 1,'NGGT TO (Base)'!AI28,'NGGT TO (Best)'!AI28) -> 0 | AJ28: =IF(UserInterface!$E$82 = 1,'NGGT TO (Base)'!AJ28,'NGGT TO (Best)'!AJ28) -> 0 | AK28: =IF(UserInterface!$E$82 = 1,'NGGT TO (Base)'!AK28,'NGGT TO (Best)'!AK28) -> 0 | AL28: =IF(UserInterface!$E$82 = 1,'NGGT TO (Base)'!AL28,'NGGT TO (Best)'!AL28) -> 0 | AM28: =IF(UserInterface!$E$82 = 1,'NGGT TO (Base)'!AM28,'NGGT TO (Best)'!AM28) -> 0 | AN28: =IF(UserInterface!$E$82 = 1,'NGGT TO (Base)'!AN28,'NGGT TO (Best)'!AN28) -> 0 | AO28: =IF(UserInterface!$E$82 = 1,'NGGT TO (Base)'!AO28,'NGGT TO (Best)'!AO28) -> 0
E29: Pension Scheme Administration and Pension Protection Fund levy | F29: 5C | G29: £m 09/10 prices | H29: APFE | AH29: =IF(UserInterface!$E$82 = 1,'NGGT TO (Base)'!AH29,'NGGT TO (Best)'!AH29) -> 2.7 | AI29: =IF(UserInterface!$E$82 = 1,'NGGT TO (Base)'!AI29,'NGGT TO (Best)'!AI29) -> 2.6 | AJ29: =IF(UserInterface!$E$82 = 1,'NGGT TO (Base)'!AJ29,'NGGT TO (Best)'!AJ29) -> 2.6 | AK29: =IF(UserInterface!$E$82 = 1,'NGGT TO (Base)'!AK29,'NGGT TO (Best)'!AK29) -> 2.7 | AL29: =IF(UserInterface!$E$82 = 1,'NGGT TO (Base)'!AL29,'NGGT TO (Best)'!AL29) -> 2.6 | AM29: =IF(UserInterface!$E$82 = 1,'NGGT TO (Base)'!AM29,'NGGT TO (Best)'!AM29) -> 2.6 | AN29: =IF(UserInterface!$E$82 = 1,'NGGT TO (Base)'!AN29,'NGGT TO (Best)'!AN29) -> 2.7 | AO29: =IF(UserInterface!$E$82 = 1,'NGGT TO (Base)'!AO29,'NGGT TO (Best)'!AO29) -> 2.6
E30: Pension Scheme Established Deficit | F30: 5C | G30: £m 09/10 prices | H30: EDE | AH30: =IF(UserInterface!$E$82 = 1,'NGGT TO (Base)'!AH30,'NGGT TO (Best)'!AH30) -> 26.40985404 | AI30: =IF(UserInterface!$E$82 = 1,'NGGT TO (Base)'!AI30,'NGGT TO (Best)'!AI30) -> 26.40985404 | AJ30: =IF(UserInterface!$E$82 = 1,'NGGT TO (Base)'!AJ30,'NGGT TO (Best)'!AJ30) -> 26.40985404 | AK30: =IF(UserInterface!$E$82 = 1,'NGGT TO (Base)'!AK30,'NGGT TO (Best)'!AK30) -> 26.40985404 | AL30: =IF(UserInterface!$E$82 = 1,'NGGT TO (Base)'!AL30,'NGGT TO (Best)'!AL30) -> 26.40985404 | AM30: =IF(UserInterface!$E$82 = 1,'NGGT TO (Base)'!AM30,'NGGT TO (Best)'!AM30) -> 26.40985404 | AN30: =IF(UserInterface!$E$82 = 1,'NGGT TO (Base)'!AN30,'NGGT TO (Best)'!AN30) -> 26.40985404 | AO30: =IF(UserInterface!$E$82 = 1,'NGGT TO (Base)'!AO30,'NGGT TO (Best)'!AO30) -> 26.40985404
E31: Legacy price control adjustments to allowed revenue | F31: 5A | G31: £m 09/10 prices | H31: LAR | AH31: =IF(UserInterface!$E$82 = 1,'NGGT TO (Base)'!AH31,'NGGT TO (Best)'!AH31) -> 0
E32: Legacy price control adjustments to RAV | F32: 5A | G32: £m 09/10 prices | H32: LRAV | AH32: =IF(UserInterface!$E$82 = 1,'NGGT TO (Base)'!AH32,'NGGT TO (Best)'!AH32) -> 0
B34: Policy
C36: Cost of capital
E38: Cost of debt | G38: annual real % | AH38: =AH8 -> 0.0292 | AI38: 0.0292 | AJ38: 0.0292 | AK38: 0.0292 | AL38: 0.0292 | AM38: 0.0292 | AN38: 0.0292 | AO38: 0.0292
E39: Cost of equity | G39: annual real % | AH39: =IF(UserInterface!$E$82 = 1,'NGGT TO (Base)'!AH39,'NGGT TO (Best)'!AH39) -> 0.068 | AI39: =IF(UserInterface!$E$82 = 1,'NGGT TO (Base)'!AI39,'NGGT TO (Best)'!AI39) -> 0.068 | AJ39: =IF(UserInterface!$E$82 = 1,'NGGT TO (Base)'!AJ39,'NGGT TO (Best)'!AJ39) -> 0.068 | AK39: =IF(UserInterface!$E$82 = 1,'NGGT TO (Base)'!AK39,'NGGT TO (Best)'!AK39) -> 0.068 | AL39: =IF(UserInterface!$E$82 = 1,'NGGT TO (Base)'!AL39,'NGGT TO (Best)'!AL39) -> 0.068 | AM39: =IF(UserInterface!$E$82 = 1,'NGGT TO (Base)'!AM39,'NGGT TO (Best)'!AM39) -> 0.068 | AN39: =IF(UserInterface!$E$82 = 1,'NGGT TO (Base)'!AN39,'NGGT TO (Best)'!AN39) -> 0.068 | AO39: =IF(UserInterface!$E$82 = 1,'NGGT TO (Base)'!AO39,'NGGT TO (Best)'!AO39) -> 0.068
E40: Notional gearing | G40: % | J40: > | AG40: =IF(UserInterface!$E$82 = 1,'NGGT TO (Base)'!AG40,'NGGT TO (Best)'!AG40) -> 0.6 | AH40: =IF(UserInterface!$E$82 = 1,'NGGT TO (Base)'!AH40,'NGGT TO (Best)'!AH40) -> 0.625 | AI40: =IF(UserInterface!$E$82 = 1,'NGGT TO (Base)'!AI40,'NGGT TO (Best)'!AI40) -> 0.625 | AJ40: =IF(UserInterface!$E$82 = 1,'NGGT TO (Base)'!AJ40,'NGGT TO (Best)'!AJ40) -> 0.625 | AK40: =IF(UserInterface!$E$82 = 1,'NGGT TO (Base)'!AK40,'NGGT TO (Best)'!AK40) -> 0.625 | AL40: =IF(UserInterface!$E$82 = 1,'NGGT TO (Base)'!AL40,'NGGT TO (Best)'!AL40) -> 0.625 | AM40: =IF(UserInterface!$E$82 = 1,'NGGT TO (Base)'!AM40,'NGGT TO (Best)'!AM40) -> 0.625 | AN40: =IF(UserInterface!$E$82 = 1,'NGGT TO (Base)'!AN40,'NGGT TO (Best)'!AN40) -> 0.625 | AO40: =IF(UserInterface!$E$82 = 1,'NGGT TO (Base)'!AO40,'NGGT TO (Best)'!AO40) -> 0.625
E42: Vanilla WACC | G42: annual real % | AH42: =(AH38 * AH40) + (AH39 * (1 - AH40)) -> 0.04375 | AI42: 0.04375 | AJ42: 0.04375 | AK42: 0.04375 | AL42: 0.04375 | AM42: 0.04375 | AN42: 0.04375 | AO42: 0.04375
E44: Pre-RIIO closing notional gearing | G44: % | I44: =IF(UserInterface!$E$82 = 1,'NGGT TO (Base)'!I44,'NGGT TO (Best)'!I44) -> 0.569
E46: Forecast RPI (simple average year to March) | G46: index value | J46: > | V46: =IF(UserInterface!$E$82 = 1,'NGGT TO (Base)'!V46,'NGGT TO (Best)'!V46) -> 173.875 | W46: =IF(UserInterface!$E$82 = 1,'NGGT TO (Base)'!W46,'NGGT TO (Best)'!W46) -> 177.517 | X46: =IF(UserInterface!$E$82 = 1,'NGGT TO (Base)'!X46,'NGGT TO (Best)'!X46) -> 182.475 | Y46: =IF(UserInterface!$E$82 = 1,'NGGT TO (Base)'!Y46,'NGGT TO (Best)'!Y46) -> 188.15 | Z46: =IF(UserInterface!$E$82 = 1,'NGGT TO (Base)'!Z46,'NGGT TO (Best)'!Z46) -> 193.108 | AA46: =IF(UserInterface!$E$82 = 1,'NGGT TO (Base)'!AA46,'NGGT TO (Best)'!AA46) -> 200.317 | AB46: =IF(UserInterface!$E$82 = 1,'NGGT TO (Base)'!AB46,'NGGT TO (Best)'!AB46) -> 208.592 | AC46: =IF(UserInterface!$E$82 = 1,'NGGT TO (Base)'!AC46,'NGGT TO (Best)'!AC46) -> 214.783 | AD46: =IF(UserInterface!$E$82 = 1,'NGGT TO (Base)'!AD46,'NGGT TO (Best)'!AD46) -> 215.767 | AE46: =IF(UserInterface!$E$82 = 1,'NGGT TO (Base)'!AE46,'NGGT TO (Best)'!AE46) -> 226.475 | AF46: =IF(UserInterface!$E$82 = 1,'NGGT TO (Base)'!AF46,'NGGT TO (Best)'!AF46) -> 237.342 | AG46: =IF(UserInterface!$E$82 = 1,'NGGT TO (Base)'!AG46,'NGGT TO (Best)'!AG46) -> 243.988 | AH46: =IF(UserInterface!$E$82 = 1,'NGGT TO (Base)'!AH46,'NGGT TO (Best)'!AH46) -> 250.82 | AI46: =IF(UserInterface!$E$82 = 1,'NGGT TO (Base)'!AI46,'NGGT TO (Best)'!AI46) -> 257.843 | AJ46: =IF(UserInterface!$E$82 = 1,'NGGT TO (Base)'!AJ46,'NGGT TO (Best)'!AJ46) -> 265.063 | AK46: =IF(UserInterface!$E$82 = 1,'NGGT TO (Base)'!AK46,'NGGT TO (Best)'!AK46) -> 272.485 | AL46: =IF(UserInterface!$E$82 = 1,'NGGT TO (Base)'!AL46,'NGGT TO (Best)'!AL46) -> 280.115 | AM46: =IF(UserInterface!$E$82 = 1,'NGGT TO (Base)'!AM46,'NGGT TO (Best)'!AM46) -> 287.958 | AN46: =IF(UserInterface!$E$82 = 1,'NGGT TO (Base)'!AN46,'NGGT TO (Best)'!AN46) -> 296.021 | AO46: =IF(UserInterface!$E$82 = 1,'NGGT TO (Base)'!AO46,'NGGT TO (Best)'!AO46) -> 304.31
E47: Cost of Debt Inflation | G47: index value | J47: > | V47: =IF(UserInterface!$E$82 = 1,'NGGT TO (Base)'!V47,'NGGT TO (Best)'!V47) -> 173.875 | W47: =IF(UserInterface!$E$82 = 1,'NGGT TO (Base)'!W47,'NGGT TO (Best)'!W47) -> 177.517 | X47: =IF(UserInterface!$E$82 = 1,'NGGT TO (Base)'!X47,'NGGT TO (Best)'!X47) -> 182.475 | Y47: =IF(UserInterface!$E$82 = 1,'NGGT TO (Base)'!Y47,'NGGT TO (Best)'!Y47) -> 188.15 | Z47: =IF(UserInterface!$E$82 = 1,'NGGT TO (Base)'!Z47,'NGGT TO (Best)'!Z47) -> 193.108 | AA47: =IF(UserInterface!$E$82 = 1,'NGGT TO (Base)'!AA47,'NGGT TO (Best)'!AA47) -> 200.317 | AB47: =IF(UserInterface!$E$82 = 1,'NGGT TO (Base)'!AB47,'NGGT TO (Best)'!AB47) -> 208.592 | AC47: =IF(UserInterface!$E$82 = 1,'NGGT TO (Base)'!AC47,'NGGT TO (Best)'!AC47) -> 214.783 | AD47: =IF(UserInterface!$E$82 = 1,'NGGT TO (Base)'!AD47,'NGGT TO (Best)'!AD47) -> 215.767 | AE47: =IF(UserInterface!$E$82 = 1,'NGGT TO (Base)'!AE47,'NGGT TO (Best)'!AE47) -> 226.475 | AF47: =IF(UserInterface!$E$82 = 1,'NGGT TO (Base)'!AF47,'NGGT TO (Best)'!AF47) -> 237.342 | AG47: =IF(UserInterface!$E$82 = 1,'NGGT TO (Base)'!AG47,'NGGT TO (Best)'!AG47) -> 243.988 | AH47: =IF(UserInterface!$E$82 = 1,'NGGT TO (Base)'!AH47,'NGGT TO (Best)'!AH47) -> 250.82 | AI47: =IF(UserInterface!$E$82 = 1,'NGGT TO (Base)'!AI47,'NGGT TO (Best)'!AI47) -> 257.843 | AJ47: =IF(UserInterface!$E$82 = 1,'NGGT TO (Base)'!AJ47,'NGGT TO (Best)'!AJ47) -> 265.063 | AK47: =IF(UserInterface!$E$82 = 1,'NGGT TO (Base)'!AK47,'NGGT TO (Best)'!AK47) -> 272.485 | AL47: =IF(UserInterface!$E$82 = 1,'NGGT TO (Base)'!AL47,'NGGT TO (Best)'!AL47) -> 280.115 | AM47: =IF(UserInterface!$E$82 = 1,'NGGT TO (Base)'!AM47,'NGGT TO (Best)'!AM47) -> 287.958 | AN47: =IF(UserInterface!$E$82 = 1,'NGGT TO (Base)'!AN47,'NGGT TO (Best)'!AN47) -> 296.021 | AO47: =IF(UserInterface!$E$82 = 1,'NGGT TO (Base)'!AO47,'NGGT TO (Best)'!AO47) -> 304.31
C48: TIM and capitalisation
E50: Years from t until normal reporting of actual costs | G50: years | I50: =IF(UserInterface!$E$82 = 1,'NGGT TO (Base)'!I50,'NGGT TO (Best)'!I50) -> 2
E52: Capitalised share of totex | G52: % | AH52: =IF(UserInterface!$E$82 = 1,'NGGT TO (Base)'!AH52,'NGGT TO (Best)'!AH52) -> 0.644 | AI52: =IF(UserInterface!$E$82 = 1,'NGGT TO (Base)'!AI52,'NGGT TO (Best)'!AI52) -> 0.644 | AJ52: =IF(UserInterface!$E$82 = 1,'NGGT TO (Base)'!AJ52,'NGGT TO (Best)'!AJ52) -> 0.644 | AK52: =IF(UserInterface!$E$82 = 1,'NGGT TO (Base)'!AK52,'NGGT TO (Best)'!AK52) -> 0.644 | AL52: =IF(UserInterface!$E$82 = 1,'NGGT TO (Base)'!AL52,'NGGT TO (Best)'!AL52) -> 0.644 | AM52: =IF(UserInterface!$E$82 = 1,'NGGT TO (Base)'!AM52,'NGGT TO (Best)'!AM52) -> 0.644 | AN52: =IF(UserInterface!$E$82 = 1,'NGGT TO (Base)'!AN52,'NGGT TO (Best)'!AN52) -> 0.644 | AO52: =IF(UserInterface!$E$82 = 1,'NGGT TO (Base)'!AO52,'NGGT TO (Best)'!AO52) -> 0.644
E53: Capitalised share of entry, exit, network flexibility, industrial emission directive and asset health | G53: % | AH53: =IF(UserInterface!$E$82 = 1,'NGGT TO (Base)'!AH53,'NGGT TO (Best)'!AH53) -> 0.9 | AI53: =IF(UserInterface!$E$82 = 1,'NGGT TO (Base)'!AI53,'NGGT TO (Best)'!AI53) -> 0.9 | AJ53: =IF(UserInterface!$E$82 = 1,'NGGT TO (Base)'!AJ53,'NGGT TO (Best)'!AJ53) -> 0.9 | AK53: =IF(UserInterface!$E$82 = 1,'NGGT TO (Base)'!AK53,'NGGT TO (Best)'!AK53) -> 0.9 | AL53: =IF(UserInterface!$E$82 = 1,'NGGT TO (Base)'!AL53,'NGGT TO (Best)'!AL53) -> 0.9 | AM53: =IF(UserInterface!$E$82 = 1,'NGGT TO (Base)'!AM53,'NGGT TO (Best)'!AM53) -> 0.9 | AN53: =IF(UserInterface!$E$82 = 1,'NGGT TO (Base)'!AN53,'NGGT TO (Best)'!AN53) -> 0.9 | AO53: =IF(UserInterface!$E$82 = 1,'NGGT TO (Base)'!AO53,'NGGT TO (Best)'!AO53) -> 0.9
E55: Incentive rate (slope) | G55: scalar | I55: =IF(UserInterface!$E$82 = 1,'NGGT TO (Base)'!I55,'NGGT TO (Best)'!I55) -> -0.0025
E56: Incentive rate (intercept) | G56: scalar | I56: =IF(UserInterface!$E$82 = 1,'NGGT TO (Base)'!I56,'NGGT TO (Best)'!I56) -> 0.75
E57: Additional income (intercept) | G57: scalar | I57: =IF(UserInterface!$E$82 = 1,'NGGT TO (Base)'!I57,'NGGT TO (Best)'!I57) -> 8.75
E59: Weight of Ofgem's view on price control totex | G59: % | I59: =IF(UserInterface!$E$82 = 1,'NGGT TO (Base)'!I59,'NGGT TO (Best)'!I59) -> 0.75
E60: Weight of operator's view on price control totex | G60: % | I60: =IF(UserInterface!$E$82 = 1,'NGGT TO (Base)'!I60,'NGGT TO (Best)'!I60) -> 0.25
E62: Ofgem's view of licensee totex | G62: £m 09/10 prices | I62: =IF(UserInterface!$E$82 = 1,'NGGT TO (Base)'!I62,'NGGT TO (Best)'!I62) -> 1604.192985
E63: Operator's view of licensee totex | G63: £m 09/10 prices | I63: =IF(UserInterface!$E$82 = 1,'NGGT TO (Base)'!I63,'NGGT TO (Best)'!I63) -> 2006.8036
E65: Ofgem's view of group price control totex | G65: £m 09/10 prices | I65: =IF(UserInterface!$E$82 = 1,'NGGT TO (Base)'!I65,'NGGT TO (Best)'!I65) -> 2046.500703
E66: Operator's view of group price control totex | G66: £m 09/10 prices | I66: =IF(UserInterface!$E$82 = 1,'NGGT TO (Base)'!I66,'NGGT TO (Best)'!I66) -> 2508.159874
C68: Finance
E70: Minimum equity issuance threshold | G70: % | I70: =IF(UserInterface!$E$82 = 1,'NGGT TO (Base)'!I70,'NGGT TO (Best)'!I70) -> 0.05
E71: Equity issuance costs | G71: % | I71: =IF(UserInterface!$E$82 = 1,'NGGT TO (Base)'!I71,'NGGT TO (Best)'!I71) -> 0.05
E72: Assumed dividends as % of notional equity portion of RAV | G72: % | I72: =IF(UserInterface!$E$82 = 1,'NGGT TO (Base)'!I72,'NGGT TO (Best)'!I72) -> 0.05
E74: Equity issuance gearing target | G74: % | AH74: =IF(UserInterface!$E$82 = 1,'NGGT TO (Base)'!AH74,'NGGT TO (Best)'!AH74) -> 0.625 | AI74: =IF(UserInterface!$E$82 = 1,'NGGT TO (Base)'!AI74,'NGGT TO (Best)'!AI74) -> 0.625 | AJ74: =IF(UserInterface!$E$82 = 1,'NGGT TO (Base)'!AJ74,'NGGT TO (Best)'!AJ74) -> 0.625 | AK74: =IF(UserInterface!$E$82 = 1,'NGGT TO (Base)'!AK74,'NGGT TO (Best)'!AK74) -> 0.625 | AL74: =IF(UserInterface!$E$82 = 1,'NGGT TO (Base)'!AL74,'NGGT TO (Best)'!AL74) -> 0.625 | AM74: =IF(UserInterface!$E$82 = 1,'NGGT TO (Base)'!AM74,'NGGT TO (Best)'!AM74) -> 0.625 | AN74: =IF(UserInterface!$E$82 = 1,'NGGT TO (Base)'!AN74,'NGGT TO (Best)'!AN74) -> 0.625 | AO74: =IF(UserInterface!$E$82 = 1,'NGGT TO (Base)'!AO74,'NGGT TO (Best)'!AO74) -> 0.625
E76: Index-linked debt as a percentage of net debt | G76: % | AH76: =IF(UserInterface!$E$82 = 1,'NGGT TO (Base)'!AH76,'NGGT TO (Best)'!AH76) -> 0.25 | AI76: =IF(UserInterface!$E$82 = 1,'NGGT TO (Base)'!AI76,'NGGT TO (Best)'!AI76) -> 0.25 | AJ76: =IF(UserInterface!$E$82 = 1,'NGGT TO (Base)'!AJ76,'NGGT TO (Best)'!AJ76) -> 0.25 | AK76: =IF(UserInterface!$E$82 = 1,'NGGT TO (Base)'!AK76,'NGGT TO (Best)'!AK76) -> 0.25 | AL76: =IF(UserInterface!$E$82 = 1,'NGGT TO (Base)'!AL76,'NGGT TO (Best)'!AL76) -> 0.25 | AM76: =IF(UserInterface!$E$82 = 1,'NGGT TO (Base)'!AM76,'NGGT TO (Best)'!AM76) -> 0.25 | AN76: =IF(UserInterface!$E$82 = 1,'NGGT TO (Base)'!AN76,'NGGT TO (Best)'!AN76) -> 0.25 | AO76: =IF(UserInterface!$E$82 = 1,'NGGT TO (Base)'!AO76,'NGGT TO (Best)'!AO76) -> 0.25
B78: Expenditure
C80: Totex
D82: Non-variant allowances
E84: Non-variant allowed load related capex expenditure | G84: £m 09/10 prices | AH84: =IF(UserInterface!$E$82 = 1,'NGGT TO (Base)'!AH84,'NGGT TO (Best)'!AH84) -> 25.4593078 | AI84: =IF(UserInterface!$E$82 = 1,'NGGT TO (Base)'!AI84,'NGGT TO (Best)'!AI84) -> 14.41280752 | AJ84: =IF(UserInterface!$E$82 = 1,'NGGT TO (Base)'!AJ84,'NGGT TO (Best)'!AJ84) -> 9.617320208 | AK84: =IF(UserInterface!$E$82 = 1,'NGGT TO (Base)'!AK84,'NGGT TO (Best)'!AK84) -> 60.4467775 | AL84: =IF(UserInterface!$E$82 = 1,'NGGT TO (Base)'!AL84,'NGGT TO (Best)'!AL84) -> 84.88019853 | AM84: =IF(UserInterface!$E$82 = 1,'NGGT TO (Base)'!AM84,'NGGT TO (Best)'!AM84) -> 8.524933684 | AN84: =IF(UserInterface!$E$82 = 1,'NGGT TO (Base)'!AN84,'NGGT TO (Best)'!AN84) -> 0.2315287874 | AO84: =IF(UserInterface!$E$82 = 1,'NGGT TO (Base)'!AO84,'NGGT TO (Best)'!AO84) -> 0
E85: Non-variant allowed asset replacement capex expenditure | G85: £m 09/10 prices | AH85: =IF(UserInterface!$E$82 = 1,'NGGT TO (Base)'!AH85,'NGGT TO (Best)'!AH85) -> 86.8202567 | AI85: =IF(UserInterface!$E$82 = 1,'NGGT TO (Base)'!AI85,'NGGT TO (Best)'!AI85) -> 100.2012626 | AJ85: =IF(UserInterface!$E$82 = 1,'NGGT TO (Base)'!AJ85,'NGGT TO (Best)'!AJ85) -> 107.8209037 | AK85: =IF(UserInterface!$E$82 = 1,'NGGT TO (Base)'!AK85,'NGGT TO (Best)'!AK85) -> 117.8361291 | AL85: =IF(UserInterface!$E$82 = 1,'NGGT TO (Base)'!AL85,'NGGT TO (Best)'!AL85) -> 132.705636 | AM85: =IF(UserInterface!$E$82 = 1,'NGGT TO (Base)'!AM85,'NGGT TO (Best)'!AM85) -> 113.3127258 | AN85: =IF(UserInterface!$E$82 = 1,'NGGT TO (Base)'!AN85,'NGGT TO (Best)'!AN85) -> 95.49069633 | AO85: =IF(UserInterface!$E$82 = 1,'NGGT TO (Base)'!AO85,'NGGT TO (Best)'!AO85) -> 85.29208013
E86: Non-variant allowed other capex expenditure | G86: £m 09/10 prices | AH86: =IF(UserInterface!$E$82 = 1,'NGGT TO (Base)'!AH86,'NGGT TO (Best)'!AH86) -> 0 | AI86: =IF(UserInterface!$E$82 = 1,'NGGT TO (Base)'!AI86,'NGGT TO (Best)'!AI86) -> 0 | AJ86: =IF(UserInterface!$E$82 = 1,'NGGT TO (Base)'!AJ86,'NGGT TO (Best)'!AJ86) -> 0 | AK86: =IF(UserInterface!$E$82 = 1,'NGGT TO (Base)'!AK86,'NGGT TO (Best)'!AK86) -> 0 | AL86: =IF(UserInterface!$E$82 = 1,'NGGT TO (Base)'!AL86,'NGGT TO (Best)'!AL86) -> 0 | AM86: =IF(UserInterface!$E$82 = 1,'NGGT TO (Base)'!AM86,'NGGT TO (Best)'!AM86) -> 0 | AN86: =IF(UserInterface!$E$82 = 1,'NGGT TO (Base)'!AN86,'NGGT TO (Best)'!AN86) -> 0 | AO86: =IF(UserInterface!$E$82 = 1,'NGGT TO (Base)'!AO86,'NGGT TO (Best)'!AO86) -> 0
E87: Non-variant allowed controllable opex | G87: £m 09/10 prices | AH87: =IF(UserInterface!$E$82 = 1,'NGGT TO (Base)'!AH87,'NGGT TO (Best)'!AH87) -> 64.48267201 | AI87: =IF(UserInterface!$E$82 = 1,'NGGT TO (Base)'!AI87,'NGGT TO (Best)'!AI87) -> 65.23787422 | AJ87: =IF(UserInterface!$E$82 = 1,'NGGT TO (Base)'!AJ87,'NGGT TO (Best)'!AJ87) -> 70.77289473 | AK87: =IF(UserInterface!$E$82 = 1,'NGGT TO (Base)'!AK87,'NGGT TO (Best)'!AK87) -> 79.36833827 | AL87: =IF(UserInterface!$E$82 = 1,'NGGT TO (Base)'!AL87,'NGGT TO (Best)'!AL87) -> 84.31747913 | AM87: =IF(UserInterface!$E$82 = 1,'NGGT TO (Base)'!AM87,'NGGT TO (Best)'!AM87) -> 84.64134636 | AN87: =IF(UserInterface!$E$82 = 1,'NGGT TO (Base)'!AN87,'NGGT TO (Best)'!AN87) -> 80.72801478 | AO87: =IF(UserInterface!$E$82 = 1,'NGGT TO (Base)'!AO87,'NGGT TO (Best)'!AO87) -> 77.49007012
E88: Non-variant allowed non-operational capex | G88: £m 09/10 prices | AH88: =IF(UserInterface!$E$82 = 1,'NGGT TO (Base)'!AH88,'NGGT TO (Best)'!AH88) -> 10.31226162 | AI88: =IF(UserInterface!$E$82 = 1,'NGGT TO (Base)'!AI88,'NGGT TO (Best)'!AI88) -> 9.678449854 | AJ88: =IF(UserInterface!$E$82 = 1,'NGGT TO (Base)'!AJ88,'NGGT TO (Best)'!AJ88) -> 6.615822716 | AK88: =IF(UserInterface!$E$82 = 1,'NGGT TO (Base)'!AK88,'NGGT TO (Best)'!AK88) -> 6.133648068 | AL88: =IF(UserInterface!$E$82 = 1,'NGGT TO (Base)'!AL88,'NGGT TO (Best)'!AL88) -> 5.57274791 | AM88: =IF(UserInterface!$E$82 = 1,'NGGT TO (Base)'!AM88,'NGGT TO (Best)'!AM88) -> 4.190695059 | AN88: =IF(UserInterface!$E$82 = 1,'NGGT TO (Base)'!AN88,'NGGT TO (Best)'!AN88) -> 6.384863783 | AO88: =IF(UserInterface!$E$82 = 1,'NGGT TO (Base)'!AO88,'NGGT TO (Best)'!AO88) -> 5.865895674
D90: Variant allowances
E92: =E18 -> Uncertain costs - Enhanced Physical Site Security | G92: £m 09/10 prices | AH92: =AH18 -> 4.956745898 | AI92: =AI18 -> 5.244208167 | AJ92: 5.387688454 | AK92: 5.62820732 | AL92: 5.418277366 | AM92: 5.473104223 | AN92: 5.535490083 | AO92: 5.598587055
E93: Allocation to load related capex expenditure | G93: % | AH93: =IF(UserInterface!$E$82 = 1,'NGGT TO (Base)'!AH93,'NGGT TO (Best)'!AH93) -> 0 | AI93: =IF(UserInterface!$E$82 = 1,'NGGT TO (Base)'!AI93,'NGGT TO (Best)'!AI93) -> 0 | AJ93: =IF(UserInterface!$E$82 = 1,'NGGT TO (Base)'!AJ93,'NGGT TO (Best)'!AJ93) -> 0 | AK93: =IF(UserInterface!$E$82 = 1,'NGGT TO (Base)'!AK93,'NGGT TO (Best)'!AK93) -> 0 | AL93: =IF(UserInterface!$E$82 = 1,'NGGT TO (Base)'!AL93,'NGGT TO (Best)'!AL93) -> 0 | AM93: =IF(UserInterface!$E$82 = 1,'NGGT TO (Base)'!AM93,'NGGT TO (Best)'!AM93) -> 0 | AN93: =IF(UserInterface!$E$82 = 1,'NGGT TO (Base)'!AN93,'NGGT TO (Best)'!AN93) -> 0 | AO93: =IF(UserInterface!$E$82 = 1,'NGGT TO (Base)'!AO93,'NGGT TO (Best)'!AO93) -> 0
E94: Allocation to asset replacement capex expenditure | G94: % | AH94: =IF(UserInterface!$E$82 = 1,'NGGT TO (Base)'!AH94,'NGGT TO (Best)'!AH94) -> 0 | AI94: =IF(UserInterface!$E$82 = 1,'NGGT TO (Base)'!AI94,'NGGT TO (Best)'!AI94) -> 0 | AJ94: =IF(UserInterface!$E$82 = 1,'NGGT TO (Base)'!AJ94,'NGGT TO (Best)'!AJ94) -> 0 | AK94: =IF(UserInterface!$E$82 = 1,'NGGT TO (Base)'!AK94,'NGGT TO (Best)'!AK94) -> 0 | AL94: =IF(UserInterface!$E$82 = 1,'NGGT TO (Base)'!AL94,'NGGT TO (Best)'!AL94) -> 0 | AM94: =IF(UserInterface!$E$82 = 1,'NGGT TO (Base)'!AM94,'NGGT TO (Best)'!AM94) -> 0 | AN94: =IF(UserInterface!$E$82 = 1,'NGGT TO (Base)'!AN94,'NGGT TO (Best)'!AN94) -> 0 | AO94: =IF(UserInterface!$E$82 = 1,'NGGT TO (Base)'!AO94,'NGGT TO (Best)'!AO94) -> 0
E95: Allocation to other capex expenditure | G95: % | AH95: =IF(UserInterface!$E$82 = 1,'NGGT TO (Base)'!AH95,'NGGT TO (Best)'!AH95) -> 1 | AI95: =IF(UserInterface!$E$82 = 1,'NGGT TO (Base)'!AI95,'NGGT TO (Best)'!AI95) -> 1 | AJ95: =IF(UserInterface!$E$82 = 1,'NGGT TO (Base)'!AJ95,'NGGT TO (Best)'!AJ95) -> 1 | AK95: =IF(UserInterface!$E$82 = 1,'NGGT TO (Base)'!AK95,'NGGT TO (Best)'!AK95) -> 1 | AL95: =IF(UserInterface!$E$82 = 1,'NGGT TO (Base)'!AL95,'NGGT TO (Best)'!AL95) -> 1 | AM95: =IF(UserInterface!$E$82 = 1,'NGGT TO (Base)'!AM95,'NGGT TO (Best)'!AM95) -> 1 | AN95: =IF(UserInterface!$E$82 = 1,'NGGT TO (Base)'!AN95,'NGGT TO (Best)'!AN95) -> 1 | AO95: =IF(UserInterface!$E$82 = 1,'NGGT TO (Base)'!AO95,'NGGT TO (Best)'!AO95) -> 1
E96: Allocation to controllable opex | G96: % | AH96: =IF(UserInterface!$E$82 = 1,'NGGT TO (Base)'!AH96,'NGGT TO (Best)'!AH96) -> 0 | AI96: =IF(UserInterface!$E$82 = 1,'NGGT TO (Base)'!AI96,'NGGT TO (Best)'!AI96) -> 0 | AJ96: =IF(UserInterface!$E$82 = 1,'NGGT TO (Base)'!AJ96,'NGGT TO (Best)'!AJ96) -> 0 | AK96: =IF(UserInterface!$E$82 = 1,'NGGT TO (Base)'!AK96,'NGGT TO (Best)'!AK96) -> 0 | AL96: =IF(UserInterface!$E$82 = 1,'NGGT TO (Base)'!AL96,'NGGT TO (Best)'!AL96) -> 0 | AM96: =IF(UserInterface!$E$82 = 1,'NGGT TO (Base)'!AM96,'NGGT TO (Best)'!AM96) -> 0 | AN96: =IF(UserInterface!$E$82 = 1,'NGGT TO (Base)'!AN96,'NGGT TO (Best)'!AN96) -> 0 | AO96: =IF(UserInterface!$E$82 = 1,'NGGT TO (Base)'!AO96,'NGGT TO (Best)'!AO96) -> 0
E97: Allocation to non-operational capex | G97: % | AH97: =IF(UserInterface!$E$82 = 1,'NGGT TO (Base)'!AH97,'NGGT TO (Best)'!AH97) -> 0 | AI97: =IF(UserInterface!$E$82 = 1,'NGGT TO (Base)'!AI97,'NGGT TO (Best)'!AI97) -> 0 | AJ97: =IF(UserInterface!$E$82 = 1,'NGGT TO (Base)'!AJ97,'NGGT TO (Best)'!AJ97) -> 0 | AK97: =IF(UserInterface!$E$82 = 1,'NGGT TO (Base)'!AK97,'NGGT TO (Best)'!AK97) -> 0 | AL97: =IF(UserInterface!$E$82 = 1,'NGGT TO (Base)'!AL97,'NGGT TO (Best)'!AL97) -> 0 | AM97: =IF(UserInterface!$E$82 = 1,'NGGT TO (Base)'!AM97,'NGGT TO (Best)'!AM97) -> 0 | AN97: =IF(UserInterface!$E$82 = 1,'NGGT TO (Base)'!AN97,'NGGT TO (Best)'!AN97) -> 0 | AO97: =IF(UserInterface!$E$82 = 1,'NGGT TO (Base)'!AO97,'NGGT TO (Best)'!AO97) -> 0
E99: =E19 -> Uncertain costs – Pipeline Diversion Costs | G99: £m 09/10 prices | AH99: =AH19 -> 0 | AI99: =AI19 -> 0 | AJ99: 0 | AK99: 0 | AL99: 0 | AM99: 0 | AN99: 0 | AO99: 0
E100: Allocation to load related capex expenditure | G100: % | AH100: =IF(UserInterface!$E$82 = 1,'NGGT TO (Base)'!AH100,'NGGT TO (Best)'!AH100) -> 1 | AI100: =IF(UserInterface!$E$82 = 1,'NGGT TO (Base)'!AI100,'NGGT TO (Best)'!AI100) -> 1 | AJ100: =IF(UserInterface!$E$82 = 1,'NGGT TO (Base)'!AJ100,'NGGT TO (Best)'!AJ100) -> 1 | AK100: =IF(UserInterface!$E$82 = 1,'NGGT TO (Base)'!AK100,'NGGT TO (Best)'!AK100) -> 1 | AL100: =IF(UserInterface!$E$82 = 1,'NGGT TO (Base)'!AL100,'NGGT TO (Best)'!AL100) -> 1 | AM100: =IF(UserInterface!$E$82 = 1,'NGGT TO (Base)'!AM100,'NGGT TO (Best)'!AM100) -> 1 | AN100: =IF(UserInterface!$E$82 = 1,'NGGT TO (Base)'!AN100,'NGGT TO (Best)'!AN100) -> 1 | AO100: =IF(UserInterface!$E$82 = 1,'NGGT TO (Base)'!AO100,'NGGT TO (Best)'!AO100) -> 1
E101: Allocation to asset replacement capex expenditure | G101: % | AH101: =IF(UserInterface!$E$82 = 1,'NGGT TO (Base)'!AH101,'NGGT TO (Best)'!AH101) -> 0 | AI101: =IF(UserInterface!$E$82 = 1,'NGGT TO (Base)'!AI101,'NGGT TO (Best)'!AI101) -> 0 | AJ101: =IF(UserInterface!$E$82 = 1,'NGGT TO (Base)'!AJ101,'NGGT TO (Best)'!AJ101) -> 0 | AK101: =IF(UserInterface!$E$82 = 1,'NGGT TO (Base)'!AK101,'NGGT TO (Best)'!AK101) -> 0 | AL101: =IF(UserInterface!$E$82 = 1,'NGGT TO (Base)'!AL101,'NGGT TO (Best)'!AL101) -> 0 | AM101: =IF(UserInterface!$E$82 = 1,'NGGT TO (Base)'!AM101,'NGGT TO (Best)'!AM101) -> 0 | AN101: =IF(UserInterface!$E$82 = 1,'NGGT TO (Base)'!AN101,'NGGT TO (Best)'!AN101) -> 0 | AO101: =IF(UserInterface!$E$82 = 1,'NGGT TO (Base)'!AO101,'NGGT TO (Best)'!AO101) -> 0
E102: Allocation to other capex expenditure | G102: % | AH102: =IF(UserInterface!$E$82 = 1,'NGGT TO (Base)'!AH102,'NGGT TO (Best)'!AH102) -> 0 | AI102: =IF(UserInterface!$E$82 = 1,'NGGT TO (Base)'!AI102,'NGGT TO (Best)'!AI102) -> 0 | AJ102: =IF(UserInterface!$E$82 = 1,'NGGT TO (Base)'!AJ102,'NGGT TO (Best)'!AJ102) -> 0 | AK102: =IF(UserInterface!$E$82 = 1,'NGGT TO (Base)'!AK102,'NGGT TO (Best)'!AK102) -> 0 | AL102: =IF(UserInterface!$E$82 = 1,'NGGT TO (Base)'!AL102,'NGGT TO (Best)'!AL102) -> 0 | AM102: =IF(UserInterface!$E$82 = 1,'NGGT TO (Base)'!AM102,'NGGT TO (Best)'!AM102) -> 0 | AN102: =IF(UserInterface!$E$82 = 1,'NGGT TO (Base)'!AN102,'NGGT TO (Best)'!AN102) -> 0 | AO102: =IF(UserInterface!$E$82 = 1,'NGGT TO (Base)'!AO102,'NGGT TO (Best)'!AO102) -> 0
E103: Allocation to controllable opex | G103: % | AH103: =IF(UserInterface!$E$82 = 1,'NGGT TO (Base)'!AH103,'NGGT TO (Best)'!AH103) -> 0 | AI103: =IF(UserInterface!$E$82 = 1,'NGGT TO (Base)'!AI103,'NGGT TO (Best)'!AI103) -> 0 | AJ103: =IF(UserInterface!$E$82 = 1,'NGGT TO (Base)'!AJ103,'NGGT TO (Best)'!AJ103) -> 0 | AK103: =IF(UserInterface!$E$82 = 1,'NGGT TO (Base)'!AK103,'NGGT TO (Best)'!AK103) -> 0 | AL103: =IF(UserInterface!$E$82 = 1,'NGGT TO (Base)'!AL103,'NGGT TO (Best)'!AL103) -> 0 | AM103: =IF(UserInterface!$E$82 = 1,'NGGT TO (Base)'!AM103,'NGGT TO (Best)'!AM103) -> 0 | AN103: =IF(UserInterface!$E$82 = 1,'NGGT TO (Base)'!AN103,'NGGT TO (Best)'!AN103) -> 0 | AO103: =IF(UserInterface!$E$82 = 1,'NGGT TO (Base)'!AO103,'NGGT TO (Best)'!AO103) -> 0
E104: Allocation to non-operational capex | G104: % | AH104: =IF(UserInterface!$E$82 = 1,'NGGT TO (Base)'!AH104,'NGGT TO (Best)'!AH104) -> 0 | AI104: =IF(UserInterface!$E$82 = 1,'NGGT TO (Base)'!AI104,'NGGT TO (Best)'!AI104) -> 0 | AJ104: =IF(UserInterface!$E$82 = 1,'NGGT TO (Base)'!AJ104,'NGGT TO (Best)'!AJ104) -> 0 | AK104: =IF(UserInterface!$E$82 = 1,'NGGT TO (Base)'!AK104,'NGGT TO (Best)'!AK104) -> 0 | AL104: =IF(UserInterface!$E$82 = 1,'NGGT TO (Base)'!AL104,'NGGT TO (Best)'!AL104) -> 0 | AM104: =IF(UserInterface!$E$82 = 1,'NGGT TO (Base)'!AM104,'NGGT TO (Best)'!AM104) -> 0 | AN104: =IF(UserInterface!$E$82 = 1,'NGGT TO (Base)'!AN104,'NGGT TO (Best)'!AN104) -> 0 | AO104: =IF(UserInterface!$E$82 = 1,'NGGT TO (Base)'!AO104,'NGGT TO (Best)'!AO104) -> 0
E106: =E20 -> Uncertain costs (Quarry & Loss Costs), uncertainty rate | G106: £m 09/10 prices | AH106: =AH20 -> 3.281966185 | AI106: =AI20 -> 2.6088895 | AJ106: 2.542028641 | AK106: 2.460319069 | AL106: 2.39 | AM106: 2.358167076 | AN106: 2.30123017 | AO106: 2.226242884
E107: Allocation to load related capex expenditure | G107: % | AH107: =IF(UserInterface!$E$82 = 1,'NGGT TO (Base)'!AH107,'NGGT TO (Best)'!AH107) -> 0 | AI107: =IF(UserInterface!$E$82 = 1,'NGGT TO (Base)'!AI107,'NGGT TO (Best)'!AI107) -> 0 | AJ107: =IF(UserInterface!$E$82 = 1,'NGGT TO (Base)'!AJ107,'NGGT TO (Best)'!AJ107) -> 0 | AK107: =IF(UserInterface!$E$82 = 1,'NGGT TO (Base)'!AK107,'NGGT TO (Best)'!AK107) -> 0 | AL107: =IF(UserInterface!$E$82 = 1,'NGGT TO (Base)'!AL107,'NGGT TO (Best)'!AL107) -> 0 | AM107: =IF(UserInterface!$E$82 = 1,'NGGT TO (Base)'!AM107,'NGGT TO (Best)'!AM107) -> 0 | AN107: =IF(UserInterface!$E$82 = 1,'NGGT TO (Base)'!AN107,'NGGT TO (Best)'!AN107) -> 0 | AO107: =IF(UserInterface!$E$82 = 1,'NGGT TO (Base)'!AO107,'NGGT TO (Best)'!AO107) -> 0
E108: Allocation to asset replacement capex expenditure | G108: % | AH108: =IF(UserInterface!$E$82 = 1,'NGGT TO (Base)'!AH108,'NGGT TO (Best)'!AH108) -> 0 | AI108: =IF(UserInterface!$E$82 = 1,'NGGT TO (Base)'!AI108,'NGGT TO (Best)'!AI108) -> 0 | AJ108: =IF(UserInterface!$E$82 = 1,'NGGT TO (Base)'!AJ108,'NGGT TO (Best)'!AJ108) -> 0 | AK108: =IF(UserInterface!$E$82 = 1,'NGGT TO (Base)'!AK108,'NGGT TO (Best)'!AK108) -> 0 | AL108: =IF(UserInterface!$E$82 = 1,'NGGT TO (Base)'!AL108,'NGGT TO (Best)'!AL108) -> 0 | AM108: =IF(UserInterface!$E$82 = 1,'NGGT TO (Base)'!AM108,'NGGT TO (Best)'!AM108) -> 0 | AN108: =IF(UserInterface!$E$82 = 1,'NGGT TO (Base)'!AN108,'NGGT TO (Best)'!AN108) -> 0 | AO108: =IF(UserInterface!$E$82 = 1,'NGGT TO (Base)'!AO108,'NGGT TO (Best)'!AO108) -> 0
E109: Allocation to other capex expenditure | G109: % | AH109: =IF(UserInterface!$E$82 = 1,'NGGT TO (Base)'!AH109,'NGGT TO (Best)'!AH109) -> 0 | AI109: =IF(UserInterface!$E$82 = 1,'NGGT TO (Base)'!AI109,'NGGT TO (Best)'!AI109) -> 0 | AJ109: =IF(UserInterface!$E$82 = 1,'NGGT TO (Base)'!AJ109,'NGGT TO (Best)'!AJ109) -> 0 | AK109: =IF(UserInterface!$E$82 = 1,'NGGT TO (Base)'!AK109,'NGGT TO (Best)'!AK109) -> 0 | AL109: =IF(UserInterface!$E$82 = 1,'NGGT TO (Base)'!AL109,'NGGT TO (Best)'!AL109) -> 0 | AM109: =IF(UserInterface!$E$82 = 1,'NGGT TO (Base)'!AM109,'NGGT TO (Best)'!AM109) -> 0 | AN109: =IF(UserInterface!$E$82 = 1,'NGGT TO (Base)'!AN109,'NGGT TO (Best)'!AN109) -> 0 | AO109: =IF(UserInterface!$E$82 = 1,'NGGT TO (Base)'!AO109,'NGGT TO (Best)'!AO109) -> 0
E110: Allocation to controllable opex | G110: % | AH110: =IF(UserInterface!$E$82 = 1,'NGGT TO (Base)'!AH110,'NGGT TO (Best)'!AH110) -> 1 | AI110: =IF(UserInterface!$E$82 = 1,'NGGT TO (Base)'!AI110,'NGGT TO (Best)'!AI110) -> 1 | AJ110: =IF(UserInterface!$E$82 = 1,'NGGT TO (Base)'!AJ110,'NGGT TO (Best)'!AJ110) -> 1 | AK110: =IF(UserInterface!$E$82 = 1,'NGGT TO (Base)'!AK110,'NGGT TO (Best)'!AK110) -> 1 | AL110: =IF(UserInterface!$E$82 = 1,'NGGT TO (Base)'!AL110,'NGGT TO (Best)'!AL110) -> 1 | AM110: =IF(UserInterface!$E$82 = 1,'NGGT TO (Base)'!AM110,'NGGT TO (Best)'!AM110) -> 1 | AN110: =IF(UserInterface!$E$82 = 1,'NGGT TO (Base)'!AN110,'NGGT TO (Best)'!AN110) -> 1 | AO110: =IF(UserInterface!$E$82 = 1,'NGGT TO (Base)'!AO110,'NGGT TO (Best)'!AO110) -> 1
E111: Allocation to non-operational capex | G111: % | AH111: =IF(UserInterface!$E$82 = 1,'NGGT TO (Base)'!AH111,'NGGT TO (Best)'!AH111) -> 0 | AI111: =IF(UserInterface!$E$82 = 1,'NGGT TO (Base)'!AI111,'NGGT TO (Best)'!AI111) -> 0 | AJ111: =IF(UserInterface!$E$82 = 1,'NGGT TO (Base)'!AJ111,'NGGT TO (Best)'!AJ111) -> 0 | AK111: =IF(UserInterface!$E$82 = 1,'NGGT TO (Base)'!AK111,'NGGT TO (Best)'!AK111) -> 0 | AL111: =IF(UserInterface!$E$82 = 1,'NGGT TO (Base)'!AL111,'NGGT TO (Best)'!AL111) -> 0 | AM111: =IF(UserInterface!$E$82 = 1,'NGGT TO (Base)'!AM111,'NGGT TO (Best)'!AM111) -> 0 | AN111: =IF(UserInterface!$E$82 = 1,'NGGT TO (Base)'!AN111,'NGGT TO (Best)'!AN111) -> 0 | AO111: =IF(UserInterface!$E$82 = 1,'NGGT TO (Base)'!AO111,'NGGT TO (Best)'!AO111) -> 0
E113: =E21 -> Innovation Roll out mechanism | G113: £m 09/10 prices | AH113: =AH21 -> 0 | AI113: =AI21 -> 0 | AJ113: 0 | AK113: 0 | AL113: 0 | AM113: 0 | AN113: 0 | AO113: 0
E114: Allocation to load related capex expenditure | G114: % | AH114: =IF(UserInterface!$E$82 = 1,'NGGT TO (Base)'!AH114,'NGGT TO (Best)'!AH114) -> 0.3 | AI114: =IF(UserInterface!$E$82 = 1,'NGGT TO (Base)'!AI114,'NGGT TO (Best)'!AI114) -> 0.3 | AJ114: =IF(UserInterface!$E$82 = 1,'NGGT TO (Base)'!AJ114,'NGGT TO (Best)'!AJ114) -> 0.3 | AK114: =IF(UserInterface!$E$82 = 1,'NGGT TO (Base)'!AK114,'NGGT TO (Best)'!AK114) -> 0.3 | AL114: =IF(UserInterface!$E$82 = 1,'NGGT TO (Base)'!AL114,'NGGT TO (Best)'!AL114) -> 0.3 | AM114: =IF(UserInterface!$E$82 = 1,'NGGT TO (Base)'!AM114,'NGGT TO (Best)'!AM114) -> 0.3 | AN114: =IF(UserInterface!$E$82 = 1,'NGGT TO (Base)'!AN114,'NGGT TO (Best)'!AN114) -> 0.3 | AO114: =IF(UserInterface!$E$82 = 1,'NGGT TO (Base)'!AO114,'NGGT TO (Best)'!AO114) -> 0.3
E115: Allocation to asset replacement capex expenditure | G115: % | AH115: =IF(UserInterface!$E$82 = 1,'NGGT TO (Base)'!AH115,'NGGT TO (Best)'!AH115) -> 0.1 | AI115: =IF(UserInterface!$E$82 = 1,'NGGT TO (Base)'!AI115,'NGGT TO (Best)'!AI115) -> 0.1 | AJ115: =IF(UserInterface!$E$82 = 1,'NGGT TO (Base)'!AJ115,'NGGT TO (Best)'!AJ115) -> 0.1 | AK115: =IF(UserInterface!$E$82 = 1,'NGGT TO (Base)'!AK115,'NGGT TO (Best)'!AK115) -> 0.1 | AL115: =IF(UserInterface!$E$82 = 1,'NGGT TO (Base)'!AL115,'NGGT TO (Best)'!AL115) -> 0.1 | AM115: =IF(UserInterface!$E$82 = 1,'NGGT TO (Base)'!AM115,'NGGT TO (Best)'!AM115) -> 0.1 | AN115: =IF(UserInterface!$E$82 = 1,'NGGT TO (Base)'!AN115,'NGGT TO (Best)'!AN115) -> 0.1 | AO115: =IF(UserInterface!$E$82 = 1,'NGGT TO (Base)'!AO115,'NGGT TO (Best)'!AO115) -> 0.1
E116: Allocation to other capex expenditure | G116: % | AH116: =IF(UserInterface!$E$82 = 1,'NGGT TO (Base)'!AH116,'NGGT TO (Best)'!AH116) -> 0.5 | AI116: =IF(UserInterface!$E$82 = 1,'NGGT TO (Base)'!AI116,'NGGT TO (Best)'!AI116) -> 0.5 | AJ116: =IF(UserInterface!$E$82 = 1,'NGGT TO (Base)'!AJ116,'NGGT TO (Best)'!AJ116) -> 0.5 | AK116: =IF(UserInterface!$E$82 = 1,'NGGT TO (Base)'!AK116,'NGGT TO (Best)'!AK116) -> 0.5 | AL116: =IF(UserInterface!$E$82 = 1,'NGGT TO (Base)'!AL116,'NGGT TO (Best)'!AL116) -> 0.5 | AM116: =IF(UserInterface!$E$82 = 1,'NGGT TO (Base)'!AM116,'NGGT TO (Best)'!AM116) -> 0.5 | AN116: =IF(UserInterface!$E$82 = 1,'NGGT TO (Base)'!AN116,'NGGT TO (Best)'!AN116) -> 0.5 | AO116: =IF(UserInterface!$E$82 = 1,'NGGT TO (Base)'!AO116,'NGGT TO (Best)'!AO116) -> 0.5
E117: Allocation to controllable opex | G117: % | AH117: =IF(UserInterface!$E$82 = 1,'NGGT TO (Base)'!AH117,'NGGT TO (Best)'!AH117) -> 0.1 | AI117: =IF(UserInterface!$E$82 = 1,'NGGT TO (Base)'!AI117,'NGGT TO (Best)'!AI117) -> 0.1 | AJ117: =IF(UserInterface!$E$82 = 1,'NGGT TO (Base)'!AJ117,'NGGT TO (Best)'!AJ117) -> 0.1 | AK117: =IF(UserInterface!$E$82 = 1,'NGGT TO (Base)'!AK117,'NGGT TO (Best)'!AK117) -> 0.1 | AL117: =IF(UserInterface!$E$82 = 1,'NGGT TO (Base)'!AL117,'NGGT TO (Best)'!AL117) -> 0.1 | AM117: =IF(UserInterface!$E$82 = 1,'NGGT TO (Base)'!AM117,'NGGT TO (Best)'!AM117) -> 0.1 | AN117: =IF(UserInterface!$E$82 = 1,'NGGT TO (Base)'!AN117,'NGGT TO (Best)'!AN117) -> 0.1 | AO117: =IF(UserInterface!$E$82 = 1,'NGGT TO (Base)'!AO117,'NGGT TO (Best)'!AO117) -> 0.1
E118: Allocation to non-operational capex | G118: % | AH118: =IF(UserInterface!$E$82 = 1,'NGGT TO (Base)'!AH118,'NGGT TO (Best)'!AH118) -> 0 | AI118: =IF(UserInterface!$E$82 = 1,'NGGT TO (Base)'!AI118,'NGGT TO (Best)'!AI118) -> 0 | AJ118: =IF(UserInterface!$E$82 = 1,'NGGT TO (Base)'!AJ118,'NGGT TO (Best)'!AJ118) -> 0 | AK118: =IF(UserInterface!$E$82 = 1,'NGGT TO (Base)'!AK118,'NGGT TO (Best)'!AK118) -> 0 | AL118: =IF(UserInterface!$E$82 = 1,'NGGT TO (Base)'!AL118,'NGGT TO (Best)'!AL118) -> 0 | AM118: =IF(UserInterface!$E$82 = 1,'NGGT TO (Base)'!AM118,'NGGT TO (Best)'!AM118) -> 0 | AN118: =IF(UserInterface!$E$82 = 1,'NGGT TO (Base)'!AN118,'NGGT TO (Best)'!AN118) -> 0 | AO118: =IF(UserInterface!$E$82 = 1,'NGGT TO (Base)'!AO118,'NGGT TO (Best)'!AO118) -> 0
E120: =E22&" and "&E23 -> Incremental Obligated entry capacity, uncertainty rate and Incremental Obligated exit capacity, uncertainty rate | G120: £m 09/10 prices | AH120: =SUM(AH22:AH23) -> 1.65686642 | AI120: =SUM(AI22:AI23) -> 8.834018375 | AJ120: 54.8087445 | AK120: 121.6791381 | AL120: 267.0922045 | AM120: 319.7871505 | AN120: 445.0784966 | AO120: 507.5415861
E121: Allocation to load related capex expenditure | G121: % | AH121: =IF(UserInterface!$E$82 = 1,'NGGT TO (Base)'!AH121,'NGGT TO (Best)'!AH121) -> 1 | AI121: =IF(UserInterface!$E$82 = 1,'NGGT TO (Base)'!AI121,'NGGT TO (Best)'!AI121) -> 1 | AJ121: =IF(UserInterface!$E$82 = 1,'NGGT TO (Base)'!AJ121,'NGGT TO (Best)'!AJ121) -> 1 | AK121: =IF(UserInterface!$E$82 = 1,'NGGT TO (Base)'!AK121,'NGGT TO (Best)'!AK121) -> 1 | AL121: =IF(UserInterface!$E$82 = 1,'NGGT TO (Base)'!AL121,'NGGT TO (Best)'!AL121) -> 1 | AM121: =IF(UserInterface!$E$82 = 1,'NGGT TO (Base)'!AM121,'NGGT TO (Best)'!AM121) -> 1 | AN121: =IF(UserInterface!$E$82 = 1,'NGGT TO (Base)'!AN121,'NGGT TO (Best)'!AN121) -> 1 | AO121: =IF(UserInterface!$E$82 = 1,'NGGT TO (Base)'!AO121,'NGGT TO (Best)'!AO121) -> 1
E122: Allocation to asset replacement capex expenditure | G122: % | AH122: =IF(UserInterface!$E$82 = 1,'NGGT TO (Base)'!AH122,'NGGT TO (Best)'!AH122) -> 0 | AI122: =IF(UserInterface!$E$82 = 1,'NGGT TO (Base)'!AI122,'NGGT TO (Best)'!AI122) -> 0 | AJ122: =IF(UserInterface!$E$82 = 1,'NGGT TO (Base)'!AJ122,'NGGT TO (Best)'!AJ122) -> 0 | AK122: =IF(UserInterface!$E$82 = 1,'NGGT TO (Base)'!AK122,'NGGT TO (Best)'!AK122) -> 0 | AL122: =IF(UserInterface!$E$82 = 1,'NGGT TO (Base)'!AL122,'NGGT TO (Best)'!AL122) -> 0 | AM122: =IF(UserInterface!$E$82 = 1,'NGGT TO (Base)'!AM122,'NGGT TO (Best)'!AM122) -> 0 | AN122: =IF(UserInterface!$E$82 = 1,'NGGT TO (Base)'!AN122,'NGGT TO (Best)'!AN122) -> 0 | AO122: =IF(UserInterface!$E$82 = 1,'NGGT TO (Base)'!AO122,'NGGT TO (Best)'!AO122) -> 0
E123: Allocation to other capex expenditure | G123: % | AH123: =IF(UserInterface!$E$82 = 1,'NGGT TO (Base)'!AH123,'NGGT TO (Best)'!AH123) -> 0 | AI123: =IF(UserInterface!$E$82 = 1,'NGGT TO (Base)'!AI123,'NGGT TO (Best)'!AI123) -> 0 | AJ123: =IF(UserInterface!$E$82 = 1,'NGGT TO (Base)'!AJ123,'NGGT TO (Best)'!AJ123) -> 0 | AK123: =IF(UserInterface!$E$82 = 1,'NGGT TO (Base)'!AK123,'NGGT TO (Best)'!AK123) -> 0 | AL123: =IF(UserInterface!$E$82 = 1,'NGGT TO (Base)'!AL123,'NGGT TO (Best)'!AL123) -> 0 | AM123: =IF(UserInterface!$E$82 = 1,'NGGT TO (Base)'!AM123,'NGGT TO (Best)'!AM123) -> 0 | AN123: =IF(UserInterface!$E$82 = 1,'NGGT TO (Base)'!AN123,'NGGT TO (Best)'!AN123) -> 0 | AO123: =IF(UserInterface!$E$82 = 1,'NGGT TO (Base)'!AO123,'NGGT TO (Best)'!AO123) -> 0
E124: Allocation to controllable opex | G124: % | AH124: =IF(UserInterface!$E$82 = 1,'NGGT TO (Base)'!AH124,'NGGT TO (Best)'!AH124) -> 0 | AI124: =IF(UserInterface!$E$82 = 1,'NGGT TO (Base)'!AI124,'NGGT TO (Best)'!AI124) -> 0 | AJ124: =IF(UserInterface!$E$82 = 1,'NGGT TO (Base)'!AJ124,'NGGT TO (Best)'!AJ124) -> 0 | AK124: =IF(UserInterface!$E$82 = 1,'NGGT TO (Base)'!AK124,'NGGT TO (Best)'!AK124) -> 0 | AL124: =IF(UserInterface!$E$82 = 1,'NGGT TO (Base)'!AL124,'NGGT TO (Best)'!AL124) -> 0 | AM124: =IF(UserInterface!$E$82 = 1,'NGGT TO (Base)'!AM124,'NGGT TO (Best)'!AM124) -> 0 | AN124: =IF(UserInterface!$E$82 = 1,'NGGT TO (Base)'!AN124,'NGGT TO (Best)'!AN124) -> 0 | AO124: =IF(UserInterface!$E$82 = 1,'NGGT TO (Base)'!AO124,'NGGT TO (Best)'!AO124) -> 0
E125: Allocation to non-operational capex | G125: % | AH125: =IF(UserInterface!$E$82 = 1,'NGGT TO (Base)'!AH125,'NGGT TO (Best)'!AH125) -> 0 | AI125: =IF(UserInterface!$E$82 = 1,'NGGT TO (Base)'!AI125,'NGGT TO (Best)'!AI125) -> 0 | AJ125: =IF(UserInterface!$E$82 = 1,'NGGT TO (Base)'!AJ125,'NGGT TO (Best)'!AJ125) -> 0 | AK125: =IF(UserInterface!$E$82 = 1,'NGGT TO (Base)'!AK125,'NGGT TO (Best)'!AK125) -> 0 | AL125: =IF(UserInterface!$E$82 = 1,'NGGT TO (Base)'!AL125,'NGGT TO (Best)'!AL125) -> 0 | AM125: =IF(UserInterface!$E$82 = 1,'NGGT TO (Base)'!AM125,'NGGT TO (Best)'!AM125) -> 0 | AN125: =IF(UserInterface!$E$82 = 1,'NGGT TO (Base)'!AN125,'NGGT TO (Best)'!AN125) -> 0 | AO125: =IF(UserInterface!$E$82 = 1,'NGGT TO (Base)'!AO125,'NGGT TO (Best)'!AO125) -> 0
E127: =E24 -> Uncertain costs – Network Flexibility Costs | G127: £m 09/10 prices | AH127: =AH24 -> 4.868897316 | AI127: =AI24 -> 1.192364351 | AJ127: 21.1317939 | AK127: 37.57559798 | AL127: 40.39304245 | AM127: 28.37827081 | AN127: 22.1746948 | AO127: 17.77165753
E128: Allocation to load related capex expenditure | G128: % | AH128: =IF(UserInterface!$E$82 = 1,'NGGT TO (Base)'!AH128,'NGGT TO (Best)'!AH128) -> 1 | AI128: =IF(UserInterface!$E$82 = 1,'NGGT TO (Base)'!AI128,'NGGT TO (Best)'!AI128) -> 1 | AJ128: =IF(UserInterface!$E$82 = 1,'NGGT TO (Base)'!AJ128,'NGGT TO (Best)'!AJ128) -> 1 | AK128: =IF(UserInterface!$E$82 = 1,'NGGT TO (Base)'!AK128,'NGGT TO (Best)'!AK128) -> 1 | AL128: =IF(UserInterface!$E$82 = 1,'NGGT TO (Base)'!AL128,'NGGT TO (Best)'!AL128) -> 1 | AM128: =IF(UserInterface!$E$82 = 1,'NGGT TO (Base)'!AM128,'NGGT TO (Best)'!AM128) -> 1 | AN128: =IF(UserInterface!$E$82 = 1,'NGGT TO (Base)'!AN128,'NGGT TO (Best)'!AN128) -> 1 | AO128: =IF(UserInterface!$E$82 = 1,'NGGT TO (Base)'!AO128,'NGGT TO (Best)'!AO128) -> 1
E129: Allocation to asset replacement capex expenditure | G129: % | AH129: =IF(UserInterface!$E$82 = 1,'NGGT TO (Base)'!AH129,'NGGT TO (Best)'!AH129) -> 0 | AI129: =IF(UserInterface!$E$82 = 1,'NGGT TO (Base)'!AI129,'NGGT TO (Best)'!AI129) -> 0 | AJ129: =IF(UserInterface!$E$82 = 1,'NGGT TO (Base)'!AJ129,'NGGT TO (Best)'!AJ129) -> 0 | AK129: =IF(UserInterface!$E$82 = 1,'NGGT TO (Base)'!AK129,'NGGT TO (Best)'!AK129) -> 0 | AL129: =IF(UserInterface!$E$82 = 1,'NGGT TO (Base)'!AL129,'NGGT TO (Best)'!AL129) -> 0 | AM129: =IF(UserInterface!$E$82 = 1,'NGGT TO (Base)'!AM129,'NGGT TO (Best)'!AM129) -> 0 | AN129: =IF(UserInterface!$E$82 = 1,'NGGT TO (Base)'!AN129,'NGGT TO (Best)'!AN129) -> 0 | AO129: =IF(UserInterface!$E$82 = 1,'NGGT TO (Base)'!AO129,'NGGT TO (Best)'!AO129) -> 0
E130: Allocation to other capex expenditure | G130: % | AH130: =IF(UserInterface!$E$82 = 1,'NGGT TO (Base)'!AH130,'NGGT TO (Best)'!AH130) -> 0 | AI130: =IF(UserInterface!$E$82 = 1,'NGGT TO (Base)'!AI130,'NGGT TO (Best)'!AI130) -> 0 | AJ130: =IF(UserInterface!$E$82 = 1,'NGGT TO (Base)'!AJ130,'NGGT TO (Best)'!AJ130) -> 0 | AK130: =IF(UserInterface!$E$82 = 1,'NGGT TO (Base)'!AK130,'NGGT TO (Best)'!AK130) -> 0 | AL130: =IF(UserInterface!$E$82 = 1,'NGGT TO (Base)'!AL130,'NGGT TO (Best)'!AL130) -> 0 | AM130: =IF(UserInterface!$E$82 = 1,'NGGT TO (Base)'!AM130,'NGGT TO (Best)'!AM130) -> 0 | AN130: =IF(UserInterface!$E$82 = 1,'NGGT TO (Base)'!AN130,'NGGT TO (Best)'!AN130) -> 0 | AO130: =IF(UserInterface!$E$82 = 1,'NGGT TO (Base)'!AO130,'NGGT TO (Best)'!AO130) -> 0
E131: Allocation to controllable opex | G131: % | AH131: =IF(UserInterface!$E$82 = 1,'NGGT TO (Base)'!AH131,'NGGT TO (Best)'!AH131) -> 0 | AI131: =IF(UserInterface!$E$82 = 1,'NGGT TO (Base)'!AI131,'NGGT TO (Best)'!AI131) -> 0 | AJ131: =IF(UserInterface!$E$82 = 1,'NGGT TO (Base)'!AJ131,'NGGT TO (Best)'!AJ131) -> 0 | AK131: =IF(UserInterface!$E$82 = 1,'NGGT TO (Base)'!AK131,'NGGT TO (Best)'!AK131) -> 0 | AL131: =IF(UserInterface!$E$82 = 1,'NGGT TO (Base)'!AL131,'NGGT TO (Best)'!AL131) -> 0 | AM131: =IF(UserInterface!$E$82 = 1,'NGGT TO (Base)'!AM131,'NGGT TO (Best)'!AM131) -> 0 | AN131: =IF(UserInterface!$E$82 = 1,'NGGT TO (Base)'!AN131,'NGGT TO (Best)'!AN131) -> 0 | AO131: =IF(UserInterface!$E$82 = 1,'NGGT TO (Base)'!AO131,'NGGT TO (Best)'!AO131) -> 0
E132: Allocation to non-operational capex | G132: % | AH132: =IF(UserInterface!$E$82 = 1,'NGGT TO (Base)'!AH132,'NGGT TO (Best)'!AH132) -> 0 | AI132: =IF(UserInterface!$E$82 = 1,'NGGT TO (Base)'!AI132,'NGGT TO (Best)'!AI132) -> 0 | AJ132: =IF(UserInterface!$E$82 = 1,'NGGT TO (Base)'!AJ132,'NGGT TO (Best)'!AJ132) -> 0 | AK132: =IF(UserInterface!$E$82 = 1,'NGGT TO (Base)'!AK132,'NGGT TO (Best)'!AK132) -> 0 | AL132: =IF(UserInterface!$E$82 = 1,'NGGT TO (Base)'!AL132,'NGGT TO (Best)'!AL132) -> 0 | AM132: =IF(UserInterface!$E$82 = 1,'NGGT TO (Base)'!AM132,'NGGT TO (Best)'!AM132) -> 0 | AN132: =IF(UserInterface!$E$82 = 1,'NGGT TO (Base)'!AN132,'NGGT TO (Best)'!AN132) -> 0 | AO132: =IF(UserInterface!$E$82 = 1,'NGGT TO (Base)'!AO132,'NGGT TO (Best)'!AO132) -> 0
E134: =E25 -> Uncertain costs – Industrial Emissions | G134: £m 09/10 prices | AH134: =AH25 -> 0 | AI134: =AI25 -> 0 | AJ134: 0 | AK134: 0 | AL134: 0 | AM134: 0 | AN134: 0 | AO134: 0
E135: Allocation to load related capex expenditure | G135: % | AH135: =IF(UserInterface!$E$82 = 1,'NGGT TO (Base)'!AH135,'NGGT TO (Best)'!AH135) -> 0 | AI135: =IF(UserInterface!$E$82 = 1,'NGGT TO (Base)'!AI135,'NGGT TO (Best)'!AI135) -> 0 | AJ135: =IF(UserInterface!$E$82 = 1,'NGGT TO (Base)'!AJ135,'NGGT TO (Best)'!AJ135) -> 0 | AK135: =IF(UserInterface!$E$82 = 1,'NGGT TO (Base)'!AK135,'NGGT TO (Best)'!AK135) -> 0 | AL135: =IF(UserInterface!$E$82 = 1,'NGGT TO (Base)'!AL135,'NGGT TO (Best)'!AL135) -> 0 | AM135: =IF(UserInterface!$E$82 = 1,'NGGT TO (Base)'!AM135,'NGGT TO (Best)'!AM135) -> 0 | AN135: =IF(UserInterface!$E$82 = 1,'NGGT TO (Base)'!AN135,'NGGT TO (Best)'!AN135) -> 0 | AO135: =IF(UserInterface!$E$82 = 1,'NGGT TO (Base)'!AO135,'NGGT TO (Best)'!AO135) -> 0
E136: Allocation to asset replacement capex expenditure | G136: % | AH136: =IF(UserInterface!$E$82 = 1,'NGGT TO (Base)'!AH136,'NGGT TO (Best)'!AH136) -> 1 | AI136: =IF(UserInterface!$E$82 = 1,'NGGT TO (Base)'!AI136,'NGGT TO (Best)'!AI136) -> 1 | AJ136: =IF(UserInterface!$E$82 = 1,'NGGT TO (Base)'!AJ136,'NGGT TO (Best)'!AJ136) -> 1 | AK136: =IF(UserInterface!$E$82 = 1,'NGGT TO (Base)'!AK136,'NGGT TO (Best)'!AK136) -> 1 | AL136: =IF(UserInterface!$E$82 = 1,'NGGT TO (Base)'!AL136,'NGGT TO (Best)'!AL136) -> 1 | AM136: =IF(UserInterface!$E$82 = 1,'NGGT TO (Base)'!AM136,'NGGT TO (Best)'!AM136) -> 1 | AN136: =IF(UserInterface!$E$82 = 1,'NGGT TO (Base)'!AN136,'NGGT TO (Best)'!AN136) -> 1 | AO136: =IF(UserInterface!$E$82 = 1,'NGGT TO (Base)'!AO136,'NGGT TO (Best)'!AO136) -> 1
E137: Allocation to other capex expenditure | G137: % | AH137: =IF(UserInterface!$E$82 = 1,'NGGT TO (Base)'!AH137,'NGGT TO (Best)'!AH137) -> 0 | AI137: =IF(UserInterface!$E$82 = 1,'NGGT TO (Base)'!AI137,'NGGT TO (Best)'!AI137) -> 0 | AJ137: =IF(UserInterface!$E$82 = 1,'NGGT TO (Base)'!AJ137,'NGGT TO (Best)'!AJ137) -> 0 | AK137: =IF(UserInterface!$E$82 = 1,'NGGT TO (Base)'!AK137,'NGGT TO (Best)'!AK137) -> 0 | AL137: =IF(UserInterface!$E$82 = 1,'NGGT TO (Base)'!AL137,'NGGT TO (Best)'!AL137) -> 0 | AM137: =IF(UserInterface!$E$82 = 1,'NGGT TO (Base)'!AM137,'NGGT TO (Best)'!AM137) -> 0 | AN137: =IF(UserInterface!$E$82 = 1,'NGGT TO (Base)'!AN137,'NGGT TO (Best)'!AN137) -> 0 | AO137: =IF(UserInterface!$E$82 = 1,'NGGT TO (Base)'!AO137,'NGGT TO (Best)'!AO137) -> 0
E138: Allocation to controllable opex | G138: % | AH138: =IF(UserInterface!$E$82 = 1,'NGGT TO (Base)'!AH138,'NGGT TO (Best)'!AH138) -> 0 | AI138: =IF(UserInterface!$E$82 = 1,'NGGT TO (Base)'!AI138,'NGGT TO (Best)'!AI138) -> 0 | AJ138: =IF(UserInterface!$E$82 = 1,'NGGT TO (Base)'!AJ138,'NGGT TO (Best)'!AJ138) -> 0 | AK138: =IF(UserInterface!$E$82 = 1,'NGGT TO (Base)'!AK138,'NGGT TO (Best)'!AK138) -> 0 | AL138: =IF(UserInterface!$E$82 = 1,'NGGT TO (Base)'!AL138,'NGGT TO (Best)'!AL138) -> 0 | AM138: =IF(UserInterface!$E$82 = 1,'NGGT TO (Base)'!AM138,'NGGT TO (Best)'!AM138) -> 0 | AN138: =IF(UserInterface!$E$82 = 1,'NGGT TO (Base)'!AN138,'NGGT TO (Best)'!AN138) -> 0 | AO138: =IF(UserInterface!$E$82 = 1,'NGGT TO (Base)'!AO138,'NGGT TO (Best)'!AO138) -> 0
E139: Allocation to non-operational capex | G139: % | AH139: =IF(UserInterface!$E$82 = 1,'NGGT TO (Base)'!AH139,'NGGT TO (Best)'!AH139) -> 0 | AI139: =IF(UserInterface!$E$82 = 1,'NGGT TO (Base)'!AI139,'NGGT TO (Best)'!AI139) -> 0 | AJ139: =IF(UserInterface!$E$82 = 1,'NGGT TO (Base)'!AJ139,'NGGT TO (Best)'!AJ139) -> 0 | AK139: =IF(UserInterface!$E$82 = 1,'NGGT TO (Base)'!AK139,'NGGT TO (Best)'!AK139) -> 0 | AL139: =IF(UserInterface!$E$82 = 1,'NGGT TO (Base)'!AL139,'NGGT TO (Best)'!AL139) -> 0 | AM139: =IF(UserInterface!$E$82 = 1,'NGGT TO (Base)'!AM139,'NGGT TO (Best)'!AM139) -> 0 | AN139: =IF(UserInterface!$E$82 = 1,'NGGT TO (Base)'!AN139,'NGGT TO (Best)'!AN139) -> 0 | AO139: =IF(UserInterface!$E$82 = 1,'NGGT TO (Base)'!AO139,'NGGT TO (Best)'!AO139) -> 0
E141: =E26 -> Uncertain costs – One Off Asset Health Costs | G141: £m 09/10 prices | AH141: =AH26 -> 0 | AI141: =AI26 -> 0 | AJ141: 2.330050148 | AK141: 3.351665046 | AL141: 18.27312291 | AM141: 15.94288596 | AN141: 16.08738062 | AO141: 14.67728855
E142: Allocation to load related capex expenditure | G142: % | AH142: =IF(UserInterface!$E$82 = 1,'NGGT TO (Base)'!AH142,'NGGT TO (Best)'!AH142) -> 0 | AI142: =IF(UserInterface!$E$82 = 1,'NGGT TO (Base)'!AI142,'NGGT TO (Best)'!AI142) -> 0 | AJ142: =IF(UserInterface!$E$82 = 1,'NGGT TO (Base)'!AJ142,'NGGT TO (Best)'!AJ142) -> 0 | AK142: =IF(UserInterface!$E$82 = 1,'NGGT TO (Base)'!AK142,'NGGT TO (Best)'!AK142) -> 0 | AL142: =IF(UserInterface!$E$82 = 1,'NGGT TO (Base)'!AL142,'NGGT TO (Best)'!AL142) -> 0 | AM142: =IF(UserInterface!$E$82 = 1,'NGGT TO (Base)'!AM142,'NGGT TO (Best)'!AM142) -> 0 | AN142: =IF(UserInterface!$E$82 = 1,'NGGT TO (Base)'!AN142,'NGGT TO (Best)'!AN142) -> 0 | AO142: =IF(UserInterface!$E$82 = 1,'NGGT TO (Base)'!AO142,'NGGT TO (Best)'!AO142) -> 0
E143: Allocation to asset replacement capex expenditure | G143: % | AH143: =IF(UserInterface!$E$82 = 1,'NGGT TO (Base)'!AH143,'NGGT TO (Best)'!AH143) -> 1 | AI143: =IF(UserInterface!$E$82 = 1,'NGGT TO (Base)'!AI143,'NGGT TO (Best)'!AI143) -> 1 | AJ143: =IF(UserInterface!$E$82 = 1,'NGGT TO (Base)'!AJ143,'NGGT TO (Best)'!AJ143) -> 1 | AK143: =IF(UserInterface!$E$82 = 1,'NGGT TO (Base)'!AK143,'NGGT TO (Best)'!AK143) -> 1 | AL143: =IF(UserInterface!$E$82 = 1,'NGGT TO (Base)'!AL143,'NGGT TO (Best)'!AL143) -> 1 | AM143: =IF(UserInterface!$E$82 = 1,'NGGT TO (Base)'!AM143,'NGGT TO (Best)'!AM143) -> 1 | AN143: =IF(UserInterface!$E$82 = 1,'NGGT TO (Base)'!AN143,'NGGT TO (Best)'!AN143) -> 1 | AO143: =IF(UserInterface!$E$82 = 1,'NGGT TO (Base)'!AO143,'NGGT TO (Best)'!AO143) -> 1
E144: Allocation to other capex expenditure | G144: % | AH144: =IF(UserInterface!$E$82 = 1,'NGGT TO (Base)'!AH144,'NGGT TO (Best)'!AH144) -> 0 | AI144: =IF(UserInterface!$E$82 = 1,'NGGT TO (Base)'!AI144,'NGGT TO (Best)'!AI144) -> 0 | AJ144: =IF(UserInterface!$E$82 = 1,'NGGT TO (Base)'!AJ144,'NGGT TO (Best)'!AJ144) -> 0 | AK144: =IF(UserInterface!$E$82 = 1,'NGGT TO (Base)'!AK144,'NGGT TO (Best)'!AK144) -> 0 | AL144: =IF(UserInterface!$E$82 = 1,'NGGT TO (Base)'!AL144,'NGGT TO (Best)'!AL144) -> 0 | AM144: =IF(UserInterface!$E$82 = 1,'NGGT TO (Base)'!AM144,'NGGT TO (Best)'!AM144) -> 0 | AN144: =IF(UserInterface!$E$82 = 1,'NGGT TO (Base)'!AN144,'NGGT TO (Best)'!AN144) -> 0 | AO144: =IF(UserInterface!$E$82 = 1,'NGGT TO (Base)'!AO144,'NGGT TO (Best)'!AO144) -> 0
E145: Allocation to controllable opex | G145: % | AH145: =IF(UserInterface!$E$82 = 1,'NGGT TO (Base)'!AH145,'NGGT TO (Best)'!AH145) -> 0 | AI145: =IF(UserInterface!$E$82 = 1,'NGGT TO (Base)'!AI145,'NGGT TO (Best)'!AI145) -> 0 | AJ145: =IF(UserInterface!$E$82 = 1,'NGGT TO (Base)'!AJ145,'NGGT TO (Best)'!AJ145) -> 0 | AK145: =IF(UserInterface!$E$82 = 1,'NGGT TO (Base)'!AK145,'NGGT TO (Best)'!AK145) -> 0 | AL145: =IF(UserInterface!$E$82 = 1,'NGGT TO (Base)'!AL145,'NGGT TO (Best)'!AL145) -> 0 | AM145: =IF(UserInterface!$E$82 = 1,'NGGT TO (Base)'!AM145,'NGGT TO (Best)'!AM145) -> 0 | AN145: =IF(UserInterface!$E$82 = 1,'NGGT TO (Base)'!AN145,'NGGT TO (Best)'!AN145) -> 0 | AO145: =IF(UserInterface!$E$82 = 1,'NGGT TO (Base)'!AO145,'NGGT TO (Best)'!AO145) -> 0
E146: Allocation to non-operational capex | G146: % | AH146: =IF(UserInterface!$E$82 = 1,'NGGT TO (Base)'!AH146,'NGGT TO (Best)'!AH146) -> 0 | AI146: =IF(UserInterface!$E$82 = 1,'NGGT TO (Base)'!AI146,'NGGT TO (Best)'!AI146) -> 0 | AJ146: =IF(UserInterface!$E$82 = 1,'NGGT TO (Base)'!AJ146,'NGGT TO (Best)'!AJ146) -> 0 | AK146: =IF(UserInterface!$E$82 = 1,'NGGT TO (Base)'!AK146,'NGGT TO (Best)'!AK146) -> 0 | AL146: =IF(UserInterface!$E$82 = 1,'NGGT TO (Base)'!AL146,'NGGT TO (Best)'!AL146) -> 0 | AM146: =IF(UserInterface!$E$82 = 1,'NGGT TO (Base)'!AM146,'NGGT TO (Best)'!AM146) -> 0 | AN146: =IF(UserInterface!$E$82 = 1,'NGGT TO (Base)'!AN146,'NGGT TO (Best)'!AN146) -> 0 | AO146: =IF(UserInterface!$E$82 = 1,'NGGT TO (Base)'!AO146,'NGGT TO (Best)'!AO146) -> 0
E148: Variant allowed load related capex expenditure | G148: £m 09/10 prices | AH148: =(AH$92*AH93) + (AH$99*AH100) + (AH$106*AH107) + (AH$113*AH114) + (AH$120*AH121) + (AH$127*AH128) + (AH$134*AH135) + (AH$141 * AH142) -> 6.525763736 | AI148: 10.02638273 | AJ148: 75.9405384 | AK148: 159.2547361 | AL148: 307.4852469 | AM148: 348.1654213 | AN148: 467.2531914 | AO148: 525.3132436
E149: Variant allowed asset replacement capex expenditure | G149: £m 09/10 prices | AH149: 0 | AI149: 0 | AJ149: 2.330050148 | AK149: 3.351665046 | AL149: 18.27312291 | AM149: 15.94288596 | AN149: 16.08738062 | AO149: 14.67728855
E150: Variant allowed other capex expenditure | G150: £m 09/10 prices | AH150: 4.956745898 | AI150: 5.244208167 | AJ150: 5.387688454 | AK150: 5.62820732 | AL150: 5.418277366 | AM150: 5.473104223 | AN150: 5.535490083 | AO150: 5.598587055
E151: Variant allowed controllable opex | G151: £m 09/10 prices | AH151: 3.281966185 | AI151: 2.6088895 | AJ151: 2.542028641 | AK151: 2.460319069 | AL151: 2.39 | AM151: 2.358167076 | AN151: 2.30123017 | AO151: 2.226242884
E152: Variant allowed non-operational capex | G152: £m 09/10 prices | AH152: 0 | AI152: 0 | AJ152: 0 | AK152: 0 | AL152: 0 | AM152: 0 | AN152: 0 | AO152: 0
D154: Actual
E156: Actual load related capex expenditure | G156: £m 09/10 prices | AH156: =AH9+AH14 -> 31.98507153 | AI156: 24.43919025 | AJ156: 85.55785861 | AK156: 219.7015136 | AL156: 392.3654455 | AM156: 356.690355 | AN156: 467.4847202 | AO156: 525.3132436
E157: Actual asset replacement capex expenditure | G157: £m 09/10 prices | AH157: 86.8202567 | AI157: 100.2012626 | AJ157: 110.1509538 | AK157: 121.1877942 | AL157: 150.978759 | AM157: 129.2556118 | AN157: 111.5780769 | AO157: 99.96936868
E158: Actual other capex expenditure | G158: £m 09/10 prices | AH158: 4.956745898 | AI158: 5.244208167 | AJ158: 5.387688454 | AK158: 5.62820732 | AL158: 5.418277366 | AM158: 5.473104223 | AN158: 5.535490083 | AO158: 5.598587055
E159: Actual controllable opex | G159: £m 09/10 prices | AH159: 67.7646382 | AI159: 67.84676372 | AJ159: 73.31492337 | AK159: 81.82865734 | AL159: 86.70747913 | AM159: 86.99951343 | AN159: 83.02924495 | AO159: 79.71631301
E160: Actual non-operational capex | G160: £m 09/10 prices | AH160: =AH13 -> 10.31226162 | AI160: 9.678449854 | AJ160: 6.615822716 | AK160: 6.133648068 | AL160: 5.57274791 | AM160: 4.190695059 | AN160: 6.384863783 | AO160: 5.865895674
C162: Non-totex
E164: Non-controllable opex | G164: £m 09/10 prices | AH164: =IF(UserInterface!$E$82 = 1,'NGGT TO (Base)'!AH164,'NGGT TO (Best)'!AH164) -> 110.1154462 | AI164: =IF(UserInterface!$E$82 = 1,'NGGT TO (Base)'!AI164,'NGGT TO (Best)'!AI164) -> 110.2912183 | AJ164: =IF(UserInterface!$E$82 = 1,'NGGT TO (Base)'!AJ164,'NGGT TO (Best)'!AJ164) -> 110.3286017 | AK164: =IF(UserInterface!$E$82 = 1,'NGGT TO (Base)'!AK164,'NGGT TO (Best)'!AK164) -> 110.3596634 | AL164: =IF(UserInterface!$E$82 = 1,'NGGT TO (Base)'!AL164,'NGGT TO (Best)'!AL164) -> 110.2734384 | AM164: =IF(UserInterface!$E$82 = 1,'NGGT TO (Base)'!AM164,'NGGT TO (Best)'!AM164) -> 110.2766259 | AN164: =IF(UserInterface!$E$82 = 1,'NGGT TO (Base)'!AN164,'NGGT TO (Best)'!AN164) -> 110.304209 | AO164: =IF(UserInterface!$E$82 = 1,'NGGT TO (Base)'!AO164,'NGGT TO (Best)'!AO164) -> 110.3106735
B166: Direct allowed revenue terms (DARTs)
E168: =E29 -> Pension Scheme Administration and Pension Protection Fund levy | G168: £m 09/10 prices | AH168: =AH29 -> 2.7 | AI168: 2.6 | AJ168: 2.6 | AK168: 2.7 | AL168: 2.6 | AM168: 2.6 | AN168: 2.7 | AO168: 2.6
E169: =E30 -> Pension Scheme Established Deficit | G169: £m 09/10 prices | AH169: =AH30 -> 26.40985404 | AI169: 26.40985404 | AJ169: 26.40985404 | AK169: 26.40985404 | AL169: 26.40985404 | AM169: 26.40985404 | AN169: 26.40985404 | AO169: 26.40985404
E171: Pension true-up from previous price controls | G171: £m 09/10 prices | AH171: =IF(UserInterface!$E$82 = 1,'NGGT TO (Base)'!AH171,'NGGT TO (Best)'!AH171) -> 11.6224453 | AI171: =IF(UserInterface!$E$82 = 1,'NGGT TO (Base)'!AI171,'NGGT TO (Best)'!AI171) -> 12.13092728 | AJ171: =IF(UserInterface!$E$82 = 1,'NGGT TO (Base)'!AJ171,'NGGT TO (Best)'!AJ171) -> 12.66165535 | AK171: =IF(UserInterface!$E$82 = 1,'NGGT TO (Base)'!AK171,'NGGT TO (Best)'!AK171) -> 13.21560278 | AL171: =IF(UserInterface!$E$82 = 1,'NGGT TO (Base)'!AL171,'NGGT TO (Best)'!AL171) -> 13.7937854 | AM171: =IF(UserInterface!$E$82 = 1,'NGGT TO (Base)'!AM171,'NGGT TO (Best)'!AM171) -> 14.39726351 | AN171: =IF(UserInterface!$E$82 = 1,'NGGT TO (Base)'!AN171,'NGGT TO (Best)'!AN171) -> 15.02714379 | AO171: =IF(UserInterface!$E$82 = 1,'NGGT TO (Base)'!AO171,'NGGT TO (Best)'!AO171) -> 15.68458133
E172: Milford Haven | G172: £m 09/10 prices | AH172: =IF(UserInterface!$E$82 = 1,'NGGT TO (Base)'!AH172,'NGGT TO (Best)'!AH172) -> -17.8 | AI172: =IF(UserInterface!$E$82 = 1,'NGGT TO (Base)'!AI172,'NGGT TO (Best)'!AI172) -> -18.2 | AJ172: =IF(UserInterface!$E$82 = 1,'NGGT TO (Base)'!AJ172,'NGGT TO (Best)'!AJ172) -> -18.4 | AK172: =IF(UserInterface!$E$82 = 1,'NGGT TO (Base)'!AK172,'NGGT TO (Best)'!AK172) -> -18.5 | AL172: =IF(UserInterface!$E$82 = 1,'NGGT TO (Base)'!AL172,'NGGT TO (Best)'!AL172) -> 0 | AM172: =IF(UserInterface!$E$82 = 1,'NGGT TO (Base)'!AM172,'NGGT TO (Best)'!AM172) -> 0 | AN172: =IF(UserInterface!$E$82 = 1,'NGGT TO (Base)'!AN172,'NGGT TO (Best)'!AN172) -> 0 | AO172: =IF(UserInterface!$E$82 = 1,'NGGT TO (Base)'!AO172,'NGGT TO (Best)'!AO172) -> 0
E174: Revenue adjustment from previous controls (Base) | G174: £m 09/10 prices | AH174: =IF(UserInterface!$E$82 = 1,'NGGT TO (Base)'!AH174,'NGGT TO (Best)'!AH174) -> 10.44809896 | AI174: =IF(UserInterface!$E$82 = 1,'NGGT TO (Base)'!AI174,'NGGT TO (Best)'!AI174) -> 10.90520329 | AJ174: =IF(UserInterface!$E$82 = 1,'NGGT TO (Base)'!AJ174,'NGGT TO (Best)'!AJ174) -> 11.38230594 | AK174: =IF(UserInterface!$E$82 = 1,'NGGT TO (Base)'!AK174,'NGGT TO (Best)'!AK174) -> 11.88028182 | AL174: =IF(UserInterface!$E$82 = 1,'NGGT TO (Base)'!AL174,'NGGT TO (Best)'!AL174) -> 12.40004415 | AM174: =IF(UserInterface!$E$82 = 1,'NGGT TO (Base)'!AM174,'NGGT TO (Best)'!AM174) -> 12.94254608 | AN174: =IF(UserInterface!$E$82 = 1,'NGGT TO (Base)'!AN174,'NGGT TO (Best)'!AN174) -> 13.50878247 | AO174: =IF(UserInterface!$E$82 = 1,'NGGT TO (Base)'!AO174,'NGGT TO (Best)'!AO174) -> 14.09979171
E175: =E31 -> Legacy price control adjustments to allowed revenue | G175: £m 09/10 prices | AH175: =$AH$31/8*(1+AH42)^ROUND((AH4-$AH4)/365,1) -> 0 | AI175: 0 | AJ175: 0 | AK175: 0 | AL175: 0 | AM175: 0 | AN175: 0 | AO175: 0
E176: Revenue adjustment from previous controls | G176: £m 09/10 prices | AH176: =AH174+AH175 -> 10.44809896 | AI176: =AI174+AI175 -> 10.90520329 | AJ176: 11.38230594 | AK176: 11.88028182 | AL176: 12.40004415 | AM176: 12.94254608 | AN176: 13.50878247 | AO176: 14.09979171
E178: Excluded services revenue | G178: £m 09/10 prices | AH178: =IF(UserInterface!$E$82 = 1,'NGGT TO (Base)'!AH178,'NGGT TO (Best)'!AH178) -> 3.5 | AI178: =IF(UserInterface!$E$82 = 1,'NGGT TO (Base)'!AI178,'NGGT TO (Best)'!AI178) -> 2.9 | AJ178: =IF(UserInterface!$E$82 = 1,'NGGT TO (Base)'!AJ178,'NGGT TO (Best)'!AJ178) -> 3 | AK178: =IF(UserInterface!$E$82 = 1,'NGGT TO (Base)'!AK178,'NGGT TO (Best)'!AK178) -> 3.1 | AL178: =IF(UserInterface!$E$82 = 1,'NGGT TO (Base)'!AL178,'NGGT TO (Best)'!AL178) -> 3 | AM178: =IF(UserInterface!$E$82 = 1,'NGGT TO (Base)'!AM178,'NGGT TO (Best)'!AM178) -> 3 | AN178: =IF(UserInterface!$E$82 = 1,'NGGT TO (Base)'!AN178,'NGGT TO (Best)'!AN178) -> 3 | AO178: =IF(UserInterface!$E$82 = 1,'NGGT TO (Base)'!AO178,'NGGT TO (Best)'!AO178) -> 3
E179: Identified excluded services costs | G179: £m 09/10 prices | AH179: =IF(UserInterface!$E$82 = 1,'NGGT TO (Base)'!AH179,'NGGT TO (Best)'!AH179) -> 0 | AI179: =IF(UserInterface!$E$82 = 1,'NGGT TO (Base)'!AI179,'NGGT TO (Best)'!AI179) -> 0 | AJ179: =IF(UserInterface!$E$82 = 1,'NGGT TO (Base)'!AJ179,'NGGT TO (Best)'!AJ179) -> 0 | AK179: =IF(UserInterface!$E$82 = 1,'NGGT TO (Base)'!AK179,'NGGT TO (Best)'!AK179) -> 0 | AL179: =IF(UserInterface!$E$82 = 1,'NGGT TO (Base)'!AL179,'NGGT TO (Best)'!AL179) -> 0 | AM179: =IF(UserInterface!$E$82 = 1,'NGGT TO (Base)'!AM179,'NGGT TO (Best)'!AM179) -> 0 | AN179: =IF(UserInterface!$E$82 = 1,'NGGT TO (Base)'!AN179,'NGGT TO (Best)'!AN179) -> 0 | AO179: =IF(UserInterface!$E$82 = 1,'NGGT TO (Base)'!AO179,'NGGT TO (Best)'!AO179) -> 0
E180: Excluded services | G180: £m 09/10 prices | AH180: =SUM(AH178, -AH179) -> 3.5 | AI180: =SUM(AI178, -AI179) -> 2.9 | AJ180: 3 | AK180: 3.1 | AL180: 3 | AM180: 3 | AN180: 3 | AO180: 3
B182: RAV and assets
C184: Pre-vesting assets
E186: Pre-vesting RAV cost opening balance brought forward (before transfers) | G186: £m 09/10 prices | AH186: =IF(UserInterface!$E$82 = 1,'NGGT TO (Base)'!AH186,'NGGT TO (Best)'!AH186) -> 2669.686081
E187: Pre-vesting RAV cumulative depreciation opening balance brought forward (before transfers) | G187: £m 09/10 prices | AH187: =IF(UserInterface!$E$82 = 1,'NGGT TO (Base)'!AH187,'NGGT TO (Best)'!AH187) -> 938.4148523
E189: Pre-vesting asset life | G189: years | I189: =IF(UserInterface!$E$82 = 1,'NGGT TO (Base)'!I189,'NGGT TO (Best)'!I189) -> 56
E190: Pre-vesting RAV disposals | G190: £m 09/10 prices | AH190: =IF(UserInterface!$E$82 = 1,'NGGT TO (Base)'!AH190,'NGGT TO (Best)'!AH190) -> 0 | AI190: =IF(UserInterface!$E$82 = 1,'NGGT TO (Base)'!AI190,'NGGT TO (Best)'!AI190) -> 0 | AJ190: =IF(UserInterface!$E$82 = 1,'NGGT TO (Base)'!AJ190,'NGGT TO (Best)'!AJ190) -> 0 | AK190: =IF(UserInterface!$E$82 = 1,'NGGT TO (Base)'!AK190,'NGGT TO (Best)'!AK190) -> 0 | AL190: =IF(UserInterface!$E$82 = 1,'NGGT TO (Base)'!AL190,'NGGT TO (Best)'!AL190) -> 0 | AM190: =IF(UserInterface!$E$82 = 1,'NGGT TO (Base)'!AM190,'NGGT TO (Best)'!AM190) -> 0 | AN190: =IF(UserInterface!$E$82 = 1,'NGGT TO (Base)'!AN190,'NGGT TO (Best)'!AN190) -> 0 | AO190: =IF(UserInterface!$E$82 = 1,'NGGT TO (Base)'!AO190,'NGGT TO (Best)'!AO190) -> 0
E191: Years of pre-vesting depreciation remaining | G191: years | AH191: =IF(UserInterface!$E$82 = 1,'NGGT TO (Base)'!AH191,'NGGT TO (Best)'!AH191) -> 45 | AI191: =IF(UserInterface!$E$82 = 1,'NGGT TO (Base)'!AI191,'NGGT TO (Best)'!AI191) -> 44 | AJ191: =IF(UserInterface!$E$82 = 1,'NGGT TO (Base)'!AJ191,'NGGT TO (Best)'!AJ191) -> 43 | AK191: =IF(UserInterface!$E$82 = 1,'NGGT TO (Base)'!AK191,'NGGT TO (Best)'!AK191) -> 42 | AL191: =IF(UserInterface!$E$82 = 1,'NGGT TO (Base)'!AL191,'NGGT TO (Best)'!AL191) -> 41 | AM191: =IF(UserInterface!$E$82 = 1,'NGGT TO (Base)'!AM191,'NGGT TO (Best)'!AM191) -> 40 | AN191: =IF(UserInterface!$E$82 = 1,'NGGT TO (Base)'!AN191,'NGGT TO (Best)'!AN191) -> 39 | AO191: =IF(UserInterface!$E$82 = 1,'NGGT TO (Base)'!AO191,'NGGT TO (Best)'!AO191) -> 38
C193: Post-vesting assets
E195: Transmission
E196: Post-vesting asset life | G196: years | J196: > | K196: =IF(UserInterface!$E$82 = 1,'NGGT TO (Base)'!K196,'NGGT TO (Best)'!K196) -> 45 | L196: =IF(UserInterface!$E$82 = 1,'NGGT TO (Base)'!L196,'NGGT TO (Best)'!L196) -> 45 | M196: =IF(UserInterface!$E$82 = 1,'NGGT TO (Base)'!M196,'NGGT TO (Best)'!M196) -> 45 | N196: =IF(UserInterface!$E$82 = 1,'NGGT TO (Base)'!N196,'NGGT TO (Best)'!N196) -> 45 | O196: =IF(UserInterface!$E$82 = 1,'NGGT TO (Base)'!O196,'NGGT TO (Best)'!O196) -> 45 | P196: =IF(UserInterface!$E$82 = 1,'NGGT TO (Base)'!P196,'NGGT TO (Best)'!P196) -> 45 | Q196: =IF(UserInterface!$E$82 = 1,'NGGT TO (Base)'!Q196,'NGGT TO (Best)'!Q196) -> 45 | R196: =IF(UserInterface!$E$82 = 1,'NGGT TO (Base)'!R196,'NGGT TO (Best)'!R196) -> 45 | S196: =IF(UserInterface!$E$82 = 1,'NGGT TO (Base)'!S196,'NGGT TO (Best)'!S196) -> 45 | T196: =IF(UserInterface!$E$82 = 1,'NGGT TO (Base)'!T196,'NGGT TO (Best)'!T196) -> 45 | U196: =IF(UserInterface!$E$82 = 1,'NGGT TO (Base)'!U196,'NGGT TO (Best)'!U196) -> 45 | V196: =IF(UserInterface!$E$82 = 1,'NGGT TO (Base)'!V196,'NGGT TO (Best)'!V196) -> 45 | W196: =IF(UserInterface!$E$82 = 1,'NGGT TO (Base)'!W196,'NGGT TO (Best)'!W196) -> 45 | X196: =IF(UserInterface!$E$82 = 1,'NGGT TO (Base)'!X196,'NGGT TO (Best)'!X196) -> 45 | Y196: =IF(UserInterface!$E$82 = 1,'NGGT TO (Base)'!Y196,'NGGT TO (Best)'!Y196) -> 45 | Z196: =IF(UserInterface!$E$82 = 1,'NGGT TO (Base)'!Z196,'NGGT TO (Best)'!Z196) -> 45 | AA196: =IF(UserInterface!$E$82 = 1,'NGGT TO (Base)'!AA196,'NGGT TO (Best)'!AA196) -> 45 | AB196: =IF(UserInterface!$E$82 = 1,'NGGT TO (Base)'!AB196,'NGGT TO (Best)'!AB196) -> 45 | AC196: =IF(UserInterface!$E$82 = 1,'NGGT TO (Base)'!AC196,'NGGT TO (Best)'!AC196) -> 45 | AD196: =IF(UserInterface!$E$82 = 1,'NGGT TO (Base)'!AD196,'NGGT TO (Best)'!AD196) -> 45 | AE196: =IF(UserInterface!$E$82 = 1,'NGGT TO (Base)'!AE196,'NGGT TO (Best)'!AE196) -> 45 | AF196: =IF(UserInterface!$E$82 = 1,'NGGT TO (Base)'!AF196,'NGGT TO (Best)'!AF196) -> 45 | AG196: =IF(UserInterface!$E$82 = 1,'NGGT TO (Base)'!AG196,'NGGT TO (Best)'!AG196) -> 45 | AH196: =IF(UserInterface!$E$82 = 1,'NGGT TO (Base)'!AH196,'NGGT TO (Best)'!AH196) -> 45 | AI196: =IF(UserInterface!$E$82 = 1,'NGGT TO (Base)'!AI196,'NGGT TO (Best)'!AI196) -> 45 | AJ196: =IF(UserInterface!$E$82 = 1,'NGGT TO (Base)'!AJ196,'NGGT TO (Best)'!AJ196) -> 45 | AK196: =IF(UserInterface!$E$82 = 1,'NGGT TO (Base)'!AK196,'NGGT TO (Best)'!AK196) -> 45 | AL196: =IF(UserInterface!$E$82 = 1,'NGGT TO (Base)'!AL196,'NGGT TO (Best)'!AL196) -> 45 | AM196: =IF(UserInterface!$E$82 = 1,'NGGT TO (Base)'!AM196,'NGGT TO (Best)'!AM196) -> 45 | AN196: =IF(UserInterface!$E$82 = 1,'NGGT TO (Base)'!AN196,'NGGT TO (Best)'!AN196) -> 45 | AO196: =IF(UserInterface!$E$82 = 1,'NGGT TO (Base)'!AO196,'NGGT TO (Best)'!AO196) -> 45
E197: Accelerated post-vesting asset life | G197: years | J197: > | K197: =IF(UserInterface!$E$82 = 1,'NGGT TO (Base)'!K197,'NGGT TO (Best)'!K197) -> 100 | L197: =IF(UserInterface!$E$82 = 1,'NGGT TO (Base)'!L197,'NGGT TO (Best)'!L197) -> 100 | M197: =IF(UserInterface!$E$82 = 1,'NGGT TO (Base)'!M197,'NGGT TO (Best)'!M197) -> 100 | N197: =IF(UserInterface!$E$82 = 1,'NGGT TO (Base)'!N197,'NGGT TO (Best)'!N197) -> 100 | O197: =IF(UserInterface!$E$82 = 1,'NGGT TO (Base)'!O197,'NGGT TO (Best)'!O197) -> 100 | P197: =IF(UserInterface!$E$82 = 1,'NGGT TO (Base)'!P197,'NGGT TO (Best)'!P197) -> 100 | Q197: =IF(UserInterface!$E$82 = 1,'NGGT TO (Base)'!Q197,'NGGT TO (Best)'!Q197) -> 100 | R197: =IF(UserInterface!$E$82 = 1,'NGGT TO (Base)'!R197,'NGGT TO (Best)'!R197) -> 100 | S197: =IF(UserInterface!$E$82 = 1,'NGGT TO (Base)'!S197,'NGGT TO (Best)'!S197) -> 100 | T197: =IF(UserInterface!$E$82 = 1,'NGGT TO (Base)'!T197,'NGGT TO (Best)'!T197) -> 100 | U197: =IF(UserInterface!$E$82 = 1,'NGGT TO (Base)'!U197,'NGGT TO (Best)'!U197) -> 100 | V197: =IF(UserInterface!$E$82 = 1,'NGGT TO (Base)'!V197,'NGGT TO (Best)'!V197) -> 100 | W197: =IF(UserInterface!$E$82 = 1,'NGGT TO (Base)'!W197,'NGGT TO (Best)'!W197) -> 100 | X197: =IF(UserInterface!$E$82 = 1,'NGGT TO (Base)'!X197,'NGGT TO (Best)'!X197) -> 100 | Y197: =IF(UserInterface!$E$82 = 1,'NGGT TO (Base)'!Y197,'NGGT TO (Best)'!Y197) -> 100 | Z197: =IF(UserInterface!$E$82 = 1,'NGGT TO (Base)'!Z197,'NGGT TO (Best)'!Z197) -> 100 | AA197: =IF(UserInterface!$E$82 = 1,'NGGT TO (Base)'!AA197,'NGGT TO (Best)'!AA197) -> 100 | AB197: =IF(UserInterface!$E$82 = 1,'NGGT TO (Base)'!AB197,'NGGT TO (Best)'!AB197) -> 100 | AC197: =IF(UserInterface!$E$82 = 1,'NGGT TO (Base)'!AC197,'NGGT TO (Best)'!AC197) -> 100 | AD197: =IF(UserInterface!$E$82 = 1,'NGGT TO (Base)'!AD197,'NGGT TO (Best)'!AD197) -> 100 | AE197: =IF(UserInterface!$E$82 = 1,'NGGT TO (Base)'!AE197,'NGGT TO (Best)'!AE197) -> 100 | AF197: =IF(UserInterface!$E$82 = 1,'NGGT TO (Base)'!AF197,'NGGT TO (Best)'!AF197) -> 100 | AG197: =IF(UserInterface!$E$82 = 1,'NGGT TO (Base)'!AG197,'NGGT TO (Best)'!AG197) -> 100 | AH197: =IF(UserInterface!$E$82 = 1,'NGGT TO (Base)'!AH197,'NGGT TO (Best)'!AH197) -> 45 | AI197: =IF(UserInterface!$E$82 = 1,'NGGT TO (Base)'!AI197,'NGGT TO (Best)'!AI197) -> 45 | AJ197: =IF(UserInterface!$E$82 = 1,'NGGT TO (Base)'!AJ197,'NGGT TO (Best)'!AJ197) -> 45 | AK197: =IF(UserInterface!$E$82 = 1,'NGGT TO (Base)'!AK197,'NGGT TO (Best)'!AK197) -> 45 | AL197: =IF(UserInterface!$E$82 = 1,'NGGT TO (Base)'!AL197,'NGGT TO (Best)'!AL197) -> 45 | AM197: =IF(UserInterface!$E$82 = 1,'NGGT TO (Base)'!AM197,'NGGT TO (Best)'!AM197) -> 45 | AN197: =IF(UserInterface!$E$82 = 1,'NGGT TO (Base)'!AN197,'NGGT TO (Best)'!AN197) -> 45 | AO197: =IF(UserInterface!$E$82 = 1,'NGGT TO (Base)'!AO197,'NGGT TO (Best)'!AO197) -> 45
E198: Smoothing period following full depreciation of pre-vesting assets | G198: years | I198: =IF(UserInterface!$E$82 = 1,'NGGT TO (Base)'!I198,'NGGT TO (Best)'!I198) -> 0
E199: Start of smoothing period | G199: year ending | I199: =IF(UserInterface!$E$82 = 1,'NGGT TO (Base)'!I199,'NGGT TO (Best)'!I199) -> 1991-03-31
E200: Pre-RIIO net additions to RAV | G200: £m 09/10 prices | J200: > | K200: =IF(UserInterface!$E$82 = 1,'NGGT TO (Base)'!K200,'NGGT TO (Best)'!K200) -> 0 | L200: =IF(UserInterface!$E$82 = 1,'NGGT TO (Base)'!L200,'NGGT TO (Best)'!L200) -> 0 | M200: =IF(UserInterface!$E$82 = 1,'NGGT TO (Base)'!M200,'NGGT TO (Best)'!M200) -> 0 | N200: =IF(UserInterface!$E$82 = 1,'NGGT TO (Base)'!N200,'NGGT TO (Best)'!N200) -> 0 | O200: =IF(UserInterface!$E$82 = 1,'NGGT TO (Base)'!O200,'NGGT TO (Best)'!O200) -> 0 | P200: =IF(UserInterface!$E$82 = 1,'NGGT TO (Base)'!P200,'NGGT TO (Best)'!P200) -> 0 | Q200: =IF(UserInterface!$E$82 = 1,'NGGT TO (Base)'!Q200,'NGGT TO (Best)'!Q200) -> 0 | R200: =IF(UserInterface!$E$82 = 1,'NGGT TO (Base)'!R200,'NGGT TO (Best)'!R200) -> 0 | S200: =IF(UserInterface!$E$82 = 1,'NGGT TO (Base)'!S200,'NGGT TO (Best)'!S200) -> 0 | T200: =IF(UserInterface!$E$82 = 1,'NGGT TO (Base)'!T200,'NGGT TO (Best)'!T200) -> 0 | U200: =IF(UserInterface!$E$82 = 1,'NGGT TO (Base)'!U200,'NGGT TO (Best)'!U200) -> 0 | V200: =IF(UserInterface!$E$82 = 1,'NGGT TO (Base)'!V200,'NGGT TO (Best)'!V200) -> 0 | W200: =IF(UserInterface!$E$82 = 1,'NGGT TO (Base)'!W200,'NGGT TO (Best)'!W200) -> 0 | X200: =IF(UserInterface!$E$82 = 1,'NGGT TO (Base)'!X200,'NGGT TO (Best)'!X200) -> 299.3439968 | Y200: =IF(UserInterface!$E$82 = 1,'NGGT TO (Base)'!Y200,'NGGT TO (Best)'!Y200) -> 96.38168898 | Z200: =IF(UserInterface!$E$82 = 1,'NGGT TO (Base)'!Z200,'NGGT TO (Best)'!Z200) -> 300.0086599 | AA200: =IF(UserInterface!$E$82 = 1,'NGGT TO (Base)'!AA200,'NGGT TO (Best)'!AA200) -> 541.1112417 | AB200: =IF(UserInterface!$E$82 = 1,'NGGT TO (Base)'!AB200,'NGGT TO (Best)'!AB200) -> 585.7885273 | AC200: =IF(UserInterface!$E$82 = 1,'NGGT TO (Base)'!AC200,'NGGT TO (Best)'!AC200) -> 247.7735543 | AD200: =IF(UserInterface!$E$82 = 1,'NGGT TO (Base)'!AD200,'NGGT TO (Best)'!AD200) -> 123.1950711 | AE200: =IF(UserInterface!$E$82 = 1,'NGGT TO (Base)'!AE200,'NGGT TO (Best)'!AE200) -> 99.98357059 | AF200: =IF(UserInterface!$E$82 = 1,'NGGT TO (Base)'!AF200,'NGGT TO (Best)'!AF200) -> 101.1196543 | AG200: =IF(UserInterface!$E$82 = 1,'NGGT TO (Base)'!AG200,'NGGT TO (Best)'!AG200) -> -28.7623433
E201: LRAV | G201: £m 09/10 prices | AH201: =AH32 -> 0
E202: RIIO post-vesting RAV additions | G202: £m 09/10 prices | AH202: =IF(UserInterface!$E$82 = 1,'NGGT TO (Base)'!AH202,'NGGT TO (Best)'!AH202) -> 0 | AI202: =IF(UserInterface!$E$82 = 1,'NGGT TO (Base)'!AI202,'NGGT TO (Best)'!AI202) -> 0 | AJ202: =IF(UserInterface!$E$82 = 1,'NGGT TO (Base)'!AJ202,'NGGT TO (Best)'!AJ202) -> 0 | AK202: =IF(UserInterface!$E$82 = 1,'NGGT TO (Base)'!AK202,'NGGT TO (Best)'!AK202) -> 0 | AL202: =IF(UserInterface!$E$82 = 1,'NGGT TO (Base)'!AL202,'NGGT TO (Best)'!AL202) -> 0 | AM202: =IF(UserInterface!$E$82 = 1,'NGGT TO (Base)'!AM202,'NGGT TO (Best)'!AM202) -> 0 | AN202: =IF(UserInterface!$E$82 = 1,'NGGT TO (Base)'!AN202,'NGGT TO (Best)'!AN202) -> 0 | AO202: =IF(UserInterface!$E$82 = 1,'NGGT TO (Base)'!AO202,'NGGT TO (Best)'!AO202) -> 0
E203: RIIO post-vesting RAV disposals | G203: £m 09/10 prices | AH203: =IF(UserInterface!$E$82 = 1,'NGGT TO (Base)'!AH203,'NGGT TO (Best)'!AH203) -> -0.007757980105 | AI203: =IF(UserInterface!$E$82 = 1,'NGGT TO (Base)'!AI203,'NGGT TO (Best)'!AI203) -> -0.007757980105 | AJ203: =IF(UserInterface!$E$82 = 1,'NGGT TO (Base)'!AJ203,'NGGT TO (Best)'!AJ203) -> -0.007757980105 | AK203: =IF(UserInterface!$E$82 = 1,'NGGT TO (Base)'!AK203,'NGGT TO (Best)'!AK203) -> -0.007757980105 | AL203: =IF(UserInterface!$E$82 = 1,'NGGT TO (Base)'!AL203,'NGGT TO (Best)'!AL203) -> -0.007757980105 | AM203: =IF(UserInterface!$E$82 = 1,'NGGT TO (Base)'!AM203,'NGGT TO (Best)'!AM203) -> -0.007757980105 | AN203: =IF(UserInterface!$E$82 = 1,'NGGT TO (Base)'!AN203,'NGGT TO (Best)'!AN203) -> -0.007757980105 | AO203: =IF(UserInterface!$E$82 = 1,'NGGT TO (Base)'!AO203,'NGGT TO (Best)'!AO203) -> -0.007757980105
E204: Pre-RIIO transfers to depreciation | G204: £m 09/10 prices | J204: > | K204: =IF(UserInterface!$E$82 = 1,'NGGT TO (Base)'!K204,'NGGT TO (Best)'!K204) -> 0 | L204: =IF(UserInterface!$E$82 = 1,'NGGT TO (Base)'!L204,'NGGT TO (Best)'!L204) -> 0 | M204: =IF(UserInterface!$E$82 = 1,'NGGT TO (Base)'!M204,'NGGT TO (Best)'!M204) -> 0 | N204: =IF(UserInterface!$E$82 = 1,'NGGT TO (Base)'!N204,'NGGT TO (Best)'!N204) -> 0 | O204: =IF(UserInterface!$E$82 = 1,'NGGT TO (Base)'!O204,'NGGT TO (Best)'!O204) -> 0 | P204: =IF(UserInterface!$E$82 = 1,'NGGT TO (Base)'!P204,'NGGT TO (Best)'!P204) -> 0 | Q204: =IF(UserInterface!$E$82 = 1,'NGGT TO (Base)'!Q204,'NGGT TO (Best)'!Q204) -> 0 | R204: =IF(UserInterface!$E$82 = 1,'NGGT TO (Base)'!R204,'NGGT TO (Best)'!R204) -> 0 | S204: =IF(UserInterface!$E$82 = 1,'NGGT TO (Base)'!S204,'NGGT TO (Best)'!S204) -> 0 | T204: =IF(UserInterface!$E$82 = 1,'NGGT TO (Base)'!T204,'NGGT TO (Best)'!T204) -> 0 | U204: =IF(UserInterface!$E$82 = 1,'NGGT TO (Base)'!U204,'NGGT TO (Best)'!U204) -> 0 | V204: =IF(UserInterface!$E$82 = 1,'NGGT TO (Base)'!V204,'NGGT TO (Best)'!V204) -> 0 | W204: =IF(UserInterface!$E$82 = 1,'NGGT TO (Base)'!W204,'NGGT TO (Best)'!W204) -> 0 | X204: =IF(UserInterface!$E$82 = 1,'NGGT TO (Base)'!X204,'NGGT TO (Best)'!X204) -> 3.410313723 | Y204: =IF(UserInterface!$E$82 = 1,'NGGT TO (Base)'!Y204,'NGGT TO (Best)'!Y204) -> 0 | Z204: =IF(UserInterface!$E$82 = 1,'NGGT TO (Base)'!Z204,'NGGT TO (Best)'!Z204) -> 0 | AA204: =IF(UserInterface!$E$82 = 1,'NGGT TO (Base)'!AA204,'NGGT TO (Best)'!AA204) -> 0 | AB204: =IF(UserInterface!$E$82 = 1,'NGGT TO (Base)'!AB204,'NGGT TO (Best)'!AB204) -> 0 | AC204: =IF(UserInterface!$E$82 = 1,'NGGT TO (Base)'!AC204,'NGGT TO (Best)'!AC204) -> 0 | AD204: =IF(UserInterface!$E$82 = 1,'NGGT TO (Base)'!AD204,'NGGT TO (Best)'!AD204) -> 0 | AE204: =IF(UserInterface!$E$82 = 1,'NGGT TO (Base)'!AE204,'NGGT TO (Best)'!AE204) -> 0 | AF204: =IF(UserInterface!$E$82 = 1,'NGGT TO (Base)'!AF204,'NGGT TO (Best)'!AF204) -> 0 | AG204: =IF(UserInterface!$E$82 = 1,'NGGT TO (Base)'!AG204,'NGGT TO (Best)'!AG204) -> -8.311783379
E207: Logged-up items and security costs asset life | G207: years | I207: =IF(UserInterface!$E$82 = 1,'NGGT TO (Base)'!I207,'NGGT TO (Best)'!I207) -> 45
E209: Logged-up items net additions (after disposals) | G209: £m 09/10 prices | Y209: =IF(UserInterface!$E$82 = 1,'NGGT TO (Base)'!Y209,'NGGT TO (Best)'!Y209) -> 0 | Z209: =IF(UserInterface!$E$82 = 1,'NGGT TO (Base)'!Z209,'NGGT TO (Best)'!Z209) -> 0 | AA209: =IF(UserInterface!$E$82 = 1,'NGGT TO (Base)'!AA209,'NGGT TO (Best)'!AA209) -> 0.1604920542 | AB209: =IF(UserInterface!$E$82 = 1,'NGGT TO (Base)'!AB209,'NGGT TO (Best)'!AB209) -> 89.59889129 | AC209: =IF(UserInterface!$E$82 = 1,'NGGT TO (Base)'!AC209,'NGGT TO (Best)'!AC209) -> 0 | AD209: =IF(UserInterface!$E$82 = 1,'NGGT TO (Base)'!AD209,'NGGT TO (Best)'!AD209) -> 0.41261827 | AE209: =IF(UserInterface!$E$82 = 1,'NGGT TO (Base)'!AE209,'NGGT TO (Best)'!AE209) -> 0.5450291628 | AF209: =IF(UserInterface!$E$82 = 1,'NGGT TO (Base)'!AF209,'NGGT TO (Best)'!AF209) -> 1.66026374 | AG209: =IF(UserInterface!$E$82 = 1,'NGGT TO (Base)'!AG209,'NGGT TO (Best)'!AG209) -> 0
E211: Security costs net additions (after disposals) | G211: £m 09/10 prices | Y211: =IF(UserInterface!$E$82 = 1,'NGGT TO (Base)'!Y211,'NGGT TO (Best)'!Y211) -> 0 | Z211: =IF(UserInterface!$E$82 = 1,'NGGT TO (Base)'!Z211,'NGGT TO (Best)'!Z211) -> 0 | AA211: =IF(UserInterface!$E$82 = 1,'NGGT TO (Base)'!AA211,'NGGT TO (Best)'!AA211) -> 0 | AB211: =IF(UserInterface!$E$82 = 1,'NGGT TO (Base)'!AB211,'NGGT TO (Best)'!AB211) -> 0 | AC211: =IF(UserInterface!$E$82 = 1,'NGGT TO (Base)'!AC211,'NGGT TO (Best)'!AC211) -> 7.35040517 | AD211: =IF(UserInterface!$E$82 = 1,'NGGT TO (Base)'!AD211,'NGGT TO (Best)'!AD211) -> 12.19052976 | AE211: =IF(UserInterface!$E$82 = 1,'NGGT TO (Base)'!AE211,'NGGT TO (Best)'!AE211) -> 57.81292137 | AF211: =IF(UserInterface!$E$82 = 1,'NGGT TO (Base)'!AF211,'NGGT TO (Best)'!AF211) -> 55.72567133 | AG211: =IF(UserInterface!$E$82 = 1,'NGGT TO (Base)'!AG211,'NGGT TO (Best)'!AG211) -> 0
C213: Revenue drivers
E215: Pre-RIIO allocation to "General" pool | G215: % | J215: > | V215: =IF(UserInterface!$E$82 = 1,'NGGT TO (Base)'!V215,'NGGT TO (Best)'!V215) -> 0.019 | W215: =IF(UserInterface!$E$82 = 1,'NGGT TO (Base)'!W215,'NGGT TO (Best)'!W215) -> 0.019 | X215: =IF(UserInterface!$E$82 = 1,'NGGT TO (Base)'!X215,'NGGT TO (Best)'!X215) -> 0.019 | Y215: =IF(UserInterface!$E$82 = 1,'NGGT TO (Base)'!Y215,'NGGT TO (Best)'!Y215) -> 0.019 | Z215: =IF(UserInterface!$E$82 = 1,'NGGT TO (Base)'!Z215,'NGGT TO (Best)'!Z215) -> 0.019 | AA215: =IF(UserInterface!$E$82 = 1,'NGGT TO (Base)'!AA215,'NGGT TO (Best)'!AA215) -> 0.019 | AB215: =IF(UserInterface!$E$82 = 1,'NGGT TO (Base)'!AB215,'NGGT TO (Best)'!AB215) -> 0.019 | AC215: =IF(UserInterface!$E$82 = 1,'NGGT TO (Base)'!AC215,'NGGT TO (Best)'!AC215) -> 0.019 | AD215: =IF(UserInterface!$E$82 = 1,'NGGT TO (Base)'!AD215,'NGGT TO (Best)'!AD215) -> 0.019 | AE215: =IF(UserInterface!$E$82 = 1,'NGGT TO (Base)'!AE215,'NGGT TO (Best)'!AE215) -> 0.019 | AF215: =IF(UserInterface!$E$82 = 1,'NGGT TO (Base)'!AF215,'NGGT TO (Best)'!AF215) -> 0.019 | AG215: =IF(UserInterface!$E$82 = 1,'NGGT TO (Base)'!AG215,'NGGT TO (Best)'!AG215) -> 0.019
E216: Pre-RIIO allocation to "Special Rate" pool | G216: % | J216: > | V216: =IF(UserInterface!$E$82 = 1,'NGGT TO (Base)'!V216,'NGGT TO (Best)'!V216) -> 0.964 | W216: =IF(UserInterface!$E$82 = 1,'NGGT TO (Base)'!W216,'NGGT TO (Best)'!W216) -> 0.964 | X216: =IF(UserInterface!$E$82 = 1,'NGGT TO (Base)'!X216,'NGGT TO (Best)'!X216) -> 0.964 | Y216: =IF(UserInterface!$E$82 = 1,'NGGT TO (Base)'!Y216,'NGGT TO (Best)'!Y216) -> 0.964 | Z216: =IF(UserInterface!$E$82 = 1,'NGGT TO (Base)'!Z216,'NGGT TO (Best)'!Z216) -> 0.964 | AA216: =IF(UserInterface!$E$82 = 1,'NGGT TO (Base)'!AA216,'NGGT TO (Best)'!AA216) -> 0.964 | AB216: =IF(UserInterface!$E$82 = 1,'NGGT TO (Base)'!AB216,'NGGT TO (Best)'!AB216) -> 0.964 | AC216: =IF(UserInterface!$E$82 = 1,'NGGT TO (Base)'!AC216,'NGGT TO (Best)'!AC216) -> 0.964 | AD216: =IF(UserInterface!$E$82 = 1,'NGGT TO (Base)'!AD216,'NGGT TO (Best)'!AD216) -> 0.964 | AE216: =IF(UserInterface!$E$82 = 1,'NGGT TO (Base)'!AE216,'NGGT TO (Best)'!AE216) -> 0.964 | AF216: =IF(UserInterface!$E$82 = 1,'NGGT TO (Base)'!AF216,'NGGT TO (Best)'!AF216) -> 0.964 | AG216: =IF(UserInterface!$E$82 = 1,'NGGT TO (Base)'!AG216,'NGGT TO (Best)'!AG216) -> 0.964
E217: Pre-RIIO allocation to "Revenue" pool | G217: % | J217: > | V217: =IF(UserInterface!$E$82 = 1,'NGGT TO (Base)'!V217,'NGGT TO (Best)'!V217) -> 0.004 | W217: =IF(UserInterface!$E$82 = 1,'NGGT TO (Base)'!W217,'NGGT TO (Best)'!W217) -> 0.004 | X217: =IF(UserInterface!$E$82 = 1,'NGGT TO (Base)'!X217,'NGGT TO (Best)'!X217) -> 0.004 | Y217: =IF(UserInterface!$E$82 = 1,'NGGT TO (Base)'!Y217,'NGGT TO (Best)'!Y217) -> 0.004 | Z217: =IF(UserInterface!$E$82 = 1,'NGGT TO (Base)'!Z217,'NGGT TO (Best)'!Z217) -> 0.004 | AA217: =IF(UserInterface!$E$82 = 1,'NGGT TO (Base)'!AA217,'NGGT TO (Best)'!AA217) -> 0.004 | AB217: =IF(UserInterface!$E$82 = 1,'NGGT TO (Base)'!AB217,'NGGT TO (Best)'!AB217) -> 0.004 | AC217: =IF(UserInterface!$E$82 = 1,'NGGT TO (Base)'!AC217,'NGGT TO (Best)'!AC217) -> 0.004 | AD217: =IF(UserInterface!$E$82 = 1,'NGGT TO (Base)'!AD217,'NGGT TO (Best)'!AD217) -> 0.004 | AE217: =IF(UserInterface!$E$82 = 1,'NGGT TO (Base)'!AE217,'NGGT TO (Best)'!AE217) -> 0.004 | AF217: =IF(UserInterface!$E$82 = 1,'NGGT TO (Base)'!AF217,'NGGT TO (Best)'!AF217) -> 0.004 | AG217: =IF(UserInterface!$E$82 = 1,'NGGT TO (Base)'!AG217,'NGGT TO (Best)'!AG217) -> 0.004
E218: Pre-RIIO allocation to "Non Qualifying" pool | G218: % | J218: > | V218: =IF(UserInterface!$E$82 = 1,'NGGT TO (Base)'!V218,'NGGT TO (Best)'!V218) -> 0.013 | W218: =IF(UserInterface!$E$82 = 1,'NGGT TO (Base)'!W218,'NGGT TO (Best)'!W218) -> 0.013 | X218: =IF(UserInterface!$E$82 = 1,'NGGT TO (Base)'!X218,'NGGT TO (Best)'!X218) -> 0.013 | Y218: =IF(UserInterface!$E$82 = 1,'NGGT TO (Base)'!Y218,'NGGT TO (Best)'!Y218) -> 0.013 | Z218: =IF(UserInterface!$E$82 = 1,'NGGT TO (Base)'!Z218,'NGGT TO (Best)'!Z218) -> 0.013 | AA218: =IF(UserInterface!$E$82 = 1,'NGGT TO (Base)'!AA218,'NGGT TO (Best)'!AA218) -> 0.013 | AB218: =IF(UserInterface!$E$82 = 1,'NGGT TO (Base)'!AB218,'NGGT TO (Best)'!AB218) -> 0.013 | AC218: =IF(UserInterface!$E$82 = 1,'NGGT TO (Base)'!AC218,'NGGT TO (Best)'!AC218) -> 0.013 | AD218: =IF(UserInterface!$E$82 = 1,'NGGT TO (Base)'!AD218,'NGGT TO (Best)'!AD218) -> 0.013 | AE218: =IF(UserInterface!$E$82 = 1,'NGGT TO (Base)'!AE218,'NGGT TO (Best)'!AE218) -> 0.013 | AF218: =IF(UserInterface!$E$82 = 1,'NGGT TO (Base)'!AF218,'NGGT TO (Best)'!AF218) -> 0.013 | AG218: =IF(UserInterface!$E$82 = 1,'NGGT TO (Base)'!AG218,'NGGT TO (Best)'!AG218) -> 0.013
E220: Isle of Grain PH2 RAV transfer date | G220: year ending | I220: =IF(UserInterface!$E$82 = 1,'NGGT TO (Base)'!I220,'NGGT TO (Best)'!I220) -> 2018-03-31
E221: Easington RAV transfer date | G221: year ending | I221: =IF(UserInterface!$E$82 = 1,'NGGT TO (Base)'!I221,'NGGT TO (Best)'!I221) -> 2018-03-31
E222: Hornsea RAV transfer date | G222: year ending | I222: =IF(UserInterface!$E$82 = 1,'NGGT TO (Base)'!I222,'NGGT TO (Best)'!I222) -> 2018-03-31
E223: Fleetwood RAV transfer date | G223: year ending | I223: =IF(UserInterface!$E$82 = 1,'NGGT TO (Base)'!I223,'NGGT TO (Best)'!I223) -> 2018-03-31
E224: Cheshire RAV transfer date | G224: year ending | I224: =IF(UserInterface!$E$82 = 1,'NGGT TO (Base)'!I224,'NGGT TO (Best)'!I224) -> 2018-03-31
E225: Isle of Grain PH3 RAV transfer date | G225: year ending | I225: =IF(UserInterface!$E$82 = 1,'NGGT TO (Base)'!I225,'NGGT TO (Best)'!I225) -> 2016-03-31
E226: Caythorpe RAV transfer date | G226: year ending | I226: =IF(UserInterface!$E$82 = 1,'NGGT TO (Base)'!I226,'NGGT TO (Best)'!I226) -> 2017-03-31
E227: Langage RAV transfer date | G227: year ending | I227: =IF(UserInterface!$E$82 = 1,'NGGT TO (Base)'!I227,'NGGT TO (Best)'!I227) -> 2014-03-31
E228: Marchwood RAV transfer date | G228: year ending | I228: =IF(UserInterface!$E$82 = 1,'NGGT TO (Base)'!I228,'NGGT TO (Best)'!I228) -> 2014-03-31
E229: Pembroke RAV transfer date | G229: year ending | I229: =IF(UserInterface!$E$82 = 1,'NGGT TO (Base)'!I229,'NGGT TO (Best)'!I229) -> 2017-03-31
E230: Gilwern RAV transfer date | G230: year ending | I230: =IF(UserInterface!$E$82 = 1,'NGGT TO (Base)'!I230,'NGGT TO (Best)'!I230) -> 2016-03-31
E231: SW Quad 08/09 RAV transfer date | G231: year ending | I231: =IF(UserInterface!$E$82 = 1,'NGGT TO (Base)'!I231,'NGGT TO (Best)'!I231) -> 2014-03-31
E232: SW Quad 09/10 RAV transfer date | G232: year ending | I232: =IF(UserInterface!$E$82 = 1,'NGGT TO (Base)'!I232,'NGGT TO (Best)'!I232) -> 2015-03-31
E233: North West Entry / Hole House Farm Storage RAV transfer date | G233: year ending | I233: =IF(UserInterface!$E$82 = 1,'NGGT TO (Base)'!I233,'NGGT TO (Best)'!I233) -> 2017-03-31
E235: Isle of Grain PH2 deemed capex | G235: £m 09/10 prices | J235: > | V235: =IF(UserInterface!$E$82 = 1,'NGGT TO (Base)'!V235,'NGGT TO (Best)'!V235) -> 0 | W235: =IF(UserInterface!$E$82 = 1,'NGGT TO (Base)'!W235,'NGGT TO (Best)'!W235) -> 0 | X235: =IF(UserInterface!$E$82 = 1,'NGGT TO (Base)'!X235,'NGGT TO (Best)'!X235) -> 0 | Y235: =IF(UserInterface!$E$82 = 1,'NGGT TO (Base)'!Y235,'NGGT TO (Best)'!Y235) -> 0 | Z235: =IF(UserInterface!$E$82 = 1,'NGGT TO (Base)'!Z235,'NGGT TO (Best)'!Z235) -> 0 | AA235: =IF(UserInterface!$E$82 = 1,'NGGT TO (Base)'!AA235,'NGGT TO (Best)'!AA235) -> 11.414 | AB235: =IF(UserInterface!$E$82 = 1,'NGGT TO (Base)'!AB235,'NGGT TO (Best)'!AB235) -> 45.657 | AC235: =IF(UserInterface!$E$82 = 1,'NGGT TO (Base)'!AC235,'NGGT TO (Best)'!AC235) -> 0 | AD235: =IF(UserInterface!$E$82 = 1,'NGGT TO (Base)'!AD235,'NGGT TO (Best)'!AD235) -> 0 | AE235: =IF(UserInterface!$E$82 = 1,'NGGT TO (Base)'!AE235,'NGGT TO (Best)'!AE235) -> 0 | AF235: =IF(UserInterface!$E$82 = 1,'NGGT TO (Base)'!AF235,'NGGT TO (Best)'!AF235) -> 0 | AG235: =IF(UserInterface!$E$82 = 1,'NGGT TO (Base)'!AG235,'NGGT TO (Best)'!AG235) -> 0
E236: Easington deemed capex | G236: £m 09/10 prices | J236: > | V236: =IF(UserInterface!$E$82 = 1,'NGGT TO (Base)'!V236,'NGGT TO (Best)'!V236) -> 0 | W236: =IF(UserInterface!$E$82 = 1,'NGGT TO (Base)'!W236,'NGGT TO (Best)'!W236) -> 0 | X236: =IF(UserInterface!$E$82 = 1,'NGGT TO (Base)'!X236,'NGGT TO (Best)'!X236) -> 0 | Y236: =IF(UserInterface!$E$82 = 1,'NGGT TO (Base)'!Y236,'NGGT TO (Best)'!Y236) -> 0 | Z236: =IF(UserInterface!$E$82 = 1,'NGGT TO (Base)'!Z236,'NGGT TO (Best)'!Z236) -> 0 | AA236: =IF(UserInterface!$E$82 = 1,'NGGT TO (Base)'!AA236,'NGGT TO (Best)'!AA236) -> 0 | AB236: =IF(UserInterface!$E$82 = 1,'NGGT TO (Base)'!AB236,'NGGT TO (Best)'!AB236) -> 3.058 | AC236: =IF(UserInterface!$E$82 = 1,'NGGT TO (Base)'!AC236,'NGGT TO (Best)'!AC236) -> 12.232 | AD236: =IF(UserInterface!$E$82 = 1,'NGGT TO (Base)'!AD236,'NGGT TO (Best)'!AD236) -> 0 | AE236: =IF(UserInterface!$E$82 = 1,'NGGT TO (Base)'!AE236,'NGGT TO (Best)'!AE236) -> 0 | AF236: =IF(UserInterface!$E$82 = 1,'NGGT TO (Base)'!AF236,'NGGT TO (Best)'!AF236) -> 0 | AG236: =IF(UserInterface!$E$82 = 1,'NGGT TO (Base)'!AG236,'NGGT TO (Best)'!AG236) -> 0
E237: Hornsea deemed capex | G237: £m 09/10 prices | J237: > | V237: =IF(UserInterface!$E$82 = 1,'NGGT TO (Base)'!V237,'NGGT TO (Best)'!V237) -> 0 | W237: =IF(UserInterface!$E$82 = 1,'NGGT TO (Base)'!W237,'NGGT TO (Best)'!W237) -> 0 | X237: =IF(UserInterface!$E$82 = 1,'NGGT TO (Base)'!X237,'NGGT TO (Best)'!X237) -> 0 | Y237: =IF(UserInterface!$E$82 = 1,'NGGT TO (Base)'!Y237,'NGGT TO (Best)'!Y237) -> 0 | Z237: =IF(UserInterface!$E$82 = 1,'NGGT TO (Base)'!Z237,'NGGT TO (Best)'!Z237) -> 0 | AA237: =IF(UserInterface!$E$82 = 1,'NGGT TO (Base)'!AA237,'NGGT TO (Best)'!AA237) -> 0 | AB237: =IF(UserInterface!$E$82 = 1,'NGGT TO (Base)'!AB237,'NGGT TO (Best)'!AB237) -> 2.317 | AC237: =IF(UserInterface!$E$82 = 1,'NGGT TO (Base)'!AC237,'NGGT TO (Best)'!AC237) -> 9.27 | AD237: =IF(UserInterface!$E$82 = 1,'NGGT TO (Base)'!AD237,'NGGT TO (Best)'!AD237) -> 0 | AE237: =IF(UserInterface!$E$82 = 1,'NGGT TO (Base)'!AE237,'NGGT TO (Best)'!AE237) -> 0 | AF237: =IF(UserInterface!$E$82 = 1,'NGGT TO (Base)'!AF237,'NGGT TO (Best)'!AF237) -> 0 | AG237: =IF(UserInterface!$E$82 = 1,'NGGT TO (Base)'!AG237,'NGGT TO (Best)'!AG237) -> 0
E238: Fleetwood deemed capex | G238: £m 09/10 prices | J238: > | V238: =IF(UserInterface!$E$82 = 1,'NGGT TO (Base)'!V238,'NGGT TO (Best)'!V238) -> 0 | W238: =IF(UserInterface!$E$82 = 1,'NGGT TO (Base)'!W238,'NGGT TO (Best)'!W238) -> 0 | X238: =IF(UserInterface!$E$82 = 1,'NGGT TO (Base)'!X238,'NGGT TO (Best)'!X238) -> 0 | Y238: =IF(UserInterface!$E$82 = 1,'NGGT TO (Base)'!Y238,'NGGT TO (Best)'!Y238) -> 0 | Z238: =IF(UserInterface!$E$82 = 1,'NGGT TO (Base)'!Z238,'NGGT TO (Best)'!Z238) -> 0 | AA238: =IF(UserInterface!$E$82 = 1,'NGGT TO (Base)'!AA238,'NGGT TO (Best)'!AA238) -> 0 | AB238: =IF(UserInterface!$E$82 = 1,'NGGT TO (Base)'!AB238,'NGGT TO (Best)'!AB238) -> 0 | AC238: =IF(UserInterface!$E$82 = 1,'NGGT TO (Base)'!AC238,'NGGT TO (Best)'!AC238) -> 45.243 | AD238: =IF(UserInterface!$E$82 = 1,'NGGT TO (Base)'!AD238,'NGGT TO (Best)'!AD238) -> 180.973 | AE238: =IF(UserInterface!$E$82 = 1,'NGGT TO (Base)'!AE238,'NGGT TO (Best)'!AE238) -> 0 | AF238: =IF(UserInterface!$E$82 = 1,'NGGT TO (Base)'!AF238,'NGGT TO (Best)'!AF238) -> 0 | AG238: =IF(UserInterface!$E$82 = 1,'NGGT TO (Base)'!AG238,'NGGT TO (Best)'!AG238) -> 0
E239: Cheshire deemed capex | G239: £m 09/10 prices | J239: > | V239: =IF(UserInterface!$E$82 = 1,'NGGT TO (Base)'!V239,'NGGT TO (Best)'!V239) -> 0 | W239: =IF(UserInterface!$E$82 = 1,'NGGT TO (Base)'!W239,'NGGT TO (Best)'!W239) -> 0 | X239: =IF(UserInterface!$E$82 = 1,'NGGT TO (Base)'!X239,'NGGT TO (Best)'!X239) -> 0 | Y239: =IF(UserInterface!$E$82 = 1,'NGGT TO (Base)'!Y239,'NGGT TO (Best)'!Y239) -> 0 | Z239: =IF(UserInterface!$E$82 = 1,'NGGT TO (Base)'!Z239,'NGGT TO (Best)'!Z239) -> 0 | AA239: =IF(UserInterface!$E$82 = 1,'NGGT TO (Base)'!AA239,'NGGT TO (Best)'!AA239) -> 0 | AB239: =IF(UserInterface!$E$82 = 1,'NGGT TO (Base)'!AB239,'NGGT TO (Best)'!AB239) -> 0 | AC239: =IF(UserInterface!$E$82 = 1,'NGGT TO (Base)'!AC239,'NGGT TO (Best)'!AC239) -> 0.05 | AD239: =IF(UserInterface!$E$82 = 1,'NGGT TO (Base)'!AD239,'NGGT TO (Best)'!AD239) -> 0.352 | AE239: =IF(UserInterface!$E$82 = 1,'NGGT TO (Base)'!AE239,'NGGT TO (Best)'!AE239) -> 0.603 | AF239: =IF(UserInterface!$E$82 = 1,'NGGT TO (Base)'!AF239,'NGGT TO (Best)'!AF239) -> 0 | AG239: =IF(UserInterface!$E$82 = 1,'NGGT TO (Base)'!AG239,'NGGT TO (Best)'!AG239) -> 0
E241: Isle of Grain PH2 pre-RIIO actual capex | G241: £m 09/10 prices | J241: > | V241: =IF(UserInterface!$E$82 = 1,'NGGT TO (Base)'!V241,'NGGT TO (Best)'!V241) -> 0 | W241: =IF(UserInterface!$E$82 = 1,'NGGT TO (Base)'!W241,'NGGT TO (Best)'!W241) -> 0 | X241: =IF(UserInterface!$E$82 = 1,'NGGT TO (Base)'!X241,'NGGT TO (Best)'!X241) -> 0 | Y241: =IF(UserInterface!$E$82 = 1,'NGGT TO (Base)'!Y241,'NGGT TO (Best)'!Y241) -> 0 | Z241: =IF(UserInterface!$E$82 = 1,'NGGT TO (Base)'!Z241,'NGGT TO (Best)'!Z241) -> 0.09457134286 | AA241: =IF(UserInterface!$E$82 = 1,'NGGT TO (Base)'!AA241,'NGGT TO (Best)'!AA241) -> 5.208990432 | AB241: =IF(UserInterface!$E$82 = 1,'NGGT TO (Base)'!AB241,'NGGT TO (Best)'!AB241) -> 17.59157981 | AC241: =IF(UserInterface!$E$82 = 1,'NGGT TO (Base)'!AC241,'NGGT TO (Best)'!AC241) -> 41.36868476 | AD241: =IF(UserInterface!$E$82 = 1,'NGGT TO (Base)'!AD241,'NGGT TO (Best)'!AD241) -> 6.27195172 | AE241: =IF(UserInterface!$E$82 = 1,'NGGT TO (Base)'!AE241,'NGGT TO (Best)'!AE241) -> 0.4352958048 | AF241: =IF(UserInterface!$E$82 = 1,'NGGT TO (Base)'!AF241,'NGGT TO (Best)'!AF241) -> 0 | AG241: =IF(UserInterface!$E$82 = 1,'NGGT TO (Base)'!AG241,'NGGT TO (Best)'!AG241) -> 0
E242: Easington pre-RIIO actual capex | G242: £m 09/10 prices | J242: > | V242: =IF(UserInterface!$E$82 = 1,'NGGT TO (Base)'!V242,'NGGT TO (Best)'!V242) -> 0 | W242: =IF(UserInterface!$E$82 = 1,'NGGT TO (Base)'!W242,'NGGT TO (Best)'!W242) -> 0 | X242: =IF(UserInterface!$E$82 = 1,'NGGT TO (Base)'!X242,'NGGT TO (Best)'!X242) -> 0 | Y242: =IF(UserInterface!$E$82 = 1,'NGGT TO (Base)'!Y242,'NGGT TO (Best)'!Y242) -> 0 | Z242: =IF(UserInterface!$E$82 = 1,'NGGT TO (Base)'!Z242,'NGGT TO (Best)'!Z242) -> 0 | AA242: =IF(UserInterface!$E$82 = 1,'NGGT TO (Base)'!AA242,'NGGT TO (Best)'!AA242) -> 0.1012500208 | AB242: =IF(UserInterface!$E$82 = 1,'NGGT TO (Base)'!AB242,'NGGT TO (Best)'!AB242) -> 2.091058308 | AC242: =IF(UserInterface!$E$82 = 1,'NGGT TO (Base)'!AC242,'NGGT TO (Best)'!AC242) -> 4.4124708 | AD242: =IF(UserInterface!$E$82 = 1,'NGGT TO (Base)'!AD242,'NGGT TO (Best)'!AD242) -> 26.10009297 | AE242: =IF(UserInterface!$E$82 = 1,'NGGT TO (Base)'!AE242,'NGGT TO (Best)'!AE242) -> 26.53357491 | AF242: =IF(UserInterface!$E$82 = 1,'NGGT TO (Base)'!AF242,'NGGT TO (Best)'!AF242) -> 1.071825708 | AG242: =IF(UserInterface!$E$82 = 1,'NGGT TO (Base)'!AG242,'NGGT TO (Best)'!AG242) -> 0
E243: Hornsea pre-RIIO actual capex | G243: £m 09/10 prices | J243: > | V243: =IF(UserInterface!$E$82 = 1,'NGGT TO (Base)'!V243,'NGGT TO (Best)'!V243) -> 0 | W243: =IF(UserInterface!$E$82 = 1,'NGGT TO (Base)'!W243,'NGGT TO (Best)'!W243) -> 0 | X243: =IF(UserInterface!$E$82 = 1,'NGGT TO (Base)'!X243,'NGGT TO (Best)'!X243) -> 0 | Y243: =IF(UserInterface!$E$82 = 1,'NGGT TO (Base)'!Y243,'NGGT TO (Best)'!Y243) -> 0 | Z243: =IF(UserInterface!$E$82 = 1,'NGGT TO (Base)'!Z243,'NGGT TO (Best)'!Z243) -> 0 | AA243: =IF(UserInterface!$E$82 = 1,'NGGT TO (Base)'!AA243,'NGGT TO (Best)'!AA243) -> 0 | AB243: =IF(UserInterface!$E$82 = 1,'NGGT TO (Base)'!AB243,'NGGT TO (Best)'!AB243) -> 0 | AC243: =IF(UserInterface!$E$82 = 1,'NGGT TO (Base)'!AC243,'NGGT TO (Best)'!AC243) -> 0 | AD243: =IF(UserInterface!$E$82 = 1,'NGGT TO (Base)'!AD243,'NGGT TO (Best)'!AD243) -> 0 | AE243: =IF(UserInterface!$E$82 = 1,'NGGT TO (Base)'!AE243,'NGGT TO (Best)'!AE243) -> 0 | AF243: =IF(UserInterface!$E$82 = 1,'NGGT TO (Base)'!AF243,'NGGT TO (Best)'!AF243) -> 0 | AG243: =IF(UserInterface!$E$82 = 1,'NGGT TO (Base)'!AG243,'NGGT TO (Best)'!AG243) -> 0
E244: Fleetwood pre-RIIO actual capex | G244: £m 09/10 prices | J244: > | V244: =IF(UserInterface!$E$82 = 1,'NGGT TO (Base)'!V244,'NGGT TO (Best)'!V244) -> 0 | W244: =IF(UserInterface!$E$82 = 1,'NGGT TO (Base)'!W244,'NGGT TO (Best)'!W244) -> 0 | X244: =IF(UserInterface!$E$82 = 1,'NGGT TO (Base)'!X244,'NGGT TO (Best)'!X244) -> 0 | Y244: =IF(UserInterface!$E$82 = 1,'NGGT TO (Base)'!Y244,'NGGT TO (Best)'!Y244) -> 0 | Z244: =IF(UserInterface!$E$82 = 1,'NGGT TO (Base)'!Z244,'NGGT TO (Best)'!Z244) -> 0 | AA244: =IF(UserInterface!$E$82 = 1,'NGGT TO (Base)'!AA244,'NGGT TO (Best)'!AA244) -> 0.306981446 | AB244: =IF(UserInterface!$E$82 = 1,'NGGT TO (Base)'!AB244,'NGGT TO (Best)'!AB244) -> 7.594109377 | AC244: =IF(UserInterface!$E$82 = 1,'NGGT TO (Base)'!AC244,'NGGT TO (Best)'!AC244) -> 0.7084298125 | AD244: =IF(UserInterface!$E$82 = 1,'NGGT TO (Base)'!AD244,'NGGT TO (Best)'!AD244) -> 1.55723769 | AE244: =IF(UserInterface!$E$82 = 1,'NGGT TO (Base)'!AE244,'NGGT TO (Best)'!AE244) -> -0.06573749862 | AF244: =IF(UserInterface!$E$82 = 1,'NGGT TO (Base)'!AF244,'NGGT TO (Best)'!AF244) -> 0.004545486465 | AG244: =IF(UserInterface!$E$82 = 1,'NGGT TO (Base)'!AG244,'NGGT TO (Best)'!AG244) -> 9.187086648
E245: Cheshire pre-RIIO actual capex | G245: £m 09/10 prices | J245: > | V245: =IF(UserInterface!$E$82 = 1,'NGGT TO (Base)'!V245,'NGGT TO (Best)'!V245) -> 0 | W245: =IF(UserInterface!$E$82 = 1,'NGGT TO (Base)'!W245,'NGGT TO (Best)'!W245) -> 0 | X245: =IF(UserInterface!$E$82 = 1,'NGGT TO (Base)'!X245,'NGGT TO (Best)'!X245) -> 0 | Y245: =IF(UserInterface!$E$82 = 1,'NGGT TO (Base)'!Y245,'NGGT TO (Best)'!Y245) -> 0 | Z245: =IF(UserInterface!$E$82 = 1,'NGGT TO (Base)'!Z245,'NGGT TO (Best)'!Z245) -> 0 | AA245: =IF(UserInterface!$E$82 = 1,'NGGT TO (Base)'!AA245,'NGGT TO (Best)'!AA245) -> 0 | AB245: =IF(UserInterface!$E$82 = 1,'NGGT TO (Base)'!AB245,'NGGT TO (Best)'!AB245) -> 0 | AC245: =IF(UserInterface!$E$82 = 1,'NGGT TO (Base)'!AC245,'NGGT TO (Best)'!AC245) -> 0 | AD245: =IF(UserInterface!$E$82 = 1,'NGGT TO (Base)'!AD245,'NGGT TO (Best)'!AD245) -> 0 | AE245: =IF(UserInterface!$E$82 = 1,'NGGT TO (Base)'!AE245,'NGGT TO (Best)'!AE245) -> 0 | AF245: =IF(UserInterface!$E$82 = 1,'NGGT TO (Base)'!AF245,'NGGT TO (Best)'!AF245) -> 0 | AG245: =IF(UserInterface!$E$82 = 1,'NGGT TO (Base)'!AG245,'NGGT TO (Best)'!AG245) -> 0
E246: Isle of Grain PH3 pre-RIIO actual capex | G246: £m 09/10 prices | J246: > | V246: =IF(UserInterface!$E$82 = 1,'NGGT TO (Base)'!V246,'NGGT TO (Best)'!V246) -> 0 | W246: =IF(UserInterface!$E$82 = 1,'NGGT TO (Base)'!W246,'NGGT TO (Best)'!W246) -> 0 | X246: =IF(UserInterface!$E$82 = 1,'NGGT TO (Base)'!X246,'NGGT TO (Best)'!X246) -> 0 | Y246: =IF(UserInterface!$E$82 = 1,'NGGT TO (Base)'!Y246,'NGGT TO (Best)'!Y246) -> 0 | Z246: =IF(UserInterface!$E$82 = 1,'NGGT TO (Base)'!Z246,'NGGT TO (Best)'!Z246) -> 0 | AA246: =IF(UserInterface!$E$82 = 1,'NGGT TO (Base)'!AA246,'NGGT TO (Best)'!AA246) -> 0 | AB246: =IF(UserInterface!$E$82 = 1,'NGGT TO (Base)'!AB246,'NGGT TO (Best)'!AB246) -> 0 | AC246: =IF(UserInterface!$E$82 = 1,'NGGT TO (Base)'!AC246,'NGGT TO (Best)'!AC246) -> 0 | AD246: =IF(UserInterface!$E$82 = 1,'NGGT TO (Base)'!AD246,'NGGT TO (Best)'!AD246) -> 0 | AE246: =IF(UserInterface!$E$82 = 1,'NGGT TO (Base)'!AE246,'NGGT TO (Best)'!AE246) -> 0 | AF246: =IF(UserInterface!$E$82 = 1,'NGGT TO (Base)'!AF246,'NGGT TO (Best)'!AF246) -> 0 | AG246: =IF(UserInterface!$E$82 = 1,'NGGT TO (Base)'!AG246,'NGGT TO (Best)'!AG246) -> 0
E247: Caythorpe pre-RIIO actual capex | G247: £m 09/10 prices | J247: > | V247: =IF(UserInterface!$E$82 = 1,'NGGT TO (Base)'!V247,'NGGT TO (Best)'!V247) -> 0 | W247: =IF(UserInterface!$E$82 = 1,'NGGT TO (Base)'!W247,'NGGT TO (Best)'!W247) -> 0 | X247: =IF(UserInterface!$E$82 = 1,'NGGT TO (Base)'!X247,'NGGT TO (Best)'!X247) -> 0 | Y247: =IF(UserInterface!$E$82 = 1,'NGGT TO (Base)'!Y247,'NGGT TO (Best)'!Y247) -> 0 | Z247: =IF(UserInterface!$E$82 = 1,'NGGT TO (Base)'!Z247,'NGGT TO (Best)'!Z247) -> 0 | AA247: =IF(UserInterface!$E$82 = 1,'NGGT TO (Base)'!AA247,'NGGT TO (Best)'!AA247) -> 0 | AB247: =IF(UserInterface!$E$82 = 1,'NGGT TO (Base)'!AB247,'NGGT TO (Best)'!AB247) -> 0 | AC247: =IF(UserInterface!$E$82 = 1,'NGGT TO (Base)'!AC247,'NGGT TO (Best)'!AC247) -> 0 | AD247: =IF(UserInterface!$E$82 = 1,'NGGT TO (Base)'!AD247,'NGGT TO (Best)'!AD247) -> 0 | AE247: =IF(UserInterface!$E$82 = 1,'NGGT TO (Base)'!AE247,'NGGT TO (Best)'!AE247) -> 0 | AF247: =IF(UserInterface!$E$82 = 1,'NGGT TO (Base)'!AF247,'NGGT TO (Best)'!AF247) -> 0 | AG247: =IF(UserInterface!$E$82 = 1,'NGGT TO (Base)'!AG247,'NGGT TO (Best)'!AG247) -> 0
E248: Langage pre-RIIO actual capex | G248: £m 09/10 prices | J248: > | V248: =IF(UserInterface!$E$82 = 1,'NGGT TO (Base)'!V248,'NGGT TO (Best)'!V248) -> 4.824735011 | W248: =IF(UserInterface!$E$82 = 1,'NGGT TO (Base)'!W248,'NGGT TO (Best)'!W248) -> 0.1154699089 | X248: =IF(UserInterface!$E$82 = 1,'NGGT TO (Base)'!X248,'NGGT TO (Best)'!X248) -> 0.05202758369 | Y248: =IF(UserInterface!$E$82 = 1,'NGGT TO (Base)'!Y248,'NGGT TO (Best)'!Y248) -> 0.4417368318 | Z248: =IF(UserInterface!$E$82 = 1,'NGGT TO (Base)'!Z248,'NGGT TO (Best)'!Z248) -> 12.1113621 | AA248: =IF(UserInterface!$E$82 = 1,'NGGT TO (Base)'!AA248,'NGGT TO (Best)'!AA248) -> 50.51083484 | AB248: =IF(UserInterface!$E$82 = 1,'NGGT TO (Base)'!AB248,'NGGT TO (Best)'!AB248) -> 54.73795908 | AC248: =IF(UserInterface!$E$82 = 1,'NGGT TO (Base)'!AC248,'NGGT TO (Best)'!AC248) -> 10.75349055 | AD248: =IF(UserInterface!$E$82 = 1,'NGGT TO (Base)'!AD248,'NGGT TO (Best)'!AD248) -> -0.06804044 | AE248: =IF(UserInterface!$E$82 = 1,'NGGT TO (Base)'!AE248,'NGGT TO (Best)'!AE248) -> -0.009154861292 | AF248: =IF(UserInterface!$E$82 = 1,'NGGT TO (Base)'!AF248,'NGGT TO (Best)'!AF248) -> -0.02454562691 | AG248: =IF(UserInterface!$E$82 = 1,'NGGT TO (Base)'!AG248,'NGGT TO (Best)'!AG248) -> 0
E249: Marchwood pre-RIIO actual capex | G249: £m 09/10 prices | J249: > | V249: =IF(UserInterface!$E$82 = 1,'NGGT TO (Base)'!V249,'NGGT TO (Best)'!V249) -> 0 | W249: =IF(UserInterface!$E$82 = 1,'NGGT TO (Base)'!W249,'NGGT TO (Best)'!W249) -> 0 | X249: =IF(UserInterface!$E$82 = 1,'NGGT TO (Base)'!X249,'NGGT TO (Best)'!X249) -> 0 | Y249: =IF(UserInterface!$E$82 = 1,'NGGT TO (Base)'!Y249,'NGGT TO (Best)'!Y249) -> 0 | Z249: =IF(UserInterface!$E$82 = 1,'NGGT TO (Base)'!Z249,'NGGT TO (Best)'!Z249) -> 0.07304137334 | AA249: =IF(UserInterface!$E$82 = 1,'NGGT TO (Base)'!AA249,'NGGT TO (Best)'!AA249) -> 3.901357184 | AB249: =IF(UserInterface!$E$82 = 1,'NGGT TO (Base)'!AB249,'NGGT TO (Best)'!AB249) -> 16.70518274 | AC249: =IF(UserInterface!$E$82 = 1,'NGGT TO (Base)'!AC249,'NGGT TO (Best)'!AC249) -> 28.82313643 | AD249: =IF(UserInterface!$E$82 = 1,'NGGT TO (Base)'!AD249,'NGGT TO (Best)'!AD249) -> 0.12989372 | AE249: =IF(UserInterface!$E$82 = 1,'NGGT TO (Base)'!AE249,'NGGT TO (Best)'!AE249) -> 0.2664715999 | AF249: =IF(UserInterface!$E$82 = 1,'NGGT TO (Base)'!AF249,'NGGT TO (Best)'!AF249) -> -0.1872740423 | AG249: =IF(UserInterface!$E$82 = 1,'NGGT TO (Base)'!AG249,'NGGT TO (Best)'!AG249) -> 0
E250: Pembroke pre-RIIO actual capex | G250: £m 09/10 prices | J250: > | V250: =IF(UserInterface!$E$82 = 1,'NGGT TO (Base)'!V250,'NGGT TO (Best)'!V250) -> 0 | W250: =IF(UserInterface!$E$82 = 1,'NGGT TO (Base)'!W250,'NGGT TO (Best)'!W250) -> 0 | X250: =IF(UserInterface!$E$82 = 1,'NGGT TO (Base)'!X250,'NGGT TO (Best)'!X250) -> 0 | Y250: =IF(UserInterface!$E$82 = 1,'NGGT TO (Base)'!Y250,'NGGT TO (Best)'!Y250) -> 0 | Z250: =IF(UserInterface!$E$82 = 1,'NGGT TO (Base)'!Z250,'NGGT TO (Best)'!Z250) -> 0 | AA250: =IF(UserInterface!$E$82 = 1,'NGGT TO (Base)'!AA250,'NGGT TO (Best)'!AA250) -> 0 | AB250: =IF(UserInterface!$E$82 = 1,'NGGT TO (Base)'!AB250,'NGGT TO (Best)'!AB250) -> 0 | AC250: =IF(UserInterface!$E$82 = 1,'NGGT TO (Base)'!AC250,'NGGT TO (Best)'!AC250) -> 0 | AD250: =IF(UserInterface!$E$82 = 1,'NGGT TO (Base)'!AD250,'NGGT TO (Best)'!AD250) -> 0 | AE250: =IF(UserInterface!$E$82 = 1,'NGGT TO (Base)'!AE250,'NGGT TO (Best)'!AE250) -> 0 | AF250: =IF(UserInterface!$E$82 = 1,'NGGT TO (Base)'!AF250,'NGGT TO (Best)'!AF250) -> 0 | AG250: =IF(UserInterface!$E$82 = 1,'NGGT TO (Base)'!AG250,'NGGT TO (Best)'!AG250) -> 0
E251: Gilwern pre-RIIO actual capex | G251: £m 09/10 prices | J251: > | V251: =IF(UserInterface!$E$82 = 1,'NGGT TO (Base)'!V251,'NGGT TO (Best)'!V251) -> 0 | W251: =IF(UserInterface!$E$82 = 1,'NGGT TO (Base)'!W251,'NGGT TO (Best)'!W251) -> 0 | X251: =IF(UserInterface!$E$82 = 1,'NGGT TO (Base)'!X251,'NGGT TO (Best)'!X251) -> 0 | Y251: =IF(UserInterface!$E$82 = 1,'NGGT TO (Base)'!Y251,'NGGT TO (Best)'!Y251) -> 0 | Z251: =IF(UserInterface!$E$82 = 1,'NGGT TO (Base)'!Z251,'NGGT TO (Best)'!Z251) -> 0 | AA251: =IF(UserInterface!$E$82 = 1,'NGGT TO (Base)'!AA251,'NGGT TO (Best)'!AA251) -> 0 | AB251: =IF(UserInterface!$E$82 = 1,'NGGT TO (Base)'!AB251,'NGGT TO (Best)'!AB251) -> 0 | AC251: =IF(UserInterface!$E$82 = 1,'NGGT TO (Base)'!AC251,'NGGT TO (Best)'!AC251) -> 0 | AD251: =IF(UserInterface!$E$82 = 1,'NGGT TO (Base)'!AD251,'NGGT TO (Best)'!AD251) -> 0 | AE251: =IF(UserInterface!$E$82 = 1,'NGGT TO (Base)'!AE251,'NGGT TO (Best)'!AE251) -> 0 | AF251: =IF(UserInterface!$E$82 = 1,'NGGT TO (Base)'!AF251,'NGGT TO (Best)'!AF251) -> 0 | AG251: =IF(UserInterface!$E$82 = 1,'NGGT TO (Base)'!AG251,'NGGT TO (Best)'!AG251) -> 0
E252: SW Quad 08/09 pre-RIIO actual capex | G252: £m 09/10 prices | J252: > | V252: =IF(UserInterface!$E$82 = 1,'NGGT TO (Base)'!V252,'NGGT TO (Best)'!V252) -> 0.4901672658 | W252: =IF(UserInterface!$E$82 = 1,'NGGT TO (Base)'!W252,'NGGT TO (Best)'!W252) -> 0.0571272181 | X252: =IF(UserInterface!$E$82 = 1,'NGGT TO (Base)'!X252,'NGGT TO (Best)'!X252) -> 0.003547335251 | Y252: =IF(UserInterface!$E$82 = 1,'NGGT TO (Base)'!Y252,'NGGT TO (Best)'!Y252) -> 0 | Z252: =IF(UserInterface!$E$82 = 1,'NGGT TO (Base)'!Z252,'NGGT TO (Best)'!Z252) -> 0.2200982907 | AA252: =IF(UserInterface!$E$82 = 1,'NGGT TO (Base)'!AA252,'NGGT TO (Best)'!AA252) -> 4.35590515 | AB252: =IF(UserInterface!$E$82 = 1,'NGGT TO (Base)'!AB252,'NGGT TO (Best)'!AB252) -> 6.926565642 | AC252: =IF(UserInterface!$E$82 = 1,'NGGT TO (Base)'!AC252,'NGGT TO (Best)'!AC252) -> 2.280127877 | AD252: =IF(UserInterface!$E$82 = 1,'NGGT TO (Base)'!AD252,'NGGT TO (Best)'!AD252) -> 31.11818463 | AE252: =IF(UserInterface!$E$82 = 1,'NGGT TO (Base)'!AE252,'NGGT TO (Best)'!AE252) -> 40.17960641 | AF252: =IF(UserInterface!$E$82 = 1,'NGGT TO (Base)'!AF252,'NGGT TO (Best)'!AF252) -> -2.470926442 | AG252: =IF(UserInterface!$E$82 = 1,'NGGT TO (Base)'!AG252,'NGGT TO (Best)'!AG252) -> 0.02753
E253: SW Quad 09/10 pre-RIIO actual capex | G253: £m 09/10 prices | J253: > | V253: =IF(UserInterface!$E$82 = 1,'NGGT TO (Base)'!V253,'NGGT TO (Best)'!V253) -> 0 | W253: =IF(UserInterface!$E$82 = 1,'NGGT TO (Base)'!W253,'NGGT TO (Best)'!W253) -> 0 | X253: =IF(UserInterface!$E$82 = 1,'NGGT TO (Base)'!X253,'NGGT TO (Best)'!X253) -> 0 | Y253: =IF(UserInterface!$E$82 = 1,'NGGT TO (Base)'!Y253,'NGGT TO (Best)'!Y253) -> 0 | Z253: =IF(UserInterface!$E$82 = 1,'NGGT TO (Base)'!Z253,'NGGT TO (Best)'!Z253) -> 0 | AA253: =IF(UserInterface!$E$82 = 1,'NGGT TO (Base)'!AA253,'NGGT TO (Best)'!AA253) -> 0 | AB253: =IF(UserInterface!$E$82 = 1,'NGGT TO (Base)'!AB253,'NGGT TO (Best)'!AB253) -> 0 | AC253: =IF(UserInterface!$E$82 = 1,'NGGT TO (Base)'!AC253,'NGGT TO (Best)'!AC253) -> 0 | AD253: =IF(UserInterface!$E$82 = 1,'NGGT TO (Base)'!AD253,'NGGT TO (Best)'!AD253) -> 0 | AE253: =IF(UserInterface!$E$82 = 1,'NGGT TO (Base)'!AE253,'NGGT TO (Best)'!AE253) -> 0 | AF253: =IF(UserInterface!$E$82 = 1,'NGGT TO (Base)'!AF253,'NGGT TO (Best)'!AF253) -> 0 | AG253: =IF(UserInterface!$E$82 = 1,'NGGT TO (Base)'!AG253,'NGGT TO (Best)'!AG253) -> 0
E254: North West Entry / Hole House Farm Storage pre-RIIO actual capex | G254: £m 09/10 prices | J254: > | V254: =IF(UserInterface!$E$82 = 1,'NGGT TO (Base)'!V254,'NGGT TO (Best)'!V254) -> 0 | W254: =IF(UserInterface!$E$82 = 1,'NGGT TO (Base)'!W254,'NGGT TO (Best)'!W254) -> 0 | X254: =IF(UserInterface!$E$82 = 1,'NGGT TO (Base)'!X254,'NGGT TO (Best)'!X254) -> 0 | Y254: =IF(UserInterface!$E$82 = 1,'NGGT TO (Base)'!Y254,'NGGT TO (Best)'!Y254) -> 0 | Z254: =IF(UserInterface!$E$82 = 1,'NGGT TO (Base)'!Z254,'NGGT TO (Best)'!Z254) -> 0 | AA254: =IF(UserInterface!$E$82 = 1,'NGGT TO (Base)'!AA254,'NGGT TO (Best)'!AA254) -> 0 | AB254: =IF(UserInterface!$E$82 = 1,'NGGT TO (Base)'!AB254,'NGGT TO (Best)'!AB254) -> 0 | AC254: =IF(UserInterface!$E$82 = 1,'NGGT TO (Base)'!AC254,'NGGT TO (Best)'!AC254) -> 0 | AD254: =IF(UserInterface!$E$82 = 1,'NGGT TO (Base)'!AD254,'NGGT TO (Best)'!AD254) -> 0.61493277 | AE254: =IF(UserInterface!$E$82 = 1,'NGGT TO (Base)'!AE254,'NGGT TO (Best)'!AE254) -> 6.126158315 | AF254: =IF(UserInterface!$E$82 = 1,'NGGT TO (Base)'!AF254,'NGGT TO (Best)'!AF254) -> 7.377324532 | AG254: =IF(UserInterface!$E$82 = 1,'NGGT TO (Base)'!AG254,'NGGT TO (Best)'!AG254) -> 0
E256: Fleetwood | G256: £m 09/10 prices | AH256: =IF(UserInterface!$E$82 = 1,'NGGT TO (Base)'!AH256,'NGGT TO (Best)'!AH256) -> 12.57723427 | AI256: =IF(UserInterface!$E$82 = 1,'NGGT TO (Base)'!AI256,'NGGT TO (Best)'!AI256) -> 24.07961809 | AJ256: =IF(UserInterface!$E$82 = 1,'NGGT TO (Base)'!AJ256,'NGGT TO (Best)'!AJ256) -> 67.51894883 | AK256: =IF(UserInterface!$E$82 = 1,'NGGT TO (Base)'!AK256,'NGGT TO (Best)'!AK256) -> 106.4475745 | AL256: =IF(UserInterface!$E$82 = 1,'NGGT TO (Base)'!AL256,'NGGT TO (Best)'!AL256) -> 55.41759442 | AM256: =IF(UserInterface!$E$82 = 1,'NGGT TO (Base)'!AM256,'NGGT TO (Best)'!AM256) -> 2.302582427 | AN256: =IF(UserInterface!$E$82 = 1,'NGGT TO (Base)'!AN256,'NGGT TO (Best)'!AN256) -> 0 | AO256: =IF(UserInterface!$E$82 = 1,'NGGT TO (Base)'!AO256,'NGGT TO (Best)'!AO256) -> 0
E257: SW Quad 2008/09 post-RIIO capex | G257: £m 09/10 prices | AH257: =IF(UserInterface!$E$82 = 1,'NGGT TO (Base)'!AH257,'NGGT TO (Best)'!AH257) -> 0.8210584457 | AI257: =IF(UserInterface!$E$82 = 1,'NGGT TO (Base)'!AI257,'NGGT TO (Best)'!AI257) -> 0 | AJ257: =IF(UserInterface!$E$82 = 1,'NGGT TO (Base)'!AJ257,'NGGT TO (Best)'!AJ257) -> 0 | AK257: =IF(UserInterface!$E$82 = 1,'NGGT TO (Base)'!AK257,'NGGT TO (Best)'!AK257) -> 0 | AL257: =IF(UserInterface!$E$82 = 1,'NGGT TO (Base)'!AL257,'NGGT TO (Best)'!AL257) -> 0 | AM257: =IF(UserInterface!$E$82 = 1,'NGGT TO (Base)'!AM257,'NGGT TO (Best)'!AM257) -> 0 | AN257: =IF(UserInterface!$E$82 = 1,'NGGT TO (Base)'!AN257,'NGGT TO (Best)'!AN257) -> 0 | AO257: =IF(UserInterface!$E$82 = 1,'NGGT TO (Base)'!AO257,'NGGT TO (Best)'!AO257) -> 0
... 57 more rows

Sheet Totex
A1: Totex
B2: =UserInterface!G39 -> NGGT TO
E3: Parameter | G3: Units | I3: Constant | AH3: Annual values
E4: PCFM year ending | F4: =Cover!C3 -> RIIO_GT1_FP_ FinancialModel_dec12.xlsm | I4: =UserInterface!$G$32 -> 2014-03-31 | K4: 1991-03-31 | L4: 1992-03-31 | M4: 1993-03-31 | N4: 1994-03-31 | O4: 1995-03-31 | P4: 1996-03-31 | Q4: 1997-03-31 | R4: 1998-03-31 | S4: 1999-03-31 | T4: 2000-03-31 | U4: 2001-03-31 | V4: 2002-03-31 | W4: 2003-03-31 | X4: 2004-03-31 | Y4: 2005-03-31 | Z4: 2006-03-31 | AA4: 2007-03-31 | AB4: 2008-03-31 | AC4: 2009-03-31 | AD4: 2010-03-31 | AE4: 2011-03-31 | AF4: 2012-03-31 | AG4: 2013-03-31 | AH4: 2014-03-31 | AI4: 2015-03-31 | AJ4: 2016-03-31 | AK4: 2017-03-31 | AL4: 2018-03-31 | AM4: 2019-03-31 | AN4: 2020-03-31 | AO4: 2021-03-31
B6: Totex
C8: Allowed totex aggregated by sub-category
C9: Note: Totex is the sum of a number of cost categories, with all totex allowances falling under one (or more) of them. They have significance in the model as each sub-category can have its own set of tax pool allocation rules.
D11: Non-variant allowances
D12: Note: These values are set at final proposals and are not updated during the price control
E14: Non-variant allowed load related capex expenditure | G14: £m 09/10 prices | AH14: =Input!AH84 -> 25.4593078 | AI14: =Input!AI84 -> 14.41280752 | AJ14: =Input!AJ84 -> 9.617320208 | AK14: =Input!AK84 -> 60.4467775 | AL14: =Input!AL84 -> 84.88019853 | AM14: =Input!AM84 -> 8.524933684 | AN14: =Input!AN84 -> 0.2315287874 | AO14: =Input!AO84 -> 0
E15: Non-variant allowed asset replacement capex expenditure | G15: £m 09/10 prices | AH15: =Input!AH85 -> 86.8202567 | AI15: =Input!AI85 -> 100.2012626 | AJ15: =Input!AJ85 -> 107.8209037 | AK15: =Input!AK85 -> 117.8361291 | AL15: =Input!AL85 -> 132.705636 | AM15: =Input!AM85 -> 113.3127258 | AN15: =Input!AN85 -> 95.49069633 | AO15: =Input!AO85 -> 85.29208013
E16: Non-variant allowed other capex expenditure | G16: £m 09/10 prices | AH16: =Input!AH86 -> 0 | AI16: =Input!AI86 -> 0 | AJ16: =Input!AJ86 -> 0 | AK16: =Input!AK86 -> 0 | AL16: =Input!AL86 -> 0 | AM16: =Input!AM86 -> 0 | AN16: =Input!AN86 -> 0 | AO16: =Input!AO86 -> 0
E17: Non-variant allowed controllable opex | G17: £m 09/10 prices | AH17: =Input!AH87 -> 64.48267201 | AI17: =Input!AI87 -> 65.23787422 | AJ17: =Input!AJ87 -> 70.77289473 | AK17: =Input!AK87 -> 79.36833827 | AL17: =Input!AL87 -> 84.31747913 | AM17: =Input!AM87 -> 84.64134636 | AN17: =Input!AN87 -> 80.72801478 | AO17: =Input!AO87 -> 77.49007012
E18: Non-variant allowed non-operational capex | G18: £m 09/10 prices | AH18: =Input!AH88 -> 10.31226162 | AI18: =Input!AI88 -> 9.678449854 | AJ18: =Input!AJ88 -> 6.615822716 | AK18: =Input!AK88 -> 6.133648068 | AL18: =Input!AL88 -> 5.57274791 | AM18: =Input!AM88 -> 4.190695059 | AN18: =Input!AN88 -> 6.384863783 | AO18: =Input!AO88 -> 5.865895674
D20: Variant allowances
D21: Note: Licence conditions may allow for non-baseline allowances to be granted. These are added to the baseline to generate the allowed sub-categories and thereby the overall allowed totex.
E23: =Input!E148 -> Variant allowed load related capex expenditure | G23: =Input!G148 -> £m 09/10 prices | AH23: =Input!AH148 -> 6.525763736 | AI23: =Input!AI148 -> 10.02638273 | AJ23: =Input!AJ148 -> 75.9405384 | AK23: =Input!AK148 -> 159.2547361 | AL23: =Input!AL148 -> 307.4852469 | AM23: =Input!AM148 -> 348.1654213 | AN23: =Input!AN148 -> 467.2531914 | AO23: =Input!AO148 -> 525.3132436
E24: =Input!E149 -> Variant allowed asset replacement capex expenditure | G24: =Input!G149 -> £m 09/10 prices | AH24: =Input!AH149 -> 0 | AI24: =Input!AI149 -> 0 | AJ24: =Input!AJ149 -> 2.330050148 | AK24: =Input!AK149 -> 3.351665046 | AL24: =Input!AL149 -> 18.27312291 | AM24: =Input!AM149 -> 15.94288596 | AN24: =Input!AN149 -> 16.08738062 | AO24: =Input!AO149 -> 14.67728855
E25: =Input!E150 -> Variant allowed other capex expenditure | G25: =Input!G150 -> £m 09/10 prices | AH25: =Input!AH150 -> 4.956745898 | AI25: =Input!AI150 -> 5.244208167 | AJ25: =Input!AJ150 -> 5.387688454 | AK25: =Input!AK150 -> 5.62820732 | AL25: =Input!AL150 -> 5.418277366 | AM25: =Input!AM150 -> 5.473104223 | AN25: =Input!AN150 -> 5.535490083 | AO25: =Input!AO150 -> 5.598587055
E26: =Input!E151 -> Variant allowed controllable opex | G26: =Input!G151 -> £m 09/10 prices | AH26: =Input!AH151 -> 3.281966185 | AI26: =Input!AI151 -> 2.6088895 | AJ26: =Input!AJ151 -> 2.542028641 | AK26: =Input!AK151 -> 2.460319069 | AL26: =Input!AL151 -> 2.39 | AM26: =Input!AM151 -> 2.358167076 | AN26: =Input!AN151 -> 2.30123017 | AO26: =Input!AO151 -> 2.226242884
E27: =Input!E152 -> Variant allowed non-operational capex | G27: =Input!G152 -> £m 09/10 prices | AH27: =Input!AH152 -> 0 | AI27: =Input!AI152 -> 0 | AJ27: =Input!AJ152 -> 0 | AK27: =Input!AK152 -> 0 | AL27: =Input!AL152 -> 0 | AM27: =Input!AM152 -> 0 | AN27: =Input!AN152 -> 0 | AO27: =Input!AO152 -> 0
D29: Allowance
D30: Note: "Allowed totex" is exported to be used in the TIM calculation. The allowed totex sub-categories are used below to create forecast actuals for the tax calculation and the TIM calculation when actuals are not yet available.
E32: Allowed load related capex expenditure | G32: £m 09/10 prices | AH32: =AH14 + AH23 -> 31.98507153 | AI32: 24.43919025 | AJ32: 85.55785861 | AK32: 219.7015136 | AL32: 392.3654455 | AM32: 356.690355 | AN32: 467.4847202 | AO32: 525.3132436
E33: Allowed asset replacement capex expenditure | G33: £m 09/10 prices | AH33: 86.8202567 | AI33: 100.2012626 | AJ33: 110.1509538 | AK33: 121.1877942 | AL33: 150.978759 | AM33: 129.2556118 | AN33: 111.5780769 | AO33: 99.96936868
E34: Allowed other capex expenditure | G34: £m 09/10 prices | AH34: 4.956745898 | AI34: 5.244208167 | AJ34: 5.387688454 | AK34: 5.62820732 | AL34: 5.418277366 | AM34: 5.473104223 | AN34: 5.535490083 | AO34: 5.598587055
E35: Allowed controllable opex | G35: £m 09/10 prices | AH35: 67.7646382 | AI35: 67.84676372 | AJ35: 73.31492337 | AK35: 81.82865734 | AL35: 86.70747913 | AM35: 86.99951343 | AN35: 83.02924495 | AO35: 79.71631301
E36: Allowed non-operational capex | G36: £m 09/10 prices | AH36: 10.31226162 | AI36: 9.678449854 | AJ36: 6.615822716 | AK36: 6.133648068 | AL36: 5.57274791 | AM36: 4.190695059 | AN36: 6.384863783 | AO36: 5.865895674
E37: Allowed totex | G37: £m 09/10 prices | AH37: =SUM(AH32:AH36) -> 201.8389739 | AI37: 207.4098745 | AJ37: 281.027247 | AK37: 434.4798204 | AL37: 641.0427088 | AM37: 582.6092794 | AN37: 674.012396 | AO37: 716.463408
C39: Actual totex
D41: Source of actuals
D42: Note: The model assumes that there is a time lag from year t until actual expenditure data becomes available for the model. After the lag, actual expenditure inputs are used. Up to that point the model generates a forecast actual expenditure.
D43: When required in the model, forecasts assume that actuals are equal to their corresponding allowance.
D44: In a year where actual totex is assumed to be available, values must be inputted to the model as it will not generate a forecast and the empty input cell will be read as an actual spend of zero.
E46: Years from t until normal reporting of actual costs | G46: years | I46: =Input!I50 -> 2
E47: Input actuals used | G47: text | AH47: =YEAR($I$4) >= YEAR(AH$4) + $I46 -> FALSE | AI47: FALSE | AJ47: FALSE | AK47: FALSE | AL47: FALSE | AM47: FALSE | AN47: FALSE | AO47: FALSE
E48: Forecast actuals generated from allowances | G48: text | AH48: =YEAR($I$4) < YEAR(AH$4) + $I46 -> TRUE | AI48: TRUE | AJ48: TRUE | AK48: TRUE | AL48: TRUE | AM48: TRUE | AN48: TRUE | AO48: TRUE
D50: Actual totex from cost reporting processes and final proposals
E52: Actual load related capex expenditure | G52: £m 09/10 prices | AH52: =IF(AH$47, Input!AH156, 0) -> 0 | AI52: =IF(AI$47, Input!AI156, 0) -> 0 | AJ52: =IF(AJ$47, Input!AJ156, 0) -> 0 | AK52: =IF(AK$47, Input!AK156, 0) -> 0 | AL52: =IF(AL$47, Input!AL156, 0) -> 0 | AM52: =IF(AM$47, Input!AM156, 0) -> 0 | AN52: =IF(AN$47, Input!AN156, 0) -> 0 | AO52: =IF(AO$47, Input!AO156, 0) -> 0
E53: Actual asset replacement capex expenditure | G53: £m 09/10 prices | AH53: =IF(AH$47, Input!AH157, 0) -> 0 | AI53: =IF(AI$47, Input!AI157, 0) -> 0 | AJ53: =IF(AJ$47, Input!AJ157, 0) -> 0 | AK53: =IF(AK$47, Input!AK157, 0) -> 0 | AL53: =IF(AL$47, Input!AL157, 0) -> 0 | AM53: =IF(AM$47, Input!AM157, 0) -> 0 | AN53: =IF(AN$47, Input!AN157, 0) -> 0 | AO53: =IF(AO$47, Input!AO157, 0) -> 0
E54: Actual other capex expenditure | G54: £m 09/10 prices | AH54: =IF(AH$47, Input!AH158, 0) -> 0 | AI54: =IF(AI$47, Input!AI158, 0) -> 0 | AJ54: =IF(AJ$47, Input!AJ158, 0) -> 0 | AK54: =IF(AK$47, Input!AK158, 0) -> 0 | AL54: =IF(AL$47, Input!AL158, 0) -> 0 | AM54: =IF(AM$47, Input!AM158, 0) -> 0 | AN54: =IF(AN$47, Input!AN158, 0) -> 0 | AO54: =IF(AO$47, Input!AO158, 0) -> 0
E55: Actual controllable opex | G55: £m 09/10 prices | AH55: =IF(AH$47, Input!AH159, 0) -> 0 | AI55: =IF(AI$47, Input!AI159, 0) -> 0 | AJ55: =IF(AJ$47, Input!AJ159, 0) -> 0 | AK55: =IF(AK$47, Input!AK159, 0) -> 0 | AL55: =IF(AL$47, Input!AL159, 0) -> 0 | AM55: =IF(AM$47, Input!AM159, 0) -> 0 | AN55: =IF(AN$47, Input!AN159, 0) -> 0 | AO55: =IF(AO$47, Input!AO159, 0) -> 0
E56: Actual non-operational capex | G56: £m 09/10 prices | AH56: =IF(AH$47, Input!AH160, 0) -> 0 | AI56: =IF(AI$47, Input!AI160, 0) -> 0 | AJ56: =IF(AJ$47, Input!AJ160, 0) -> 0 | AK56: =IF(AK$47, Input!AK160, 0) -> 0 | AL56: =IF(AL$47, Input!AL160, 0) -> 0 | AM56: =IF(AM$47, Input!AM160, 0) -> 0 | AN56: =IF(AN$47, Input!AN160, 0) -> 0 | AO56: =IF(AO$47, Input!AO160, 0) -> 0
D58: Forecast totex from new allowances
E60: Forecast actual load related capex expenditure | G60: £m 09/10 prices | AH60: =IF(AH$48, AH32, 0) -> 31.98507153 | AI60: =IF(AI$48, AI32, 0) -> 24.43919025 | AJ60: 85.55785861 | AK60: 219.7015136 | AL60: 392.3654455 | AM60: 356.690355 | AN60: 467.4847202 | AO60: 525.3132436
E61: Forecast actual asset replacement capex expenditure | G61: £m 09/10 prices | AH61: 86.8202567 | AI61: 100.2012626 | AJ61: 110.1509538 | AK61: 121.1877942 | AL61: 150.978759 | AM61: 129.2556118 | AN61: 111.5780769 | AO61: 99.96936868
E62: Forecast actual other capex expenditure | G62: £m 09/10 prices | AH62: 4.956745898 | AI62: 5.244208167 | AJ62: 5.387688454 | AK62: 5.62820732 | AL62: 5.418277366 | AM62: 5.473104223 | AN62: 5.535490083 | AO62: 5.598587055
E63: Forecast actual controllable opex | G63: £m 09/10 prices | AH63: 67.7646382 | AI63: 67.84676372 | AJ63: 73.31492337 | AK63: 81.82865734 | AL63: 86.70747913 | AM63: 86.99951343 | AN63: 83.02924495 | AO63: 79.71631301
E64: Forecast actual non-operational capex | G64: £m 09/10 prices | AH64: 10.31226162 | AI64: 9.678449854 | AJ64: 6.615822716 | AK64: 6.133648068 | AL64: 5.57274791 | AM64: 4.190695059 | AN64: 6.384863783 | AO64: 5.865895674
D66: Totex applied
D67: Note: Actuals are exported both to identify performance against the allowance and to generate writing down allowances used in the tax calculation.
E69: Actual load related capex expenditure | G69: £m 09/10 prices | AH69: =AH52 + AH60 -> 31.98507153 | AI69: 24.43919025 | AJ69: 85.55785861 | AK69: 219.7015136 | AL69: 392.3654455 | AM69: 356.690355 | AN69: 467.4847202 | AO69: 525.3132436
E70: Actual asset replacement capex expenditure | G70: £m 09/10 prices | AH70: 86.8202567 | AI70: 100.2012626 | AJ70: 110.1509538 | AK70: 121.1877942 | AL70: 150.978759 | AM70: 129.2556118 | AN70: 111.5780769 | AO70: 99.96936868
E71: Actual other capex expenditure | G71: £m 09/10 prices | AH71: 4.956745898 | AI71: 5.244208167 | AJ71: 5.387688454 | AK71: 5.62820732 | AL71: 5.418277366 | AM71: 5.473104223 | AN71: 5.535490083 | AO71: 5.598587055
E72: Actual controllable opex | G72: £m 09/10 prices | AH72: 67.7646382 | AI72: 67.84676372 | AJ72: 73.31492337 | AK72: 81.82865734 | AL72: 86.70747913 | AM72: 86.99951343 | AN72: 83.02924495 | AO72: 79.71631301
E73: Actual non-operational capex | G73: £m 09/10 prices | AH73: 10.31226162 | AI73: 9.678449854 | AJ73: 6.615822716 | AK73: 6.133648068 | AL73: 5.57274791 | AM73: 4.190695059 | AN73: 6.384863783 | AO73: 5.865895674
E74: Actual totex | G74: £m 09/10 prices | AH74: =SUM(AH69:AH73) -> 201.8389739 | AI74: 207.4098745 | AJ74: 281.027247 | AK74: 434.4798204 | AL74: 641.0427088 | AM74: 582.6092794 | AN74: 674.012396 | AO74: 716.463408
B76: End of sheet

Sheet TIM
A1: Totex Incentive Mechanism (TIM)
B2: =UserInterface!G39 -> NGGT TO
E3: Parameter | G3: Units | I3: Constant | AH3: Annual values
E4: PCFM year ending | F4: =Cover!C3 -> RIIO_GT1_FP_ FinancialModel_dec12.xlsm | I4: =UserInterface!$G$32 -> 2014-03-31 | K4: 1991-03-31 | L4: 1992-03-31 | M4: 1993-03-31 | N4: 1994-03-31 | O4: 1995-03-31 | P4: 1996-03-31 | Q4: 1997-03-31 | R4: 1998-03-31 | S4: 1999-03-31 | T4: 2000-03-31 | U4: 2001-03-31 | V4: 2002-03-31 | W4: 2003-03-31 | X4: 2004-03-31 | Y4: 2005-03-31 | Z4: 2006-03-31 | AA4: 2007-03-31 | AB4: 2008-03-31 | AC4: 2009-03-31 | AD4: 2010-03-31 | AE4: 2011-03-31 | AF4: 2012-03-31 | AG4: 2013-03-31 | AH4: 2014-03-31 | AI4: 2015-03-31 | AJ4: 2016-03-31 | AK4: 2017-03-31 | AL4: 2018-03-31 | AM4: 2019-03-31 | AN4: 2020-03-31 | AO4: 2021-03-31
B6: Efficiency incentive
C8: Incentive strength
E10: Incentive rate (slope) | G10: scalar | I10: =Input!I55 -> -0.0025
E11: Incentive rate (intercept) | G11: scalar | I11: =Input!I56 -> 0.75
E12: Group rate | G12: ratio | I12: =Input!I66 / Input!I65*100 -> 122.5584663
E14: Incentive strength | G14: % | I14: =ROUND(I11+I10*I12,4) -> 0.4436
C16: Additional income
E18: Ofgem view | G18: % | I18: =Input!I59 -> 0.75
E19: Operator view | G19: % | I19: =Input!I60 -> 0.25
E21: Ofgem view of group price control totex | G21: £m 09/10 prices | I21: =Input!I65 -> 2046.500703
E23: Additional income (intercept) | G23: scalar | I23: =Input!I57 -> 8.75
E24: First order parameter | G24: % | I24: =(-(I10 * I18*100) - (I11 * I19)) -> 0
E25: Second order parameter | G25: % | I25: =(0.5-I19) * I10 -> -0.000625
E26: Additional income scalar | G26: % | I26: =(I23+I24*(I12)+I25*(I12)^2) -> -0.6378610407
E28: Additional income at group level | G28: £m 09/10 prices | I28: =I21*I26/100 -> -13.05383068
E30: Forecast licensee totex | G30: £m 09/10 prices | I30: =Input!I62*Input!$I$59+Input!I63*Input!$I$60 -> 1704.845639
E31: Forecast group totex | G31: £m 09/10 prices | I31: =Input!I65*I18 + Input!I66*I19 -> 2161.915496
E32: Percentage of group totex at licensee level | G32: % | I32: =I30 / I31 -> 0.7885810717
B34: Efficiency incentive
C36: Post-TIM overspend (underspend)
C37: Note: Totex overspend (underspend) is identified and subject to the "Funding Adjustment Rate."
C38: - Non-'uncertainty rate' and 'uncertainty rate' totex are separated at this stage to allow for the application of their respective capitalisation rates to any overspend (underspend)
D40: Non-'uncertainty rate' totex
E42: Actual non-'uncertainty rate' totex | G42: £m 09/10 prices | AH42: =Totex!AH74 - IF(Totex!AH48, SUM(Input!AH18:AH26), SUM(Input!AH14:AH17)) -> 187.0744981 | AI42: =Totex!AI74 - IF(Totex!AI48, SUM(Input!AI18:AI26), SUM(Input!AI14:AI17)) -> 189.5303941 | AJ42: =Totex!AJ74 - IF(Totex!AJ48, SUM(Input!AJ18:AJ26), SUM(Input!AJ14:AJ17)) -> 194.8269413 | AK42: =Totex!AK74 - IF(Totex!AK48, SUM(Input!AK18:AK26), SUM(Input!AK14:AK17)) -> 263.784893 | AL42: =Totex!AL74 - IF(Totex!AL48, SUM(Input!AL18:AL26), SUM(Input!AL14:AL17)) -> 307.4760616 | AM42: =Totex!AM74 - IF(Totex!AM48, SUM(Input!AM18:AM26), SUM(Input!AM14:AM17)) -> 210.6697009 | AN42: =Totex!AN74 - IF(Totex!AN48, SUM(Input!AN18:AN26), SUM(Input!AN14:AN17)) -> 182.8351037 | AO42: =Totex!AO74 - IF(Totex!AO48, SUM(Input!AO18:AO26), SUM(Input!AO14:AO17)) -> 168.6480459
E43: Less allowed non-'uncertainty rate' totex | G43: £m 09/10 prices | AH43: =-Totex!AH37 + SUM(Input!AH18:AH26) -> -187.0744981 | AI43: =-Totex!AI37 + SUM(Input!AI18:AI26) -> -189.5303941 | AJ43: =-Totex!AJ37 + SUM(Input!AJ18:AJ26) -> -194.8269413 | AK43: =-Totex!AK37 + SUM(Input!AK18:AK26) -> -263.784893 | AL43: =-Totex!AL37 + SUM(Input!AL18:AL26) -> -307.4760616 | AM43: =-Totex!AM37 + SUM(Input!AM18:AM26) -> -210.6697009 | AN43: =-Totex!AN37 + SUM(Input!AN18:AN26) -> -182.8351037 | AO43: =-Totex!AO37 + SUM(Input!AO18:AO26) -> -168.6480459
E44: Pre-TIM non-'uncertainty rate' overspend (underspend) | G44: £m 09/10 prices | AH44: =SUM(AH42:AH43) -> 0 | AI44: 0 | AJ44: 0 | AK44: 0 | AL44: 0 | AM44: 0 | AN44: 0 | AO44: 0
E46: Funding Adjustment Rate (often referred to as 'sharing factor') | G46: % | AH46: =(1 - $I$14) -> 0.5564 | AI46: =(1 - $I$14) -> 0.5564 | AJ46: 0.5564 | AK46: 0.5564 | AL46: 0.5564 | AM46: 0.5564 | AN46: 0.5564 | AO46: 0.5564
E48: Post-TIM non-'uncertainty rate' overspend (underspend) | G48: £m 09/10 prices | AH48: =AH$46*AH44 -> 0 | AI48: =AI$46*AI44 -> 0 | AJ48: 0 | AK48: 0 | AL48: 0 | AM48: 0 | AN48: 0 | AO48: 0
D50: Uncertainty rate' totex
E52: Actual 'uncertainty rate' totex | G52: £m 09/10 prices | AH52: =IF(Totex!AH48,SUM(Input!AH18:AH26),SUM(Input!AH14:AH17)) -> 14.76447582 | AI52: =IF(Totex!AI48,SUM(Input!AI18:AI26),SUM(Input!AI14:AI17)) -> 17.87948039 | AJ52: =IF(Totex!AJ48,SUM(Input!AJ18:AJ26),SUM(Input!AJ14:AJ17)) -> 86.20030564 | AK52: =IF(Totex!AK48,SUM(Input!AK18:AK26),SUM(Input!AK14:AK17)) -> 170.6949275 | AL52: =IF(Totex!AL48,SUM(Input!AL18:AL26),SUM(Input!AL14:AL17)) -> 333.5666472 | AM52: =IF(Totex!AM48,SUM(Input!AM18:AM26),SUM(Input!AM14:AM17)) -> 371.9395786 | AN52: =IF(Totex!AN48,SUM(Input!AN18:AN26),SUM(Input!AN14:AN17)) -> 491.1772923 | AO52: =IF(Totex!AO48,SUM(Input!AO18:AO26),SUM(Input!AO14:AO17)) -> 547.8153621
E53: Less allowed 'uncertainty rate' totex | G53: £m 09/10 prices | AH53: =-SUM(Input!AH18:AH26) -> -14.76447582 | AI53: =-SUM(Input!AI18:AI26) -> -17.87948039 | AJ53: =-SUM(Input!AJ18:AJ26) -> -86.20030564 | AK53: =-SUM(Input!AK18:AK26) -> -170.6949275 | AL53: =-SUM(Input!AL18:AL26) -> -333.5666472 | AM53: =-SUM(Input!AM18:AM26) -> -371.9395786 | AN53: =-SUM(Input!AN18:AN26) -> -491.1772923 | AO53: =-SUM(Input!AO18:AO26) -> -547.8153621
E54: Pre-TIM 'uncertainty rate' overspend (underspend) | G54: £m 09/10 prices | AH54: =SUM(AH52:AH53) -> 0 | AI54: 0 | AJ54: 0 | AK54: 0 | AL54: 0 | AM54: 0 | AN54: 0 | AO54: 0
E56: Funding Adjustment Rate (often referred to as 'sharing factor') | G56: % | AH56: =(1 - $I$14) -> 0.5564 | AI56: =(1 - $I$14) -> 0.5564 | AJ56: 0.5564 | AK56: 0.5564 | AL56: 0.5564 | AM56: 0.5564 | AN56: 0.5564 | AO56: 0.5564
E58: Post-TIM 'uncertainty rate' overspend (underspend) | G58: £m 09/10 prices | AH58: =AH$56 * AH54 -> 0 | AI58: =AI$56 * AI54 -> 0 | AJ58: 0 | AK58: 0 | AL58: 0 | AM58: 0 | AN58: 0 | AO58: 0
C60: Post-TIM totex
C61: Note: "Post-TIM overspend (underspend)" is added to the allowed totex value to give the Post-TIM totex allowance to be split into fast and slow money.
D63: Non-'uncertainty rate' totex
E65: Allowed totex | G65: £m 09/10 prices | AH65: =-AH43 -> 187.0744981 | AI65: =-AI43 -> 189.5303941 | AJ65: 194.8269413 | AK65: 263.784893 | AL65: 307.4760616 | AM65: 210.6697009 | AN65: 182.8351037 | AO65: 168.6480459
E66: Post-TIM overspend (underspend) | G66: £m 09/10 prices | AH66: =AH48 -> 0 | AI66: =AI48 -> 0 | AJ66: 0 | AK66: 0 | AL66: 0 | AM66: 0 | AN66: 0 | AO66: 0
E67: Post-TIM totex | G67: £m 09/10 prices | AH67: =SUM(AH65:AH66) -> 187.0744981 | AI67: 189.5303941 | AJ67: 194.8269413 | AK67: 263.784893 | AL67: 307.4760616 | AM67: 210.6697009 | AN67: 182.8351037 | AO67: 168.6480459
D69: Uncertainty rate' totex
E71: Allowed totex | G71: £m 09/10 prices | AH71: =-AH53 -> 14.76447582 | AI71: =-AI53 -> 17.87948039 | AJ71: 86.20030564 | AK71: 170.6949275 | AL71: 333.5666472 | AM71: 371.9395786 | AN71: 491.1772923 | AO71: 547.8153621
E72: Post-TIM overspend (underspend) | G72: £m 09/10 prices | AH72: =AH58 -> 0 | AI72: =AI58 -> 0 | AJ72: 0 | AK72: 0 | AL72: 0 | AM72: 0 | AN72: 0 | AO72: 0
E73: Post-TIM totex | G73: £m 09/10 prices | AH73: =SUM(AH71:AH72) -> 14.76447582 | AI73: 17.87948039 | AJ73: 86.20030564 | AK73: 170.6949275 | AL73: 333.5666472 | AM73: 371.9395786 | AN73: 491.1772923 | AO73: 547.8153621
B75: Capitalisation
B76: Note: Non-'uncertainty rate' totex and 'uncertainty rate' totex are capitalised separately. Post-TIM totex is allocated into "fast" and "slow" elements based on a pre-set percentage split:
B77: - "fast money " is exported to the "Revenue" sheet where it is included as an element of "recalculated base revenue;" and
B78: - "slow money " is exported to the "Depn" sheet where it is added to RAV. Slow money is recovered over the life of the RAV through regulatory depreciation and return allowances.
C80: Separate capitalisation
D82: Non-'uncertainty rate' totex
E84: Post-TIM totex | G84: £m 09/10 prices | AH84: =AH67 -> 187.0744981 | AI84: =AI67 -> 189.5303941 | AJ84: 194.8269413 | AK84: 263.784893 | AL84: 307.4760616 | AM84: 210.6697009 | AN84: 182.8351037 | AO84: 168.6480459
E85: Capitalised share of totex (non-'uncertainty rate') | G85: % | AH85: =Input!AH52 -> 0.644 | AI85: =Input!AI52 -> 0.644 | AJ85: =Input!AJ52 -> 0.644 | AK85: =Input!AK52 -> 0.644 | AL85: =Input!AL52 -> 0.644 | AM85: =Input!AM52 -> 0.644 | AN85: =Input!AN52 -> 0.644 | AO85: =Input!AO52 -> 0.644
E86: Fast pot expenditure | G86: £m 09/10 prices | AH86: =AH84-AH87 -> 66.59852133 | AI86: 67.47282032 | AJ86: 69.35839111 | AK86: 93.90742189 | AL86: 109.4614779 | AM86: 74.99841352 | AN86: 65.08929691 | AO86: 60.03870435
E87: Slow pot expenditure | G87: £m 09/10 prices | AH87: =AH84 * AH85 -> 120.4759768 | AI87: =AI84 * AI85 -> 122.0575738 | AJ87: 125.4685502 | AK87: 169.8774711 | AL87: 198.0145837 | AM87: 135.6712874 | AN87: 117.7458068 | AO87: 108.6093416
D89: Uncertainty rate' totex
E91: Post-TIM totex | G91: £m 09/10 prices | AH91: =AH73 -> 14.76447582 | AI91: =AI73 -> 17.87948039 | AJ91: 86.20030564 | AK91: 170.6949275 | AL91: 333.5666472 | AM91: 371.9395786 | AN91: 491.1772923 | AO91: 547.8153621
E92: Capitalised share of 'uncertainty rate' | G92: % | AH92: =Input!AH53 -> 0.9 | AI92: =Input!AI53 -> 0.9 | AJ92: =Input!AJ53 -> 0.9 | AK92: =Input!AK53 -> 0.9 | AL92: =Input!AL53 -> 0.9 | AM92: =Input!AM53 -> 0.9 | AN92: =Input!AN53 -> 0.9 | AO92: =Input!AO53 -> 0.9
E93: Fast pot expenditure | G93: £m 09/10 prices | AH93: =AH91 - AH94 -> 1.476447582 | AI93: =AI91 - AI94 -> 1.787948039 | AJ93: 8.620030564 | AK93: 17.06949275 | AL93: 33.35666472 | AM93: 37.19395786 | AN93: 49.11772923 | AO93: 54.78153621
E94: Slow pot expenditure | G94: £m 09/10 prices | AH94: =AH91 * AH92 -> 13.28802824 | AI94: =AI91 * AI92 -> 16.09153235 | AJ94: 77.58027508 | AK94: 153.6254347 | AL94: 300.2099825 | AM94: 334.7456207 | AN94: 442.0595631 | AO94: 493.0338259
C96: Totex
E98: Fast pot expenditure | G98: £m 09/10 prices | AH98: =AH86+AH93 -> 68.07496891 | AI98: =AI86+AI93 -> 69.26076836 | AJ98: 77.97842167 | AK98: 110.9769146 | AL98: 142.8181427 | AM98: 112.1923714 | AN98: 114.2070261 | AO98: 114.8202406
E100: Slow pot expenditure | G100: £m 09/10 prices | AH100: =AH87+AH94 -> 133.764005 | AI100: =AI87+AI94 -> 138.1491062 | AJ100: 203.0488253 | AK100: 323.5029058 | AL100: 498.2245662 | AM100: 470.4169081 | AN100: 559.8053699 | AO100: 601.6431675
B102: Additional income
B103: Note: The additional income lump sum is recovered across the price control and is matched to the profile of allowed totex set at final proposals.
E105: Additional income | G105: £m 09/10 prices | I105: =I28*I32 -> -10.29400379
E107: Original allowed totex (set at final proposals) | G107: £m 09/10 prices | AH107: =SUM(Input!AH84:AH88) -> 187.0744981 | AI107: =SUM(Input!AI84:AI88) -> 189.5303941 | AJ107: =SUM(Input!AJ84:AJ88) -> 194.8269413 | AK107: =SUM(Input!AK84:AK88) -> 263.784893 | AL107: =SUM(Input!AL84:AL88) -> 307.4760616 | AM107: =SUM(Input!AM84:AM88) -> 210.6697009 | AN107: =SUM(Input!AN84:AN88) -> 182.8351037 | AO107: =SUM(Input!AO84:AO88) -> 168.6480459
E108: Total allowed totex in price control (set at final proposals) | G108: £m 09/10 prices | I108: =SUM($AH107:$AO107) -> 1704.845639
E110: Share of additional income allowed in year | G110: % | AH110: =AH107 / $I108 -> 0.1097310477 | AI110: 0.1111715864 | AJ110: 0.1142783469 | AK110: 0.1547265553 | AL110: 0.1803541943 | AM110: 0.1235711293 | AN110: 0.1072443742 | AO110: 0.09892276585
E112: Additional income | G112: £m 09/10 prices | AH112: =$I105 * AH110 -> -1.129571821 | AI112: =$I105 * AI110 -> -1.144400731 | AJ112: -1.176381736 | AK112: -1.592755746 | AL112: -1.85656676 | AM112: -1.272041674 | AN112: -1.103973995 | AO112: -1.018311327
B114: End of sheet

Sheet DARTs
A1: Direct Allowed Revenue Terms (DARTs)
B2: =UserInterface!G39 -> NGGT TO
E3: Parameter | G3: Units | I3: Constant | AH3: Annual values
E4: PCFM year ending | F4: =Cover!C3 -> RIIO_GT1_FP_ FinancialModel_dec12.xlsm | I4: =UserInterface!$G$32 -> 2014-03-31 | K4: 1991-03-31 | L4: 1992-03-31 | M4: 1993-03-31 | N4: 1994-03-31 | O4: 1995-03-31 | P4: 1996-03-31 | Q4: 1997-03-31 | R4: 1998-03-31 | S4: 1999-03-31 | T4: 2000-03-31 | U4: 2001-03-31 | V4: 2002-03-31 | W4: 2003-03-31 | X4: 2004-03-31 | Y4: 2005-03-31 | Z4: 2006-03-31 | AA4: 2007-03-31 | AB4: 2008-03-31 | AC4: 2009-03-31 | AD4: 2010-03-31 | AE4: 2011-03-31 | AF4: 2012-03-31 | AG4: 2013-03-31 | AH4: 2014-03-31 | AI4: 2015-03-31 | AJ4: 2016-03-31 | AK4: 2017-03-31 | AL4: 2018-03-31 | AM4: 2019-03-31 | AN4: 2020-03-31 | AO4: 2021-03-31
B6: Direct Allowed Revenue Terms (DARTs)
B7: Note: DARTs are allowances with minimal processing required in the model as they flow directly from input to revenue.
B8: They do however have different indirect impacts on equity issuance and tax. They are grouped here by their treatment type to aid common treatment of DARTs through the rest of the model.
B9: "Post-tax" allowances can be included in the tax calculation but "Pre-tax" allowances cannot.
B10: "Passthrough-style" allowances are treated as an equal revenue and cost. Therefore they have no net cash flow impact. "Revenue" allowances are just set as a revenue amount with any costs relating to them are dealt with elsewhere.
C12: Base Revenue
D14: No impact on net debt or tax
E16: Pension admin and PPF levy | G16: £m 09/10 prices | AH16: =Input!AH168 -> 2.7 | AI16: =Input!AI168 -> 2.6 | AJ16: =Input!AJ168 -> 2.6 | AK16: =Input!AK168 -> 2.7 | AL16: =Input!AL168 -> 2.6 | AM16: =Input!AM168 -> 2.6 | AN16: =Input!AN168 -> 2.7 | AO16: =Input!AO168 -> 2.6
E17: Established pension deficit repair | G17: £m 09/10 prices | AH17: =Input!AH169 -> 26.40985404 | AI17: =Input!AI169 -> 26.40985404 | AJ17: =Input!AJ169 -> 26.40985404 | AK17: =Input!AK169 -> 26.40985404 | AL17: =Input!AL169 -> 26.40985404 | AM17: =Input!AM169 -> 26.40985404 | AN17: =Input!AN169 -> 26.40985404 | AO17: =Input!AO169 -> 26.40985404
E18: Base Revenue DARTs with no impact on net debt or tax | G18: £m 09/10 prices | AH18: =SUM(AH16:AH17) -> 29.10985404 | AI18: 29.00985404 | AJ18: 29.00985404 | AK18: 29.10985404 | AL18: 29.00985404 | AM18: 29.00985404 | AN18: 29.10985404 | AO18: 29.00985404
D20: Impact net debt and tax
E22: Pension true-up from previous price controls | G22: £m 09/10 prices | AH22: =Input!AH171 -> 11.6224453 | AI22: =Input!AI171 -> 12.13092728 | AJ22: =Input!AJ171 -> 12.66165535 | AK22: =Input!AK171 -> 13.21560278 | AL22: =Input!AL171 -> 13.7937854 | AM22: =Input!AM171 -> 14.39726351 | AN22: =Input!AN171 -> 15.02714379 | AO22: =Input!AO171 -> 15.68458133
E23: Milford Haven | G23: £m 09/10 prices | AH23: =Input!AH172 -> -17.8 | AI23: =Input!AI172 -> -18.2 | AJ23: =Input!AJ172 -> -18.4 | AK23: =Input!AK172 -> -18.5 | AL23: =Input!AL172 -> 0 | AM23: =Input!AM172 -> 0 | AN23: =Input!AN172 -> 0 | AO23: =Input!AO172 -> 0
E24: Base Revenue DARTs impacting both net debt and tax | G24: £m 09/10 prices | AH24: =SUM(AH22:AH23) -> -6.177554697 | AI24: -6.069072715 | AJ24: -5.738344647 | AK24: -5.284397225 | AL24: 13.7937854 | AM24: 14.39726351 | AN24: 15.02714379 | AO24: 15.68458133
D26: Impact net debt, no impact on tax
E28: Revenue adjustment from previous controls | G28: £m 09/10 prices | AH28: =Input!AH176 -> 10.44809896 | AI28: =Input!AI176 -> 10.90520329 | AJ28: =Input!AJ176 -> 11.38230594 | AK28: =Input!AK176 -> 11.88028182 | AL28: =Input!AL176 -> 12.40004415 | AM28: =Input!AM176 -> 12.94254608 | AN28: =Input!AN176 -> 13.50878247 | AO28: =Input!AO176 -> 14.09979171
E29: Base Revenue DARTs impacting net debt but not tax | G29: £m 09/10 prices | AH29: =SUM(AH28) -> 10.44809896 | AI29: =SUM(AI28) -> 10.90520329 | AJ29: 11.38230594 | AK29: 11.88028182 | AL29: 12.40004415 | AM29: 12.94254608 | AN29: 13.50878247 | AO29: 14.09979171
C32: Directly-charged
D34: No impact on debt or tax
E36: Excluded services net position | G36: £m 09/10 prices | AH36: =Input!AH180 -> 3.5 | AI36: =Input!AI180 -> 2.9 | AJ36: =Input!AJ180 -> 3 | AK36: =Input!AK180 -> 3.1 | AL36: =Input!AL180 -> 3 | AM36: =Input!AM180 -> 3 | AN36: =Input!AN180 -> 3 | AO36: =Input!AO180 -> 3
E37: Directly-charged post-tax passthrough-style allowance | G37: £m 09/10 prices | AH37: =SUM(AH36) -> 3.5 | AI37: =SUM(AI36) -> 2.9 | AJ37: 3 | AK37: 3.1 | AL37: 3 | AM37: 3 | AN37: 3 | AO37: 3
C39: DART groups
C40: Note: The following subtotals are exported to the rest of the model allowing common treatment of DARTs after this stage.
C41: Excluded services are directly charged to users. It is treated here as a negative Base Revenue DART and positive Non Base Revenue DART. It is tax and cash flow neutral.
C42: "Net impact of DARTs on core net debt" removes the passthrough-style allowances from the cash flow, netting off their impact after being added to revenue.
C43: "Net DART impact on core tax calculation" removes passthrough and pre-tax allowances from the tax base such that only post-tax revenue allowances have an impact.
E45: Base revenue DARTs | G45: £m 09/10 prices | AH45: =AH18 + AH24 + AH29 - AH37 -> 29.88039831 | AI45: 30.94598462 | AJ45: 31.65381533 | AK45: 32.60573864 | AL45: 52.20368359 | AM45: 53.34966363 | AN45: 54.6457803 | AO45: 55.79422708
E47: Non Base Revenue DARTs | G47: £m 09/10 prices | AH47: =AH37 -> 3.5 | AI47: =AI37 -> 2.9 | AJ47: 3 | AK47: 3.1 | AL47: 3 | AM47: 3 | AN47: 3 | AO47: 3
E49: Net impact of DARTs on core net debt | G49: £m 09/10 prices | AH49: =- AH18 + AH37 -> -25.60985404 | AI49: -26.10985404 | AJ49: -26.00985404 | AK49: -26.00985404 | AL49: -26.00985404 | AM49: -26.00985404 | AN49: -26.10985404 | AO49: -26.00985404
E51: Net DART impact on core tax calculation | G51: £m 09/10 prices | AH51: =- AH18 - AH29 + AH37 -> -36.05795301 | AI51: -37.01505734 | AJ51: -37.39215998 | AK51: -37.89013586 | AL51: -38.40989819 | AM51: -38.95240013 | AN51: -39.61863652 | AO51: -40.10964575
B53: End of sheet

Sheet Depn
A1: Regulatory Depreciation
B2: =UserInterface!G39 -> NGGT TO
E3: Parameter | G3: Units | I3: Constant | AH3: Annual values
E4: PCFM year ending | F4: =Cover!C3 -> RIIO_GT1_FP_ FinancialModel_dec12.xlsm | I4: =UserInterface!$G$32 -> 2014-03-31 | K4: 1991-03-31 | L4: 1992-03-31 | M4: 1993-03-31 | N4: 1994-03-31 | O4: 1995-03-31 | P4: 1996-03-31 | Q4: 1997-03-31 | R4: 1998-03-31 | S4: 1999-03-31 | T4: 2000-03-31 | U4: 2001-03-31 | V4: 2002-03-31 | W4: 2003-03-31 | X4: 2004-03-31 | Y4: 2005-03-31 | Z4: 2006-03-31 | AA4: 2007-03-31 | AB4: 2008-03-31 | AC4: 2009-03-31 | AD4: 2010-03-31 | AE4: 2011-03-31 | AF4: 2012-03-31 | AG4: 2013-03-31 | AH4: 2014-03-31 | AI4: 2015-03-31 | AJ4: 2016-03-31 | AK4: 2017-03-31 | AL4: 2018-03-31 | AM4: 2019-03-31 | AN4: 2020-03-31 | AO4: 2021-03-31
B6: Regulatory depreciation
C8: Net RAV additions (after disposals)
C9: Note: Additions to RAV are combined before feeding into the depreciation calculations. Disposals are treated as negative additions. Pre-RIIO values are used to build up the post-vesting RAV from vesting.
C10: Logged-up and security costs are retrospectively added to RAV to provide the updated opening RAV and align depreciation with expenditure.
E12: Slow money | G12: £m 09/10 prices | AH12: =TIM!AH100 -> 133.764005 | AI12: =TIM!AI100 -> 138.1491062 | AJ12: =TIM!AJ100 -> 203.0488253 | AK12: =TIM!AK100 -> 323.5029058 | AL12: =TIM!AL100 -> 498.2245662 | AM12: =TIM!AM100 -> 470.4169081 | AN12: =TIM!AN100 -> 559.8053699 | AO12: =TIM!AO100 -> 601.6431675
E13: Net adjustments | G13: £m 09/10 prices | AH13: =SUM(Input!AH201:AH203) -> -0.007757980105 | AI13: =SUM(Input!AI200:AI203) -> -0.007757980105 | AJ13: =SUM(Input!AJ200:AJ203) -> -0.007757980105 | AK13: =SUM(Input!AK200:AK203) -> -0.007757980105 | AL13: =SUM(Input!AL200:AL203) -> -0.007757980105 | AM13: =SUM(Input!AM200:AM203) -> -0.007757980105 | AN13: =SUM(Input!AN200:AN203) -> -0.007757980105 | AO13: =SUM(Input!AO200:AO203) -> -0.007757980105
E14: Pre-RIIO net RAV additions (after disposals) | G14: £m 09/10 prices | J14: > | K14: =Input!K200 -> 0 | L14: =Input!L200 -> 0 | M14: =Input!M200 -> 0 | N14: =Input!N200 -> 0 | O14: =Input!O200 -> 0 | P14: =Input!P200 -> 0 | Q14: =Input!Q200 -> 0 | R14: =Input!R200 -> 0 | S14: =Input!S200 -> 0 | T14: =Input!T200 -> 0 | U14: =Input!U200 -> 0 | V14: =Input!V200 -> 0 | W14: =Input!W200 -> 0 | X14: =Input!X200 -> 299.3439968 | Y14: =Input!Y200 -> 96.38168898 | Z14: =Input!Z200 -> 300.0086599 | AA14: =Input!AA200 -> 541.1112417 | AB14: =Input!AB200 -> 585.7885273 | AC14: =Input!AC200 -> 247.7735543 | AD14: =Input!AD200 -> 123.1950711 | AE14: =Input!AE200 -> 99.98357059 | AF14: =Input!AF200 -> 101.1196543 | AG14: =Input!AG200 -> -28.7623433
E15: Net RAV additions (after disposals) | G15: £m 09/10 prices | J15: > | K15: =SUM(K12:K14) -> 0 | L15: 0 | M15: 0 | N15: 0 | O15: 0 | P15: 0 | Q15: 0 | R15: 0 | S15: 0 | T15: 0 | U15: 0 | V15: 0 | W15: 0 | X15: 299.3439968 | Y15: 96.38168898 | Z15: 300.0086599 | AA15: 541.1112417 | AB15: 585.7885273 | AC15: 247.7735543 | AD15: 123.1950711 | AE15: 99.98357059 | AF15: 101.1196543 | AG15: -28.7623433 | AH15: 133.756247 | AI15: 138.1413482 | AJ15: 203.0410673 | AK15: 323.4951478 | AL15: 498.2168082 | AM15: 470.4091501 | AN15: 559.7976119 | AO15: 601.6354095
C17: Net depreciation additions (after disposals)
C18: Note:
E20: Pre-RIIO transfers to depreciation | G20: £m 09/10 prices | J20: > | K20: =Input!K204 -> 0 | L20: =Input!L204 -> 0 | M20: =Input!M204 -> 0 | N20: =Input!N204 -> 0 | O20: =Input!O204 -> 0 | P20: =Input!P204 -> 0 | Q20: =Input!Q204 -> 0 | R20: =Input!R204 -> 0 | S20: =Input!S204 -> 0 | T20: =Input!T204 -> 0 | U20: =Input!U204 -> 0 | V20: =Input!V204 -> 0 | W20: =Input!W204 -> 0 | X20: =Input!X204 -> 3.410313723 | Y20: =Input!Y204 -> 0 | Z20: =Input!Z204 -> 0 | AA20: =Input!AA204 -> 0 | AB20: =Input!AB204 -> 0 | AC20: =Input!AC204 -> 0 | AD20: =Input!AD204 -> 0 | AE20: =Input!AE204 -> 0 | AF20: =Input!AF204 -> 0 | AG20: =Input!AG204 -> -8.311783379
C22: Pre-vesting depreciation
C23: Note: The following depreciation factor is used to depreciate the pre-vesting balance on the "Return&RAV" sheet.
E25: Pre-vesting asset life | G25: years | I25: =Input!I189 -> 56
E26: Sum of digits | G26: integer | I26: =I25 * (1 + I25) / 2 -> 1596
E27: Years of pre-vesting depreciation remaining | G27: years | AH27: =Input!AH191 -> 45 | AI27: =Input!AI191 -> 44 | AJ27: =Input!AJ191 -> 43 | AK27: =Input!AK191 -> 42 | AL27: =Input!AL191 -> 41 | AM27: =Input!AM191 -> 40 | AN27: =Input!AN191 -> 39 | AO27: =Input!AO191 -> 38
E29: Pre-vesting straight line depreciation factor | G29: scalar | AH29: =AH27 / $I26 -> 0.02819548872 | AI29: =AI27 / $I26 -> 0.02756892231 | AJ29: 0.02694235589 | AK29: 0.02631578947 | AL29: 0.02568922306 | AM29: 0.02506265664 | AN29: 0.02443609023 | AO29: 0.02380952381
C31: Post-vesting depreciation
D33: Depreciation parameters
E35: Post-vesting asset life | G35: years | J35: > | K35: =Input!K196 -> 45 | L35: =Input!L196 -> 45 | M35: =Input!M196 -> 45 | N35: =Input!N196 -> 45 | O35: =Input!O196 -> 45 | P35: =Input!P196 -> 45 | Q35: =Input!Q196 -> 45 | R35: =Input!R196 -> 45 | S35: =Input!S196 -> 45 | T35: =Input!T196 -> 45 | U35: =Input!U196 -> 45 | V35: =Input!V196 -> 45 | W35: =Input!W196 -> 45 | X35: =Input!X196 -> 45 | Y35: =Input!Y196 -> 45 | Z35: =Input!Z196 -> 45 | AA35: =Input!AA196 -> 45 | AB35: =Input!AB196 -> 45 | AC35: =Input!AC196 -> 45 | AD35: =Input!AD196 -> 45 | AE35: =Input!AE196 -> 45 | AF35: =Input!AF196 -> 45 | AG35: =Input!AG196 -> 45 | AH35: =Input!AH196 -> 45 | AI35: =Input!AI196 -> 45 | AJ35: =Input!AJ196 -> 45 | AK35: =Input!AK196 -> 45 | AL35: =Input!AL196 -> 45 | AM35: =Input!AM196 -> 45 | AN35: =Input!AN196 -> 45 | AO35: =Input!AO196 -> 45
D37: Depreciation schedule
E39: Depreciation of additions from year ending | I39: Net additions
E40: 1991-03-31 | G40: £m 09/10 prices | I40: =TRANSPOSE(K15:AO15) -> 0 | J40: > | L40: =$I40/K$35 -> 0 | M40: =IF($I40 >0, MIN(L40,$I40-SUM($L40:L40)), MAX(L40,$I40-SUM($L40:L40))) -> 0 | N40: =IF($I40 >0, MIN(M40,$I40-SUM($L40:M40)), MAX(M40,$I40-SUM($L40:M40))) -> 0 | O40: =IF($I40 >0, MIN(N40,$I40-SUM($L40:N40)), MAX(N40,$I40-SUM($L40:N40))) -> 0 | P40: =IF($I40 >0, MIN(O40,$I40-SUM($L40:O40)), MAX(O40,$I40-SUM($L40:O40))) -> 0 | Q40: =IF($I40 >0, MIN(P40,$I40-SUM($L40:P40)), MAX(P40,$I40-SUM($L40:P40))) -> 0 | R40: =IF($I40 >0, MIN(Q40,$I40-SUM($L40:Q40)), MAX(Q40,$I40-SUM($L40:Q40))) -> 0 | S40: =IF($I40 >0, MIN(R40,$I40-SUM($L40:R40)), MAX(R40,$I40-SUM($L40:R40))) -> 0 | T40: =IF($I40 >0, MIN(S40,$I40-SUM($L40:S40)), MAX(S40,$I40-SUM($L40:S40))) -> 0 | U40: =IF($I40 >0, MIN(T40,$I40-SUM($L40:T40)), MAX(T40,$I40-SUM($L40:T40))) -> 0 | V40: =IF($I40 >0, MIN(U40,$I40-SUM($L40:U40)), MAX(U40,$I40-SUM($L40:U40))) -> 0 | W40: =IF($I40 >0, MIN(V40,$I40-SUM($L40:V40)), MAX(V40,$I40-SUM($L40:V40))) -> 0 | X40: =IF($I40 >0, MIN(W40,$I40-SUM($L40:W40)), MAX(W40,$I40-SUM($L40:W40))) -> 0 | Y40: =IF($I40 >0, MIN(X40,$I40-SUM($L40:X40)), MAX(X40,$I40-SUM($L40:X40))) -> 0 | Z40: =IF($I40 >0, MIN(Y40,$I40-SUM($L40:Y40)), MAX(Y40,$I40-SUM($L40:Y40))) -> 0 | AA40: =IF($I40 >0, MIN(Z40,$I40-SUM($L40:Z40)), MAX(Z40,$I40-SUM($L40:Z40))) -> 0 | AB40: =IF($I40 >0, MIN(AA40,$I40-SUM($L40:AA40)), MAX(AA40,$I40-SUM($L40:AA40))) -> 0 | AC40: =IF($I40 >0, MIN(AB40,$I40-SUM($L40:AB40)), MAX(AB40,$I40-SUM($L40:AB40))) -> 0 | AD40: =IF($I40 >0, MIN(AC40,$I40-SUM($L40:AC40)), MAX(AC40,$I40-SUM($L40:AC40))) -> 0 | AE40: =IF($I40 >0, MIN(AD40,$I40-SUM($L40:AD40)), MAX(AD40,$I40-SUM($L40:AD40))) -> 0 | AF40: =IF($I40 >0, MIN(AE40,$I40-SUM($L40:AE40)), MAX(AE40,$I40-SUM($L40:AE40))) -> 0 | AG40: =IF($I40 >0, MIN(AF40,$I40-SUM($L40:AF40)), MAX(AF40,$I40-SUM($L40:AF40))) -> 0 | AH40: =IF($I40 >0, MIN(AG40,$I40-SUM($L40:AG40)), MAX(AG40,$I40-SUM($L40:AG40))) -> 0 | AI40: =IF($I40 >0, MIN(AH40,$I40-SUM($L40:AH40)), MAX(AH40,$I40-SUM($L40:AH40))) -> 0 | AJ40: =IF($I40 >0, MIN(AI40,$I40-SUM($L40:AI40)), MAX(AI40,$I40-SUM($L40:AI40))) -> 0 | AK40: =IF($I40 >0, MIN(AJ40,$I40-SUM($L40:AJ40)), MAX(AJ40,$I40-SUM($L40:AJ40))) -> 0 | AL40: =IF($I40 >0, MIN(AK40,$I40-SUM($L40:AK40)), MAX(AK40,$I40-SUM($L40:AK40))) -> 0 | AM40: =IF($I40 >0, MIN(AL40,$I40-SUM($L40:AL40)), MAX(AL40,$I40-SUM($L40:AL40))) -> 0 | AN40: =IF($I40 >0, MIN(AM40,$I40-SUM($L40:AM40)), MAX(AM40,$I40-SUM($L40:AM40))) -> 0 | AO40: =IF($I40 >0, MIN(AN40,$I40-SUM($L40:AN40)), MAX(AN40,$I40-SUM($L40:AN40))) -> 0
E41: 1992-03-31 | G41: £m 09/10 prices | I41: 0 | J41: > | M41: =$I41/L$35 -> 0 | N41: =IF($I41 >0, MIN(M41,$I41-SUM($L41:M41)), MAX(M41,$I41-SUM($L41:M41))) -> 0 | O41: =IF($I41 >0, MIN(N41,$I41-SUM($L41:N41)), MAX(N41,$I41-SUM($L41:N41))) -> 0 | P41: =IF($I41 >0, MIN(O41,$I41-SUM($L41:O41)), MAX(O41,$I41-SUM($L41:O41))) -> 0 | Q41: =IF($I41 >0, MIN(P41,$I41-SUM($L41:P41)), MAX(P41,$I41-SUM($L41:P41))) -> 0 | R41: =IF($I41 >0, MIN(Q41,$I41-SUM($L41:Q41)), MAX(Q41,$I41-SUM($L41:Q41))) -> 0 | S41: =IF($I41 >0, MIN(R41,$I41-SUM($L41:R41)), MAX(R41,$I41-SUM($L41:R41))) -> 0 | T41: =IF($I41 >0, MIN(S41,$I41-SUM($L41:S41)), MAX(S41,$I41-SUM($L41:S41))) -> 0 | U41: =IF($I41 >0, MIN(T41,$I41-SUM($L41:T41)), MAX(T41,$I41-SUM($L41:T41))) -> 0 | V41: =IF($I41 >0, MIN(U41,$I41-SUM($L41:U41)), MAX(U41,$I41-SUM($L41:U41))) -> 0 | W41: =IF($I41 >0, MIN(V41,$I41-SUM($L41:V41)), MAX(V41,$I41-SUM($L41:V41))) -> 0 | X41: =IF($I41 >0, MIN(W41,$I41-SUM($L41:W41)), MAX(W41,$I41-SUM($L41:W41))) -> 0 | Y41: =IF($I41 >0, MIN(X41,$I41-SUM($L41:X41)), MAX(X41,$I41-SUM($L41:X41))) -> 0 | Z41: =IF($I41 >0, MIN(Y41,$I41-SUM($L41:Y41)), MAX(Y41,$I41-SUM($L41:Y41))) -> 0 | AA41: =IF($I41 >0, MIN(Z41,$I41-SUM($L41:Z41)), MAX(Z41,$I41-SUM($L41:Z41))) -> 0 | AB41: =IF($I41 >0, MIN(AA41,$I41-SUM($L41:AA41)), MAX(AA41,$I41-SUM($L41:AA41))) -> 0 | AC41: =IF($I41 >0, MIN(AB41,$I41-SUM($L41:AB41)), MAX(AB41,$I41-SUM($L41:AB41))) -> 0 | AD41: =IF($I41 >0, MIN(AC41,$I41-SUM($L41:AC41)), MAX(AC41,$I41-SUM($L41:AC41))) -> 0 | AE41: =IF($I41 >0, MIN(AD41,$I41-SUM($L41:AD41)), MAX(AD41,$I41-SUM($L41:AD41))) -> 0 | AF41: =IF($I41 >0, MIN(AE41,$I41-SUM($L41:AE41)), MAX(AE41,$I41-SUM($L41:AE41))) -> 0 | AG41: =IF($I41 >0, MIN(AF41,$I41-SUM($L41:AF41)), MAX(AF41,$I41-SUM($L41:AF41))) -> 0 | AH41: =IF($I41 >0, MIN(AG41,$I41-SUM($L41:AG41)), MAX(AG41,$I41-SUM($L41:AG41))) -> 0 | AI41: =IF($I41 >0, MIN(AH41,$I41-SUM($L41:AH41)), MAX(AH41,$I41-SUM($L41:AH41))) -> 0 | AJ41: =IF($I41 >0, MIN(AI41,$I41-SUM($L41:AI41)), MAX(AI41,$I41-SUM($L41:AI41))) -> 0 | AK41: =IF($I41 >0, MIN(AJ41,$I41-SUM($L41:AJ41)), MAX(AJ41,$I41-SUM($L41:AJ41))) -> 0 | AL41: =IF($I41 >0, MIN(AK41,$I41-SUM($L41:AK41)), MAX(AK41,$I41-SUM($L41:AK41))) -> 0 | AM41: =IF($I41 >0, MIN(AL41,$I41-SUM($L41:AL41)), MAX(AL41,$I41-SUM($L41:AL41))) -> 0 | AN41: =IF($I41 >0, MIN(AM41,$I41-SUM($L41:AM41)), MAX(AM41,$I41-SUM($L41:AM41))) -> 0 | AO41: =IF($I41 >0, MIN(AN41,$I41-SUM($L41:AN41)), MAX(AN41,$I41-SUM($L41:AN41))) -> 0
E42: 1993-03-31 | G42: £m 09/10 prices | I42: 0 | J42: > | N42: =$I42/M$35 -> 0 | O42: =IF($I42 >0, MIN(N42,$I42-SUM($L42:N42)), MAX(N42,$I42-SUM($L42:N42))) -> 0 | P42: =IF($I42 >0, MIN(O42,$I42-SUM($L42:O42)), MAX(O42,$I42-SUM($L42:O42))) -> 0 | Q42: =IF($I42 >0, MIN(P42,$I42-SUM($L42:P42)), MAX(P42,$I42-SUM($L42:P42))) -> 0 | R42: =IF($I42 >0, MIN(Q42,$I42-SUM($L42:Q42)), MAX(Q42,$I42-SUM($L42:Q42))) -> 0 | S42: =IF($I42 >0, MIN(R42,$I42-SUM($L42:R42)), MAX(R42,$I42-SUM($L42:R42))) -> 0 | T42: =IF($I42 >0, MIN(S42,$I42-SUM($L42:S42)), MAX(S42,$I42-SUM($L42:S42))) -> 0 | U42: =IF($I42 >0, MIN(T42,$I42-SUM($L42:T42)), MAX(T42,$I42-SUM($L42:T42))) -> 0 | V42: =IF($I42 >0, MIN(U42,$I42-SUM($L42:U42)), MAX(U42,$I42-SUM($L42:U42))) -> 0 | W42: =IF($I42 >0, MIN(V42,$I42-SUM($L42:V42)), MAX(V42,$I42-SUM($L42:V42))) -> 0 | X42: =IF($I42 >0, MIN(W42,$I42-SUM($L42:W42)), MAX(W42,$I42-SUM($L42:W42))) -> 0 | Y42: =IF($I42 >0, MIN(X42,$I42-SUM($L42:X42)), MAX(X42,$I42-SUM($L42:X42))) -> 0 | Z42: =IF($I42 >0, MIN(Y42,$I42-SUM($L42:Y42)), MAX(Y42,$I42-SUM($L42:Y42))) -> 0 | AA42: =IF($I42 >0, MIN(Z42,$I42-SUM($L42:Z42)), MAX(Z42,$I42-SUM($L42:Z42))) -> 0 | AB42: =IF($I42 >0, MIN(AA42,$I42-SUM($L42:AA42)), MAX(AA42,$I42-SUM($L42:AA42))) -> 0 | AC42: =IF($I42 >0, MIN(AB42,$I42-SUM($L42:AB42)), MAX(AB42,$I42-SUM($L42:AB42))) -> 0 | AD42: =IF($I42 >0, MIN(AC42,$I42-SUM($L42:AC42)), MAX(AC42,$I42-SUM($L42:AC42))) -> 0 | AE42: =IF($I42 >0, MIN(AD42,$I42-SUM($L42:AD42)), MAX(AD42,$I42-SUM($L42:AD42))) -> 0 | AF42: =IF($I42 >0, MIN(AE42,$I42-SUM($L42:AE42)), MAX(AE42,$I42-SUM($L42:AE42))) -> 0 | AG42: =IF($I42 >0, MIN(AF42,$I42-SUM($L42:AF42)), MAX(AF42,$I42-SUM($L42:AF42))) -> 0 | AH42: =IF($I42 >0, MIN(AG42,$I42-SUM($L42:AG42)), MAX(AG42,$I42-SUM($L42:AG42))) -> 0 | AI42: =IF($I42 >0, MIN(AH42,$I42-SUM($L42:AH42)), MAX(AH42,$I42-SUM($L42:AH42))) -> 0 | AJ42: =IF($I42 >0, MIN(AI42,$I42-SUM($L42:AI42)), MAX(AI42,$I42-SUM($L42:AI42))) -> 0 | AK42: =IF($I42 >0, MIN(AJ42,$I42-SUM($L42:AJ42)), MAX(AJ42,$I42-SUM($L42:AJ42))) -> 0 | AL42: =IF($I42 >0, MIN(AK42,$I42-SUM($L42:AK42)), MAX(AK42,$I42-SUM($L42:AK42))) -> 0 | AM42: =IF($I42 >0, MIN(AL42,$I42-SUM($L42:AL42)), MAX(AL42,$I42-SUM($L42:AL42))) -> 0 | AN42: =IF($I42 >0, MIN(AM42,$I42-SUM($L42:AM42)), MAX(AM42,$I42-SUM($L42:AM42))) -> 0 | AO42: =IF($I42 >0, MIN(AN42,$I42-SUM($L42:AN42)), MAX(AN42,$I42-SUM($L42:AN42))) -> 0
E43: 1994-03-31 | G43: £m 09/10 prices | I43: 0 | J43: > | O43: =$I43/N$35 -> 0 | P43: =IF($I43 >0, MIN(O43,$I43-SUM($L43:O43)), MAX(O43,$I43-SUM($L43:O43))) -> 0 | Q43: =IF($I43 >0, MIN(P43,$I43-SUM($L43:P43)), MAX(P43,$I43-SUM($L43:P43))) -> 0 | R43: =IF($I43 >0, MIN(Q43,$I43-SUM($L43:Q43)), MAX(Q43,$I43-SUM($L43:Q43))) -> 0 | S43: =IF($I43 >0, MIN(R43,$I43-SUM($L43:R43)), MAX(R43,$I43-SUM($L43:R43))) -> 0 | T43: =IF($I43 >0, MIN(S43,$I43-SUM($L43:S43)), MAX(S43,$I43-SUM($L43:S43))) -> 0 | U43: =IF($I43 >0, MIN(T43,$I43-SUM($L43:T43)), MAX(T43,$I43-SUM($L43:T43))) -> 0 | V43: =IF($I43 >0, MIN(U43,$I43-SUM($L43:U43)), MAX(U43,$I43-SUM($L43:U43))) -> 0 | W43: =IF($I43 >0, MIN(V43,$I43-SUM($L43:V43)), MAX(V43,$I43-SUM($L43:V43))) -> 0 | X43: =IF($I43 >0, MIN(W43,$I43-SUM($L43:W43)), MAX(W43,$I43-SUM($L43:W43))) -> 0 | Y43: =IF($I43 >0, MIN(X43,$I43-SUM($L43:X43)), MAX(X43,$I43-SUM($L43:X43))) -> 0 | Z43: =IF($I43 >0, MIN(Y43,$I43-SUM($L43:Y43)), MAX(Y43,$I43-SUM($L43:Y43))) -> 0 | AA43: =IF($I43 >0, MIN(Z43,$I43-SUM($L43:Z43)), MAX(Z43,$I43-SUM($L43:Z43))) -> 0 | AB43: =IF($I43 >0, MIN(AA43,$I43-SUM($L43:AA43)), MAX(AA43,$I43-SUM($L43:AA43))) -> 0 | AC43: =IF($I43 >0, MIN(AB43,$I43-SUM($L43:AB43)), MAX(AB43,$I43-SUM($L43:AB43))) -> 0 | AD43: =IF($I43 >0, MIN(AC43,$I43-SUM($L43:AC43)), MAX(AC43,$I43-SUM($L43:AC43))) -> 0 | AE43: =IF($I43 >0, MIN(AD43,$I43-SUM($L43:AD43)), MAX(AD43,$I43-SUM($L43:AD43))) -> 0 | AF43: =IF($I43 >0, MIN(AE43,$I43-SUM($L43:AE43)), MAX(AE43,$I43-SUM($L43:AE43))) -> 0 | AG43: =IF($I43 >0, MIN(AF43,$I43-SUM($L43:AF43)), MAX(AF43,$I43-SUM($L43:AF43))) -> 0 | AH43: =IF($I43 >0, MIN(AG43,$I43-SUM($L43:AG43)), MAX(AG43,$I43-SUM($L43:AG43))) -> 0 | AI43: =IF($I43 >0, MIN(AH43,$I43-SUM($L43:AH43)), MAX(AH43,$I43-SUM($L43:AH43))) -> 0 | AJ43: =IF($I43 >0, MIN(AI43,$I43-SUM($L43:AI43)), MAX(AI43,$I43-SUM($L43:AI43))) -> 0 | AK43: =IF($I43 >0, MIN(AJ43,$I43-SUM($L43:AJ43)), MAX(AJ43,$I43-SUM($L43:AJ43))) -> 0 | AL43: =IF($I43 >0, MIN(AK43,$I43-SUM($L43:AK43)), MAX(AK43,$I43-SUM($L43:AK43))) -> 0 | AM43: =IF($I43 >0, MIN(AL43,$I43-SUM($L43:AL43)), MAX(AL43,$I43-SUM($L43:AL43))) -> 0 | AN43: =IF($I43 >0, MIN(AM43,$I43-SUM($L43:AM43)), MAX(AM43,$I43-SUM($L43:AM43))) -> 0 | AO43: =IF($I43 >0, MIN(AN43,$I43-SUM($L43:AN43)), MAX(AN43,$I43-SUM($L43:AN43))) -> 0
E44: 1995-03-31 | G44: £m 09/10 prices | I44: 0 | J44: > | P44: =$I44/O$35 -> 0 | Q44: =IF($I44 >0, MIN(P44,$I44-SUM($L44:P44)), MAX(P44,$I44-SUM($L44:P44))) -> 0 | R44: =IF($I44 >0, MIN(Q44,$I44-SUM($L44:Q44)), MAX(Q44,$I44-SUM($L44:Q44))) -> 0 | S44: =IF($I44 >0, MIN(R44,$I44-SUM($L44:R44)), MAX(R44,$I44-SUM($L44:R44))) -> 0 | T44: =IF($I44 >0, MIN(S44,$I44-SUM($L44:S44)), MAX(S44,$I44-SUM($L44:S44))) -> 0 | U44: =IF($I44 >0, MIN(T44,$I44-SUM($L44:T44)), MAX(T44,$I44-SUM($L44:T44))) -> 0 | V44: =IF($I44 >0, MIN(U44,$I44-SUM($L44:U44)), MAX(U44,$I44-SUM($L44:U44))) -> 0 | W44: =IF($I44 >0, MIN(V44,$I44-SUM($L44:V44)), MAX(V44,$I44-SUM($L44:V44))) -> 0 | X44: =IF($I44 >0, MIN(W44,$I44-SUM($L44:W44)), MAX(W44,$I44-SUM($L44:W44))) -> 0 | Y44: =IF($I44 >0, MIN(X44,$I44-SUM($L44:X44)), MAX(X44,$I44-SUM($L44:X44))) -> 0 | Z44: =IF($I44 >0, MIN(Y44,$I44-SUM($L44:Y44)), MAX(Y44,$I44-SUM($L44:Y44))) -> 0 | AA44: =IF($I44 >0, MIN(Z44,$I44-SUM($L44:Z44)), MAX(Z44,$I44-SUM($L44:Z44))) -> 0 | AB44: =IF($I44 >0, MIN(AA44,$I44-SUM($L44:AA44)), MAX(AA44,$I44-SUM($L44:AA44))) -> 0 | AC44: =IF($I44 >0, MIN(AB44,$I44-SUM($L44:AB44)), MAX(AB44,$I44-SUM($L44:AB44))) -> 0 | AD44: =IF($I44 >0, MIN(AC44,$I44-SUM($L44:AC44)), MAX(AC44,$I44-SUM($L44:AC44))) -> 0 | AE44: =IF($I44 >0, MIN(AD44,$I44-SUM($L44:AD44)), MAX(AD44,$I44-SUM($L44:AD44))) -> 0 | AF44: =IF($I44 >0, MIN(AE44,$I44-SUM($L44:AE44)), MAX(AE44,$I44-SUM($L44:AE44))) -> 0 | AG44: =IF($I44 >0, MIN(AF44,$I44-SUM($L44:AF44)), MAX(AF44,$I44-SUM($L44:AF44))) -> 0 | AH44: =IF($I44 >0, MIN(AG44,$I44-SUM($L44:AG44)), MAX(AG44,$I44-SUM($L44:AG44))) -> 0 | AI44: =IF($I44 >0, MIN(AH44,$I44-SUM($L44:AH44)), MAX(AH44,$I44-SUM($L44:AH44))) -> 0 | AJ44: =IF($I44 >0, MIN(AI44,$I44-SUM($L44:AI44)), MAX(AI44,$I44-SUM($L44:AI44))) -> 0 | AK44: =IF($I44 >0, MIN(AJ44,$I44-SUM($L44:AJ44)), MAX(AJ44,$I44-SUM($L44:AJ44))) -> 0 | AL44: =IF($I44 >0, MIN(AK44,$I44-SUM($L44:AK44)), MAX(AK44,$I44-SUM($L44:AK44))) -> 0 | AM44: =IF($I44 >0, MIN(AL44,$I44-SUM($L44:AL44)), MAX(AL44,$I44-SUM($L44:AL44))) -> 0 | AN44: =IF($I44 >0, MIN(AM44,$I44-SUM($L44:AM44)), MAX(AM44,$I44-SUM($L44:AM44))) -> 0 | AO44: =IF($I44 >0, MIN(AN44,$I44-SUM($L44:AN44)), MAX(AN44,$I44-SUM($L44:AN44))) -> 0
E45: 1996-03-31 | G45: £m 09/10 prices | I45: 0 | J45: > | Q45: =$I45/P$35 -> 0 | R45: =IF($I45 >0, MIN(Q45,$I45-SUM($L45:Q45)), MAX(Q45,$I45-SUM($L45:Q45))) -> 0 | S45: =IF($I45 >0, MIN(R45,$I45-SUM($L45:R45)), MAX(R45,$I45-SUM($L45:R45))) -> 0 | T45: =IF($I45 >0, MIN(S45,$I45-SUM($L45:S45)), MAX(S45,$I45-SUM($L45:S45))) -> 0 | U45: =IF($I45 >0, MIN(T45,$I45-SUM($L45:T45)), MAX(T45,$I45-SUM($L45:T45))) -> 0 | V45: =IF($I45 >0, MIN(U45,$I45-SUM($L45:U45)), MAX(U45,$I45-SUM($L45:U45))) -> 0 | W45: =IF($I45 >0, MIN(V45,$I45-SUM($L45:V45)), MAX(V45,$I45-SUM($L45:V45))) -> 0 | X45: =IF($I45 >0, MIN(W45,$I45-SUM($L45:W45)), MAX(W45,$I45-SUM($L45:W45))) -> 0 | Y45: =IF($I45 >0, MIN(X45,$I45-SUM($L45:X45)), MAX(X45,$I45-SUM($L45:X45))) -> 0 | Z45: =IF($I45 >0, MIN(Y45,$I45-SUM($L45:Y45)), MAX(Y45,$I45-SUM($L45:Y45))) -> 0 | AA45: =IF($I45 >0, MIN(Z45,$I45-SUM($L45:Z45)), MAX(Z45,$I45-SUM($L45:Z45))) -> 0 | AB45: =IF($I45 >0, MIN(AA45,$I45-SUM($L45:AA45)), MAX(AA45,$I45-SUM($L45:AA45))) -> 0 | AC45: =IF($I45 >0, MIN(AB45,$I45-SUM($L45:AB45)), MAX(AB45,$I45-SUM($L45:AB45))) -> 0 | AD45: =IF($I45 >0, MIN(AC45,$I45-SUM($L45:AC45)), MAX(AC45,$I45-SUM($L45:AC45))) -> 0 | AE45: =IF($I45 >0, MIN(AD45,$I45-SUM($L45:AD45)), MAX(AD45,$I45-SUM($L45:AD45))) -> 0 | AF45: =IF($I45 >0, MIN(AE45,$I45-SUM($L45:AE45)), MAX(AE45,$I45-SUM($L45:AE45))) -> 0 | AG45: =IF($I45 >0, MIN(AF45,$I45-SUM($L45:AF45)), MAX(AF45,$I45-SUM($L45:AF45))) -> 0 | AH45: =IF($I45 >0, MIN(AG45,$I45-SUM($L45:AG45)), MAX(AG45,$I45-SUM($L45:AG45))) -> 0 | AI45: =IF($I45 >0, MIN(AH45,$I45-SUM($L45:AH45)), MAX(AH45,$I45-SUM($L45:AH45))) -> 0 | AJ45: =IF($I45 >0, MIN(AI45,$I45-SUM($L45:AI45)), MAX(AI45,$I45-SUM($L45:AI45))) -> 0 | AK45: =IF($I45 >0, MIN(AJ45,$I45-SUM($L45:AJ45)), MAX(AJ45,$I45-SUM($L45:AJ45))) -> 0 | AL45: =IF($I45 >0, MIN(AK45,$I45-SUM($L45:AK45)), MAX(AK45,$I45-SUM($L45:AK45))) -> 0 | AM45: =IF($I45 >0, MIN(AL45,$I45-SUM($L45:AL45)), MAX(AL45,$I45-SUM($L45:AL45))) -> 0 | AN45: =IF($I45 >0, MIN(AM45,$I45-SUM($L45:AM45)), MAX(AM45,$I45-SUM($L45:AM45))) -> 0 | AO45: =IF($I45 >0, MIN(AN45,$I45-SUM($L45:AN45)), MAX(AN45,$I45-SUM($L45:AN45))) -> 0
E46: 1997-03-31 | G46: £m 09/10 prices | I46: 0 | J46: > | R46: =$I46/Q$35 -> 0 | S46: =IF($I46 >0, MIN(R46,$I46-SUM($L46:R46)), MAX(R46,$I46-SUM($L46:R46))) -> 0 | T46: =IF($I46 >0, MIN(S46,$I46-SUM($L46:S46)), MAX(S46,$I46-SUM($L46:S46))) -> 0 | U46: =IF($I46 >0, MIN(T46,$I46-SUM($L46:T46)), MAX(T46,$I46-SUM($L46:T46))) -> 0 | V46: =IF($I46 >0, MIN(U46,$I46-SUM($L46:U46)), MAX(U46,$I46-SUM($L46:U46))) -> 0 | W46: =IF($I46 >0, MIN(V46,$I46-SUM($L46:V46)), MAX(V46,$I46-SUM($L46:V46))) -> 0 | X46: =IF($I46 >0, MIN(W46,$I46-SUM($L46:W46)), MAX(W46,$I46-SUM($L46:W46))) -> 0 | Y46: =IF($I46 >0, MIN(X46,$I46-SUM($L46:X46)), MAX(X46,$I46-SUM($L46:X46))) -> 0 | Z46: =IF($I46 >0, MIN(Y46,$I46-SUM($L46:Y46)), MAX(Y46,$I46-SUM($L46:Y46))) -> 0 | AA46: =IF($I46 >0, MIN(Z46,$I46-SUM($L46:Z46)), MAX(Z46,$I46-SUM($L46:Z46))) -> 0 | AB46: =IF($I46 >0, MIN(AA46,$I46-SUM($L46:AA46)), MAX(AA46,$I46-SUM($L46:AA46))) -> 0 | AC46: =IF($I46 >0, MIN(AB46,$I46-SUM($L46:AB46)), MAX(AB46,$I46-SUM($L46:AB46))) -> 0 | AD46: =IF($I46 >0, MIN(AC46,$I46-SUM($L46:AC46)), MAX(AC46,$I46-SUM($L46:AC46))) -> 0 | AE46: =IF($I46 >0, MIN(AD46,$I46-SUM($L46:AD46)), MAX(AD46,$I46-SUM($L46:AD46))) -> 0 | AF46: =IF($I46 >0, MIN(AE46,$I46-SUM($L46:AE46)), MAX(AE46,$I46-SUM($L46:AE46))) -> 0 | AG46: =IF($I46 >0, MIN(AF46,$I46-SUM($L46:AF46)), MAX(AF46,$I46-SUM($L46:AF46))) -> 0 | AH46: =IF($I46 >0, MIN(AG46,$I46-SUM($L46:AG46)), MAX(AG46,$I46-SUM($L46:AG46))) -> 0 | AI46: =IF($I46 >0, MIN(AH46,$I46-SUM($L46:AH46)), MAX(AH46,$I46-SUM($L46:AH46))) -> 0 | AJ46: =IF($I46 >0, MIN(AI46,$I46-SUM($L46:AI46)), MAX(AI46,$I46-SUM($L46:AI46))) -> 0 | AK46: =IF($I46 >0, MIN(AJ46,$I46-SUM($L46:AJ46)), MAX(AJ46,$I46-SUM($L46:AJ46))) -> 0 | AL46: =IF($I46 >0, MIN(AK46,$I46-SUM($L46:AK46)), MAX(AK46,$I46-SUM($L46:AK46))) -> 0 | AM46: =IF($I46 >0, MIN(AL46,$I46-SUM($L46:AL46)), MAX(AL46,$I46-SUM($L46:AL46))) -> 0 | AN46: =IF($I46 >0, MIN(AM46,$I46-SUM($L46:AM46)), MAX(AM46,$I46-SUM($L46:AM46))) -> 0 | AO46: =IF($I46 >0, MIN(AN46,$I46-SUM($L46:AN46)), MAX(AN46,$I46-SUM($L46:AN46))) -> 0
E47: 1998-03-31 | G47: £m 09/10 prices | I47: 0 | J47: > | S47: =$I47/R$35 -> 0 | T47: =IF($I47 >0, MIN(S47,$I47-SUM($L47:S47)), MAX(S47,$I47-SUM($L47:S47))) -> 0 | U47: =IF($I47 >0, MIN(T47,$I47-SUM($L47:T47)), MAX(T47,$I47-SUM($L47:T47))) -> 0 | V47: =IF($I47 >0, MIN(U47,$I47-SUM($L47:U47)), MAX(U47,$I47-SUM($L47:U47))) -> 0 | W47: =IF($I47 >0, MIN(V47,$I47-SUM($L47:V47)), MAX(V47,$I47-SUM($L47:V47))) -> 0 | X47: =IF($I47 >0, MIN(W47,$I47-SUM($L47:W47)), MAX(W47,$I47-SUM($L47:W47))) -> 0 | Y47: =IF($I47 >0, MIN(X47,$I47-SUM($L47:X47)), MAX(X47,$I47-SUM($L47:X47))) -> 0 | Z47: =IF($I47 >0, MIN(Y47,$I47-SUM($L47:Y47)), MAX(Y47,$I47-SUM($L47:Y47))) -> 0 | AA47: =IF($I47 >0, MIN(Z47,$I47-SUM($L47:Z47)), MAX(Z47,$I47-SUM($L47:Z47))) -> 0 | AB47: =IF($I47 >0, MIN(AA47,$I47-SUM($L47:AA47)), MAX(AA47,$I47-SUM($L47:AA47))) -> 0 | AC47: =IF($I47 >0, MIN(AB47,$I47-SUM($L47:AB47)), MAX(AB47,$I47-SUM($L47:AB47))) -> 0 | AD47: =IF($I47 >0, MIN(AC47,$I47-SUM($L47:AC47)), MAX(AC47,$I47-SUM($L47:AC47))) -> 0 | AE47: =IF($I47 >0, MIN(AD47,$I47-SUM($L47:AD47)), MAX(AD47,$I47-SUM($L47:AD47))) -> 0 | AF47: =IF($I47 >0, MIN(AE47,$I47-SUM($L47:AE47)), MAX(AE47,$I47-SUM($L47:AE47))) -> 0 | AG47: =IF($I47 >0, MIN(AF47,$I47-SUM($L47:AF47)), MAX(AF47,$I47-SUM($L47:AF47))) -> 0 | AH47: =IF($I47 >0, MIN(AG47,$I47-SUM($L47:AG47)), MAX(AG47,$I47-SUM($L47:AG47))) -> 0 | AI47: =IF($I47 >0, MIN(AH47,$I47-SUM($L47:AH47)), MAX(AH47,$I47-SUM($L47:AH47))) -> 0 | AJ47: =IF($I47 >0, MIN(AI47,$I47-SUM($L47:AI47)), MAX(AI47,$I47-SUM($L47:AI47))) -> 0 | AK47: =IF($I47 >0, MIN(AJ47,$I47-SUM($L47:AJ47)), MAX(AJ47,$I47-SUM($L47:AJ47))) -> 0 | AL47: =IF($I47 >0, MIN(AK47,$I47-SUM($L47:AK47)), MAX(AK47,$I47-SUM($L47:AK47))) -> 0 | AM47: =IF($I47 >0, MIN(AL47,$I47-SUM($L47:AL47)), MAX(AL47,$I47-SUM($L47:AL47))) -> 0 | AN47: =IF($I47 >0, MIN(AM47,$I47-SUM($L47:AM47)), MAX(AM47,$I47-SUM($L47:AM47))) -> 0 | AO47: =IF($I47 >0, MIN(AN47,$I47-SUM($L47:AN47)), MAX(AN47,$I47-SUM($L47:AN47))) -> 0
E48: 1999-03-31 | G48: £m 09/10 prices | I48: 0 | J48: > | T48: =$I48/S$35 -> 0 | U48: =IF($I48 >0, MIN(T48,$I48-SUM($L48:T48)), MAX(T48,$I48-SUM($L48:T48))) -> 0 | V48: =IF($I48 >0, MIN(U48,$I48-SUM($L48:U48)), MAX(U48,$I48-SUM($L48:U48))) -> 0 | W48: =IF($I48 >0, MIN(V48,$I48-SUM($L48:V48)), MAX(V48,$I48-SUM($L48:V48))) -> 0 | X48: =IF($I48 >0, MIN(W48,$I48-SUM($L48:W48)), MAX(W48,$I48-SUM($L48:W48))) -> 0 | Y48: =IF($I48 >0, MIN(X48,$I48-SUM($L48:X48)), MAX(X48,$I48-SUM($L48:X48))) -> 0 | Z48: =IF($I48 >0, MIN(Y48,$I48-SUM($L48:Y48)), MAX(Y48,$I48-SUM($L48:Y48))) -> 0 | AA48: =IF($I48 >0, MIN(Z48,$I48-SUM($L48:Z48)), MAX(Z48,$I48-SUM($L48:Z48))) -> 0 | AB48: =IF($I48 >0, MIN(AA48,$I48-SUM($L48:AA48)), MAX(AA48,$I48-SUM($L48:AA48))) -> 0 | AC48: =IF($I48 >0, MIN(AB48,$I48-SUM($L48:AB48)), MAX(AB48,$I48-SUM($L48:AB48))) -> 0 | AD48: =IF($I48 >0, MIN(AC48,$I48-SUM($L48:AC48)), MAX(AC48,$I48-SUM($L48:AC48))) -> 0 | AE48: =IF($I48 >0, MIN(AD48,$I48-SUM($L48:AD48)), MAX(AD48,$I48-SUM($L48:AD48))) -> 0 | AF48: =IF($I48 >0, MIN(AE48,$I48-SUM($L48:AE48)), MAX(AE48,$I48-SUM($L48:AE48))) -> 0 | AG48: =IF($I48 >0, MIN(AF48,$I48-SUM($L48:AF48)), MAX(AF48,$I48-SUM($L48:AF48))) -> 0 | AH48: =IF($I48 >0, MIN(AG48,$I48-SUM($L48:AG48)), MAX(AG48,$I48-SUM($L48:AG48))) -> 0 | AI48: =IF($I48 >0, MIN(AH48,$I48-SUM($L48:AH48)), MAX(AH48,$I48-SUM($L48:AH48))) -> 0 | AJ48: =IF($I48 >0, MIN(AI48,$I48-SUM($L48:AI48)), MAX(AI48,$I48-SUM($L48:AI48))) -> 0 | AK48: =IF($I48 >0, MIN(AJ48,$I48-SUM($L48:AJ48)), MAX(AJ48,$I48-SUM($L48:AJ48))) -> 0 | AL48: =IF($I48 >0, MIN(AK48,$I48-SUM($L48:AK48)), MAX(AK48,$I48-SUM($L48:AK48))) -> 0 | AM48: =IF($I48 >0, MIN(AL48,$I48-SUM($L48:AL48)), MAX(AL48,$I48-SUM($L48:AL48))) -> 0 | AN48: =IF($I48 >0, MIN(AM48,$I48-SUM($L48:AM48)), MAX(AM48,$I48-SUM($L48:AM48))) -> 0 | AO48: =IF($I48 >0, MIN(AN48,$I48-SUM($L48:AN48)), MAX(AN48,$I48-SUM($L48:AN48))) -> 0
E49: 2000-03-31 | G49: £m 09/10 prices | I49: 0 | J49: > | U49: =$I49/T$35 -> 0 | V49: =IF($I49 >0, MIN(U49,$I49-SUM($L49:U49)), MAX(U49,$I49-SUM($L49:U49))) -> 0 | W49: =IF($I49 >0, MIN(V49,$I49-SUM($L49:V49)), MAX(V49,$I49-SUM($L49:V49))) -> 0 | X49: =IF($I49 >0, MIN(W49,$I49-SUM($L49:W49)), MAX(W49,$I49-SUM($L49:W49))) -> 0 | Y49: =IF($I49 >0, MIN(X49,$I49-SUM($L49:X49)), MAX(X49,$I49-SUM($L49:X49))) -> 0 | Z49: =IF($I49 >0, MIN(Y49,$I49-SUM($L49:Y49)), MAX(Y49,$I49-SUM($L49:Y49))) -> 0 | AA49: =IF($I49 >0, MIN(Z49,$I49-SUM($L49:Z49)), MAX(Z49,$I49-SUM($L49:Z49))) -> 0 | AB49: =IF($I49 >0, MIN(AA49,$I49-SUM($L49:AA49)), MAX(AA49,$I49-SUM($L49:AA49))) -> 0 | AC49: =IF($I49 >0, MIN(AB49,$I49-SUM($L49:AB49)), MAX(AB49,$I49-SUM($L49:AB49))) -> 0 | AD49: =IF($I49 >0, MIN(AC49,$I49-SUM($L49:AC49)), MAX(AC49,$I49-SUM($L49:AC49))) -> 0 | AE49: =IF($I49 >0, MIN(AD49,$I49-SUM($L49:AD49)), MAX(AD49,$I49-SUM($L49:AD49))) -> 0 | AF49: =IF($I49 >0, MIN(AE49,$I49-SUM($L49:AE49)), MAX(AE49,$I49-SUM($L49:AE49))) -> 0 | AG49: =IF($I49 >0, MIN(AF49,$I49-SUM($L49:AF49)), MAX(AF49,$I49-SUM($L49:AF49))) -> 0 | AH49: =IF($I49 >0, MIN(AG49,$I49-SUM($L49:AG49)), MAX(AG49,$I49-SUM($L49:AG49))) -> 0 | AI49: =IF($I49 >0, MIN(AH49,$I49-SUM($L49:AH49)), MAX(AH49,$I49-SUM($L49:AH49))) -> 0 | AJ49: =IF($I49 >0, MIN(AI49,$I49-SUM($L49:AI49)), MAX(AI49,$I49-SUM($L49:AI49))) -> 0 | AK49: =IF($I49 >0, MIN(AJ49,$I49-SUM($L49:AJ49)), MAX(AJ49,$I49-SUM($L49:AJ49))) -> 0 | AL49: =IF($I49 >0, MIN(AK49,$I49-SUM($L49:AK49)), MAX(AK49,$I49-SUM($L49:AK49))) -> 0 | AM49: =IF($I49 >0, MIN(AL49,$I49-SUM($L49:AL49)), MAX(AL49,$I49-SUM($L49:AL49))) -> 0 | AN49: =IF($I49 >0, MIN(AM49,$I49-SUM($L49:AM49)), MAX(AM49,$I49-SUM($L49:AM49))) -> 0 | AO49: =IF($I49 >0, MIN(AN49,$I49-SUM($L49:AN49)), MAX(AN49,$I49-SUM($L49:AN49))) -> 0
E50: 2001-03-31 | G50: £m 09/10 prices | I50: 0 | J50: > | V50: =$I50/U$35 -> 0 | W50: =IF($I50 >0, MIN(V50,$I50-SUM($L50:V50)), MAX(V50,$I50-SUM($L50:V50))) -> 0 | X50: =IF($I50 >0, MIN(W50,$I50-SUM($L50:W50)), MAX(W50,$I50-SUM($L50:W50))) -> 0 | Y50: =IF($I50 >0, MIN(X50,$I50-SUM($L50:X50)), MAX(X50,$I50-SUM($L50:X50))) -> 0 | Z50: =IF($I50 >0, MIN(Y50,$I50-SUM($L50:Y50)), MAX(Y50,$I50-SUM($L50:Y50))) -> 0 | AA50: =IF($I50 >0, MIN(Z50,$I50-SUM($L50:Z50)), MAX(Z50,$I50-SUM($L50:Z50))) -> 0 | AB50: =IF($I50 >0, MIN(AA50,$I50-SUM($L50:AA50)), MAX(AA50,$I50-SUM($L50:AA50))) -> 0 | AC50: =IF($I50 >0, MIN(AB50,$I50-SUM($L50:AB50)), MAX(AB50,$I50-SUM($L50:AB50))) -> 0 | AD50: =IF($I50 >0, MIN(AC50,$I50-SUM($L50:AC50)), MAX(AC50,$I50-SUM($L50:AC50))) -> 0 | AE50: =IF($I50 >0, MIN(AD50,$I50-SUM($L50:AD50)), MAX(AD50,$I50-SUM($L50:AD50))) -> 0 | AF50: =IF($I50 >0, MIN(AE50,$I50-SUM($L50:AE50)), MAX(AE50,$I50-SUM($L50:AE50))) -> 0 | AG50: =IF($I50 >0, MIN(AF50,$I50-SUM($L50:AF50)), MAX(AF50,$I50-SUM($L50:AF50))) -> 0 | AH50: =IF($I50 >0, MIN(AG50,$I50-SUM($L50:AG50)), MAX(AG50,$I50-SUM($L50:AG50))) -> 0 | AI50: =IF($I50 >0, MIN(AH50,$I50-SUM($L50:AH50)), MAX(AH50,$I50-SUM($L50:AH50))) -> 0 | AJ50: =IF($I50 >0, MIN(AI50,$I50-SUM($L50:AI50)), MAX(AI50,$I50-SUM($L50:AI50))) -> 0 | AK50: =IF($I50 >0, MIN(AJ50,$I50-SUM($L50:AJ50)), MAX(AJ50,$I50-SUM($L50:AJ50))) -> 0 | AL50: =IF($I50 >0, MIN(AK50,$I50-SUM($L50:AK50)), MAX(AK50,$I50-SUM($L50:AK50))) -> 0 | AM50: =IF($I50 >0, MIN(AL50,$I50-SUM($L50:AL50)), MAX(AL50,$I50-SUM($L50:AL50))) -> 0 | AN50: =IF($I50 >0, MIN(AM50,$I50-SUM($L50:AM50)), MAX(AM50,$I50-SUM($L50:AM50))) -> 0 | AO50: =IF($I50 >0, MIN(AN50,$I50-SUM($L50:AN50)), MAX(AN50,$I50-SUM($L50:AN50))) -> 0
E51: 2002-03-31 | G51: £m 09/10 prices | I51: 0 | J51: > | W51: =$I51/V$35 -> 0 | X51: =IF($I51 >0, MIN(W51,$I51-SUM($L51:W51)), MAX(W51,$I51-SUM($L51:W51))) -> 0 | Y51: =IF($I51 >0, MIN(X51,$I51-SUM($L51:X51)), MAX(X51,$I51-SUM($L51:X51))) -> 0 | Z51: =IF($I51 >0, MIN(Y51,$I51-SUM($L51:Y51)), MAX(Y51,$I51-SUM($L51:Y51))) -> 0 | AA51: =IF($I51 >0, MIN(Z51,$I51-SUM($L51:Z51)), MAX(Z51,$I51-SUM($L51:Z51))) -> 0 | AB51: =IF($I51 >0, MIN(AA51,$I51-SUM($L51:AA51)), MAX(AA51,$I51-SUM($L51:AA51))) -> 0 | AC51: =IF($I51 >0, MIN(AB51,$I51-SUM($L51:AB51)), MAX(AB51,$I51-SUM($L51:AB51))) -> 0 | AD51: =IF($I51 >0, MIN(AC51,$I51-SUM($L51:AC51)), MAX(AC51,$I51-SUM($L51:AC51))) -> 0 | AE51: =IF($I51 >0, MIN(AD51,$I51-SUM($L51:AD51)), MAX(AD51,$I51-SUM($L51:AD51))) -> 0 | AF51: =IF($I51 >0, MIN(AE51,$I51-SUM($L51:AE51)), MAX(AE51,$I51-SUM($L51:AE51))) -> 0 | AG51: =IF($I51 >0, MIN(AF51,$I51-SUM($L51:AF51)), MAX(AF51,$I51-SUM($L51:AF51))) -> 0 | AH51: =IF($I51 >0, MIN(AG51,$I51-SUM($L51:AG51)), MAX(AG51,$I51-SUM($L51:AG51))) -> 0 | AI51: =IF($I51 >0, MIN(AH51,$I51-SUM($L51:AH51)), MAX(AH51,$I51-SUM($L51:AH51))) -> 0 | AJ51: =IF($I51 >0, MIN(AI51,$I51-SUM($L51:AI51)), MAX(AI51,$I51-SUM($L51:AI51))) -> 0 | AK51: =IF($I51 >0, MIN(AJ51,$I51-SUM($L51:AJ51)), MAX(AJ51,$I51-SUM($L51:AJ51))) -> 0 | AL51: =IF($I51 >0, MIN(AK51,$I51-SUM($L51:AK51)), MAX(AK51,$I51-SUM($L51:AK51))) -> 0 | AM51: =IF($I51 >0, MIN(AL51,$I51-SUM($L51:AL51)), MAX(AL51,$I51-SUM($L51:AL51))) -> 0 | AN51: =IF($I51 >0, MIN(AM51,$I51-SUM($L51:AM51)), MAX(AM51,$I51-SUM($L51:AM51))) -> 0 | AO51: =IF($I51 >0, MIN(AN51,$I51-SUM($L51:AN51)), MAX(AN51,$I51-SUM($L51:AN51))) -> 0
E52: 2003-03-31 | G52: £m 09/10 prices | I52: 0 | J52: > | X52: =$I52/W$35 -> 0 | Y52: =IF($I52 >0, MIN(X52,$I52-SUM($L52:X52)), MAX(X52,$I52-SUM($L52:X52))) -> 0 | Z52: =IF($I52 >0, MIN(Y52,$I52-SUM($L52:Y52)), MAX(Y52,$I52-SUM($L52:Y52))) -> 0 | AA52: =IF($I52 >0, MIN(Z52,$I52-SUM($L52:Z52)), MAX(Z52,$I52-SUM($L52:Z52))) -> 0 | AB52: =IF($I52 >0, MIN(AA52,$I52-SUM($L52:AA52)), MAX(AA52,$I52-SUM($L52:AA52))) -> 0 | AC52: =IF($I52 >0, MIN(AB52,$I52-SUM($L52:AB52)), MAX(AB52,$I52-SUM($L52:AB52))) -> 0 | AD52: =IF($I52 >0, MIN(AC52,$I52-SUM($L52:AC52)), MAX(AC52,$I52-SUM($L52:AC52))) -> 0 | AE52: =IF($I52 >0, MIN(AD52,$I52-SUM($L52:AD52)), MAX(AD52,$I52-SUM($L52:AD52))) -> 0 | AF52: =IF($I52 >0, MIN(AE52,$I52-SUM($L52:AE52)), MAX(AE52,$I52-SUM($L52:AE52))) -> 0 | AG52: =IF($I52 >0, MIN(AF52,$I52-SUM($L52:AF52)), MAX(AF52,$I52-SUM($L52:AF52))) -> 0 | AH52: =IF($I52 >0, MIN(AG52,$I52-SUM($L52:AG52)), MAX(AG52,$I52-SUM($L52:AG52))) -> 0 | AI52: =IF($I52 >0, MIN(AH52,$I52-SUM($L52:AH52)), MAX(AH52,$I52-SUM($L52:AH52))) -> 0 | AJ52: =IF($I52 >0, MIN(AI52,$I52-SUM($L52:AI52)), MAX(AI52,$I52-SUM($L52:AI52))) -> 0 | AK52: =IF($I52 >0, MIN(AJ52,$I52-SUM($L52:AJ52)), MAX(AJ52,$I52-SUM($L52:AJ52))) -> 0 | AL52: =IF($I52 >0, MIN(AK52,$I52-SUM($L52:AK52)), MAX(AK52,$I52-SUM($L52:AK52))) -> 0 | AM52: =IF($I52 >0, MIN(AL52,$I52-SUM($L52:AL52)), MAX(AL52,$I52-SUM($L52:AL52))) -> 0 | AN52: =IF($I52 >0, MIN(AM52,$I52-SUM($L52:AM52)), MAX(AM52,$I52-SUM($L52:AM52))) -> 0 | AO52: =IF($I52 >0, MIN(AN52,$I52-SUM($L52:AN52)), MAX(AN52,$I52-SUM($L52:AN52))) -> 0
E53: 2004-03-31 | G53: £m 09/10 prices | I53: 299.3439968 | J53: > | Y53: =$I53/X$35 -> 6.652088818 | Z53: =IF($I53 >0, MIN(Y53,$I53-SUM($L53:Y53)), MAX(Y53,$I53-SUM($L53:Y53))) -> 6.652088818 | AA53: =IF($I53 >0, MIN(Z53,$I53-SUM($L53:Z53)), MAX(Z53,$I53-SUM($L53:Z53))) -> 6.652088818 | AB53: =IF($I53 >0, MIN(AA53,$I53-SUM($L53:AA53)), MAX(AA53,$I53-SUM($L53:AA53))) -> 6.652088818 | AC53: =IF($I53 >0, MIN(AB53,$I53-SUM($L53:AB53)), MAX(AB53,$I53-SUM($L53:AB53))) -> 6.652088818 | AD53: =IF($I53 >0, MIN(AC53,$I53-SUM($L53:AC53)), MAX(AC53,$I53-SUM($L53:AC53))) -> 6.652088818 | AE53: =IF($I53 >0, MIN(AD53,$I53-SUM($L53:AD53)), MAX(AD53,$I53-SUM($L53:AD53))) -> 6.652088818 | AF53: =IF($I53 >0, MIN(AE53,$I53-SUM($L53:AE53)), MAX(AE53,$I53-SUM($L53:AE53))) -> 6.652088818 | AG53: =IF($I53 >0, MIN(AF53,$I53-SUM($L53:AF53)), MAX(AF53,$I53-SUM($L53:AF53))) -> 6.652088818 | AH53: =IF($I53 >0, MIN(AG53,$I53-SUM($L53:AG53)), MAX(AG53,$I53-SUM($L53:AG53))) -> 6.652088818 | AI53: =IF($I53 >0, MIN(AH53,$I53-SUM($L53:AH53)), MAX(AH53,$I53-SUM($L53:AH53))) -> 6.652088818 | AJ53: =IF($I53 >0, MIN(AI53,$I53-SUM($L53:AI53)), MAX(AI53,$I53-SUM($L53:AI53))) -> 6.652088818 | AK53: =IF($I53 >0, MIN(AJ53,$I53-SUM($L53:AJ53)), MAX(AJ53,$I53-SUM($L53:AJ53))) -> 6.652088818 | AL53: =IF($I53 >0, MIN(AK53,$I53-SUM($L53:AK53)), MAX(AK53,$I53-SUM($L53:AK53))) -> 6.652088818 | AM53: =IF($I53 >0, MIN(AL53,$I53-SUM($L53:AL53)), MAX(AL53,$I53-SUM($L53:AL53))) -> 6.652088818 | AN53: =IF($I53 >0, MIN(AM53,$I53-SUM($L53:AM53)), MAX(AM53,$I53-SUM($L53:AM53))) -> 6.652088818 | AO53: =IF($I53 >0, MIN(AN53,$I53-SUM($L53:AN53)), MAX(AN53,$I53-SUM($L53:AN53))) -> 6.652088818
E54: 2005-03-31 | G54: £m 09/10 prices | I54: 96.38168898 | J54: > | Z54: =$I54/Y$35 -> 2.141815311 | AA54: =IF($I54 >0, MIN(Z54,$I54-SUM($L54:Z54)), MAX(Z54,$I54-SUM($L54:Z54))) -> 2.141815311 | AB54: =IF($I54 >0, MIN(AA54,$I54-SUM($L54:AA54)), MAX(AA54,$I54-SUM($L54:AA54))) -> 2.141815311 | AC54: =IF($I54 >0, MIN(AB54,$I54-SUM($L54:AB54)), MAX(AB54,$I54-SUM($L54:AB54))) -> 2.141815311 | AD54: =IF($I54 >0, MIN(AC54,$I54-SUM($L54:AC54)), MAX(AC54,$I54-SUM($L54:AC54))) -> 2.141815311 | AE54: =IF($I54 >0, MIN(AD54,$I54-SUM($L54:AD54)), MAX(AD54,$I54-SUM($L54:AD54))) -> 2.141815311 | AF54: =IF($I54 >0, MIN(AE54,$I54-SUM($L54:AE54)), MAX(AE54,$I54-SUM($L54:AE54))) -> 2.141815311 | AG54: =IF($I54 >0, MIN(AF54,$I54-SUM($L54:AF54)), MAX(AF54,$I54-SUM($L54:AF54))) -> 2.141815311 | AH54: =IF($I54 >0, MIN(AG54,$I54-SUM($L54:AG54)), MAX(AG54,$I54-SUM($L54:AG54))) -> 2.141815311 | AI54: =IF($I54 >0, MIN(AH54,$I54-SUM($L54:AH54)), MAX(AH54,$I54-SUM($L54:AH54))) -> 2.141815311 | AJ54: =IF($I54 >0, MIN(AI54,$I54-SUM($L54:AI54)), MAX(AI54,$I54-SUM($L54:AI54))) -> 2.141815311 | AK54: =IF($I54 >0, MIN(AJ54,$I54-SUM($L54:AJ54)), MAX(AJ54,$I54-SUM($L54:AJ54))) -> 2.141815311 | AL54: =IF($I54 >0, MIN(AK54,$I54-SUM($L54:AK54)), MAX(AK54,$I54-SUM($L54:AK54))) -> 2.141815311 | AM54: =IF($I54 >0, MIN(AL54,$I54-SUM($L54:AL54)), MAX(AL54,$I54-SUM($L54:AL54))) -> 2.141815311 | AN54: =IF($I54 >0, MIN(AM54,$I54-SUM($L54:AM54)), MAX(AM54,$I54-SUM($L54:AM54))) -> 2.141815311 | AO54: =IF($I54 >0, MIN(AN54,$I54-SUM($L54:AN54)), MAX(AN54,$I54-SUM($L54:AN54))) -> 2.141815311
E55: 2006-03-31 | G55: £m 09/10 prices | I55: 300.0086599 | J55: > | AA55: =$I55/Z$35 -> 6.666859108 | AB55: =IF($I55 >0, MIN(AA55,$I55-SUM($L55:AA55)), MAX(AA55,$I55-SUM($L55:AA55))) -> 6.666859108 | AC55: =IF($I55 >0, MIN(AB55,$I55-SUM($L55:AB55)), MAX(AB55,$I55-SUM($L55:AB55))) -> 6.666859108 | AD55: =IF($I55 >0, MIN(AC55,$I55-SUM($L55:AC55)), MAX(AC55,$I55-SUM($L55:AC55))) -> 6.666859108 | AE55: =IF($I55 >0, MIN(AD55,$I55-SUM($L55:AD55)), MAX(AD55,$I55-SUM($L55:AD55))) -> 6.666859108 | AF55: =IF($I55 >0, MIN(AE55,$I55-SUM($L55:AE55)), MAX(AE55,$I55-SUM($L55:AE55))) -> 6.666859108 | AG55: =IF($I55 >0, MIN(AF55,$I55-SUM($L55:AF55)), MAX(AF55,$I55-SUM($L55:AF55))) -> 6.666859108 | AH55: =IF($I55 >0, MIN(AG55,$I55-SUM($L55:AG55)), MAX(AG55,$I55-SUM($L55:AG55))) -> 6.666859108 | AI55: =IF($I55 >0, MIN(AH55,$I55-SUM($L55:AH55)), MAX(AH55,$I55-SUM($L55:AH55))) -> 6.666859108 | AJ55: =IF($I55 >0, MIN(AI55,$I55-SUM($L55:AI55)), MAX(AI55,$I55-SUM($L55:AI55))) -> 6.666859108 | AK55: =IF($I55 >0, MIN(AJ55,$I55-SUM($L55:AJ55)), MAX(AJ55,$I55-SUM($L55:AJ55))) -> 6.666859108 | AL55: =IF($I55 >0, MIN(AK55,$I55-SUM($L55:AK55)), MAX(AK55,$I55-SUM($L55:AK55))) -> 6.666859108 | AM55: =IF($I55 >0, MIN(AL55,$I55-SUM($L55:AL55)), MAX(AL55,$I55-SUM($L55:AL55))) -> 6.666859108 | AN55: =IF($I55 >0, MIN(AM55,$I55-SUM($L55:AM55)), MAX(AM55,$I55-SUM($L55:AM55))) -> 6.666859108 | AO55: =IF($I55 >0, MIN(AN55,$I55-SUM($L55:AN55)), MAX(AN55,$I55-SUM($L55:AN55))) -> 6.666859108
E56: 2007-03-31 | G56: £m 09/10 prices | I56: 541.1112417 | J56: > | AB56: =$I56/AA$35 -> 12.02469426 | AC56: =IF($I56 >0, MIN(AB56,$I56-SUM($L56:AB56)), MAX(AB56,$I56-SUM($L56:AB56))) -> 12.02469426 | AD56: =IF($I56 >0, MIN(AC56,$I56-SUM($L56:AC56)), MAX(AC56,$I56-SUM($L56:AC56))) -> 12.02469426 | AE56: =IF($I56 >0, MIN(AD56,$I56-SUM($L56:AD56)), MAX(AD56,$I56-SUM($L56:AD56))) -> 12.02469426 | AF56: =IF($I56 >0, MIN(AE56,$I56-SUM($L56:AE56)), MAX(AE56,$I56-SUM($L56:AE56))) -> 12.02469426 | AG56: =IF($I56 >0, MIN(AF56,$I56-SUM($L56:AF56)), MAX(AF56,$I56-SUM($L56:AF56))) -> 12.02469426 | AH56: =IF($I56 >0, MIN(AG56,$I56-SUM($L56:AG56)), MAX(AG56,$I56-SUM($L56:AG56))) -> 12.02469426 | AI56: =IF($I56 >0, MIN(AH56,$I56-SUM($L56:AH56)), MAX(AH56,$I56-SUM($L56:AH56))) -> 12.02469426 | AJ56: =IF($I56 >0, MIN(AI56,$I56-SUM($L56:AI56)), MAX(AI56,$I56-SUM($L56:AI56))) -> 12.02469426 | AK56: =IF($I56 >0, MIN(AJ56,$I56-SUM($L56:AJ56)), MAX(AJ56,$I56-SUM($L56:AJ56))) -> 12.02469426 | AL56: =IF($I56 >0, MIN(AK56,$I56-SUM($L56:AK56)), MAX(AK56,$I56-SUM($L56:AK56))) -> 12.02469426 | AM56: =IF($I56 >0, MIN(AL56,$I56-SUM($L56:AL56)), MAX(AL56,$I56-SUM($L56:AL56))) -> 12.02469426 | AN56: =IF($I56 >0, MIN(AM56,$I56-SUM($L56:AM56)), MAX(AM56,$I56-SUM($L56:AM56))) -> 12.02469426 | AO56: =IF($I56 >0, MIN(AN56,$I56-SUM($L56:AN56)), MAX(AN56,$I56-SUM($L56:AN56))) -> 12.02469426
E57: 2008-03-31 | G57: £m 09/10 prices | I57: 585.7885273 | J57: > | AC57: =$I57/AB$35 -> 13.01752283 | AD57: =IF($I57 >0, MIN(AC57,$I57-SUM($L57:AC57)), MAX(AC57,$I57-SUM($L57:AC57))) -> 13.01752283 | AE57: =IF($I57 >0, MIN(AD57,$I57-SUM($L57:AD57)), MAX(AD57,$I57-SUM($L57:AD57))) -> 13.01752283 | AF57: =IF($I57 >0, MIN(AE57,$I57-SUM($L57:AE57)), MAX(AE57,$I57-SUM($L57:AE57))) -> 13.01752283 | AG57: =IF($I57 >0, MIN(AF57,$I57-SUM($L57:AF57)), MAX(AF57,$I57-SUM($L57:AF57))) -> 13.01752283 | AH57: =IF($I57 >0, MIN(AG57,$I57-SUM($L57:AG57)), MAX(AG57,$I57-SUM($L57:AG57))) -> 13.01752283 | AI57: =IF($I57 >0, MIN(AH57,$I57-SUM($L57:AH57)), MAX(AH57,$I57-SUM($L57:AH57))) -> 13.01752283 | AJ57: =IF($I57 >0, MIN(AI57,$I57-SUM($L57:AI57)), MAX(AI57,$I57-SUM($L57:AI57))) -> 13.01752283 | AK57: =IF($I57 >0, MIN(AJ57,$I57-SUM($L57:AJ57)), MAX(AJ57,$I57-SUM($L57:AJ57))) -> 13.01752283 | AL57: =IF($I57 >0, MIN(AK57,$I57-SUM($L57:AK57)), MAX(AK57,$I57-SUM($L57:AK57))) -> 13.01752283 | AM57: =IF($I57 >0, MIN(AL57,$I57-SUM($L57:AL57)), MAX(AL57,$I57-SUM($L57:AL57))) -> 13.01752283 | AN57: =IF($I57 >0, MIN(AM57,$I57-SUM($L57:AM57)), MAX(AM57,$I57-SUM($L57:AM57))) -> 13.01752283 | AO57: =IF($I57 >0, MIN(AN57,$I57-SUM($L57:AN57)), MAX(AN57,$I57-SUM($L57:AN57))) -> 13.01752283
E58: 2009-03-31 | G58: £m 09/10 prices | I58: 247.7735543 | J58: > | AD58: =$I58/AC$35 -> 5.506078985 | AE58: =IF($I58 >0, MIN(AD58,$I58-SUM($L58:AD58)), MAX(AD58,$I58-SUM($L58:AD58))) -> 5.506078985 | AF58: =IF($I58 >0, MIN(AE58,$I58-SUM($L58:AE58)), MAX(AE58,$I58-SUM($L58:AE58))) -> 5.506078985 | AG58: =IF($I58 >0, MIN(AF58,$I58-SUM($L58:AF58)), MAX(AF58,$I58-SUM($L58:AF58))) -> 5.506078985 | AH58: =IF($I58 >0, MIN(AG58,$I58-SUM($L58:AG58)), MAX(AG58,$I58-SUM($L58:AG58))) -> 5.506078985 | AI58: =IF($I58 >0, MIN(AH58,$I58-SUM($L58:AH58)), MAX(AH58,$I58-SUM($L58:AH58))) -> 5.506078985 | AJ58: =IF($I58 >0, MIN(AI58,$I58-SUM($L58:AI58)), MAX(AI58,$I58-SUM($L58:AI58))) -> 5.506078985 | AK58: =IF($I58 >0, MIN(AJ58,$I58-SUM($L58:AJ58)), MAX(AJ58,$I58-SUM($L58:AJ58))) -> 5.506078985 | AL58: =IF($I58 >0, MIN(AK58,$I58-SUM($L58:AK58)), MAX(AK58,$I58-SUM($L58:AK58))) -> 5.506078985 | AM58: =IF($I58 >0, MIN(AL58,$I58-SUM($L58:AL58)), MAX(AL58,$I58-SUM($L58:AL58))) -> 5.506078985 | AN58: =IF($I58 >0, MIN(AM58,$I58-SUM($L58:AM58)), MAX(AM58,$I58-SUM($L58:AM58))) -> 5.506078985 | AO58: =IF($I58 >0, MIN(AN58,$I58-SUM($L58:AN58)), MAX(AN58,$I58-SUM($L58:AN58))) -> 5.506078985
E59: 2010-03-31 | G59: £m 09/10 prices | I59: 123.1950711 | J59: > | AE59: =$I59/AD$35 -> 2.737668246 | AF59: =IF($I59 >0, MIN(AE59,$I59-SUM($L59:AE59)), MAX(AE59,$I59-SUM($L59:AE59))) -> 2.737668246 | AG59: =IF($I59 >0, MIN(AF59,$I59-SUM($L59:AF59)), MAX(AF59,$I59-SUM($L59:AF59))) -> 2.737668246 | AH59: =IF($I59 >0, MIN(AG59,$I59-SUM($L59:AG59)), MAX(AG59,$I59-SUM($L59:AG59))) -> 2.737668246 | AI59: =IF($I59 >0, MIN(AH59,$I59-SUM($L59:AH59)), MAX(AH59,$I59-SUM($L59:AH59))) -> 2.737668246 | AJ59: =IF($I59 >0, MIN(AI59,$I59-SUM($L59:AI59)), MAX(AI59,$I59-SUM($L59:AI59))) -> 2.737668246 | AK59: =IF($I59 >0, MIN(AJ59,$I59-SUM($L59:AJ59)), MAX(AJ59,$I59-SUM($L59:AJ59))) -> 2.737668246 | AL59: =IF($I59 >0, MIN(AK59,$I59-SUM($L59:AK59)), MAX(AK59,$I59-SUM($L59:AK59))) -> 2.737668246 | AM59: =IF($I59 >0, MIN(AL59,$I59-SUM($L59:AL59)), MAX(AL59,$I59-SUM($L59:AL59))) -> 2.737668246 | AN59: =IF($I59 >0, MIN(AM59,$I59-SUM($L59:AM59)), MAX(AM59,$I59-SUM($L59:AM59))) -> 2.737668246 | AO59: =IF($I59 >0, MIN(AN59,$I59-SUM($L59:AN59)), MAX(AN59,$I59-SUM($L59:AN59))) -> 2.737668246
E60: 2011-03-31 | G60: £m 09/10 prices | I60: 99.98357059 | J60: > | AF60: =$I60/AE$35 -> 2.221857124 | AG60: =IF($I60 >0, MIN(AF60,$I60-SUM($L60:AF60)), MAX(AF60,$I60-SUM($L60:AF60))) -> 2.221857124 | AH60: =IF($I60 >0, MIN(AG60,$I60-SUM($L60:AG60)), MAX(AG60,$I60-SUM($L60:AG60))) -> 2.221857124 | AI60: =IF($I60 >0, MIN(AH60,$I60-SUM($L60:AH60)), MAX(AH60,$I60-SUM($L60:AH60))) -> 2.221857124 | AJ60: =IF($I60 >0, MIN(AI60,$I60-SUM($L60:AI60)), MAX(AI60,$I60-SUM($L60:AI60))) -> 2.221857124 | AK60: =IF($I60 >0, MIN(AJ60,$I60-SUM($L60:AJ60)), MAX(AJ60,$I60-SUM($L60:AJ60))) -> 2.221857124 | AL60: =IF($I60 >0, MIN(AK60,$I60-SUM($L60:AK60)), MAX(AK60,$I60-SUM($L60:AK60))) -> 2.221857124 | AM60: =IF($I60 >0, MIN(AL60,$I60-SUM($L60:AL60)), MAX(AL60,$I60-SUM($L60:AL60))) -> 2.221857124 | AN60: =IF($I60 >0, MIN(AM60,$I60-SUM($L60:AM60)), MAX(AM60,$I60-SUM($L60:AM60))) -> 2.221857124 | AO60: =IF($I60 >0, MIN(AN60,$I60-SUM($L60:AN60)), MAX(AN60,$I60-SUM($L60:AN60))) -> 2.221857124
E61: 2012-03-31 | G61: £m 09/10 prices | I61: 101.1196543 | J61: > | AG61: =$I61/AF$35 -> 2.247103429 | AH61: =IF($I61 >0, MIN(AG61,$I61-SUM($L61:AG61)), MAX(AG61,$I61-SUM($L61:AG61))) -> 2.247103429 | AI61: =IF($I61 >0, MIN(AH61,$I61-SUM($L61:AH61)), MAX(AH61,$I61-SUM($L61:AH61))) -> 2.247103429 | AJ61: =IF($I61 >0, MIN(AI61,$I61-SUM($L61:AI61)), MAX(AI61,$I61-SUM($L61:AI61))) -> 2.247103429 | AK61: =IF($I61 >0, MIN(AJ61,$I61-SUM($L61:AJ61)), MAX(AJ61,$I61-SUM($L61:AJ61))) -> 2.247103429 | AL61: =IF($I61 >0, MIN(AK61,$I61-SUM($L61:AK61)), MAX(AK61,$I61-SUM($L61:AK61))) -> 2.247103429 | AM61: =IF($I61 >0, MIN(AL61,$I61-SUM($L61:AL61)), MAX(AL61,$I61-SUM($L61:AL61))) -> 2.247103429 | AN61: =IF($I61 >0, MIN(AM61,$I61-SUM($L61:AM61)), MAX(AM61,$I61-SUM($L61:AM61))) -> 2.247103429 | AO61: =IF($I61 >0, MIN(AN61,$I61-SUM($L61:AN61)), MAX(AN61,$I61-SUM($L61:AN61))) -> 2.247103429
E62: 2013-03-31 | G62: £m 09/10 prices | I62: -28.7623433 | AH62: =$I62/AG$35 -> -0.6391631844 | AI62: =IF($I62 >0, MIN(AH62,$I62-SUM($L62:AH62)), MAX(AH62,$I62-SUM($L62:AH62))) -> -0.6391631844 | AJ62: =IF($I62 >0, MIN(AI62,$I62-SUM($L62:AI62)), MAX(AI62,$I62-SUM($L62:AI62))) -> -0.6391631844 | AK62: =IF($I62 >0, MIN(AJ62,$I62-SUM($L62:AJ62)), MAX(AJ62,$I62-SUM($L62:AJ62))) -> -0.6391631844 | AL62: =IF($I62 >0, MIN(AK62,$I62-SUM($L62:AK62)), MAX(AK62,$I62-SUM($L62:AK62))) -> -0.6391631844 | AM62: =IF($I62 >0, MIN(AL62,$I62-SUM($L62:AL62)), MAX(AL62,$I62-SUM($L62:AL62))) -> -0.6391631844 | AN62: =IF($I62 >0, MIN(AM62,$I62-SUM($L62:AM62)), MAX(AM62,$I62-SUM($L62:AM62))) -> -0.6391631844 | AO62: =IF($I62 >0, MIN(AN62,$I62-SUM($L62:AN62)), MAX(AN62,$I62-SUM($L62:AN62))) -> -0.6391631844
E63: 2014-03-31 | G63: £m 09/10 prices | I63: 133.756247 | AI63: =$I63/AH$35 -> 2.972361045 | AJ63: =IF($I63 >0, MIN(AI63,$I63-SUM($L63:AI63)), MAX(AI63,$I63-SUM($L63:AI63))) -> 2.972361045 | AK63: =IF($I63 >0, MIN(AJ63,$I63-SUM($L63:AJ63)), MAX(AJ63,$I63-SUM($L63:AJ63))) -> 2.972361045 | AL63: =IF($I63 >0, MIN(AK63,$I63-SUM($L63:AK63)), MAX(AK63,$I63-SUM($L63:AK63))) -> 2.972361045 | AM63: =IF($I63 >0, MIN(AL63,$I63-SUM($L63:AL63)), MAX(AL63,$I63-SUM($L63:AL63))) -> 2.972361045 | AN63: =IF($I63 >0, MIN(AM63,$I63-SUM($L63:AM63)), MAX(AM63,$I63-SUM($L63:AM63))) -> 2.972361045 | AO63: =IF($I63 >0, MIN(AN63,$I63-SUM($L63:AN63)), MAX(AN63,$I63-SUM($L63:AN63))) -> 2.972361045
E64: 2015-03-31 | G64: £m 09/10 prices | I64: 138.1413482 | AJ64: =$I64/AI$35 -> 3.069807738 | AK64: =IF($I64 >0, MIN(AJ64,$I64-SUM($L64:AJ64)), MAX(AJ64,$I64-SUM($L64:AJ64))) -> 3.069807738 | AL64: =IF($I64 >0, MIN(AK64,$I64-SUM($L64:AK64)), MAX(AK64,$I64-SUM($L64:AK64))) -> 3.069807738 | AM64: =IF($I64 >0, MIN(AL64,$I64-SUM($L64:AL64)), MAX(AL64,$I64-SUM($L64:AL64))) -> 3.069807738 | AN64: =IF($I64 >0, MIN(AM64,$I64-SUM($L64:AM64)), MAX(AM64,$I64-SUM($L64:AM64))) -> 3.069807738 | AO64: =IF($I64 >0, MIN(AN64,$I64-SUM($L64:AN64)), MAX(AN64,$I64-SUM($L64:AN64))) -> 3.069807738
E65: 2016-03-31 | G65: £m 09/10 prices | I65: 203.0410673 | AK65: =$I65/AJ$35 -> 4.512023718 | AL65: =IF($I65 >0, MIN(AK65,$I65-SUM($L65:AK65)), MAX(AK65,$I65-SUM($L65:AK65))) -> 4.512023718 | AM65: =IF($I65 >0, MIN(AL65,$I65-SUM($L65:AL65)), MAX(AL65,$I65-SUM($L65:AL65))) -> 4.512023718 | AN65: =IF($I65 >0, MIN(AM65,$I65-SUM($L65:AM65)), MAX(AM65,$I65-SUM($L65:AM65))) -> 4.512023718 | AO65: =IF($I65 >0, MIN(AN65,$I65-SUM($L65:AN65)), MAX(AN65,$I65-SUM($L65:AN65))) -> 4.512023718
E66: 2017-03-31 | G66: £m 09/10 prices | I66: 323.4951478 | AL66: =$I66/AK$35 -> 7.188781063 | AM66: =IF($I66 >0, MIN(AL66,$I66-SUM($L66:AL66)), MAX(AL66,$I66-SUM($L66:AL66))) -> 7.188781063 | AN66: =IF($I66 >0, MIN(AM66,$I66-SUM($L66:AM66)), MAX(AM66,$I66-SUM($L66:AM66))) -> 7.188781063 | AO66: =IF($I66 >0, MIN(AN66,$I66-SUM($L66:AN66)), MAX(AN66,$I66-SUM($L66:AN66))) -> 7.188781063
E67: 2018-03-31 | G67: £m 09/10 prices | I67: 498.2168082 | AM67: =$I67/AL$35 -> 11.07148463 | AN67: =IF($I67 >0, MIN(AM67,$I67-SUM($L67:AM67)), MAX(AM67,$I67-SUM($L67:AM67))) -> 11.07148463 | AO67: =IF($I67 >0, MIN(AN67,$I67-SUM($L67:AN67)), MAX(AN67,$I67-SUM($L67:AN67))) -> 11.07148463
E68: 2019-03-31 | G68: £m 09/10 prices | I68: 470.4091501 | AN68: =$I68/AM$35 -> 10.45353667 | AO68: =IF($I68 >0, MIN(AN68,$I68-SUM($L68:AN68)), MAX(AN68,$I68-SUM($L68:AN68))) -> 10.45353667
E69: 2020-03-31 | G69: £m 09/10 prices | I69: 559.7976119 | AO69: =$I69/AN$35 -> 12.43994693
E70: 2021-03-31 | G70: £m 09/10 prices | I70: 601.6354095
E71: Total | G71: £m 09/10 prices | L71: =SUM(L40:L70) -> 0 | M71: =SUM(M40:M70) -> 0 | N71: 0 | O71: 0 | P71: 0 | Q71: 0 | R71: 0 | S71: 0 | T71: 0 | U71: 0 | V71: 0 | W71: 0 | X71: 0 | Y71: 6.652088818 | Z71: 8.793904129 | AA71: 15.46076324 | AB71: 27.4854575 | AC71: 40.50298033 | AD71: 46.00905931 | AE71: 48.74672756 | AF71: 50.96858468 | AG71: 53.21568811 | AH71: 52.57652493 | AI71: 55.54888597 | AJ71: 58.61869371 | AK71: 63.13071743 | AL71: 70.31949849 | AM71: 81.39098312 | AN71: 91.84451978 | AO71: 104.2844667
C73: Removal of fully depreciated items
E75: Removal of additions from year ending
E76: 1991-03-31 | G76: £m 09/10 prices | J76: > | L76: =IF(AND($I40 = SUM($K40:L40), SUM($K76:K76) = 0), $I40, 0) -> 0 | M76: =IF(AND($I40 = SUM($K40:M40), SUM($K76:L76) = 0), $I40, 0) -> 0 | N76: =IF(AND($I40 = SUM($K40:N40), SUM($K76:M76) = 0), $I40, 0) -> 0 | O76: =IF(AND($I40 = SUM($K40:O40), SUM($K76:N76) = 0), $I40, 0) -> 0 | P76: =IF(AND($I40 = SUM($K40:P40), SUM($K76:O76) = 0), $I40, 0) -> 0 | Q76: =IF(AND($I40 = SUM($K40:Q40), SUM($K76:P76) = 0), $I40, 0) -> 0 | R76: =IF(AND($I40 = SUM($K40:R40), SUM($K76:Q76) = 0), $I40, 0) -> 0 | S76: =IF(AND($I40 = SUM($K40:S40), SUM($K76:R76) = 0), $I40, 0) -> 0 | T76: =IF(AND($I40 = SUM($K40:T40), SUM($K76:S76) = 0), $I40, 0) -> 0 | U76: =IF(AND($I40 = SUM($K40:U40), SUM($K76:T76) = 0), $I40, 0) -> 0 | V76: =IF(AND($I40 = SUM($K40:V40), SUM($K76:U76) = 0), $I40, 0) -> 0 | W76: =IF(AND($I40 = SUM($K40:W40), SUM($K76:V76) = 0), $I40, 0) -> 0 | X76: =IF(AND($I40 = SUM($K40:X40), SUM($K76:W76) = 0), $I40, 0) -> 0 | Y76: =IF(AND($I40 = SUM($K40:Y40), SUM($K76:X76) = 0), $I40, 0) -> 0 | Z76: =IF(AND($I40 = SUM($K40:Z40), SUM($K76:Y76) = 0), $I40, 0) -> 0 | AA76: =IF(AND($I40 = SUM($K40:AA40), SUM($K76:Z76) = 0), $I40, 0) -> 0 | AB76: =IF(AND($I40 = SUM($K40:AB40), SUM($K76:AA76) = 0), $I40, 0) -> 0 | AC76: =IF(AND($I40 = SUM($K40:AC40), SUM($K76:AB76) = 0), $I40, 0) -> 0 | AD76: =IF(AND($I40 = SUM($K40:AD40), SUM($K76:AC76) = 0), $I40, 0) -> 0 | AE76: =IF(AND($I40 = SUM($K40:AE40), SUM($K76:AD76) = 0), $I40, 0) -> 0 | AF76: =IF(AND($I40 = SUM($K40:AF40), SUM($K76:AE76) = 0), $I40, 0) -> 0 | AG76: =IF(AND($I40 = SUM($K40:AG40), SUM($K76:AF76) = 0), $I40, 0) -> 0 | AH76: =IF(AND($I40 = SUM($K40:AH40), SUM($K76:AG76) = 0), $I40, 0) -> 0 | AI76: =IF(AND($I40 = SUM($K40:AI40), SUM($K76:AH76) = 0), $I40, 0) -> 0 | AJ76: =IF(AND($I40 = SUM($K40:AJ40), SUM($K76:AI76) = 0), $I40, 0) -> 0 | AK76: =IF(AND($I40 = SUM($K40:AK40), SUM($K76:AJ76) = 0), $I40, 0) -> 0 | AL76: =IF(AND($I40 = SUM($K40:AL40), SUM($K76:AK76) = 0), $I40, 0) -> 0 | AM76: =IF(AND($I40 = SUM($K40:AM40), SUM($K76:AL76) = 0), $I40, 0) -> 0 | AN76: =IF(AND($I40 = SUM($K40:AN40), SUM($K76:AM76) = 0), $I40, 0) -> 0 | AO76: =IF(AND($I40 = SUM($K40:AO40), SUM($K76:AN76) = 0), $I40, 0) -> 0
E77: 1992-03-31 | G77: £m 09/10 prices | J77: > | L77: =IF(AND($I41 = SUM($K41:L41), SUM($K77:K77) = 0), $I41, 0) -> 0 | M77: =IF(AND($I41 = SUM($K41:M41), SUM($K77:L77) = 0), $I41, 0) -> 0 | N77: =IF(AND($I41 = SUM($K41:N41), SUM($K77:M77) = 0), $I41, 0) -> 0 | O77: =IF(AND($I41 = SUM($K41:O41), SUM($K77:N77) = 0), $I41, 0) -> 0 | P77: =IF(AND($I41 = SUM($K41:P41), SUM($K77:O77) = 0), $I41, 0) -> 0 | Q77: =IF(AND($I41 = SUM($K41:Q41), SUM($K77:P77) = 0), $I41, 0) -> 0 | R77: =IF(AND($I41 = SUM($K41:R41), SUM($K77:Q77) = 0), $I41, 0) -> 0 | S77: =IF(AND($I41 = SUM($K41:S41), SUM($K77:R77) = 0), $I41, 0) -> 0 | T77: =IF(AND($I41 = SUM($K41:T41), SUM($K77:S77) = 0), $I41, 0) -> 0 | U77: =IF(AND($I41 = SUM($K41:U41), SUM($K77:T77) = 0), $I41, 0) -> 0 | V77: =IF(AND($I41 = SUM($K41:V41), SUM($K77:U77) = 0), $I41, 0) -> 0 | W77: =IF(AND($I41 = SUM($K41:W41), SUM($K77:V77) = 0), $I41, 0) -> 0 | X77: =IF(AND($I41 = SUM($K41:X41), SUM($K77:W77) = 0), $I41, 0) -> 0 | Y77: =IF(AND($I41 = SUM($K41:Y41), SUM($K77:X77) = 0), $I41, 0) -> 0 | Z77: =IF(AND($I41 = SUM($K41:Z41), SUM($K77:Y77) = 0), $I41, 0) -> 0 | AA77: =IF(AND($I41 = SUM($K41:AA41), SUM($K77:Z77) = 0), $I41, 0) -> 0 | AB77: =IF(AND($I41 = SUM($K41:AB41), SUM($K77:AA77) = 0), $I41, 0) -> 0 | AC77: =IF(AND($I41 = SUM($K41:AC41), SUM($K77:AB77) = 0), $I41, 0) -> 0 | AD77: =IF(AND($I41 = SUM($K41:AD41), SUM($K77:AC77) = 0), $I41, 0) -> 0 | AE77: =IF(AND($I41 = SUM($K41:AE41), SUM($K77:AD77) = 0), $I41, 0) -> 0 | AF77: =IF(AND($I41 = SUM($K41:AF41), SUM($K77:AE77) = 0), $I41, 0) -> 0 | AG77: =IF(AND($I41 = SUM($K41:AG41), SUM($K77:AF77) = 0), $I41, 0) -> 0 | AH77: =IF(AND($I41 = SUM($K41:AH41), SUM($K77:AG77) = 0), $I41, 0) -> 0 | AI77: =IF(AND($I41 = SUM($K41:AI41), SUM($K77:AH77) = 0), $I41, 0) -> 0 | AJ77: =IF(AND($I41 = SUM($K41:AJ41), SUM($K77:AI77) = 0), $I41, 0) -> 0 | AK77: =IF(AND($I41 = SUM($K41:AK41), SUM($K77:AJ77) = 0), $I41, 0) -> 0 | AL77: =IF(AND($I41 = SUM($K41:AL41), SUM($K77:AK77) = 0), $I41, 0) -> 0 | AM77: =IF(AND($I41 = SUM($K41:AM41), SUM($K77:AL77) = 0), $I41, 0) -> 0 | AN77: =IF(AND($I41 = SUM($K41:AN41), SUM($K77:AM77) = 0), $I41, 0) -> 0 | AO77: =IF(AND($I41 = SUM($K41:AO41), SUM($K77:AN77) = 0), $I41, 0) -> 0
E78: 1993-03-31 | G78: £m 09/10 prices | J78: > | L78: =IF(AND($I42 = SUM($K42:L42), SUM($K78:K78) = 0), $I42, 0) -> 0 | M78: =IF(AND($I42 = SUM($K42:M42), SUM($K78:L78) = 0), $I42, 0) -> 0 | N78: =IF(AND($I42 = SUM($K42:N42), SUM($K78:M78) = 0), $I42, 0) -> 0 | O78: =IF(AND($I42 = SUM($K42:O42), SUM($K78:N78) = 0), $I42, 0) -> 0 | P78: =IF(AND($I42 = SUM($K42:P42), SUM($K78:O78) = 0), $I42, 0) -> 0 | Q78: =IF(AND($I42 = SUM($K42:Q42), SUM($K78:P78) = 0), $I42, 0) -> 0 | R78: =IF(AND($I42 = SUM($K42:R42), SUM($K78:Q78) = 0), $I42, 0) -> 0 | S78: =IF(AND($I42 = SUM($K42:S42), SUM($K78:R78) = 0), $I42, 0) -> 0 | T78: =IF(AND($I42 = SUM($K42:T42), SUM($K78:S78) = 0), $I42, 0) -> 0 | U78: =IF(AND($I42 = SUM($K42:U42), SUM($K78:T78) = 0), $I42, 0) -> 0 | V78: =IF(AND($I42 = SUM($K42:V42), SUM($K78:U78) = 0), $I42, 0) -> 0 | W78: =IF(AND($I42 = SUM($K42:W42), SUM($K78:V78) = 0), $I42, 0) -> 0 | X78: =IF(AND($I42 = SUM($K42:X42), SUM($K78:W78) = 0), $I42, 0) -> 0 | Y78: =IF(AND($I42 = SUM($K42:Y42), SUM($K78:X78) = 0), $I42, 0) -> 0 | Z78: =IF(AND($I42 = SUM($K42:Z42), SUM($K78:Y78) = 0), $I42, 0) -> 0 | AA78: =IF(AND($I42 = SUM($K42:AA42), SUM($K78:Z78) = 0), $I42, 0) -> 0 | AB78: =IF(AND($I42 = SUM($K42:AB42), SUM($K78:AA78) = 0), $I42, 0) -> 0 | AC78: =IF(AND($I42 = SUM($K42:AC42), SUM($K78:AB78) = 0), $I42, 0) -> 0 | AD78: =IF(AND($I42 = SUM($K42:AD42), SUM($K78:AC78) = 0), $I42, 0) -> 0 | AE78: =IF(AND($I42 = SUM($K42:AE42), SUM($K78:AD78) = 0), $I42, 0) -> 0 | AF78: =IF(AND($I42 = SUM($K42:AF42), SUM($K78:AE78) = 0), $I42, 0) -> 0 | AG78: =IF(AND($I42 = SUM($K42:AG42), SUM($K78:AF78) = 0), $I42, 0) -> 0 | AH78: =IF(AND($I42 = SUM($K42:AH42), SUM($K78:AG78) = 0), $I42, 0) -> 0 | AI78: =IF(AND($I42 = SUM($K42:AI42), SUM($K78:AH78) = 0), $I42, 0) -> 0 | AJ78: =IF(AND($I42 = SUM($K42:AJ42), SUM($K78:AI78) = 0), $I42, 0) -> 0 | AK78: =IF(AND($I42 = SUM($K42:AK42), SUM($K78:AJ78) = 0), $I42, 0) -> 0 | AL78: =IF(AND($I42 = SUM($K42:AL42), SUM($K78:AK78) = 0), $I42, 0) -> 0 | AM78: =IF(AND($I42 = SUM($K42:AM42), SUM($K78:AL78) = 0), $I42, 0) -> 0 | AN78: =IF(AND($I42 = SUM($K42:AN42), SUM($K78:AM78) = 0), $I42, 0) -> 0 | AO78: =IF(AND($I42 = SUM($K42:AO42), SUM($K78:AN78) = 0), $I42, 0) -> 0
E79: 1994-03-31 | G79: £m 09/10 prices | J79: > | L79: =IF(AND($I43 = SUM($K43:L43), SUM($K79:K79) = 0), $I43, 0) -> 0 | M79: =IF(AND($I43 = SUM($K43:M43), SUM($K79:L79) = 0), $I43, 0) -> 0 | N79: =IF(AND($I43 = SUM($K43:N43), SUM($K79:M79) = 0), $I43, 0) -> 0 | O79: =IF(AND($I43 = SUM($K43:O43), SUM($K79:N79) = 0), $I43, 0) -> 0 | P79: =IF(AND($I43 = SUM($K43:P43), SUM($K79:O79) = 0), $I43, 0) -> 0 | Q79: =IF(AND($I43 = SUM($K43:Q43), SUM($K79:P79) = 0), $I43, 0) -> 0 | R79: =IF(AND($I43 = SUM($K43:R43), SUM($K79:Q79) = 0), $I43, 0) -> 0 | S79: =IF(AND($I43 = SUM($K43:S43), SUM($K79:R79) = 0), $I43, 0) -> 0 | T79: =IF(AND($I43 = SUM($K43:T43), SUM($K79:S79) = 0), $I43, 0) -> 0 | U79: =IF(AND($I43 = SUM($K43:U43), SUM($K79:T79) = 0), $I43, 0) -> 0 | V79: =IF(AND($I43 = SUM($K43:V43), SUM($K79:U79) = 0), $I43, 0) -> 0 | W79: =IF(AND($I43 = SUM($K43:W43), SUM($K79:V79) = 0), $I43, 0) -> 0 | X79: =IF(AND($I43 = SUM($K43:X43), SUM($K79:W79) = 0), $I43, 0) -> 0 | Y79: =IF(AND($I43 = SUM($K43:Y43), SUM($K79:X79) = 0), $I43, 0) -> 0 | Z79: =IF(AND($I43 = SUM($K43:Z43), SUM($K79:Y79) = 0), $I43, 0) -> 0 | AA79: =IF(AND($I43 = SUM($K43:AA43), SUM($K79:Z79) = 0), $I43, 0) -> 0 | AB79: =IF(AND($I43 = SUM($K43:AB43), SUM($K79:AA79) = 0), $I43, 0) -> 0 | AC79: =IF(AND($I43 = SUM($K43:AC43), SUM($K79:AB79) = 0), $I43, 0) -> 0 | AD79: =IF(AND($I43 = SUM($K43:AD43), SUM($K79:AC79) = 0), $I43, 0) -> 0 | AE79: =IF(AND($I43 = SUM($K43:AE43), SUM($K79:AD79) = 0), $I43, 0) -> 0 | AF79: =IF(AND($I43 = SUM($K43:AF43), SUM($K79:AE79) = 0), $I43, 0) -> 0 | AG79: =IF(AND($I43 = SUM($K43:AG43), SUM($K79:AF79) = 0), $I43, 0) -> 0 | AH79: =IF(AND($I43 = SUM($K43:AH43), SUM($K79:AG79) = 0), $I43, 0) -> 0 | AI79: =IF(AND($I43 = SUM($K43:AI43), SUM($K79:AH79) = 0), $I43, 0) -> 0 | AJ79: =IF(AND($I43 = SUM($K43:AJ43), SUM($K79:AI79) = 0), $I43, 0) -> 0 | AK79: =IF(AND($I43 = SUM($K43:AK43), SUM($K79:AJ79) = 0), $I43, 0) -> 0 | AL79: =IF(AND($I43 = SUM($K43:AL43), SUM($K79:AK79) = 0), $I43, 0) -> 0 | AM79: =IF(AND($I43 = SUM($K43:AM43), SUM($K79:AL79) = 0), $I43, 0) -> 0 | AN79: =IF(AND($I43 = SUM($K43:AN43), SUM($K79:AM79) = 0), $I43, 0) -> 0 | AO79: =IF(AND($I43 = SUM($K43:AO43), SUM($K79:AN79) = 0), $I43, 0) -> 0
E80: 1995-03-31 | G80: £m 09/10 prices | J80: > | L80: =IF(AND($I44 = SUM($K44:L44), SUM($K80:K80) = 0), $I44, 0) -> 0 | M80: =IF(AND($I44 = SUM($K44:M44), SUM($K80:L80) = 0), $I44, 0) -> 0 | N80: =IF(AND($I44 = SUM($K44:N44), SUM($K80:M80) = 0), $I44, 0) -> 0 | O80: =IF(AND($I44 = SUM($K44:O44), SUM($K80:N80) = 0), $I44, 0) -> 0 | P80: =IF(AND($I44 = SUM($K44:P44), SUM($K80:O80) = 0), $I44, 0) -> 0 | Q80: =IF(AND($I44 = SUM($K44:Q44), SUM($K80:P80) = 0), $I44, 0) -> 0 | R80: =IF(AND($I44 = SUM($K44:R44), SUM($K80:Q80) = 0), $I44, 0) -> 0 | S80: =IF(AND($I44 = SUM($K44:S44), SUM($K80:R80) = 0), $I44, 0) -> 0 | T80: =IF(AND($I44 = SUM($K44:T44), SUM($K80:S80) = 0), $I44, 0) -> 0 | U80: =IF(AND($I44 = SUM($K44:U44), SUM($K80:T80) = 0), $I44, 0) -> 0 | V80: =IF(AND($I44 = SUM($K44:V44), SUM($K80:U80) = 0), $I44, 0) -> 0 | W80: =IF(AND($I44 = SUM($K44:W44), SUM($K80:V80) = 0), $I44, 0) -> 0 | X80: =IF(AND($I44 = SUM($K44:X44), SUM($K80:W80) = 0), $I44, 0) -> 0 | Y80: =IF(AND($I44 = SUM($K44:Y44), SUM($K80:X80) = 0), $I44, 0) -> 0 | Z80: =IF(AND($I44 = SUM($K44:Z44), SUM($K80:Y80) = 0), $I44, 0) -> 0 | AA80: =IF(AND($I44 = SUM($K44:AA44), SUM($K80:Z80) = 0), $I44, 0) -> 0 | AB80: =IF(AND($I44 = SUM($K44:AB44), SUM($K80:AA80) = 0), $I44, 0) -> 0 | AC80: =IF(AND($I44 = SUM($K44:AC44), SUM($K80:AB80) = 0), $I44, 0) -> 0 | AD80: =IF(AND($I44 = SUM($K44:AD44), SUM($K80:AC80) = 0), $I44, 0) -> 0 | AE80: =IF(AND($I44 = SUM($K44:AE44), SUM($K80:AD80) = 0), $I44, 0) -> 0 | AF80: =IF(AND($I44 = SUM($K44:AF44), SUM($K80:AE80) = 0), $I44, 0) -> 0 | AG80: =IF(AND($I44 = SUM($K44:AG44), SUM($K80:AF80) = 0), $I44, 0) -> 0 | AH80: =IF(AND($I44 = SUM($K44:AH44), SUM($K80:AG80) = 0), $I44, 0) -> 0 | AI80: =IF(AND($I44 = SUM($K44:AI44), SUM($K80:AH80) = 0), $I44, 0) -> 0 | AJ80: =IF(AND($I44 = SUM($K44:AJ44), SUM($K80:AI80) = 0), $I44, 0) -> 0 | AK80: =IF(AND($I44 = SUM($K44:AK44), SUM($K80:AJ80) = 0), $I44, 0) -> 0 | AL80: =IF(AND($I44 = SUM($K44:AL44), SUM($K80:AK80) = 0), $I44, 0) -> 0 | AM80: =IF(AND($I44 = SUM($K44:AM44), SUM($K80:AL80) = 0), $I44, 0) -> 0 | AN80: =IF(AND($I44 = SUM($K44:AN44), SUM($K80:AM80) = 0), $I44, 0) -> 0 | AO80: =IF(AND($I44 = SUM($K44:AO44), SUM($K80:AN80) = 0), $I44, 0) -> 0
E81: 1996-03-31 | G81: £m 09/10 prices | J81: > | L81: =IF(AND($I45 = SUM($K45:L45), SUM($K81:K81) = 0), $I45, 0) -> 0 | M81: =IF(AND($I45 = SUM($K45:M45), SUM($K81:L81) = 0), $I45, 0) -> 0 | N81: =IF(AND($I45 = SUM($K45:N45), SUM($K81:M81) = 0), $I45, 0) -> 0 | O81: =IF(AND($I45 = SUM($K45:O45), SUM($K81:N81) = 0), $I45, 0) -> 0 | P81: =IF(AND($I45 = SUM($K45:P45), SUM($K81:O81) = 0), $I45, 0) -> 0 | Q81: =IF(AND($I45 = SUM($K45:Q45), SUM($K81:P81) = 0), $I45, 0) -> 0 | R81: =IF(AND($I45 = SUM($K45:R45), SUM($K81:Q81) = 0), $I45, 0) -> 0 | S81: =IF(AND($I45 = SUM($K45:S45), SUM($K81:R81) = 0), $I45, 0) -> 0 | T81: =IF(AND($I45 = SUM($K45:T45), SUM($K81:S81) = 0), $I45, 0) -> 0 | U81: =IF(AND($I45 = SUM($K45:U45), SUM($K81:T81) = 0), $I45, 0) -> 0 | V81: =IF(AND($I45 = SUM($K45:V45), SUM($K81:U81) = 0), $I45, 0) -> 0 | W81: =IF(AND($I45 = SUM($K45:W45), SUM($K81:V81) = 0), $I45, 0) -> 0 | X81: =IF(AND($I45 = SUM($K45:X45), SUM($K81:W81) = 0), $I45, 0) -> 0 | Y81: =IF(AND($I45 = SUM($K45:Y45), SUM($K81:X81) = 0), $I45, 0) -> 0 | Z81: =IF(AND($I45 = SUM($K45:Z45), SUM($K81:Y81) = 0), $I45, 0) -> 0 | AA81: =IF(AND($I45 = SUM($K45:AA45), SUM($K81:Z81) = 0), $I45, 0) -> 0 | AB81: =IF(AND($I45 = SUM($K45:AB45), SUM($K81:AA81) = 0), $I45, 0) -> 0 | AC81: =IF(AND($I45 = SUM($K45:AC45), SUM($K81:AB81) = 0), $I45, 0) -> 0 | AD81: =IF(AND($I45 = SUM($K45:AD45), SUM($K81:AC81) = 0), $I45, 0) -> 0 | AE81: =IF(AND($I45 = SUM($K45:AE45), SUM($K81:AD81) = 0), $I45, 0) -> 0 | AF81: =IF(AND($I45 = SUM($K45:AF45), SUM($K81:AE81) = 0), $I45, 0) -> 0 | AG81: =IF(AND($I45 = SUM($K45:AG45), SUM($K81:AF81) = 0), $I45, 0) -> 0 | AH81: =IF(AND($I45 = SUM($K45:AH45), SUM($K81:AG81) = 0), $I45, 0) -> 0 | AI81: =IF(AND($I45 = SUM($K45:AI45), SUM($K81:AH81) = 0), $I45, 0) -> 0 | AJ81: =IF(AND($I45 = SUM($K45:AJ45), SUM($K81:AI81) = 0), $I45, 0) -> 0 | AK81: =IF(AND($I45 = SUM($K45:AK45), SUM($K81:AJ81) = 0), $I45, 0) -> 0 | AL81: =IF(AND($I45 = SUM($K45:AL45), SUM($K81:AK81) = 0), $I45, 0) -> 0 | AM81: =IF(AND($I45 = SUM($K45:AM45), SUM($K81:AL81) = 0), $I45, 0) -> 0 | AN81: =IF(AND($I45 = SUM($K45:AN45), SUM($K81:AM81) = 0), $I45, 0) -> 0 | AO81: =IF(AND($I45 = SUM($K45:AO45), SUM($K81:AN81) = 0), $I45, 0) -> 0
E82: 1997-03-31 | G82: £m 09/10 prices | J82: > | L82: =IF(AND($I46 = SUM($K46:L46), SUM($K82:K82) = 0), $I46, 0) -> 0 | M82: =IF(AND($I46 = SUM($K46:M46), SUM($K82:L82) = 0), $I46, 0) -> 0 | N82: =IF(AND($I46 = SUM($K46:N46), SUM($K82:M82) = 0), $I46, 0) -> 0 | O82: =IF(AND($I46 = SUM($K46:O46), SUM($K82:N82) = 0), $I46, 0) -> 0 | P82: =IF(AND($I46 = SUM($K46:P46), SUM($K82:O82) = 0), $I46, 0) -> 0 | Q82: =IF(AND($I46 = SUM($K46:Q46), SUM($K82:P82) = 0), $I46, 0) -> 0 | R82: =IF(AND($I46 = SUM($K46:R46), SUM($K82:Q82) = 0), $I46, 0) -> 0 | S82: =IF(AND($I46 = SUM($K46:S46), SUM($K82:R82) = 0), $I46, 0) -> 0 | T82: =IF(AND($I46 = SUM($K46:T46), SUM($K82:S82) = 0), $I46, 0) -> 0 | U82: =IF(AND($I46 = SUM($K46:U46), SUM($K82:T82) = 0), $I46, 0) -> 0 | V82: =IF(AND($I46 = SUM($K46:V46), SUM($K82:U82) = 0), $I46, 0) -> 0 | W82: =IF(AND($I46 = SUM($K46:W46), SUM($K82:V82) = 0), $I46, 0) -> 0 | X82: =IF(AND($I46 = SUM($K46:X46), SUM($K82:W82) = 0), $I46, 0) -> 0 | Y82: =IF(AND($I46 = SUM($K46:Y46), SUM($K82:X82) = 0), $I46, 0) -> 0 | Z82: =IF(AND($I46 = SUM($K46:Z46), SUM($K82:Y82) = 0), $I46, 0) -> 0 | AA82: =IF(AND($I46 = SUM($K46:AA46), SUM($K82:Z82) = 0), $I46, 0) -> 0 | AB82: =IF(AND($I46 = SUM($K46:AB46), SUM($K82:AA82) = 0), $I46, 0) -> 0 | AC82: =IF(AND($I46 = SUM($K46:AC46), SUM($K82:AB82) = 0), $I46, 0) -> 0 | AD82: =IF(AND($I46 = SUM($K46:AD46), SUM($K82:AC82) = 0), $I46, 0) -> 0 | AE82: =IF(AND($I46 = SUM($K46:AE46), SUM($K82:AD82) = 0), $I46, 0) -> 0 | AF82: =IF(AND($I46 = SUM($K46:AF46), SUM($K82:AE82) = 0), $I46, 0) -> 0 | AG82: =IF(AND($I46 = SUM($K46:AG46), SUM($K82:AF82) = 0), $I46, 0) -> 0 | AH82: =IF(AND($I46 = SUM($K46:AH46), SUM($K82:AG82) = 0), $I46, 0) -> 0 | AI82: =IF(AND($I46 = SUM($K46:AI46), SUM($K82:AH82) = 0), $I46, 0) -> 0 | AJ82: =IF(AND($I46 = SUM($K46:AJ46), SUM($K82:AI82) = 0), $I46, 0) -> 0 | AK82: =IF(AND($I46 = SUM($K46:AK46), SUM($K82:AJ82) = 0), $I46, 0) -> 0 | AL82: =IF(AND($I46 = SUM($K46:AL46), SUM($K82:AK82) = 0), $I46, 0) -> 0 | AM82: =IF(AND($I46 = SUM($K46:AM46), SUM($K82:AL82) = 0), $I46, 0) -> 0 | AN82: =IF(AND($I46 = SUM($K46:AN46), SUM($K82:AM82) = 0), $I46, 0) -> 0 | AO82: =IF(AND($I46 = SUM($K46:AO46), SUM($K82:AN82) = 0), $I46, 0) -> 0
E83: 1998-03-31 | G83: £m 09/10 prices | J83: > | L83: =IF(AND($I47 = SUM($K47:L47), SUM($K83:K83) = 0), $I47, 0) -> 0 | M83: =IF(AND($I47 = SUM($K47:M47), SUM($K83:L83) = 0), $I47, 0) -> 0 | N83: =IF(AND($I47 = SUM($K47:N47), SUM($K83:M83) = 0), $I47, 0) -> 0 | O83: =IF(AND($I47 = SUM($K47:O47), SUM($K83:N83) = 0), $I47, 0) -> 0 | P83: =IF(AND($I47 = SUM($K47:P47), SUM($K83:O83) = 0), $I47, 0) -> 0 | Q83: =IF(AND($I47 = SUM($K47:Q47), SUM($K83:P83) = 0), $I47, 0) -> 0 | R83: =IF(AND($I47 = SUM($K47:R47), SUM($K83:Q83) = 0), $I47, 0) -> 0 | S83: =IF(AND($I47 = SUM($K47:S47), SUM($K83:R83) = 0), $I47, 0) -> 0 | T83: =IF(AND($I47 = SUM($K47:T47), SUM($K83:S83) = 0), $I47, 0) -> 0 | U83: =IF(AND($I47 = SUM($K47:U47), SUM($K83:T83) = 0), $I47, 0) -> 0 | V83: =IF(AND($I47 = SUM($K47:V47), SUM($K83:U83) = 0), $I47, 0) -> 0 | W83: =IF(AND($I47 = SUM($K47:W47), SUM($K83:V83) = 0), $I47, 0) -> 0 | X83: =IF(AND($I47 = SUM($K47:X47), SUM($K83:W83) = 0), $I47, 0) -> 0 | Y83: =IF(AND($I47 = SUM($K47:Y47), SUM($K83:X83) = 0), $I47, 0) -> 0 | Z83: =IF(AND($I47 = SUM($K47:Z47), SUM($K83:Y83) = 0), $I47, 0) -> 0 | AA83: =IF(AND($I47 = SUM($K47:AA47), SUM($K83:Z83) = 0), $I47, 0) -> 0 | AB83: =IF(AND($I47 = SUM($K47:AB47), SUM($K83:AA83) = 0), $I47, 0) -> 0 | AC83: =IF(AND($I47 = SUM($K47:AC47), SUM($K83:AB83) = 0), $I47, 0) -> 0 | AD83: =IF(AND($I47 = SUM($K47:AD47), SUM($K83:AC83) = 0), $I47, 0) -> 0 | AE83: =IF(AND($I47 = SUM($K47:AE47), SUM($K83:AD83) = 0), $I47, 0) -> 0 | AF83: =IF(AND($I47 = SUM($K47:AF47), SUM($K83:AE83) = 0), $I47, 0) -> 0 | AG83: =IF(AND($I47 = SUM($K47:AG47), SUM($K83:AF83) = 0), $I47, 0) -> 0 | AH83: =IF(AND($I47 = SUM($K47:AH47), SUM($K83:AG83) = 0), $I47, 0) -> 0 | AI83: =IF(AND($I47 = SUM($K47:AI47), SUM($K83:AH83) = 0), $I47, 0) -> 0 | AJ83: =IF(AND($I47 = SUM($K47:AJ47), SUM($K83:AI83) = 0), $I47, 0) -> 0 | AK83: =IF(AND($I47 = SUM($K47:AK47), SUM($K83:AJ83) = 0), $I47, 0) -> 0 | AL83: =IF(AND($I47 = SUM($K47:AL47), SUM($K83:AK83) = 0), $I47, 0) -> 0 | AM83: =IF(AND($I47 = SUM($K47:AM47), SUM($K83:AL83) = 0), $I47, 0) -> 0 | AN83: =IF(AND($I47 = SUM($K47:AN47), SUM($K83:AM83) = 0), $I47, 0) -> 0 | AO83: =IF(AND($I47 = SUM($K47:AO47), SUM($K83:AN83) = 0), $I47, 0) -> 0
E84: 1999-03-31 | G84: £m 09/10 prices | J84: > | L84: =IF(AND($I48 = SUM($K48:L48), SUM($K84:K84) = 0), $I48, 0) -> 0 | M84: =IF(AND($I48 = SUM($K48:M48), SUM($K84:L84) = 0), $I48, 0) -> 0 | N84: =IF(AND($I48 = SUM($K48:N48), SUM($K84:M84) = 0), $I48, 0) -> 0 | O84: =IF(AND($I48 = SUM($K48:O48), SUM($K84:N84) = 0), $I48, 0) -> 0 | P84: =IF(AND($I48 = SUM($K48:P48), SUM($K84:O84) = 0), $I48, 0) -> 0 | Q84: =IF(AND($I48 = SUM($K48:Q48), SUM($K84:P84) = 0), $I48, 0) -> 0 | R84: =IF(AND($I48 = SUM($K48:R48), SUM($K84:Q84) = 0), $I48, 0) -> 0 | S84: =IF(AND($I48 = SUM($K48:S48), SUM($K84:R84) = 0), $I48, 0) -> 0 | T84: =IF(AND($I48 = SUM($K48:T48), SUM($K84:S84) = 0), $I48, 0) -> 0 | U84: =IF(AND($I48 = SUM($K48:U48), SUM($K84:T84) = 0), $I48, 0) -> 0 | V84: =IF(AND($I48 = SUM($K48:V48), SUM($K84:U84) = 0), $I48, 0) -> 0 | W84: =IF(AND($I48 = SUM($K48:W48), SUM($K84:V84) = 0), $I48, 0) -> 0 | X84: =IF(AND($I48 = SUM($K48:X48), SUM($K84:W84) = 0), $I48, 0) -> 0 | Y84: =IF(AND($I48 = SUM($K48:Y48), SUM($K84:X84) = 0), $I48, 0) -> 0 | Z84: =IF(AND($I48 = SUM($K48:Z48), SUM($K84:Y84) = 0), $I48, 0) -> 0 | AA84: =IF(AND($I48 = SUM($K48:AA48), SUM($K84:Z84) = 0), $I48, 0) -> 0 | AB84: =IF(AND($I48 = SUM($K48:AB48), SUM($K84:AA84) = 0), $I48, 0) -> 0 | AC84: =IF(AND($I48 = SUM($K48:AC48), SUM($K84:AB84) = 0), $I48, 0) -> 0 | AD84: =IF(AND($I48 = SUM($K48:AD48), SUM($K84:AC84) = 0), $I48, 0) -> 0 | AE84: =IF(AND($I48 = SUM($K48:AE48), SUM($K84:AD84) = 0), $I48, 0) -> 0 | AF84: =IF(AND($I48 = SUM($K48:AF48), SUM($K84:AE84) = 0), $I48, 0) -> 0 | AG84: =IF(AND($I48 = SUM($K48:AG48), SUM($K84:AF84) = 0), $I48, 0) -> 0 | AH84: =IF(AND($I48 = SUM($K48:AH48), SUM($K84:AG84) = 0), $I48, 0) -> 0 | AI84: =IF(AND($I48 = SUM($K48:AI48), SUM($K84:AH84) = 0), $I48, 0) -> 0 | AJ84: =IF(AND($I48 = SUM($K48:AJ48), SUM($K84:AI84) = 0), $I48, 0) -> 0 | AK84: =IF(AND($I48 = SUM($K48:AK48), SUM($K84:AJ84) = 0), $I48, 0) -> 0 | AL84: =IF(AND($I48 = SUM($K48:AL48), SUM($K84:AK84) = 0), $I48, 0) -> 0 | AM84: =IF(AND($I48 = SUM($K48:AM48), SUM($K84:AL84) = 0), $I48, 0) -> 0 | AN84: =IF(AND($I48 = SUM($K48:AN48), SUM($K84:AM84) = 0), $I48, 0) -> 0 | AO84: =IF(AND($I48 = SUM($K48:AO48), SUM($K84:AN84) = 0), $I48, 0) -> 0
E85: 2000-03-31 | G85: £m 09/10 prices | J85: > | L85: =IF(AND($I49 = SUM($K49:L49), SUM($K85:K85) = 0), $I49, 0) -> 0 | M85: =IF(AND($I49 = SUM($K49:M49), SUM($K85:L85) = 0), $I49, 0) -> 0 | N85: =IF(AND($I49 = SUM($K49:N49), SUM($K85:M85) = 0), $I49, 0) -> 0 | O85: =IF(AND($I49 = SUM($K49:O49), SUM($K85:N85) = 0), $I49, 0) -> 0 | P85: =IF(AND($I49 = SUM($K49:P49), SUM($K85:O85) = 0), $I49, 0) -> 0 | Q85: =IF(AND($I49 = SUM($K49:Q49), SUM($K85:P85) = 0), $I49, 0) -> 0 | R85: =IF(AND($I49 = SUM($K49:R49), SUM($K85:Q85) = 0), $I49, 0) -> 0 | S85: =IF(AND($I49 = SUM($K49:S49), SUM($K85:R85) = 0), $I49, 0) -> 0 | T85: =IF(AND($I49 = SUM($K49:T49), SUM($K85:S85) = 0), $I49, 0) -> 0 | U85: =IF(AND($I49 = SUM($K49:U49), SUM($K85:T85) = 0), $I49, 0) -> 0 | V85: =IF(AND($I49 = SUM($K49:V49), SUM($K85:U85) = 0), $I49, 0) -> 0 | W85: =IF(AND($I49 = SUM($K49:W49), SUM($K85:V85) = 0), $I49, 0) -> 0 | X85: =IF(AND($I49 = SUM($K49:X49), SUM($K85:W85) = 0), $I49, 0) -> 0 | Y85: =IF(AND($I49 = SUM($K49:Y49), SUM($K85:X85) = 0), $I49, 0) -> 0 | Z85: =IF(AND($I49 = SUM($K49:Z49), SUM($K85:Y85) = 0), $I49, 0) -> 0 | AA85: =IF(AND($I49 = SUM($K49:AA49), SUM($K85:Z85) = 0), $I49, 0) -> 0 | AB85: =IF(AND($I49 = SUM($K49:AB49), SUM($K85:AA85) = 0), $I49, 0) -> 0 | AC85: =IF(AND($I49 = SUM($K49:AC49), SUM($K85:AB85) = 0), $I49, 0) -> 0 | AD85: =IF(AND($I49 = SUM($K49:AD49), SUM($K85:AC85) = 0), $I49, 0) -> 0 | AE85: =IF(AND($I49 = SUM($K49:AE49), SUM($K85:AD85) = 0), $I49, 0) -> 0 | AF85: =IF(AND($I49 = SUM($K49:AF49), SUM($K85:AE85) = 0), $I49, 0) -> 0 | AG85: =IF(AND($I49 = SUM($K49:AG49), SUM($K85:AF85) = 0), $I49, 0) -> 0 | AH85: =IF(AND($I49 = SUM($K49:AH49), SUM($K85:AG85) = 0), $I49, 0) -> 0 | AI85: =IF(AND($I49 = SUM($K49:AI49), SUM($K85:AH85) = 0), $I49, 0) -> 0 | AJ85: =IF(AND($I49 = SUM($K49:AJ49), SUM($K85:AI85) = 0), $I49, 0) -> 0 | AK85: =IF(AND($I49 = SUM($K49:AK49), SUM($K85:AJ85) = 0), $I49, 0) -> 0 | AL85: =IF(AND($I49 = SUM($K49:AL49), SUM($K85:AK85) = 0), $I49, 0) -> 0 | AM85: =IF(AND($I49 = SUM($K49:AM49), SUM($K85:AL85) = 0), $I49, 0) -> 0 | AN85: =IF(AND($I49 = SUM($K49:AN49), SUM($K85:AM85) = 0), $I49, 0) -> 0 | AO85: =IF(AND($I49 = SUM($K49:AO49), SUM($K85:AN85) = 0), $I49, 0) -> 0
E86: 2001-03-31 | G86: £m 09/10 prices | J86: > | L86: =IF(AND($I50 = SUM($K50:L50), SUM($K86:K86) = 0), $I50, 0) -> 0 | M86: =IF(AND($I50 = SUM($K50:M50), SUM($K86:L86) = 0), $I50, 0) -> 0 | N86: =IF(AND($I50 = SUM($K50:N50), SUM($K86:M86) = 0), $I50, 0) -> 0 | O86: =IF(AND($I50 = SUM($K50:O50), SUM($K86:N86) = 0), $I50, 0) -> 0 | P86: =IF(AND($I50 = SUM($K50:P50), SUM($K86:O86) = 0), $I50, 0) -> 0 | Q86: =IF(AND($I50 = SUM($K50:Q50), SUM($K86:P86) = 0), $I50, 0) -> 0 | R86: =IF(AND($I50 = SUM($K50:R50), SUM($K86:Q86) = 0), $I50, 0) -> 0 | S86: =IF(AND($I50 = SUM($K50:S50), SUM($K86:R86) = 0), $I50, 0) -> 0 | T86: =IF(AND($I50 = SUM($K50:T50), SUM($K86:S86) = 0), $I50, 0) -> 0 | U86: =IF(AND($I50 = SUM($K50:U50), SUM($K86:T86) = 0), $I50, 0) -> 0 | V86: =IF(AND($I50 = SUM($K50:V50), SUM($K86:U86) = 0), $I50, 0) -> 0 | W86: =IF(AND($I50 = SUM($K50:W50), SUM($K86:V86) = 0), $I50, 0) -> 0 | X86: =IF(AND($I50 = SUM($K50:X50), SUM($K86:W86) = 0), $I50, 0) -> 0 | Y86: =IF(AND($I50 = SUM($K50:Y50), SUM($K86:X86) = 0), $I50, 0) -> 0 | Z86: =IF(AND($I50 = SUM($K50:Z50), SUM($K86:Y86) = 0), $I50, 0) -> 0 | AA86: =IF(AND($I50 = SUM($K50:AA50), SUM($K86:Z86) = 0), $I50, 0) -> 0 | AB86: =IF(AND($I50 = SUM($K50:AB50), SUM($K86:AA86) = 0), $I50, 0) -> 0 | AC86: =IF(AND($I50 = SUM($K50:AC50), SUM($K86:AB86) = 0), $I50, 0) -> 0 | AD86: =IF(AND($I50 = SUM($K50:AD50), SUM($K86:AC86) = 0), $I50, 0) -> 0 | AE86: =IF(AND($I50 = SUM($K50:AE50), SUM($K86:AD86) = 0), $I50, 0) -> 0 | AF86: =IF(AND($I50 = SUM($K50:AF50), SUM($K86:AE86) = 0), $I50, 0) -> 0 | AG86: =IF(AND($I50 = SUM($K50:AG50), SUM($K86:AF86) = 0), $I50, 0) -> 0 | AH86: =IF(AND($I50 = SUM($K50:AH50), SUM($K86:AG86) = 0), $I50, 0) -> 0 | AI86: =IF(AND($I50 = SUM($K50:AI50), SUM($K86:AH86) = 0), $I50, 0) -> 0 | AJ86: =IF(AND($I50 = SUM($K50:AJ50), SUM($K86:AI86) = 0), $I50, 0) -> 0 | AK86: =IF(AND($I50 = SUM($K50:AK50), SUM($K86:AJ86) = 0), $I50, 0) -> 0 | AL86: =IF(AND($I50 = SUM($K50:AL50), SUM($K86:AK86) = 0), $I50, 0) -> 0 | AM86: =IF(AND($I50 = SUM($K50:AM50), SUM($K86:AL86) = 0), $I50, 0) -> 0 | AN86: =IF(AND($I50 = SUM($K50:AN50), SUM($K86:AM86) = 0), $I50, 0) -> 0 | AO86: =IF(AND($I50 = SUM($K50:AO50), SUM($K86:AN86) = 0), $I50, 0) -> 0
E87: 2002-03-31 | G87: £m 09/10 prices | J87: > | L87: =IF(AND($I51 = SUM($K51:L51), SUM($K87:K87) = 0), $I51, 0) -> 0 | M87: =IF(AND($I51 = SUM($K51:M51), SUM($K87:L87) = 0), $I51, 0) -> 0 | N87: =IF(AND($I51 = SUM($K51:N51), SUM($K87:M87) = 0), $I51, 0) -> 0 | O87: =IF(AND($I51 = SUM($K51:O51), SUM($K87:N87) = 0), $I51, 0) -> 0 | P87: =IF(AND($I51 = SUM($K51:P51), SUM($K87:O87) = 0), $I51, 0) -> 0 | Q87: =IF(AND($I51 = SUM($K51:Q51), SUM($K87:P87) = 0), $I51, 0) -> 0 | R87: =IF(AND($I51 = SUM($K51:R51), SUM($K87:Q87) = 0), $I51, 0) -> 0 | S87: =IF(AND($I51 = SUM($K51:S51), SUM($K87:R87) = 0), $I51, 0) -> 0 | T87: =IF(AND($I51 = SUM($K51:T51), SUM($K87:S87) = 0), $I51, 0) -> 0 | U87: =IF(AND($I51 = SUM($K51:U51), SUM($K87:T87) = 0), $I51, 0) -> 0 | V87: =IF(AND($I51 = SUM($K51:V51), SUM($K87:U87) = 0), $I51, 0) -> 0 | W87: =IF(AND($I51 = SUM($K51:W51), SUM($K87:V87) = 0), $I51, 0) -> 0 | X87: =IF(AND($I51 = SUM($K51:X51), SUM($K87:W87) = 0), $I51, 0) -> 0 | Y87: =IF(AND($I51 = SUM($K51:Y51), SUM($K87:X87) = 0), $I51, 0) -> 0 | Z87: =IF(AND($I51 = SUM($K51:Z51), SUM($K87:Y87) = 0), $I51, 0) -> 0 | AA87: =IF(AND($I51 = SUM($K51:AA51), SUM($K87:Z87) = 0), $I51, 0) -> 0 | AB87: =IF(AND($I51 = SUM($K51:AB51), SUM($K87:AA87) = 0), $I51, 0) -> 0 | AC87: =IF(AND($I51 = SUM($K51:AC51), SUM($K87:AB87) = 0), $I51, 0) -> 0 | AD87: =IF(AND($I51 = SUM($K51:AD51), SUM($K87:AC87) = 0), $I51, 0) -> 0 | AE87: =IF(AND($I51 = SUM($K51:AE51), SUM($K87:AD87) = 0), $I51, 0) -> 0 | AF87: =IF(AND($I51 = SUM($K51:AF51), SUM($K87:AE87) = 0), $I51, 0) -> 0 | AG87: =IF(AND($I51 = SUM($K51:AG51), SUM($K87:AF87) = 0), $I51, 0) -> 0 | AH87: =IF(AND($I51 = SUM($K51:AH51), SUM($K87:AG87) = 0), $I51, 0) -> 0 | AI87: =IF(AND($I51 = SUM($K51:AI51), SUM($K87:AH87) = 0), $I51, 0) -> 0 | AJ87: =IF(AND($I51 = SUM($K51:AJ51), SUM($K87:AI87) = 0), $I51, 0) -> 0 | AK87: =IF(AND($I51 = SUM($K51:AK51), SUM($K87:AJ87) = 0), $I51, 0) -> 0 | AL87: =IF(AND($I51 = SUM($K51:AL51), SUM($K87:AK87) = 0), $I51, 0) -> 0 | AM87: =IF(AND($I51 = SUM($K51:AM51), SUM($K87:AL87) = 0), $I51, 0) -> 0 | AN87: =IF(AND($I51 = SUM($K51:AN51), SUM($K87:AM87) = 0), $I51, 0) -> 0 | AO87: =IF(AND($I51 = SUM($K51:AO51), SUM($K87:AN87) = 0), $I51, 0) -> 0
E88: 2003-03-31 | G88: £m 09/10 prices | J88: > | L88: =IF(AND($I52 = SUM($K52:L52), SUM($K88:K88) = 0), $I52, 0) -> 0 | M88: =IF(AND($I52 = SUM($K52:M52), SUM($K88:L88) = 0), $I52, 0) -> 0 | N88: =IF(AND($I52 = SUM($K52:N52), SUM($K88:M88) = 0), $I52, 0) -> 0 | O88: =IF(AND($I52 = SUM($K52:O52), SUM($K88:N88) = 0), $I52, 0) -> 0 | P88: =IF(AND($I52 = SUM($K52:P52), SUM($K88:O88) = 0), $I52, 0) -> 0 | Q88: =IF(AND($I52 = SUM($K52:Q52), SUM($K88:P88) = 0), $I52, 0) -> 0 | R88: =IF(AND($I52 = SUM($K52:R52), SUM($K88:Q88) = 0), $I52, 0) -> 0 | S88: =IF(AND($I52 = SUM($K52:S52), SUM($K88:R88) = 0), $I52, 0) -> 0 | T88: =IF(AND($I52 = SUM($K52:T52), SUM($K88:S88) = 0), $I52, 0) -> 0 | U88: =IF(AND($I52 = SUM($K52:U52), SUM($K88:T88) = 0), $I52, 0) -> 0 | V88: =IF(AND($I52 = SUM($K52:V52), SUM($K88:U88) = 0), $I52, 0) -> 0 | W88: =IF(AND($I52 = SUM($K52:W52), SUM($K88:V88) = 0), $I52, 0) -> 0 | X88: =IF(AND($I52 = SUM($K52:X52), SUM($K88:W88) = 0), $I52, 0) -> 0 | Y88: =IF(AND($I52 = SUM($K52:Y52), SUM($K88:X88) = 0), $I52, 0) -> 0 | Z88: =IF(AND($I52 = SUM($K52:Z52), SUM($K88:Y88) = 0), $I52, 0) -> 0 | AA88: =IF(AND($I52 = SUM($K52:AA52), SUM($K88:Z88) = 0), $I52, 0) -> 0 | AB88: =IF(AND($I52 = SUM($K52:AB52), SUM($K88:AA88) = 0), $I52, 0) -> 0 | AC88: =IF(AND($I52 = SUM($K52:AC52), SUM($K88:AB88) = 0), $I52, 0) -> 0 | AD88: =IF(AND($I52 = SUM($K52:AD52), SUM($K88:AC88) = 0), $I52, 0) -> 0 | AE88: =IF(AND($I52 = SUM($K52:AE52), SUM($K88:AD88) = 0), $I52, 0) -> 0 | AF88: =IF(AND($I52 = SUM($K52:AF52), SUM($K88:AE88) = 0), $I52, 0) -> 0 | AG88: =IF(AND($I52 = SUM($K52:AG52), SUM($K88:AF88) = 0), $I52, 0) -> 0 | AH88: =IF(AND($I52 = SUM($K52:AH52), SUM($K88:AG88) = 0), $I52, 0) -> 0 | AI88: =IF(AND($I52 = SUM($K52:AI52), SUM($K88:AH88) = 0), $I52, 0) -> 0 | AJ88: =IF(AND($I52 = SUM($K52:AJ52), SUM($K88:AI88) = 0), $I52, 0) -> 0 | AK88: =IF(AND($I52 = SUM($K52:AK52), SUM($K88:AJ88) = 0), $I52, 0) -> 0 | AL88: =IF(AND($I52 = SUM($K52:AL52), SUM($K88:AK88) = 0), $I52, 0) -> 0 | AM88: =IF(AND($I52 = SUM($K52:AM52), SUM($K88:AL88) = 0), $I52, 0) -> 0 | AN88: =IF(AND($I52 = SUM($K52:AN52), SUM($K88:AM88) = 0), $I52, 0) -> 0 | AO88: =IF(AND($I52 = SUM($K52:AO52), SUM($K88:AN88) = 0), $I52, 0) -> 0
E89: 2004-03-31 | G89: £m 09/10 prices | J89: > | L89: =IF(AND($I53 = SUM($K53:L53), SUM($K89:K89) = 0), $I53, 0) -> 0 | M89: =IF(AND($I53 = SUM($K53:M53), SUM($K89:L89) = 0), $I53, 0) -> 0 | N89: =IF(AND($I53 = SUM($K53:N53), SUM($K89:M89) = 0), $I53, 0) -> 0 | O89: =IF(AND($I53 = SUM($K53:O53), SUM($K89:N89) = 0), $I53, 0) -> 0 | P89: =IF(AND($I53 = SUM($K53:P53), SUM($K89:O89) = 0), $I53, 0) -> 0 | Q89: =IF(AND($I53 = SUM($K53:Q53), SUM($K89:P89) = 0), $I53, 0) -> 0 | R89: =IF(AND($I53 = SUM($K53:R53), SUM($K89:Q89) = 0), $I53, 0) -> 0 | S89: =IF(AND($I53 = SUM($K53:S53), SUM($K89:R89) = 0), $I53, 0) -> 0 | T89: =IF(AND($I53 = SUM($K53:T53), SUM($K89:S89) = 0), $I53, 0) -> 0 | U89: =IF(AND($I53 = SUM($K53:U53), SUM($K89:T89) = 0), $I53, 0) -> 0 | V89: =IF(AND($I53 = SUM($K53:V53), SUM($K89:U89) = 0), $I53, 0) -> 0 | W89: =IF(AND($I53 = SUM($K53:W53), SUM($K89:V89) = 0), $I53, 0) -> 0 | X89: =IF(AND($I53 = SUM($K53:X53), SUM($K89:W89) = 0), $I53, 0) -> 0 | Y89: =IF(AND($I53 = SUM($K53:Y53), SUM($K89:X89) = 0), $I53, 0) -> 0 | Z89: =IF(AND($I53 = SUM($K53:Z53), SUM($K89:Y89) = 0), $I53, 0) -> 0 | AA89: =IF(AND($I53 = SUM($K53:AA53), SUM($K89:Z89) = 0), $I53, 0) -> 0 | AB89: =IF(AND($I53 = SUM($K53:AB53), SUM($K89:AA89) = 0), $I53, 0) -> 0 | AC89: =IF(AND($I53 = SUM($K53:AC53), SUM($K89:AB89) = 0), $I53, 0) -> 0 | AD89: =IF(AND($I53 = SUM($K53:AD53), SUM($K89:AC89) = 0), $I53, 0) -> 0 | AE89: =IF(AND($I53 = SUM($K53:AE53), SUM($K89:AD89) = 0), $I53, 0) -> 0 | AF89: =IF(AND($I53 = SUM($K53:AF53), SUM($K89:AE89) = 0), $I53, 0) -> 0 | AG89: =IF(AND($I53 = SUM($K53:AG53), SUM($K89:AF89) = 0), $I53, 0) -> 0 | AH89: =IF(AND($I53 = SUM($K53:AH53), SUM($K89:AG89) = 0), $I53, 0) -> 0 | AI89: =IF(AND($I53 = SUM($K53:AI53), SUM($K89:AH89) = 0), $I53, 0) -> 0 | AJ89: =IF(AND($I53 = SUM($K53:AJ53), SUM($K89:AI89) = 0), $I53, 0) -> 0 | AK89: =IF(AND($I53 = SUM($K53:AK53), SUM($K89:AJ89) = 0), $I53, 0) -> 0 | AL89: =IF(AND($I53 = SUM($K53:AL53), SUM($K89:AK89) = 0), $I53, 0) -> 0 | AM89: =IF(AND($I53 = SUM($K53:AM53), SUM($K89:AL89) = 0), $I53, 0) -> 0 | AN89: =IF(AND($I53 = SUM($K53:AN53), SUM($K89:AM89) = 0), $I53, 0) -> 0 | AO89: =IF(AND($I53 = SUM($K53:AO53), SUM($K89:AN89) = 0), $I53, 0) -> 0
E90: 2005-03-31 | G90: £m 09/10 prices | J90: > | L90: =IF(AND($I54 = SUM($K54:L54), SUM($K90:K90) = 0), $I54, 0) -> 0 | M90: =IF(AND($I54 = SUM($K54:M54), SUM($K90:L90) = 0), $I54, 0) -> 0 | N90: =IF(AND($I54 = SUM($K54:N54), SUM($K90:M90) = 0), $I54, 0) -> 0 | O90: =IF(AND($I54 = SUM($K54:O54), SUM($K90:N90) = 0), $I54, 0) -> 0 | P90: =IF(AND($I54 = SUM($K54:P54), SUM($K90:O90) = 0), $I54, 0) -> 0 | Q90: =IF(AND($I54 = SUM($K54:Q54), SUM($K90:P90) = 0), $I54, 0) -> 0 | R90: =IF(AND($I54 = SUM($K54:R54), SUM($K90:Q90) = 0), $I54, 0) -> 0 | S90: =IF(AND($I54 = SUM($K54:S54), SUM($K90:R90) = 0), $I54, 0) -> 0 | T90: =IF(AND($I54 = SUM($K54:T54), SUM($K90:S90) = 0), $I54, 0) -> 0 | U90: =IF(AND($I54 = SUM($K54:U54), SUM($K90:T90) = 0), $I54, 0) -> 0 | V90: =IF(AND($I54 = SUM($K54:V54), SUM($K90:U90) = 0), $I54, 0) -> 0 | W90: =IF(AND($I54 = SUM($K54:W54), SUM($K90:V90) = 0), $I54, 0) -> 0 | X90: =IF(AND($I54 = SUM($K54:X54), SUM($K90:W90) = 0), $I54, 0) -> 0 | Y90: =IF(AND($I54 = SUM($K54:Y54), SUM($K90:X90) = 0), $I54, 0) -> 0 | Z90: =IF(AND($I54 = SUM($K54:Z54), SUM($K90:Y90) = 0), $I54, 0) -> 0 | AA90: =IF(AND($I54 = SUM($K54:AA54), SUM($K90:Z90) = 0), $I54, 0) -> 0 | AB90: =IF(AND($I54 = SUM($K54:AB54), SUM($K90:AA90) = 0), $I54, 0) -> 0 | AC90: =IF(AND($I54 = SUM($K54:AC54), SUM($K90:AB90) = 0), $I54, 0) -> 0 | AD90: =IF(AND($I54 = SUM($K54:AD54), SUM($K90:AC90) = 0), $I54, 0) -> 0 | AE90: =IF(AND($I54 = SUM($K54:AE54), SUM($K90:AD90) = 0), $I54, 0) -> 0 | AF90: =IF(AND($I54 = SUM($K54:AF54), SUM($K90:AE90) = 0), $I54, 0) -> 0 | AG90: =IF(AND($I54 = SUM($K54:AG54), SUM($K90:AF90) = 0), $I54, 0) -> 0 | AH90: =IF(AND($I54 = SUM($K54:AH54), SUM($K90:AG90) = 0), $I54, 0) -> 0 | AI90: =IF(AND($I54 = SUM($K54:AI54), SUM($K90:AH90) = 0), $I54, 0) -> 0 | AJ90: =IF(AND($I54 = SUM($K54:AJ54), SUM($K90:AI90) = 0), $I54, 0) -> 0 | AK90: =IF(AND($I54 = SUM($K54:AK54), SUM($K90:AJ90) = 0), $I54, 0) -> 0 | AL90: =IF(AND($I54 = SUM($K54:AL54), SUM($K90:AK90) = 0), $I54, 0) -> 0 | AM90: =IF(AND($I54 = SUM($K54:AM54), SUM($K90:AL90) = 0), $I54, 0) -> 0 | AN90: =IF(AND($I54 = SUM($K54:AN54), SUM($K90:AM90) = 0), $I54, 0) -> 0 | AO90: =IF(AND($I54 = SUM($K54:AO54), SUM($K90:AN90) = 0), $I54, 0) -> 0
E91: 2006-03-31 | G91: £m 09/10 prices | J91: > | L91: =IF(AND($I55 = SUM($K55:L55), SUM($K91:K91) = 0), $I55, 0) -> 0 | M91: =IF(AND($I55 = SUM($K55:M55), SUM($K91:L91) = 0), $I55, 0) -> 0 | N91: =IF(AND($I55 = SUM($K55:N55), SUM($K91:M91) = 0), $I55, 0) -> 0 | O91: =IF(AND($I55 = SUM($K55:O55), SUM($K91:N91) = 0), $I55, 0) -> 0 | P91: =IF(AND($I55 = SUM($K55:P55), SUM($K91:O91) = 0), $I55, 0) -> 0 | Q91: =IF(AND($I55 = SUM($K55:Q55), SUM($K91:P91) = 0), $I55, 0) -> 0 | R91: =IF(AND($I55 = SUM($K55:R55), SUM($K91:Q91) = 0), $I55, 0) -> 0 | S91: =IF(AND($I55 = SUM($K55:S55), SUM($K91:R91) = 0), $I55, 0) -> 0 | T91: =IF(AND($I55 = SUM($K55:T55), SUM($K91:S91) = 0), $I55, 0) -> 0 | U91: =IF(AND($I55 = SUM($K55:U55), SUM($K91:T91) = 0), $I55, 0) -> 0 | V91: =IF(AND($I55 = SUM($K55:V55), SUM($K91:U91) = 0), $I55, 0) -> 0 | W91: =IF(AND($I55 = SUM($K55:W55), SUM($K91:V91) = 0), $I55, 0) -> 0 | X91: =IF(AND($I55 = SUM($K55:X55), SUM($K91:W91) = 0), $I55, 0) -> 0 | Y91: =IF(AND($I55 = SUM($K55:Y55), SUM($K91:X91) = 0), $I55, 0) -> 0 | Z91: =IF(AND($I55 = SUM($K55:Z55), SUM($K91:Y91) = 0), $I55, 0) -> 0 | AA91: =IF(AND($I55 = SUM($K55:AA55), SUM($K91:Z91) = 0), $I55, 0) -> 0 | AB91: =IF(AND($I55 = SUM($K55:AB55), SUM($K91:AA91) = 0), $I55, 0) -> 0 | AC91: =IF(AND($I55 = SUM($K55:AC55), SUM($K91:AB91) = 0), $I55, 0) -> 0 | AD91: =IF(AND($I55 = SUM($K55:AD55), SUM($K91:AC91) = 0), $I55, 0) -> 0 | AE91: =IF(AND($I55 = SUM($K55:AE55), SUM($K91:AD91) = 0), $I55, 0) -> 0 | AF91: =IF(AND($I55 = SUM($K55:AF55), SUM($K91:AE91) = 0), $I55, 0) -> 0 | AG91: =IF(AND($I55 = SUM($K55:AG55), SUM($K91:AF91) = 0), $I55, 0) -> 0 | AH91: =IF(AND($I55 = SUM($K55:AH55), SUM($K91:AG91) = 0), $I55, 0) -> 0 | AI91: =IF(AND($I55 = SUM($K55:AI55), SUM($K91:AH91) = 0), $I55, 0) -> 0 | AJ91: =IF(AND($I55 = SUM($K55:AJ55), SUM($K91:AI91) = 0), $I55, 0) -> 0 | AK91: =IF(AND($I55 = SUM($K55:AK55), SUM($K91:AJ91) = 0), $I55, 0) -> 0 | AL91: =IF(AND($I55 = SUM($K55:AL55), SUM($K91:AK91) = 0), $I55, 0) -> 0 | AM91: =IF(AND($I55 = SUM($K55:AM55), SUM($K91:AL91) = 0), $I55, 0) -> 0 | AN91: =IF(AND($I55 = SUM($K55:AN55), SUM($K91:AM91) = 0), $I55, 0) -> 0 | AO91: =IF(AND($I55 = SUM($K55:AO55), SUM($K91:AN91) = 0), $I55, 0) -> 0
E92: 2007-03-31 | G92: £m 09/10 prices | J92: > | L92: =IF(AND($I56 = SUM($K56:L56), SUM($K92:K92) = 0), $I56, 0) -> 0 | M92: =IF(AND($I56 = SUM($K56:M56), SUM($K92:L92) = 0), $I56, 0) -> 0 | N92: =IF(AND($I56 = SUM($K56:N56), SUM($K92:M92) = 0), $I56, 0) -> 0 | O92: =IF(AND($I56 = SUM($K56:O56), SUM($K92:N92) = 0), $I56, 0) -> 0 | P92: =IF(AND($I56 = SUM($K56:P56), SUM($K92:O92) = 0), $I56, 0) -> 0 | Q92: =IF(AND($I56 = SUM($K56:Q56), SUM($K92:P92) = 0), $I56, 0) -> 0 | R92: =IF(AND($I56 = SUM($K56:R56), SUM($K92:Q92) = 0), $I56, 0) -> 0 | S92: =IF(AND($I56 = SUM($K56:S56), SUM($K92:R92) = 0), $I56, 0) -> 0 | T92: =IF(AND($I56 = SUM($K56:T56), SUM($K92:S92) = 0), $I56, 0) -> 0 | U92: =IF(AND($I56 = SUM($K56:U56), SUM($K92:T92) = 0), $I56, 0) -> 0 | V92: =IF(AND($I56 = SUM($K56:V56), SUM($K92:U92) = 0), $I56, 0) -> 0 | W92: =IF(AND($I56 = SUM($K56:W56), SUM($K92:V92) = 0), $I56, 0) -> 0 | X92: =IF(AND($I56 = SUM($K56:X56), SUM($K92:W92) = 0), $I56, 0) -> 0 | Y92: =IF(AND($I56 = SUM($K56:Y56), SUM($K92:X92) = 0), $I56, 0) -> 0 | Z92: =IF(AND($I56 = SUM($K56:Z56), SUM($K92:Y92) = 0), $I56, 0) -> 0 | AA92: =IF(AND($I56 = SUM($K56:AA56), SUM($K92:Z92) = 0), $I56, 0) -> 0 | AB92: =IF(AND($I56 = SUM($K56:AB56), SUM($K92:AA92) = 0), $I56, 0) -> 0 | AC92: =IF(AND($I56 = SUM($K56:AC56), SUM($K92:AB92) = 0), $I56, 0) -> 0 | AD92: =IF(AND($I56 = SUM($K56:AD56), SUM($K92:AC92) = 0), $I56, 0) -> 0 | AE92: =IF(AND($I56 = SUM($K56:AE56), SUM($K92:AD92) = 0), $I56, 0) -> 0 | AF92: =IF(AND($I56 = SUM($K56:AF56), SUM($K92:AE92) = 0), $I56, 0) -> 0 | AG92: =IF(AND($I56 = SUM($K56:AG56), SUM($K92:AF92) = 0), $I56, 0) -> 0 | AH92: =IF(AND($I56 = SUM($K56:AH56), SUM($K92:AG92) = 0), $I56, 0) -> 0 | AI92: =IF(AND($I56 = SUM($K56:AI56), SUM($K92:AH92) = 0), $I56, 0) -> 0 | AJ92: =IF(AND($I56 = SUM($K56:AJ56), SUM($K92:AI92) = 0), $I56, 0) -> 0 | AK92: =IF(AND($I56 = SUM($K56:AK56), SUM($K92:AJ92) = 0), $I56, 0) -> 0 | AL92: =IF(AND($I56 = SUM($K56:AL56), SUM($K92:AK92) = 0), $I56, 0) -> 0 | AM92: =IF(AND($I56 = SUM($K56:AM56), SUM($K92:AL92) = 0), $I56, 0) -> 0 | AN92: =IF(AND($I56 = SUM($K56:AN56), SUM($K92:AM92) = 0), $I56, 0) -> 0 | AO92: =IF(AND($I56 = SUM($K56:AO56), SUM($K92:AN92) = 0), $I56, 0) -> 0
E93: 2008-03-31 | G93: £m 09/10 prices | J93: > | L93: =IF(AND($I57 = SUM($K57:L57), SUM($K93:K93) = 0), $I57, 0) -> 0 | M93: =IF(AND($I57 = SUM($K57:M57), SUM($K93:L93) = 0), $I57, 0) -> 0 | N93: =IF(AND($I57 = SUM($K57:N57), SUM($K93:M93) = 0), $I57, 0) -> 0 | O93: =IF(AND($I57 = SUM($K57:O57), SUM($K93:N93) = 0), $I57, 0) -> 0 | P93: =IF(AND($I57 = SUM($K57:P57), SUM($K93:O93) = 0), $I57, 0) -> 0 | Q93: =IF(AND($I57 = SUM($K57:Q57), SUM($K93:P93) = 0), $I57, 0) -> 0 | R93: =IF(AND($I57 = SUM($K57:R57), SUM($K93:Q93) = 0), $I57, 0) -> 0 | S93: =IF(AND($I57 = SUM($K57:S57), SUM($K93:R93) = 0), $I57, 0) -> 0 | T93: =IF(AND($I57 = SUM($K57:T57), SUM($K93:S93) = 0), $I57, 0) -> 0 | U93: =IF(AND($I57 = SUM($K57:U57), SUM($K93:T93) = 0), $I57, 0) -> 0 | V93: =IF(AND($I57 = SUM($K57:V57), SUM($K93:U93) = 0), $I57, 0) -> 0 | W93: =IF(AND($I57 = SUM($K57:W57), SUM($K93:V93) = 0), $I57, 0) -> 0 | X93: =IF(AND($I57 = SUM($K57:X57), SUM($K93:W93) = 0), $I57, 0) -> 0 | Y93: =IF(AND($I57 = SUM($K57:Y57), SUM($K93:X93) = 0), $I57, 0) -> 0 | Z93: =IF(AND($I57 = SUM($K57:Z57), SUM($K93:Y93) = 0), $I57, 0) -> 0 | AA93: =IF(AND($I57 = SUM($K57:AA57), SUM($K93:Z93) = 0), $I57, 0) -> 0 | AB93: =IF(AND($I57 = SUM($K57:AB57), SUM($K93:AA93) = 0), $I57, 0) -> 0 | AC93: =IF(AND($I57 = SUM($K57:AC57), SUM($K93:AB93) = 0), $I57, 0) -> 0 | AD93: =IF(AND($I57 = SUM($K57:AD57), SUM($K93:AC93) = 0), $I57, 0) -> 0 | AE93: =IF(AND($I57 = SUM($K57:AE57), SUM($K93:AD93) = 0), $I57, 0) -> 0 | AF93: =IF(AND($I57 = SUM($K57:AF57), SUM($K93:AE93) = 0), $I57, 0) -> 0 | AG93: =IF(AND($I57 = SUM($K57:AG57), SUM($K93:AF93) = 0), $I57, 0) -> 0 | AH93: =IF(AND($I57 = SUM($K57:AH57), SUM($K93:AG93) = 0), $I57, 0) -> 0 | AI93: =IF(AND($I57 = SUM($K57:AI57), SUM($K93:AH93) = 0), $I57, 0) -> 0 | AJ93: =IF(AND($I57 = SUM($K57:AJ57), SUM($K93:AI93) = 0), $I57, 0) -> 0 | AK93: =IF(AND($I57 = SUM($K57:AK57), SUM($K93:AJ93) = 0), $I57, 0) -> 0 | AL93: =IF(AND($I57 = SUM($K57:AL57), SUM($K93:AK93) = 0), $I57, 0) -> 0 | AM93: =IF(AND($I57 = SUM($K57:AM57), SUM($K93:AL93) = 0), $I57, 0) -> 0 | AN93: =IF(AND($I57 = SUM($K57:AN57), SUM($K93:AM93) = 0), $I57, 0) -> 0 | AO93: =IF(AND($I57 = SUM($K57:AO57), SUM($K93:AN93) = 0), $I57, 0) -> 0
E94: 2009-03-31 | G94: £m 09/10 prices | J94: > | L94: =IF(AND($I58 = SUM($K58:L58), SUM($K94:K94) = 0), $I58, 0) -> 0 | M94: =IF(AND($I58 = SUM($K58:M58), SUM($K94:L94) = 0), $I58, 0) -> 0 | N94: =IF(AND($I58 = SUM($K58:N58), SUM($K94:M94) = 0), $I58, 0) -> 0 | O94: =IF(AND($I58 = SUM($K58:O58), SUM($K94:N94) = 0), $I58, 0) -> 0 | P94: =IF(AND($I58 = SUM($K58:P58), SUM($K94:O94) = 0), $I58, 0) -> 0 | Q94: =IF(AND($I58 = SUM($K58:Q58), SUM($K94:P94) = 0), $I58, 0) -> 0 | R94: =IF(AND($I58 = SUM($K58:R58), SUM($K94:Q94) = 0), $I58, 0) -> 0 | S94: =IF(AND($I58 = SUM($K58:S58), SUM($K94:R94) = 0), $I58, 0) -> 0 | T94: =IF(AND($I58 = SUM($K58:T58), SUM($K94:S94) = 0), $I58, 0) -> 0 | U94: =IF(AND($I58 = SUM($K58:U58), SUM($K94:T94) = 0), $I58, 0) -> 0 | V94: =IF(AND($I58 = SUM($K58:V58), SUM($K94:U94) = 0), $I58, 0) -> 0 | W94: =IF(AND($I58 = SUM($K58:W58), SUM($K94:V94) = 0), $I58, 0) -> 0 | X94: =IF(AND($I58 = SUM($K58:X58), SUM($K94:W94) = 0), $I58, 0) -> 0 | Y94: =IF(AND($I58 = SUM($K58:Y58), SUM($K94:X94) = 0), $I58, 0) -> 0 | Z94: =IF(AND($I58 = SUM($K58:Z58), SUM($K94:Y94) = 0), $I58, 0) -> 0 | AA94: =IF(AND($I58 = SUM($K58:AA58), SUM($K94:Z94) = 0), $I58, 0) -> 0 | AB94: =IF(AND($I58 = SUM($K58:AB58), SUM($K94:AA94) = 0), $I58, 0) -> 0 | AC94: =IF(AND($I58 = SUM($K58:AC58), SUM($K94:AB94) = 0), $I58, 0) -> 0 | AD94: =IF(AND($I58 = SUM($K58:AD58), SUM($K94:AC94) = 0), $I58, 0) -> 0 | AE94: =IF(AND($I58 = SUM($K58:AE58), SUM($K94:AD94) = 0), $I58, 0) -> 0 | AF94: =IF(AND($I58 = SUM($K58:AF58), SUM($K94:AE94) = 0), $I58, 0) -> 0 | AG94: =IF(AND($I58 = SUM($K58:AG58), SUM($K94:AF94) = 0), $I58, 0) -> 0 | AH94: =IF(AND($I58 = SUM($K58:AH58), SUM($K94:AG94) = 0), $I58, 0) -> 0 | AI94: =IF(AND($I58 = SUM($K58:AI58), SUM($K94:AH94) = 0), $I58, 0) -> 0 | AJ94: =IF(AND($I58 = SUM($K58:AJ58), SUM($K94:AI94) = 0), $I58, 0) -> 0 | AK94: =IF(AND($I58 = SUM($K58:AK58), SUM($K94:AJ94) = 0), $I58, 0) -> 0 | AL94: =IF(AND($I58 = SUM($K58:AL58), SUM($K94:AK94) = 0), $I58, 0) -> 0 | AM94: =IF(AND($I58 = SUM($K58:AM58), SUM($K94:AL94) = 0), $I58, 0) -> 0 | AN94: =IF(AND($I58 = SUM($K58:AN58), SUM($K94:AM94) = 0), $I58, 0) -> 0 | AO94: =IF(AND($I58 = SUM($K58:AO58), SUM($K94:AN94) = 0), $I58, 0) -> 0
E95: 2010-03-31 | G95: £m 09/10 prices | J95: > | L95: =IF(AND($I59 = SUM($K59:L59), SUM($K95:K95) = 0), $I59, 0) -> 0 | M95: =IF(AND($I59 = SUM($K59:M59), SUM($K95:L95) = 0), $I59, 0) -> 0 | N95: =IF(AND($I59 = SUM($K59:N59), SUM($K95:M95) = 0), $I59, 0) -> 0 | O95: =IF(AND($I59 = SUM($K59:O59), SUM($K95:N95) = 0), $I59, 0) -> 0 | P95: =IF(AND($I59 = SUM($K59:P59), SUM($K95:O95) = 0), $I59, 0) -> 0 | Q95: =IF(AND($I59 = SUM($K59:Q59), SUM($K95:P95) = 0), $I59, 0) -> 0 | R95: =IF(AND($I59 = SUM($K59:R59), SUM($K95:Q95) = 0), $I59, 0) -> 0 | S95: =IF(AND($I59 = SUM($K59:S59), SUM($K95:R95) = 0), $I59, 0) -> 0 | T95: =IF(AND($I59 = SUM($K59:T59), SUM($K95:S95) = 0), $I59, 0) -> 0 | U95: =IF(AND($I59 = SUM($K59:U59), SUM($K95:T95) = 0), $I59, 0) -> 0 | V95: =IF(AND($I59 = SUM($K59:V59), SUM($K95:U95) = 0), $I59, 0) -> 0 | W95: =IF(AND($I59 = SUM($K59:W59), SUM($K95:V95) = 0), $I59, 0) -> 0 | X95: =IF(AND($I59 = SUM($K59:X59), SUM($K95:W95) = 0), $I59, 0) -> 0 | Y95: =IF(AND($I59 = SUM($K59:Y59), SUM($K95:X95) = 0), $I59, 0) -> 0 | Z95: =IF(AND($I59 = SUM($K59:Z59), SUM($K95:Y95) = 0), $I59, 0) -> 0 | AA95: =IF(AND($I59 = SUM($K59:AA59), SUM($K95:Z95) = 0), $I59, 0) -> 0 | AB95: =IF(AND($I59 = SUM($K59:AB59), SUM($K95:AA95) = 0), $I59, 0) -> 0 | AC95: =IF(AND($I59 = SUM($K59:AC59), SUM($K95:AB95) = 0), $I59, 0) -> 0 | AD95: =IF(AND($I59 = SUM($K59:AD59), SUM($K95:AC95) = 0), $I59, 0) -> 0 | AE95: =IF(AND($I59 = SUM($K59:AE59), SUM($K95:AD95) = 0), $I59, 0) -> 0 | AF95: =IF(AND($I59 = SUM($K59:AF59), SUM($K95:AE95) = 0), $I59, 0) -> 0 | AG95: =IF(AND($I59 = SUM($K59:AG59), SUM($K95:AF95) = 0), $I59, 0) -> 0 | AH95: =IF(AND($I59 = SUM($K59:AH59), SUM($K95:AG95) = 0), $I59, 0) -> 0 | AI95: =IF(AND($I59 = SUM($K59:AI59), SUM($K95:AH95) = 0), $I59, 0) -> 0 | AJ95: =IF(AND($I59 = SUM($K59:AJ59), SUM($K95:AI95) = 0), $I59, 0) -> 0 | AK95: =IF(AND($I59 = SUM($K59:AK59), SUM($K95:AJ95) = 0), $I59, 0) -> 0 | AL95: =IF(AND($I59 = SUM($K59:AL59), SUM($K95:AK95) = 0), $I59, 0) -> 0 | AM95: =IF(AND($I59 = SUM($K59:AM59), SUM($K95:AL95) = 0), $I59, 0) -> 0 | AN95: =IF(AND($I59 = SUM($K59:AN59), SUM($K95:AM95) = 0), $I59, 0) -> 0 | AO95: =IF(AND($I59 = SUM($K59:AO59), SUM($K95:AN95) = 0), $I59, 0) -> 0
E96: 2011-03-31 | G96: £m 09/10 prices | J96: > | L96: =IF(AND($I60 = SUM($K60:L60), SUM($K96:K96) = 0), $I60, 0) -> 0 | M96: =IF(AND($I60 = SUM($K60:M60), SUM($K96:L96) = 0), $I60, 0) -> 0 | N96: =IF(AND($I60 = SUM($K60:N60), SUM($K96:M96) = 0), $I60, 0) -> 0 | O96: =IF(AND($I60 = SUM($K60:O60), SUM($K96:N96) = 0), $I60, 0) -> 0 | P96: =IF(AND($I60 = SUM($K60:P60), SUM($K96:O96) = 0), $I60, 0) -> 0 | Q96: =IF(AND($I60 = SUM($K60:Q60), SUM($K96:P96) = 0), $I60, 0) -> 0 | R96: =IF(AND($I60 = SUM($K60:R60), SUM($K96:Q96) = 0), $I60, 0) -> 0 | S96: =IF(AND($I60 = SUM($K60:S60), SUM($K96:R96) = 0), $I60, 0) -> 0 | T96: =IF(AND($I60 = SUM($K60:T60), SUM($K96:S96) = 0), $I60, 0) -> 0 | U96: =IF(AND($I60 = SUM($K60:U60), SUM($K96:T96) = 0), $I60, 0) -> 0 | V96: =IF(AND($I60 = SUM($K60:V60), SUM($K96:U96) = 0), $I60, 0) -> 0 | W96: =IF(AND($I60 = SUM($K60:W60), SUM($K96:V96) = 0), $I60, 0) -> 0 | X96: =IF(AND($I60 = SUM($K60:X60), SUM($K96:W96) = 0), $I60, 0) -> 0 | Y96: =IF(AND($I60 = SUM($K60:Y60), SUM($K96:X96) = 0), $I60, 0) -> 0 | Z96: =IF(AND($I60 = SUM($K60:Z60), SUM($K96:Y96) = 0), $I60, 0) -> 0 | AA96: =IF(AND($I60 = SUM($K60:AA60), SUM($K96:Z96) = 0), $I60, 0) -> 0 | AB96: =IF(AND($I60 = SUM($K60:AB60), SUM($K96:AA96) = 0), $I60, 0) -> 0 | AC96: =IF(AND($I60 = SUM($K60:AC60), SUM($K96:AB96) = 0), $I60, 0) -> 0 | AD96: =IF(AND($I60 = SUM($K60:AD60), SUM($K96:AC96) = 0), $I60, 0) -> 0 | AE96: =IF(AND($I60 = SUM($K60:AE60), SUM($K96:AD96) = 0), $I60, 0) -> 0 | AF96: =IF(AND($I60 = SUM($K60:AF60), SUM($K96:AE96) = 0), $I60, 0) -> 0 | AG96: =IF(AND($I60 = SUM($K60:AG60), SUM($K96:AF96) = 0), $I60, 0) -> 0 | AH96: =IF(AND($I60 = SUM($K60:AH60), SUM($K96:AG96) = 0), $I60, 0) -> 0 | AI96: =IF(AND($I60 = SUM($K60:AI60), SUM($K96:AH96) = 0), $I60, 0) -> 0 | AJ96: =IF(AND($I60 = SUM($K60:AJ60), SUM($K96:AI96) = 0), $I60, 0) -> 0 | AK96: =IF(AND($I60 = SUM($K60:AK60), SUM($K96:AJ96) = 0), $I60, 0) -> 0 | AL96: =IF(AND($I60 = SUM($K60:AL60), SUM($K96:AK96) = 0), $I60, 0) -> 0 | AM96: =IF(AND($I60 = SUM($K60:AM60), SUM($K96:AL96) = 0), $I60, 0) -> 0 | AN96: =IF(AND($I60 = SUM($K60:AN60), SUM($K96:AM96) = 0), $I60, 0) -> 0 | AO96: =IF(AND($I60 = SUM($K60:AO60), SUM($K96:AN96) = 0), $I60, 0) -> 0
E97: 2012-03-31 | G97: £m 09/10 prices | J97: > | L97: =IF(AND($I61 = SUM($K61:L61), SUM($K97:K97) = 0), $I61, 0) -> 0 | M97: =IF(AND($I61 = SUM($K61:M61), SUM($K97:L97) = 0), $I61, 0) -> 0 | N97: =IF(AND($I61 = SUM($K61:N61), SUM($K97:M97) = 0), $I61, 0) -> 0 | O97: =IF(AND($I61 = SUM($K61:O61), SUM($K97:N97) = 0), $I61, 0) -> 0 | P97: =IF(AND($I61 = SUM($K61:P61), SUM($K97:O97) = 0), $I61, 0) -> 0 | Q97: =IF(AND($I61 = SUM($K61:Q61), SUM($K97:P97) = 0), $I61, 0) -> 0 | R97: =IF(AND($I61 = SUM($K61:R61), SUM($K97:Q97) = 0), $I61, 0) -> 0 | S97: =IF(AND($I61 = SUM($K61:S61), SUM($K97:R97) = 0), $I61, 0) -> 0 | T97: =IF(AND($I61 = SUM($K61:T61), SUM($K97:S97) = 0), $I61, 0) -> 0 | U97: =IF(AND($I61 = SUM($K61:U61), SUM($K97:T97) = 0), $I61, 0) -> 0 | V97: =IF(AND($I61 = SUM($K61:V61), SUM($K97:U97) = 0), $I61, 0) -> 0 | W97: =IF(AND($I61 = SUM($K61:W61), SUM($K97:V97) = 0), $I61, 0) -> 0 | X97: =IF(AND($I61 = SUM($K61:X61), SUM($K97:W97) = 0), $I61, 0) -> 0 | Y97: =IF(AND($I61 = SUM($K61:Y61), SUM($K97:X97) = 0), $I61, 0) -> 0 | Z97: =IF(AND($I61 = SUM($K61:Z61), SUM($K97:Y97) = 0), $I61, 0) -> 0 | AA97: =IF(AND($I61 = SUM($K61:AA61), SUM($K97:Z97) = 0), $I61, 0) -> 0 | AB97: =IF(AND($I61 = SUM($K61:AB61), SUM($K97:AA97) = 0), $I61, 0) -> 0 | AC97: =IF(AND($I61 = SUM($K61:AC61), SUM($K97:AB97) = 0), $I61, 0) -> 0 | AD97: =IF(AND($I61 = SUM($K61:AD61), SUM($K97:AC97) = 0), $I61, 0) -> 0 | AE97: =IF(AND($I61 = SUM($K61:AE61), SUM($K97:AD97) = 0), $I61, 0) -> 0 | AF97: =IF(AND($I61 = SUM($K61:AF61), SUM($K97:AE97) = 0), $I61, 0) -> 0 | AG97: =IF(AND($I61 = SUM($K61:AG61), SUM($K97:AF97) = 0), $I61, 0) -> 0 | AH97: =IF(AND($I61 = SUM($K61:AH61), SUM($K97:AG97) = 0), $I61, 0) -> 0 | AI97: =IF(AND($I61 = SUM($K61:AI61), SUM($K97:AH97) = 0), $I61, 0) -> 0 | AJ97: =IF(AND($I61 = SUM($K61:AJ61), SUM($K97:AI97) = 0), $I61, 0) -> 0 | AK97: =IF(AND($I61 = SUM($K61:AK61), SUM($K97:AJ97) = 0), $I61, 0) -> 0 | AL97: =IF(AND($I61 = SUM($K61:AL61), SUM($K97:AK97) = 0), $I61, 0) -> 0 | AM97: =IF(AND($I61 = SUM($K61:AM61), SUM($K97:AL97) = 0), $I61, 0) -> 0 | AN97: =IF(AND($I61 = SUM($K61:AN61), SUM($K97:AM97) = 0), $I61, 0) -> 0 | AO97: =IF(AND($I61 = SUM($K61:AO61), SUM($K97:AN97) = 0), $I61, 0) -> 0
E98: 2013-03-31 | G98: £m 09/10 prices | J98: > | L98: =IF(AND($I62 = SUM($K62:L62), SUM($K98:K98) = 0), $I62, 0) -> 0 | M98: =IF(AND($I62 = SUM($K62:M62), SUM($K98:L98) = 0), $I62, 0) -> 0 | N98: =IF(AND($I62 = SUM($K62:N62), SUM($K98:M98) = 0), $I62, 0) -> 0 | O98: =IF(AND($I62 = SUM($K62:O62), SUM($K98:N98) = 0), $I62, 0) -> 0 | P98: =IF(AND($I62 = SUM($K62:P62), SUM($K98:O98) = 0), $I62, 0) -> 0 | Q98: =IF(AND($I62 = SUM($K62:Q62), SUM($K98:P98) = 0), $I62, 0) -> 0 | R98: =IF(AND($I62 = SUM($K62:R62), SUM($K98:Q98) = 0), $I62, 0) -> 0 | S98: =IF(AND($I62 = SUM($K62:S62), SUM($K98:R98) = 0), $I62, 0) -> 0 | T98: =IF(AND($I62 = SUM($K62:T62), SUM($K98:S98) = 0), $I62, 0) -> 0 | U98: =IF(AND($I62 = SUM($K62:U62), SUM($K98:T98) = 0), $I62, 0) -> 0 | V98: =IF(AND($I62 = SUM($K62:V62), SUM($K98:U98) = 0), $I62, 0) -> 0 | W98: =IF(AND($I62 = SUM($K62:W62), SUM($K98:V98) = 0), $I62, 0) -> 0 | X98: =IF(AND($I62 = SUM($K62:X62), SUM($K98:W98) = 0), $I62, 0) -> 0 | Y98: =IF(AND($I62 = SUM($K62:Y62), SUM($K98:X98) = 0), $I62, 0) -> 0 | Z98: =IF(AND($I62 = SUM($K62:Z62), SUM($K98:Y98) = 0), $I62, 0) -> 0 | AA98: =IF(AND($I62 = SUM($K62:AA62), SUM($K98:Z98) = 0), $I62, 0) -> 0 | AB98: =IF(AND($I62 = SUM($K62:AB62), SUM($K98:AA98) = 0), $I62, 0) -> 0 | AC98: =IF(AND($I62 = SUM($K62:AC62), SUM($K98:AB98) = 0), $I62, 0) -> 0 | AD98: =IF(AND($I62 = SUM($K62:AD62), SUM($K98:AC98) = 0), $I62, 0) -> 0 | AE98: =IF(AND($I62 = SUM($K62:AE62), SUM($K98:AD98) = 0), $I62, 0) -> 0 | AF98: =IF(AND($I62 = SUM($K62:AF62), SUM($K98:AE98) = 0), $I62, 0) -> 0 | AG98: =IF(AND($I62 = SUM($K62:AG62), SUM($K98:AF98) = 0), $I62, 0) -> 0 | AH98: =IF(AND($I62 = SUM($K62:AH62), SUM($K98:AG98) = 0), $I62, 0) -> 0 | AI98: =IF(AND($I62 = SUM($K62:AI62), SUM($K98:AH98) = 0), $I62, 0) -> 0 | AJ98: =IF(AND($I62 = SUM($K62:AJ62), SUM($K98:AI98) = 0), $I62, 0) -> 0 | AK98: =IF(AND($I62 = SUM($K62:AK62), SUM($K98:AJ98) = 0), $I62, 0) -> 0 | AL98: =IF(AND($I62 = SUM($K62:AL62), SUM($K98:AK98) = 0), $I62, 0) -> 0 | AM98: =IF(AND($I62 = SUM($K62:AM62), SUM($K98:AL98) = 0), $I62, 0) -> 0 | AN98: =IF(AND($I62 = SUM($K62:AN62), SUM($K98:AM98) = 0), $I62, 0) -> 0 | AO98: =IF(AND($I62 = SUM($K62:AO62), SUM($K98:AN98) = 0), $I62, 0) -> 0
E99: 2014-03-31 | G99: £m 09/10 prices | J99: > | L99: =IF(AND($I63 = SUM($K63:L63), SUM($K99:K99) = 0), $I63, 0) -> 0 | M99: =IF(AND($I63 = SUM($K63:M63), SUM($K99:L99) = 0), $I63, 0) -> 0 | N99: =IF(AND($I63 = SUM($K63:N63), SUM($K99:M99) = 0), $I63, 0) -> 0 | O99: =IF(AND($I63 = SUM($K63:O63), SUM($K99:N99) = 0), $I63, 0) -> 0 | P99: =IF(AND($I63 = SUM($K63:P63), SUM($K99:O99) = 0), $I63, 0) -> 0 | Q99: =IF(AND($I63 = SUM($K63:Q63), SUM($K99:P99) = 0), $I63, 0) -> 0 | R99: =IF(AND($I63 = SUM($K63:R63), SUM($K99:Q99) = 0), $I63, 0) -> 0 | S99: =IF(AND($I63 = SUM($K63:S63), SUM($K99:R99) = 0), $I63, 0) -> 0 | T99: =IF(AND($I63 = SUM($K63:T63), SUM($K99:S99) = 0), $I63, 0) -> 0 | U99: =IF(AND($I63 = SUM($K63:U63), SUM($K99:T99) = 0), $I63, 0) -> 0 | V99: =IF(AND($I63 = SUM($K63:V63), SUM($K99:U99) = 0), $I63, 0) -> 0 | W99: =IF(AND($I63 = SUM($K63:W63), SUM($K99:V99) = 0), $I63, 0) -> 0 | X99: =IF(AND($I63 = SUM($K63:X63), SUM($K99:W99) = 0), $I63, 0) -> 0 | Y99: =IF(AND($I63 = SUM($K63:Y63), SUM($K99:X99) = 0), $I63, 0) -> 0 | Z99: =IF(AND($I63 = SUM($K63:Z63), SUM($K99:Y99) = 0), $I63, 0) -> 0 | AA99: =IF(AND($I63 = SUM($K63:AA63), SUM($K99:Z99) = 0), $I63, 0) -> 0 | AB99: =IF(AND($I63 = SUM($K63:AB63), SUM($K99:AA99) = 0), $I63, 0) -> 0 | AC99: =IF(AND($I63 = SUM($K63:AC63), SUM($K99:AB99) = 0), $I63, 0) -> 0 | AD99: =IF(AND($I63 = SUM($K63:AD63), SUM($K99:AC99) = 0), $I63, 0) -> 0 | AE99: =IF(AND($I63 = SUM($K63:AE63), SUM($K99:AD99) = 0), $I63, 0) -> 0 | AF99: =IF(AND($I63 = SUM($K63:AF63), SUM($K99:AE99) = 0), $I63, 0) -> 0 | AG99: =IF(AND($I63 = SUM($K63:AG63), SUM($K99:AF99) = 0), $I63, 0) -> 0 | AH99: =IF(AND($I63 = SUM($K63:AH63), SUM($K99:AG99) = 0), $I63, 0) -> 0 | AI99: =IF(AND($I63 = SUM($K63:AI63), SUM($K99:AH99) = 0), $I63, 0) -> 0 | AJ99: =IF(AND($I63 = SUM($K63:AJ63), SUM($K99:AI99) = 0), $I63, 0) -> 0 | AK99: =IF(AND($I63 = SUM($K63:AK63), SUM($K99:AJ99) = 0), $I63, 0) -> 0 | AL99: =IF(AND($I63 = SUM($K63:AL63), SUM($K99:AK99) = 0), $I63, 0) -> 0 | AM99: =IF(AND($I63 = SUM($K63:AM63), SUM($K99:AL99) = 0), $I63, 0) -> 0 | AN99: =IF(AND($I63 = SUM($K63:AN63), SUM($K99:AM99) = 0), $I63, 0) -> 0 | AO99: =IF(AND($I63 = SUM($K63:AO63), SUM($K99:AN99) = 0), $I63, 0) -> 0
E100: 2015-03-31 | G100: £m 09/10 prices | J100: > | L100: =IF(AND($I64 = SUM($K64:L64), SUM($K100:K100) = 0), $I64, 0) -> 0 | M100: =IF(AND($I64 = SUM($K64:M64), SUM($K100:L100) = 0), $I64, 0) -> 0 | N100: =IF(AND($I64 = SUM($K64:N64), SUM($K100:M100) = 0), $I64, 0) -> 0 | O100: =IF(AND($I64 = SUM($K64:O64), SUM($K100:N100) = 0), $I64, 0) -> 0 | P100: =IF(AND($I64 = SUM($K64:P64), SUM($K100:O100) = 0), $I64, 0) -> 0 | Q100: =IF(AND($I64 = SUM($K64:Q64), SUM($K100:P100) = 0), $I64, 0) -> 0 | R100: =IF(AND($I64 = SUM($K64:R64), SUM($K100:Q100) = 0), $I64, 0) -> 0 | S100: =IF(AND($I64 = SUM($K64:S64), SUM($K100:R100) = 0), $I64, 0) -> 0 | T100: =IF(AND($I64 = SUM($K64:T64), SUM($K100:S100) = 0), $I64, 0) -> 0 | U100: =IF(AND($I64 = SUM($K64:U64), SUM($K100:T100) = 0), $I64, 0) -> 0 | V100: =IF(AND($I64 = SUM($K64:V64), SUM($K100:U100) = 0), $I64, 0) -> 0 | W100: =IF(AND($I64 = SUM($K64:W64), SUM($K100:V100) = 0), $I64, 0) -> 0 | X100: =IF(AND($I64 = SUM($K64:X64), SUM($K100:W100) = 0), $I64, 0) -> 0 | Y100: =IF(AND($I64 = SUM($K64:Y64), SUM($K100:X100) = 0), $I64, 0) -> 0 | Z100: =IF(AND($I64 = SUM($K64:Z64), SUM($K100:Y100) = 0), $I64, 0) -> 0 | AA100: =IF(AND($I64 = SUM($K64:AA64), SUM($K100:Z100) = 0), $I64, 0) -> 0 | AB100: =IF(AND($I64 = SUM($K64:AB64), SUM($K100:AA100) = 0), $I64, 0) -> 0 | AC100: =IF(AND($I64 = SUM($K64:AC64), SUM($K100:AB100) = 0), $I64, 0) -> 0 | AD100: =IF(AND($I64 = SUM($K64:AD64), SUM($K100:AC100) = 0), $I64, 0) -> 0 | AE100: =IF(AND($I64 = SUM($K64:AE64), SUM($K100:AD100) = 0), $I64, 0) -> 0 | AF100: =IF(AND($I64 = SUM($K64:AF64), SUM($K100:AE100) = 0), $I64, 0) -> 0 | AG100: =IF(AND($I64 = SUM($K64:AG64), SUM($K100:AF100) = 0), $I64, 0) -> 0 | AH100: =IF(AND($I64 = SUM($K64:AH64), SUM($K100:AG100) = 0), $I64, 0) -> 0 | AI100: =IF(AND($I64 = SUM($K64:AI64), SUM($K100:AH100) = 0), $I64, 0) -> 0 | AJ100: =IF(AND($I64 = SUM($K64:AJ64), SUM($K100:AI100) = 0), $I64, 0) -> 0 | AK100: =IF(AND($I64 = SUM($K64:AK64), SUM($K100:AJ100) = 0), $I64, 0) -> 0 | AL100: =IF(AND($I64 = SUM($K64:AL64), SUM($K100:AK100) = 0), $I64, 0) -> 0 | AM100: =IF(AND($I64 = SUM($K64:AM64), SUM($K100:AL100) = 0), $I64, 0) -> 0 | AN100: =IF(AND($I64 = SUM($K64:AN64), SUM($K100:AM100) = 0), $I64, 0) -> 0 | AO100: =IF(AND($I64 = SUM($K64:AO64), SUM($K100:AN100) = 0), $I64, 0) -> 0
E101: 2016-03-31 | G101: £m 09/10 prices | J101: > | L101: =IF(AND($I65 = SUM($K65:L65), SUM($K101:K101) = 0), $I65, 0) -> 0 | M101: =IF(AND($I65 = SUM($K65:M65), SUM($K101:L101) = 0), $I65, 0) -> 0 | N101: =IF(AND($I65 = SUM($K65:N65), SUM($K101:M101) = 0), $I65, 0) -> 0 | O101: =IF(AND($I65 = SUM($K65:O65), SUM($K101:N101) = 0), $I65, 0) -> 0 | P101: =IF(AND($I65 = SUM($K65:P65), SUM($K101:O101) = 0), $I65, 0) -> 0 | Q101: =IF(AND($I65 = SUM($K65:Q65), SUM($K101:P101) = 0), $I65, 0) -> 0 | R101: =IF(AND($I65 = SUM($K65:R65), SUM($K101:Q101) = 0), $I65, 0) -> 0 | S101: =IF(AND($I65 = SUM($K65:S65), SUM($K101:R101) = 0), $I65, 0) -> 0 | T101: =IF(AND($I65 = SUM($K65:T65), SUM($K101:S101) = 0), $I65, 0) -> 0 | U101: =IF(AND($I65 = SUM($K65:U65), SUM($K101:T101) = 0), $I65, 0) -> 0 | V101: =IF(AND($I65 = SUM($K65:V65), SUM($K101:U101) = 0), $I65, 0) -> 0 | W101: =IF(AND($I65 = SUM($K65:W65), SUM($K101:V101) = 0), $I65, 0) -> 0 | X101: =IF(AND($I65 = SUM($K65:X65), SUM($K101:W101) = 0), $I65, 0) -> 0 | Y101: =IF(AND($I65 = SUM($K65:Y65), SUM($K101:X101) = 0), $I65, 0) -> 0 | Z101: =IF(AND($I65 = SUM($K65:Z65), SUM($K101:Y101) = 0), $I65, 0) -> 0 | AA101: =IF(AND($I65 = SUM($K65:AA65), SUM($K101:Z101) = 0), $I65, 0) -> 0 | AB101: =IF(AND($I65 = SUM($K65:AB65), SUM($K101:AA101) = 0), $I65, 0) -> 0 | AC101: =IF(AND($I65 = SUM($K65:AC65), SUM($K101:AB101) = 0), $I65, 0) -> 0 | AD101: =IF(AND($I65 = SUM($K65:AD65), SUM($K101:AC101) = 0), $I65, 0) -> 0 | AE101: =IF(AND($I65 = SUM($K65:AE65), SUM($K101:AD101) = 0), $I65, 0) -> 0 | AF101: =IF(AND($I65 = SUM($K65:AF65), SUM($K101:AE101) = 0), $I65, 0) -> 0 | AG101: =IF(AND($I65 = SUM($K65:AG65), SUM($K101:AF101) = 0), $I65, 0) -> 0 | AH101: =IF(AND($I65 = SUM($K65:AH65), SUM($K101:AG101) = 0), $I65, 0) -> 0 | AI101: =IF(AND($I65 = SUM($K65:AI65), SUM($K101:AH101) = 0), $I65, 0) -> 0 | AJ101: =IF(AND($I65 = SUM($K65:AJ65), SUM($K101:AI101) = 0), $I65, 0) -> 0 | AK101: =IF(AND($I65 = SUM($K65:AK65), SUM($K101:AJ101) = 0), $I65, 0) -> 0 | AL101: =IF(AND($I65 = SUM($K65:AL65), SUM($K101:AK101) = 0), $I65, 0) -> 0 | AM101: =IF(AND($I65 = SUM($K65:AM65), SUM($K101:AL101) = 0), $I65, 0) -> 0 | AN101: =IF(AND($I65 = SUM($K65:AN65), SUM($K101:AM101) = 0), $I65, 0) -> 0 | AO101: =IF(AND($I65 = SUM($K65:AO65), SUM($K101:AN101) = 0), $I65, 0) -> 0
E102: 2017-03-31 | G102: £m 09/10 prices | J102: > | L102: =IF(AND($I66 = SUM($K66:L66), SUM($K102:K102) = 0), $I66, 0) -> 0 | M102: =IF(AND($I66 = SUM($K66:M66), SUM($K102:L102) = 0), $I66, 0) -> 0 | N102: =IF(AND($I66 = SUM($K66:N66), SUM($K102:M102) = 0), $I66, 0) -> 0 | O102: =IF(AND($I66 = SUM($K66:O66), SUM($K102:N102) = 0), $I66, 0) -> 0 | P102: =IF(AND($I66 = SUM($K66:P66), SUM($K102:O102) = 0), $I66, 0) -> 0 | Q102: =IF(AND($I66 = SUM($K66:Q66), SUM($K102:P102) = 0), $I66, 0) -> 0 | R102: =IF(AND($I66 = SUM($K66:R66), SUM($K102:Q102) = 0), $I66, 0) -> 0 | S102: =IF(AND($I66 = SUM($K66:S66), SUM($K102:R102) = 0), $I66, 0) -> 0 | T102: =IF(AND($I66 = SUM($K66:T66), SUM($K102:S102) = 0), $I66, 0) -> 0 | U102: =IF(AND($I66 = SUM($K66:U66), SUM($K102:T102) = 0), $I66, 0) -> 0 | V102: =IF(AND($I66 = SUM($K66:V66), SUM($K102:U102) = 0), $I66, 0) -> 0 | W102: =IF(AND($I66 = SUM($K66:W66), SUM($K102:V102) = 0), $I66, 0) -> 0 | X102: =IF(AND($I66 = SUM($K66:X66), SUM($K102:W102) = 0), $I66, 0) -> 0 | Y102: =IF(AND($I66 = SUM($K66:Y66), SUM($K102:X102) = 0), $I66, 0) -> 0 | Z102: =IF(AND($I66 = SUM($K66:Z66), SUM($K102:Y102) = 0), $I66, 0) -> 0 | AA102: =IF(AND($I66 = SUM($K66:AA66), SUM($K102:Z102) = 0), $I66, 0) -> 0 | AB102: =IF(AND($I66 = SUM($K66:AB66), SUM($K102:AA102) = 0), $I66, 0) -> 0 | AC102: =IF(AND($I66 = SUM($K66:AC66), SUM($K102:AB102) = 0), $I66, 0) -> 0 | AD102: =IF(AND($I66 = SUM($K66:AD66), SUM($K102:AC102) = 0), $I66, 0) -> 0 | AE102: =IF(AND($I66 = SUM($K66:AE66), SUM($K102:AD102) = 0), $I66, 0) -> 0 | AF102: =IF(AND($I66 = SUM($K66:AF66), SUM($K102:AE102) = 0), $I66, 0) -> 0 | AG102: =IF(AND($I66 = SUM($K66:AG66), SUM($K102:AF102) = 0), $I66, 0) -> 0 | AH102: =IF(AND($I66 = SUM($K66:AH66), SUM($K102:AG102) = 0), $I66, 0) -> 0 | AI102: =IF(AND($I66 = SUM($K66:AI66), SUM($K102:AH102) = 0), $I66, 0) -> 0 | AJ102: =IF(AND($I66 = SUM($K66:AJ66), SUM($K102:AI102) = 0), $I66, 0) -> 0 | AK102: =IF(AND($I66 = SUM($K66:AK66), SUM($K102:AJ102) = 0), $I66, 0) -> 0 | AL102: =IF(AND($I66 = SUM($K66:AL66), SUM($K102:AK102) = 0), $I66, 0) -> 0 | AM102: =IF(AND($I66 = SUM($K66:AM66), SUM($K102:AL102) = 0), $I66, 0) -> 0 | AN102: =IF(AND($I66 = SUM($K66:AN66), SUM($K102:AM102) = 0), $I66, 0) -> 0 | AO102: =IF(AND($I66 = SUM($K66:AO66), SUM($K102:AN102) = 0), $I66, 0) -> 0
E103: 2018-03-31 | G103: £m 09/10 prices | J103: > | L103: =IF(AND($I67 = SUM($K67:L67), SUM($K103:K103) = 0), $I67, 0) -> 0 | M103: =IF(AND($I67 = SUM($K67:M67), SUM($K103:L103) = 0), $I67, 0) -> 0 | N103: =IF(AND($I67 = SUM($K67:N67), SUM($K103:M103) = 0), $I67, 0) -> 0 | O103: =IF(AND($I67 = SUM($K67:O67), SUM($K103:N103) = 0), $I67, 0) -> 0 | P103: =IF(AND($I67 = SUM($K67:P67), SUM($K103:O103) = 0), $I67, 0) -> 0 | Q103: =IF(AND($I67 = SUM($K67:Q67), SUM($K103:P103) = 0), $I67, 0) -> 0 | R103: =IF(AND($I67 = SUM($K67:R67), SUM($K103:Q103) = 0), $I67, 0) -> 0 | S103: =IF(AND($I67 = SUM($K67:S67), SUM($K103:R103) = 0), $I67, 0) -> 0 | T103: =IF(AND($I67 = SUM($K67:T67), SUM($K103:S103) = 0), $I67, 0) -> 0 | U103: =IF(AND($I67 = SUM($K67:U67), SUM($K103:T103) = 0), $I67, 0) -> 0 | V103: =IF(AND($I67 = SUM($K67:V67), SUM($K103:U103) = 0), $I67, 0) -> 0 | W103: =IF(AND($I67 = SUM($K67:W67), SUM($K103:V103) = 0), $I67, 0) -> 0 | X103: =IF(AND($I67 = SUM($K67:X67), SUM($K103:W103) = 0), $I67, 0) -> 0 | Y103: =IF(AND($I67 = SUM($K67:Y67), SUM($K103:X103) = 0), $I67, 0) -> 0 | Z103: =IF(AND($I67 = SUM($K67:Z67), SUM($K103:Y103) = 0), $I67, 0) -> 0 | AA103: =IF(AND($I67 = SUM($K67:AA67), SUM($K103:Z103) = 0), $I67, 0) -> 0 | AB103: =IF(AND($I67 = SUM($K67:AB67), SUM($K103:AA103) = 0), $I67, 0) -> 0 | AC103: =IF(AND($I67 = SUM($K67:AC67), SUM($K103:AB103) = 0), $I67, 0) -> 0 | AD103: =IF(AND($I67 = SUM($K67:AD67), SUM($K103:AC103) = 0), $I67, 0) -> 0 | AE103: =IF(AND($I67 = SUM($K67:AE67), SUM($K103:AD103) = 0), $I67, 0) -> 0 | AF103: =IF(AND($I67 = SUM($K67:AF67), SUM($K103:AE103) = 0), $I67, 0) -> 0 | AG103: =IF(AND($I67 = SUM($K67:AG67), SUM($K103:AF103) = 0), $I67, 0) -> 0 | AH103: =IF(AND($I67 = SUM($K67:AH67), SUM($K103:AG103) = 0), $I67, 0) -> 0 | AI103: =IF(AND($I67 = SUM($K67:AI67), SUM($K103:AH103) = 0), $I67, 0) -> 0 | AJ103: =IF(AND($I67 = SUM($K67:AJ67), SUM($K103:AI103) = 0), $I67, 0) -> 0 | AK103: =IF(AND($I67 = SUM($K67:AK67), SUM($K103:AJ103) = 0), $I67, 0) -> 0 | AL103: =IF(AND($I67 = SUM($K67:AL67), SUM($K103:AK103) = 0), $I67, 0) -> 0 | AM103: =IF(AND($I67 = SUM($K67:AM67), SUM($K103:AL103) = 0), $I67, 0) -> 0 | AN103: =IF(AND($I67 = SUM($K67:AN67), SUM($K103:AM103) = 0), $I67, 0) -> 0 | AO103: =IF(AND($I67 = SUM($K67:AO67), SUM($K103:AN103) = 0), $I67, 0) -> 0
E104: 2019-03-31 | G104: £m 09/10 prices | J104: > | L104: =IF(AND($I68 = SUM($K68:L68), SUM($K104:K104) = 0), $I68, 0) -> 0 | M104: =IF(AND($I68 = SUM($K68:M68), SUM($K104:L104) = 0), $I68, 0) -> 0 | N104: =IF(AND($I68 = SUM($K68:N68), SUM($K104:M104) = 0), $I68, 0) -> 0 | O104: =IF(AND($I68 = SUM($K68:O68), SUM($K104:N104) = 0), $I68, 0) -> 0 | P104: =IF(AND($I68 = SUM($K68:P68), SUM($K104:O104) = 0), $I68, 0) -> 0 | Q104: =IF(AND($I68 = SUM($K68:Q68), SUM($K104:P104) = 0), $I68, 0) -> 0 | R104: =IF(AND($I68 = SUM($K68:R68), SUM($K104:Q104) = 0), $I68, 0) -> 0 | S104: =IF(AND($I68 = SUM($K68:S68), SUM($K104:R104) = 0), $I68, 0) -> 0 | T104: =IF(AND($I68 = SUM($K68:T68), SUM($K104:S104) = 0), $I68, 0) -> 0 | U104: =IF(AND($I68 = SUM($K68:U68), SUM($K104:T104) = 0), $I68, 0) -> 0 | V104: =IF(AND($I68 = SUM($K68:V68), SUM($K104:U104) = 0), $I68, 0) -> 0 | W104: =IF(AND($I68 = SUM($K68:W68), SUM($K104:V104) = 0), $I68, 0) -> 0 | X104: =IF(AND($I68 = SUM($K68:X68), SUM($K104:W104) = 0), $I68, 0) -> 0 | Y104: =IF(AND($I68 = SUM($K68:Y68), SUM($K104:X104) = 0), $I68, 0) -> 0 | Z104: =IF(AND($I68 = SUM($K68:Z68), SUM($K104:Y104) = 0), $I68, 0) -> 0 | AA104: =IF(AND($I68 = SUM($K68:AA68), SUM($K104:Z104) = 0), $I68, 0) -> 0 | AB104: =IF(AND($I68 = SUM($K68:AB68), SUM($K104:AA104) = 0), $I68, 0) -> 0 | AC104: =IF(AND($I68 = SUM($K68:AC68), SUM($K104:AB104) = 0), $I68, 0) -> 0 | AD104: =IF(AND($I68 = SUM($K68:AD68), SUM($K104:AC104) = 0), $I68, 0) -> 0 | AE104: =IF(AND($I68 = SUM($K68:AE68), SUM($K104:AD104) = 0), $I68, 0) -> 0 | AF104: =IF(AND($I68 = SUM($K68:AF68), SUM($K104:AE104) = 0), $I68, 0) -> 0 | AG104: =IF(AND($I68 = SUM($K68:AG68), SUM($K104:AF104) = 0), $I68, 0) -> 0 | AH104: =IF(AND($I68 = SUM($K68:AH68), SUM($K104:AG104) = 0), $I68, 0) -> 0 | AI104: =IF(AND($I68 = SUM($K68:AI68), SUM($K104:AH104) = 0), $I68, 0) -> 0 | AJ104: =IF(AND($I68 = SUM($K68:AJ68), SUM($K104:AI104) = 0), $I68, 0) -> 0 | AK104: =IF(AND($I68 = SUM($K68:AK68), SUM($K104:AJ104) = 0), $I68, 0) -> 0 | AL104: =IF(AND($I68 = SUM($K68:AL68), SUM($K104:AK104) = 0), $I68, 0) -> 0 | AM104: =IF(AND($I68 = SUM($K68:AM68), SUM($K104:AL104) = 0), $I68, 0) -> 0 | AN104: =IF(AND($I68 = SUM($K68:AN68), SUM($K104:AM104) = 0), $I68, 0) -> 0 | AO104: =IF(AND($I68 = SUM($K68:AO68), SUM($K104:AN104) = 0), $I68, 0) -> 0
E105: 2020-03-31 | G105: £m 09/10 prices | J105: > | L105: =IF(AND($I69 = SUM($K69:L69), SUM($K105:K105) = 0), $I69, 0) -> 0 | M105: =IF(AND($I69 = SUM($K69:M69), SUM($K105:L105) = 0), $I69, 0) -> 0 | N105: =IF(AND($I69 = SUM($K69:N69), SUM($K105:M105) = 0), $I69, 0) -> 0 | O105: =IF(AND($I69 = SUM($K69:O69), SUM($K105:N105) = 0), $I69, 0) -> 0 | P105: =IF(AND($I69 = SUM($K69:P69), SUM($K105:O105) = 0), $I69, 0) -> 0 | Q105: =IF(AND($I69 = SUM($K69:Q69), SUM($K105:P105) = 0), $I69, 0) -> 0 | R105: =IF(AND($I69 = SUM($K69:R69), SUM($K105:Q105) = 0), $I69, 0) -> 0 | S105: =IF(AND($I69 = SUM($K69:S69), SUM($K105:R105) = 0), $I69, 0) -> 0 | T105: =IF(AND($I69 = SUM($K69:T69), SUM($K105:S105) = 0), $I69, 0) -> 0 | U105: =IF(AND($I69 = SUM($K69:U69), SUM($K105:T105) = 0), $I69, 0) -> 0 | V105: =IF(AND($I69 = SUM($K69:V69), SUM($K105:U105) = 0), $I69, 0) -> 0 | W105: =IF(AND($I69 = SUM($K69:W69), SUM($K105:V105) = 0), $I69, 0) -> 0 | X105: =IF(AND($I69 = SUM($K69:X69), SUM($K105:W105) = 0), $I69, 0) -> 0 | Y105: =IF(AND($I69 = SUM($K69:Y69), SUM($K105:X105) = 0), $I69, 0) -> 0 | Z105: =IF(AND($I69 = SUM($K69:Z69), SUM($K105:Y105) = 0), $I69, 0) -> 0 | AA105: =IF(AND($I69 = SUM($K69:AA69), SUM($K105:Z105) = 0), $I69, 0) -> 0 | AB105: =IF(AND($I69 = SUM($K69:AB69), SUM($K105:AA105) = 0), $I69, 0) -> 0 | AC105: =IF(AND($I69 = SUM($K69:AC69), SUM($K105:AB105) = 0), $I69, 0) -> 0 | AD105: =IF(AND($I69 = SUM($K69:AD69), SUM($K105:AC105) = 0), $I69, 0) -> 0 | AE105: =IF(AND($I69 = SUM($K69:AE69), SUM($K105:AD105) = 0), $I69, 0) -> 0 | AF105: =IF(AND($I69 = SUM($K69:AF69), SUM($K105:AE105) = 0), $I69, 0) -> 0 | AG105: =IF(AND($I69 = SUM($K69:AG69), SUM($K105:AF105) = 0), $I69, 0) -> 0 | AH105: =IF(AND($I69 = SUM($K69:AH69), SUM($K105:AG105) = 0), $I69, 0) -> 0 | AI105: =IF(AND($I69 = SUM($K69:AI69), SUM($K105:AH105) = 0), $I69, 0) -> 0 | AJ105: =IF(AND($I69 = SUM($K69:AJ69), SUM($K105:AI105) = 0), $I69, 0) -> 0 | AK105: =IF(AND($I69 = SUM($K69:AK69), SUM($K105:AJ105) = 0), $I69, 0) -> 0 | AL105: =IF(AND($I69 = SUM($K69:AL69), SUM($K105:AK105) = 0), $I69, 0) -> 0 | AM105: =IF(AND($I69 = SUM($K69:AM69), SUM($K105:AL105) = 0), $I69, 0) -> 0 | AN105: =IF(AND($I69 = SUM($K69:AN69), SUM($K105:AM105) = 0), $I69, 0) -> 0 | AO105: =IF(AND($I69 = SUM($K69:AO69), SUM($K105:AN105) = 0), $I69, 0) -> 0
E106: 2021-03-31 | G106: £m 09/10 prices | J106: > | L106: =IF(AND($I70 = SUM($K70:L70), SUM($K106:K106) = 0), $I70, 0) -> 0 | M106: =IF(AND($I70 = SUM($K70:M70), SUM($K106:L106) = 0), $I70, 0) -> 0 | N106: =IF(AND($I70 = SUM($K70:N70), SUM($K106:M106) = 0), $I70, 0) -> 0 | O106: =IF(AND($I70 = SUM($K70:O70), SUM($K106:N106) = 0), $I70, 0) -> 0 | P106: =IF(AND($I70 = SUM($K70:P70), SUM($K106:O106) = 0), $I70, 0) -> 0 | Q106: =IF(AND($I70 = SUM($K70:Q70), SUM($K106:P106) = 0), $I70, 0) -> 0 | R106: =IF(AND($I70 = SUM($K70:R70), SUM($K106:Q106) = 0), $I70, 0) -> 0 | S106: =IF(AND($I70 = SUM($K70:S70), SUM($K106:R106) = 0), $I70, 0) -> 0 | T106: =IF(AND($I70 = SUM($K70:T70), SUM($K106:S106) = 0), $I70, 0) -> 0 | U106: =IF(AND($I70 = SUM($K70:U70), SUM($K106:T106) = 0), $I70, 0) -> 0 | V106: =IF(AND($I70 = SUM($K70:V70), SUM($K106:U106) = 0), $I70, 0) -> 0 | W106: =IF(AND($I70 = SUM($K70:W70), SUM($K106:V106) = 0), $I70, 0) -> 0 | X106: =IF(AND($I70 = SUM($K70:X70), SUM($K106:W106) = 0), $I70, 0) -> 0 | Y106: =IF(AND($I70 = SUM($K70:Y70), SUM($K106:X106) = 0), $I70, 0) -> 0 | Z106: =IF(AND($I70 = SUM($K70:Z70), SUM($K106:Y106) = 0), $I70, 0) -> 0 | AA106: =IF(AND($I70 = SUM($K70:AA70), SUM($K106:Z106) = 0), $I70, 0) -> 0 | AB106: =IF(AND($I70 = SUM($K70:AB70), SUM($K106:AA106) = 0), $I70, 0) -> 0 | AC106: =IF(AND($I70 = SUM($K70:AC70), SUM($K106:AB106) = 0), $I70, 0) -> 0 | AD106: =IF(AND($I70 = SUM($K70:AD70), SUM($K106:AC106) = 0), $I70, 0) -> 0 | AE106: =IF(AND($I70 = SUM($K70:AE70), SUM($K106:AD106) = 0), $I70, 0) -> 0 | AF106: =IF(AND($I70 = SUM($K70:AF70), SUM($K106:AE106) = 0), $I70, 0) -> 0 | AG106: =IF(AND($I70 = SUM($K70:AG70), SUM($K106:AF106) = 0), $I70, 0) -> 0 | AH106: =IF(AND($I70 = SUM($K70:AH70), SUM($K106:AG106) = 0), $I70, 0) -> 0 | AI106: =IF(AND($I70 = SUM($K70:AI70), SUM($K106:AH106) = 0), $I70, 0) -> 0 | AJ106: =IF(AND($I70 = SUM($K70:AJ70), SUM($K106:AI106) = 0), $I70, 0) -> 0 | AK106: =IF(AND($I70 = SUM($K70:AK70), SUM($K106:AJ106) = 0), $I70, 0) -> 0 | AL106: =IF(AND($I70 = SUM($K70:AL70), SUM($K106:AK106) = 0), $I70, 0) -> 0 | AM106: =IF(AND($I70 = SUM($K70:AM70), SUM($K106:AL106) = 0), $I70, 0) -> 0 | AN106: =IF(AND($I70 = SUM($K70:AN70), SUM($K106:AM106) = 0), $I70, 0) -> 0 | AO106: =IF(AND($I70 = SUM($K70:AO70), SUM($K106:AN106) = 0), $I70, 0) -> 0
E107: Total | G107: £m 09/10 prices | L107: =SUM(L76:L106) -> 0 | M107: 0 | N107: 0 | O107: 0 | P107: 0 | Q107: 0 | R107: 0 | S107: 0 | T107: 0 | U107: 0 | V107: 0 | W107: 0 | X107: 0 | Y107: 0 | Z107: 0 | AA107: 0 | AB107: 0 | AC107: 0 | AD107: 0 | AE107: 0 | AF107: 0 | AG107: 0 | AH107: =SUM(AH76:AH106) -> 0 | AI107: 0 | AJ107: 0 | AK107: 0 | AL107: 0 | AM107: 0 | AN107: 0 | AO107: 0
C109: RIIO opening value
C110: Note: Cumulative values provide the opening values for the following year.
E112: Cumulative net additions | G112: £m 09/10 prices | J112: > | AG112: =SUM($K15:AG15) -> 2365.943622
E113: Cumulative depreciation | G113: £m 09/10 prices | J113: > | AG113: =SUM($K$20:AG20) +SUM($K71:AG71) -> 292.933784
E114: Cumulative removals | G114: £m 09/10 prices | J114: > | AG114: =SUM($K107:AG107) -> 0
E116: Opening post-vesting RAV cost contribution | G116: £m 09/10 prices | AH116: =AG112 - AG114 -> 2365.943622
E117: Opening post-vesting RAV accumulated depreciation contribution | G117: £m 09/10 prices | AH117: =AG113 - AG114 -> 292.933784
B119: End of sheet

Sheet SystemOperator
A1: SystemOperator
B2: =UserInterface!G39 -> NGGT TO
E3: Parameter | F3: Licence condition | G3: Units | H3: Term | I3: Constant | AH3: Annual values
E4: PCFM year ending | F4: =Cover!C3 -> RIIO_GT1_FP_ FinancialModel_dec12.xlsm | I4: =UserInterface!$G$32 -> 2014-03-31 | K4: 1991-03-31 | L4: 1992-03-31 | M4: 1993-03-31 | N4: 1994-03-31 | O4: 1995-03-31 | P4: 1996-03-31 | Q4: 1997-03-31 | R4: 1998-03-31 | S4: 1999-03-31 | T4: 2000-03-31 | U4: 2001-03-31 | V4: 2002-03-31 | W4: 2003-03-31 | X4: 2004-03-31 | Y4: 2005-03-31 | Z4: 2006-03-31 | AA4: 2007-03-31 | AB4: 2008-03-31 | AC4: 2009-03-31 | AD4: 2010-03-31 | AE4: 2011-03-31 | AF4: 2012-03-31 | AG4: 2013-03-31 | AH4: 2014-03-31 | AI4: 2015-03-31 | AJ4: 2016-03-31 | AK4: 2017-03-31 | AL4: 2018-03-31 | AM4: 2019-03-31 | AN4: 2020-03-31 | AO4: 2021-03-31
B6: PCFM Variable Values Table
E8: Actual non-operational capex | F8: 6B | G8: £m 09/10 prices | H8: SOANC | AH8: =IF(UserInterface!$E$82 = 1,'NGGT SO (Base)'!AH8,'NGGT SO (Best)'!AH8) -> 53.49002114 | AI8: =IF(UserInterface!$E$82 = 1,'NGGT SO (Base)'!AI8,'NGGT SO (Best)'!AI8) -> 32.35182989 | AJ8: =IF(UserInterface!$E$82 = 1,'NGGT SO (Base)'!AJ8,'NGGT SO (Best)'!AJ8) -> 25.11651671 | AK8: =IF(UserInterface!$E$82 = 1,'NGGT SO (Base)'!AK8,'NGGT SO (Best)'!AK8) -> 24.687879 | AL8: =IF(UserInterface!$E$82 = 1,'NGGT SO (Base)'!AL8,'NGGT SO (Best)'!AL8) -> 22.17292156 | AM8: =IF(UserInterface!$E$82 = 1,'NGGT SO (Base)'!AM8,'NGGT SO (Best)'!AM8) -> 18.01470406 | AN8: =IF(UserInterface!$E$82 = 1,'NGGT SO (Base)'!AN8,'NGGT SO (Best)'!AN8) -> 19.24841925 | AO8: =IF(UserInterface!$E$82 = 1,'NGGT SO (Base)'!AO8,'NGGT SO (Best)'!AO8) -> 16.62525245
E9: Actual controllable opex | F9: 6B | G9: £m 09/10 prices | H9: SOACO | AH9: =IF(UserInterface!$E$82 = 1,'NGGT SO (Base)'!AH9,'NGGT SO (Best)'!AH9) -> 44.09695206 | AI9: =IF(UserInterface!$E$82 = 1,'NGGT SO (Base)'!AI9,'NGGT SO (Best)'!AI9) -> 46.26943331 | AJ9: =IF(UserInterface!$E$82 = 1,'NGGT SO (Base)'!AJ9,'NGGT SO (Best)'!AJ9) -> 50.60250025 | AK9: =IF(UserInterface!$E$82 = 1,'NGGT SO (Base)'!AK9,'NGGT SO (Best)'!AK9) -> 51.96552342 | AL9: =IF(UserInterface!$E$82 = 1,'NGGT SO (Base)'!AL9,'NGGT SO (Best)'!AL9) -> 51.12111997 | AM9: =IF(UserInterface!$E$82 = 1,'NGGT SO (Base)'!AM9,'NGGT SO (Best)'!AM9) -> 49.53982091 | AN9: =IF(UserInterface!$E$82 = 1,'NGGT SO (Base)'!AN9,'NGGT SO (Best)'!AN9) -> 48.65560499 | AO9: =IF(UserInterface!$E$82 = 1,'NGGT SO (Base)'!AO9,'NGGT SO (Best)'!AO9) -> 49.76370738
E10: Uncertain costs - Enhanced Physical Site Security | F10: 6D | G10: £m 09/10 prices | H10: SOIAEPPS | AH10: =IF(UserInterface!$E$82 = 1,'NGGT SO (Base)'!AH10,'NGGT SO (Best)'!AH10) -> 12.6 | AI10: =IF(UserInterface!$E$82 = 1,'NGGT SO (Base)'!AI10,'NGGT SO (Best)'!AI10) -> 0 | AJ10: =IF(UserInterface!$E$82 = 1,'NGGT SO (Base)'!AJ10,'NGGT SO (Best)'!AJ10) -> 0 | AK10: =IF(UserInterface!$E$82 = 1,'NGGT SO (Base)'!AK10,'NGGT SO (Best)'!AK10) -> 0 | AL10: =IF(UserInterface!$E$82 = 1,'NGGT SO (Base)'!AL10,'NGGT SO (Best)'!AL10) -> 0 | AM10: =IF(UserInterface!$E$82 = 1,'NGGT SO (Base)'!AM10,'NGGT SO (Best)'!AM10) -> 0 | AN10: =IF(UserInterface!$E$82 = 1,'NGGT SO (Base)'!AN10,'NGGT SO (Best)'!AN10) -> 0 | AO10: =IF(UserInterface!$E$82 = 1,'NGGT SO (Base)'!AO10,'NGGT SO (Best)'!AO10) -> 0
